Workbook

Sheet Intro_SM_StandRe
A1: 1 | B1: StandRe: Introduction and overview
B2: =RE_Company_name&" - "&RE_Status&" "&RE_Current_year -> - SST 2025
B4: This is the StandRe template for the standard model for reinsurers (StandRe), and for inputs from StandRe to the SST Template.
B5: Current version and change log: please refer to the record of changes at the bottom of this sheet.
B6: There are two versions of the StandRe template: one with macros and one without macros. This is the version with macros. Comments regarding macros are appropriately marked.
B7: The macro-enabled work sheets use VBA code. The macros are run by pressing the buttons included in some of the sheets (see below). The VBA code can be viewed by pressing "ALT + F11 (+ fn)".
B8: The buttons should be pressed in the order corresponding to the sheets.
B10: color coding
B12: input cells
B14: cells with automatic formulas
B17: Information on the current SST calculation
B19: Current year of SST calculation | C19: 2025
B21: Name of reinsurance company
B22: Type of business | C22: REINSURANCE
B24: Date at which the template was last filled out (dd.mm.yyyy)
B25: Status of the SST | C25: SST
B26: Selected SST currency
B27: Exchange rate SST currency to CHF | C27: =IF(RE_SST_Currency<>"",VLOOKUP(RE_SST_Currency&"/CHF",RE_Exchange_rates,2,FALSE),"") -> 
B30: Overview of the sheets in this template that are in scope of StandRe
B32: sheet name | C32: purpose | D32: sheets using information from this sheet as input | E32: button for macros
B33: Intro_SM_StandRe | C33: Current sheet. | D33: impacts all sheets in the template; e.g., "the name of reinsurance company" is included on top of every sheet
B34: RE_prescribed_parameters | C34: Contains FINMA prescribed yield curves and FX rates for the admissible currencies together with lists of names used for the StandRe segmentation in this template. No input is required. Yield curves and FX rates are published by FINMA each year. | D34: RE_input_parameters RE_AE_discount_factors; RE_AER_parameter_segments; RE_AEP_parameter_segments RE_IE1_experience_scen_info; RE_insurance_cash_flows; RE_MVM
B35: RE_reserves_and_premiums | C35: Used to enter reserve and premium information in the "detailed LOB" granularity to provide an overview of the portfolio. | D35: RE_AER_output RE_AEP_output
B36: RE_input_parameters | C36: Used to record company-specific information (including key input parameters for the model structure) and to set up the structure of the template based on this ("initial set up"). The initial set up hides, renames and duplicates sheets. | D36: impacts most sheets of the template | E36: (1) The first button is used for the initial set up of the template structure based on the input provided (result: template is ready for use, the key input must not be modified); (2) The second button is used to restore the original structure of the template before the initial set up (result: key input can be modified, template is ready for the initial set-up).
B37: RE_AER_parameter_segments | C37: Used to record data per AER parameter segment including selected and benchmark parameters (mean and standard deviation/CV). The parameters are computed outside of the template. | D37: RE_AE_discount_factors RE_AE_segments_mapping RE_insurance_cash_flows; RE_MVM
B38: RE_AEP_parameter_segments | C38: Used to record data per AEP parameter segment including selected parameters (mean and standard deviation/CV) and benchmark data. The parameters are calculated outside of the template. | D38: RE_AE_discount_factors RE_AE_segments_mapping; RE_insurance_cash_flows; RE_MVM
B39: RE_AE_discount_factors | C39: Used to calculate discount factors per AER and AEP parameter segment from yield curves and entered incremental payment patterns. | D39: RE_insurance_cash_flows; RE_MVM
B40: RE_AE_segments_mapping | C40: Used to record the mapping of AER parameter segments to StandRe segments and of AEP parameter segments to StandRe segments and model segments. This data is for information and not further used in the sheet.
B41: RE_AER_output | C41: Used to compute the aggregate AER lognormal distribution from the parameters by StandRe segment (mean, standard deviation, discount factor). The calculation of the parameters per StandRe segment from those per AER parameter segment is performed outside of the template. | D41: RE_distributions
B42: RE_AEP_output | C42: Used to compute the AEP lognormal distribution for a given AEP model segment from the parameters (mean, standard deviation, discount factor) by intersection of the AEP model segment with a StandRe segment. The latter parameters are calculated from the parameters per AEP parameter segment outside of the template. The sheet is automatically duplicated for each AEP model segment in the intial set up (RE_input_parameters). | D42: RE_AEP_model_parameters
B43: RE_AEP_model_parameters | C43: Used to record the correlation matrix between AEP model segments and display the parameters for each AEP model segment (mean, standard deviation and discount factor) by lookup. This sheet is only shown if there are several AEP model segments. It takes values from all the duplicated RE_AEP_output sheets. The correlation matrix between AEP model segments is calculated outside of the template. | E43: One button, which creates the structure of the sheet.
B44: RE_IE1_experience_scen_info | C44: Used to record information needed for the calculation of the IE1 experience scenarios. This includes the IE1 modeling thresholds, reporting thresholds and frequency and severity as-if adjustments segments with exposure and as-if adjustment factors. Some of the data is for information only and not further used in the template. | D44: RE_IE1_exp_scen_hist_losses; RE_IE1_experience_scenarios RE_IE1_non-experience_scenarios RE_IE1_severity_comp; RE_IE1_calibr_to_scen_results_1; RE_IE1_calibr_to_scen_results_2 | E44: One button, which creates the structure of the sheet with the required input tables.
B45: RE_IE1_exp_scen_hist_losses | C45: Used to record qualitative and quantitative information on the historical large info event losses used for producing IE1 experience scenarios. | D45: RE_IE1_experience_scenarios RE_IE1_non-experience_scenarios | E45: One button, which creates the appropriate number of columns for the severity as-if adjustment segments to record the corresponding severities of historical losses.
B46: RE_IE1_experience_scenarios | C46: Used to record the as-if adjusted frequency and severities per historical event loss and calculates which historical event losses give rise to IE1 experience scenarios. Also calculates the mean frequency of the IE1 model. The as-if adjustments of the historical event losses are calculated outside of the template using data entered into "RE_IE1_experience_scen_info". | D46: RE_IE1_non-experience_scenarios RE_IE1_model_parameters RE_IE1_calibr_to_scen_results_1; RE_IE1_calibr_to_scen_results_2 | E46: One button, which creates the appropriate number of columns for IE1 model segments to record the corresponding severities.
B47: RE_IE1_non-experience_scenarios | C47: Used to record qualitative and quantitative information on the IE1 non-experience scenarios. Also looks up the IE1 experience scenarios. | D47: RE_IE1_experience_scenarios RE_IE1_severity_comp RE_IE1_calibr_to_scen_results_1; RE_IE1_calibr_to_scen_results_2 | E47: One button, which creates the appropriate number of columns for IE1 model segments to record the corresponding severities.
B48: RE_IE1_severity_comp | C48: For each IE1 model segment, used to compare the GenPareto CDF of the severity to the CDF from the IE1 scenario severities for the IE1 model segment. If there is one IE1 model segment, the sheet is hidden (not used); if there are several IE1 model segments, the sheet is duplicated and named for each IE1 model segment.
B49: RE_IE1_model_parameters | C49: Used to record the parameters of the IE1 model per IE1 model segment incuding the probabilities of the dependent Bernoulli random variables. This sheet is only shown and used if there are several IE1 model segments. The joint probability of the Bernuolli random variables is estimated outside of the template. | E49: One button, which creates the structure of the sheet.
B50: RE_IE1_calibr_to_scen_results_1 | C50: If there is only one IE1 model segment, this sheet is used to calibrate the IE1 model to the IE1 scenario results by comparing the exceedance frequency curves. Both exceedance frequency curves are calculated automatically. The sheet is only used if there is one IE1 model segment, and then renamed to exclude "_1"; otherwise the sheet is hidden.
B51: RE_IE1_calibr_to_scen_results_2 | C51: If there is more than one IE1 model segment, this sheet is used to calibrate the IE1 model to the IE1 scenario results by comparing the exceedance frequency curves. The exceedance frequency curve for the scenarios is calculated automatically; the exceedance frequency curve of the IE1 model is calculated outside of the template. The sheet is used if there are several IE1 model segments, and then renamed to exclude "_2"; otherwise the sheet is hidden.
B52: RE_IE2_scenarios | C52: Used to record qualitative and quantitative information on the IE2 scenarios. | D52: RE_IE2_calibr_to_scen_results
B53: RE_IE2_calibr_to_scen_results | C53: Used to calibrate the IE2 model to the IE2 scenario results by comparing the exceedance frequency curves. Both exceedance frequency curves are calculated automatically.
B54: RE_distributions | C54: It combines the aggregate loss distribution with the expected non-life insurance result to obtain the one-year non-life insurance risk. The CDFs of the different components of StandRe and the resulting aggregate loss distribution are calculated outside of the template and given as an input. | D54: RE_one-year_risk_capital RE_input_SST_Template; RE_MVM
B55: RE_one-year_risk_capital | C55: Used to report the standalone one-year risk capital for non-life insurance risk and all related components.
B56: RE_insurance_cash_flows | C56: Computation of insurance cash flows for input to the market risk standard model | D56: RE_input_SST_Template
B57: RE_MVM | C57: Contains the computation of the market value margin, without the non-hedgeable market risk component | D57: RE_input_SST_Template
B58: RE_input_SST_Template | C58: Used to prepare input to the SST Template from the StandRe model | D58: Several sheets of the separate SST-Template
B59: RE_scenario_INFL_A | C59: Computation of the scenario severity of the INFL A scenario
B60: RE_scenario_INFL_B | C60: Computation of the scenario severity of the INFL B scenario
B64: Updates to SST-StandRe-Template | C64: Change applied
B65: 2017-04-18 | C65: StandRe template publication for Shadow Computation 2017
B66: 2017-10-31 | C66: Minor layout changes in several sheets (not reported in detail)
B67: 2017-10-31 | C67: Changes in the sheet "RE_IE1_experience_scenarios" in order to reflect the updated method of computing the mean of the IE1 frequency distribution.
B68: 2017-10-31 | C68: New sheet "RE_one-year_risk_capital" for information/reporting purposes.
B69: 2017-10-31 | C69: StandRe template for SST 2018 published
B70: 2017-12-22 | C70: sheet "RE_IE1_experience_scen_info": changed order of historical years from ascending to descending (macro "GenerateTablesForIE1Inputs" in module "d_IE1_Input_Table")
B71: 2017-12-22 | C71: sheet " RE_IE1_model_parameters": enhanced generated table by automatic (loop) formulas (macro "WriteIE1ModelParameterTable" in module "h_IE1_Model_Parameters")
B72: 2018-01-18 | C72: sheet "RE_prescribed_parameters": values of JPY yield curve per 31.12.2017 (line 13)
B73: 2018-01-23 | C73: changed the order of the sheets for IE1 to have "RE_IE1_severity_comp", followed by "RE_IE1_model_parameters", followed by "RE_IE1_calibr_to_scen_results"
B74: 2018-01-26 | C74: sheet "RE_input_parameter": inputs at lines 27-29 no more required here (but in the Calculation documentation word template), and new link to cell C20 (reference date of the SST)
B75: 2018-01-31 | C75: StandRe template for SST 2018 published with changes above
B76: 2018-10-31 | C76: sheet "RE_TargetCapital" has been removed; all sheets whose name did not start with "RE_" have been removed because out of scope of StandRe (e.g., corresponding to market risk); inputs needed that were in the deleted sheets are incorporated in the sheet RE_introduction, RE_prescribed_parameters and RE_input_parameters.
B77: 2018-10-31 | C77: sheet "RE_input_parameters": input field "Reference date of the SST" removed
B78: 2018-10-31 | C78: sheet "RE_AEP_parameter_segments": automatically computed column "Best estimate of outstanding losses" added
B79: 2018-10-31 | C79: new sheet "RE_liabilities_cash_flows" that was introduced in the field test 2018
B80: 2018-10-31 | C80: sheet "RE_distributions": additional info is requested (cells N23-N27); insertion of an additional automatic mapping (without new input, see cell B30)
B81: 2018-10-31 | C81: sheet "RE_one-year_risk_capital": removed one line (on discount effect) and reformatted layout
B82: 2018-10-31 | C82: changed order of the sheets "RE_input_parameters" and "RE_reserves_and_premiums"
B83: 2018-10-31 | C83: new sheet "RE_input_SST_Template" containing input into the SST Template
B84: 2018-10-31 | C84: StandRe template for SST 2019 published
B85: 2019-01-31 | C85: sheet "RE_prescribed_parameters": zero coupon rates and exchange rates updated as-of 31.12.2018
B86: 2019-01-31 | C86: sheet "RE_MVM": new for MVM shadow computation
B87: 2019-01-31 | C87: sheet "RE_AEP_parameter segment": formula added in cell K60
B88: 2019-01-31 | C88: sheet "RE_input_SST_Template": range B20:D21 changed due to MVM shadow computation
B89: 2019-01-31 | C89: sheet "RE_AE_discount_factors": addition of formulas in lines 52 and 99 to obtain aggregate development patterns for AER and AEP
B90: 2019-01-31 | C90: sheet "RE_AE_discount_factors": 10 more years added to incremental payment patterns, colums E and F adapted consequently
B91: 2019-01-31 | C91: sheet "RE_AE_segment_mapping": adding templates for CV disaggregation and aggregation (cells H11-W52)
B92: 2019-01-31 | C92: sheet "RE_one-year_risk_capital": added table "mean comparison" for the comparison of different mean amounts.
B93: 2019-01-31 | C93: StandRe template for SST 2019 published with changes above
B94: 2019-10-31 | C94: sheet "RE_distributions": added distributions for "AER+IE2" and "AEP+IE1+NE net"
B95: 2019-10-31 | C95: sheet "RE_MVM": adjusted references for PY risk (to "AER+IE2") and CY risk (to "AEP+IE1+NE net")
B96: 2019-10-31 | C96: sheet "RE_input_SST_template": adjusted various fields for input to the updated SST-Template
B97: 2019-10-31 | C97: sheet "RE_liabilities_cash_flows": changed codes and names to be consistent with updated SST balance sheet
B98: 2019-10-31 | C98: sheet "Intro_SM_StandRe": name of sheet changed (needed for consistency with other standard models)
B99: 2019-10-31 | C99: sheet "RE_insurance_cash_flows": name of sheet changed (to be more precise and consistent with SST-Template)
B100: 2019-10-31 | C100: StandRe template for SST 2020 published
B101: 2020-01-31 | C101: sheet "RE_prescribed_parameters": zero coupon rates and exchange rates updated as of 31.12.2019
B102: 2020-01-31 | C102: sheet "RE_MVM", cells H10, H11: links changed to best estimate of AER, AEP, espectively, over all parameter segments
B103: 2020-01-31 | C103: sheet "RE_IE1_severity_comp": cells F25, F26 etc.: changed ">" to ">=" (consistent with model description)
B104: 2020-01-31 | C104: sheet "RE_IE1_severity_comp": new formulas in columns G, K and log-log-graph now links to these
B105: 2020-01-31 | C105: sheet "RE_one-year_risk_capital": completely new table "Decomposition of aggregate loss" to provide clearer result overview
B106: 2020-01-31 | C106: StandRe template for SST 2020 published with above mentioned changes
B107: 2020-10-31 | C107: sheet "RE_AER_parameter_segments", added column for benchmark method for the "numbers of BF years"
B108: 2020-10-31 | C108: sheet "RE_one-year_risk_capital", in "Decomposition of aggregate loss", corrected reference to SST currency
B109: 2020-10-31 | C109: sheet "RE_MVM": text no longer refers to method for shadow calculation
B110: 2020-10-31 | C110: sheet "RE_insurance_cash_flows": changed two position numbers from SST balance sheet
B111: 2020-10-31 | C111: sheet "RE_input_SST_Template": updated sheet references to SST-template
B112: 2020-10-31 | C112: StandRe template for SST 2021 published with above changes
B113: 2021-01-31 | C113: sheet "RE_MVM": added facility to include CY risk of years 1,2,.. from multi-year contracts: new rows 54-58, 79
B114: 2021-01-31 | C114: sheet "RE_prescribed_parameters": zero coupon rates and exchange rates updated as of 31.12.2020
B115: 2021-01-31 | C115: StandRe template for SST 2021 published with above changes
B116: 31.10.2021 | C116: new sheets "RE_scenario_INFL_A" and RE_scenario_INFL_B" computing the INFL A and INFL B inflation scenarios
B117: 31.10.2021 | C117: sheet "RE_MVM": improved facilility to split off part of the URR at t=1 (more general than previous version from 31/01/2021)
B118: 2021-10-31 | C118: StandRe template for SST 2022 published with above changes
B119: 2022-01-31 | C119: sheet "RE_prescribed_parameters": zero coupon rates and exchange rates updated as of 31.12.2021
B120: 2022-01-31 | C120: StandRe template for SST 2022 published with above changes
B121: 31.10.2022 | C121: sheet "RE_insurance_cash_flows": it is newly possible facultatively to split short term cash flows by currency (for non-discounted total of short term cash flows; cells H135:H139) instead of the default assumption that all short term cash flows are in SST currency: formulas are unchanged but marked as possible input. Input overwrites the default formulas. If selected, choice must be explained in the "calculation documentation" document. Explanations in cells G134 and H134 updated.
B122: 31.10.2022 | C122: sheet "RE_input_SST_Template", cells B16, B17, B19: changed the name "Nonlife" to "Reinsurance" for consistency with SST template
B123: 31.10.2022 | C123: sheet "RE_input_SST_Template", cells B18, C18, C19: name in cell B18 adapted, formulas in cells C18, C19 adapted in line with new calculation of non-hedgeable market risk (see StandRe model description and "Technische Beschreibung Standardmodell Aggregation und MVM")
B124: 2022-10-31 | C124: sheet "RE_one-year_risk_capital": corrected references in cells C33, F33 to the correct cells in the sheet "RE_distributions" (R26, R23 instead of M26, M23)
B125: 2022-10-31 | C125: sheet "RE_distributions": added graphs displaying the cumul distr functions (one for three aggr CDFs, one for three AER and IE2 CDFs, and one for three AEP, IE1, and NE CDFs)
B126: 2022-10-31 | C126: sheets "RE_IE1_Calibr_to_scen_results_1", "RE_IE1_Calibr_to_scen_results_2", and "RE_IE2_calibr_to_scen_results": added a "calculator" to calculate parameters for Poisson-Gen Pareto frequency-severity model at higher threshold given parameters at lower threshold (e.g. can calibrate at lower threshold and use from higher threshold)
B127: 2022-10-31 | C127: StandRe template for SST 2023 published with above changes
B128: 2023-01-31 | C128: sheet "RE_prescribed_parameters": zero coupon rates and exchange rates updated as of 31.12.2022
B129: 2023-01-31 | C129: StandRe template for SST 2023 published with above changes
B130: 2023-03-01 | C130: sheets "RE_scenario_INFL_A" and "RE_scenario_INFL_B": changed previously hardcoded interest rates to the applicable interest rates from sheet "RE_prescribed_parameters"
B131: 2023-03-01 | C131: StandRe template for SST 2023 published with above changes
B132: 2023-10-31 | C132: StandRe template for SST 2024 published
B133: 2024-10-31 | C133: sheet "RE_insurance_cash_flows": updated notation and structure to the new SST balance sheet in the SST template, especially the new separation between earned and unearned
B134: 2024-10-31 | C134: sheet "RE_MVM": adjusted terminology and factors to current credit risk Basel
B135: 2024-10-31 | C135: sheet "RE_input_SST_Template": additional line for correspondence with "Other Data" sheet of SST-Template
B136: 2024-10-31 | C136: sheet "RE_scenario_INFL_A": updated the interest rate shock to the current situation
B137: 2024-10-31 | C137: StandRe template for SST 2025 published with above changes
B138: 2025-01-31 | C138: sheet "RE_prescribed_parameters": zero coupon rates and exchange rates updated as of 31.12.2024
B139: 2025-01-31 | C139: StandRe template for SST 2025 published with above changes

Sheet RE_prescribed_parameters
A1: 2 | B1: StandRe: FINMA prescribed parameters
B2: =RE_Company_name&" - "&RE_Status&" "&RE_Current_year -> - SST 2025
B4: ="Parameters per 31.12."&RE_Current_year -1 -> Parameters per 31.12.2024 | C4: ="Parameters updated January "&RE_Current_year&"" -> Parameters updated January 2025
B6: Selected zero coupon rates in percent | C6: FINMA curves are compulsory for the official SST
B8: Term (in years) | C8: 1 | D8: 2 | E8: 3 | F8: 4 | G8: 5 | H8: 6 | I8: 7 | J8: 8 | K8: 9 | L8: 10 | M8: 11 | N8: 12 | O8: 13 | P8: 14 | Q8: 15 | R8: 16 | S8: 17 | T8: 18 | U8: 19 | V8: 20 | W8: 21 | X8: 22 | Y8: 23 | Z8: 24 | AA8: 25 | AB8: 26 | AC8: 27 | AD8: 28 | AE8: 29 | AF8: 30 | AG8: 31 | AH8: 32 | AI8: 33 | AJ8: 34 | AK8: 35 | AL8: 36 | AM8: 37 | AN8: 38 | AO8: 39 | AP8: 40 | AQ8: 41 | AR8: 42 | AS8: 43 | AT8: 44 | AU8: 45 | AV8: 46 | AW8: 47 | AX8: 48 | AY8: 49 | AZ8: 50
B9: CHF | C9: 0.09142000663 | D9: 0.0040545125 | E9: 0.02568858065 | F9: 0.07123812176 | G9: 0.1210218585 | H9: 0.1690031996 | I9: 0.2130446566 | J9: 0.2524267621 | K9: 0.2870244955 | L9: 0.3169812257 | M9: 0.3410605102 | N9: 0.3607330242 | O9: 0.3776567772 | P9: 0.3930109201 | Q9: 0.4076611622 | R9: 0.4221444452 | S9: 0.4364357356 | T9: 0.4504254372 | U9: 0.4640408276 | V9: 0.4772354029 | W9: 0.489981432 | X9: 0.5022646784 | Y9: 0.5140806109 | Z9: 0.5254316562 | AA9: 0.5363251887 | AB9: 0.5467720506 | AC9: 0.5567854568 | AD9: 0.5663801811 | AE9: 0.575571952 | AF9: 0.5843770027 | AG9: 0.5928117388 | AH9: 0.6008924925 | AI9: 0.6086353444 | AJ9: 0.6160559946 | AK9: 0.6231696733 | AL9: 0.6299910794 | AM9: 0.6365343423 | AN9: 0.642813 | AO9: 0.6488399901 | AP9: 0.6546276501 | AQ9: 0.6601877255 | AR9: 0.665531382 | AS9: 0.6706692227 | AT9: 0.6756113069 | AU9: 0.6803671708 | AV9: 0.6849458501 | AW9: 0.6893559016 | AX9: 0.6936054264 | AY9: 0.697702092 | AZ9: 0.7016531543
B10: EUR | C10: 2.042 | D10: 1.894 | E10: 1.889 | F10: 1.92 | G10: 1.948 | H10: 1.974 | I10: 1.998 | J10: 2.023 | K10: 2.047 | L10: 2.07 | M10: 2.090982233 | N10: 2.108581393 | O10: 2.121765111 | P10: 2.129769611 | Q10: 2.132 | R10: 2.128173403 | S10: 2.118794981 | T10: 2.104399937 | U10: 2.085375785 | V10: 2.062 | W10: 2.034756551 | X10: 2.005104908 | Y10: 1.974454115 | Z10: 1.943919017 | AA10: 1.914383111 | AB10: 1.886548738 | AC10: 1.860977536 | AD10: 1.838123344 | AE10: 1.818359234 | AF10: 1.802 | AG10: 1.789170379 | AH10: 1.779412386 | AI10: 1.772211627 | AJ10: 1.767140919 | AK10: 1.763844365 | AL10: 1.762024622 | AM10: 1.761432645 | AN10: 1.761859387 | AO10: 1.763129043 | AP10: 1.765093534 | AQ10: 1.767627974 | AR10: 1.770626927 | AS10: 1.774001323 | AT10: 1.777675878 | AU10: 1.781586961 | AV10: 1.785680801 | AW10: 1.789911983 | AX10: 1.794242188 | AY10: 1.798639132 | AZ10: 1.803075662
B11: USD | C11: 4.1759 | D11: 4.075597808 | E11: 4.052328791 | F11: 4.038987431 | G11: 4.036239472 | H11: 4.042146875 | I11: 4.048553265 | J11: 4.055994431 | K11: 4.064182165 | L11: 4.074368966 | M11: 4.08767489 | N11: 4.102072566 | O11: 4.115428708 | P11: 4.126146456 | Q11: 4.132967266 | R11: 4.135125636 | S11: 4.132992414 | T11: 4.12705528 | U11: 4.117659043 | V11: 4.105039836 | W11: 4.089386873 | X11: 4.070960359 | Y11: 4.049976252 | Z11: 4.026582758 | AA11: 4.000873483 | AB11: 3.972897695 | AC11: 3.942668499 | AD11: 3.910169509 | AE11: 3.875360422 | AF11: 3.838181832 | AG11: 3.798722263 | AH11: 3.757662488 | AI11: 3.715715547 | AJ11: 3.673471872 | AK11: 3.631417615 | AL11: 3.589950698 | AM11: 3.549394831 | AN11: 3.510011712 | AO11: 3.472011617 | AP11: 3.435562551 | AQ11: 3.400798171 | AR11: 3.367824607 | AS11: 3.336726353 | AT11: 3.307571366 | AU11: 3.280415485 | AV11: 3.255306298 | AW11: 3.232286555 | AX11: 3.211397229 | AY11: 3.192680308 | AZ11: 3.176181412
B12: GBP | C12: 4.45588 | D12: 4.264579669 | E12: 4.154955289 | F12: 4.083659199 | G12: 4.03882463 | H12: 4.016524429 | I12: 4.014248507 | J12: 4.025653243 | K12: 4.046788331 | L12: 4.071857329 | M12: 4.102548196 | N12: 4.13627992 | O12: 4.169973685 | P12: 4.201414119 | Q12: 4.228929788 | R12: 4.251533517 | S12: 4.269671323 | T12: 4.283961326 | U12: 4.294869842 | V12: 4.302747994 | W12: 4.3078412 | X12: 4.310263409 | Y12: 4.31006803 | Z12: 4.307273128 | AA12: 4.30186692 | AB12: 4.293812141 | AC12: 4.283049653 | AD12: 4.269501553 | AE12: 4.253073995 | AF12: 4.233659872 | AG12: 4.211300405 | AH12: 4.186622112 | AI12: 4.160296135 | AJ12: 4.132886137 | AK12: 4.104864221 | AL12: 4.076624722 | AM12: 4.048496155 | AN12: 4.020751579 | AO12: 3.993617559 | AP12: 3.967281922 | AQ12: 3.941900479 | AR12: 3.917602836 | AS12: 3.894497433 | AT12: 3.872675928 | AU12: 3.852217021 | AV12: 3.833189819 | AW12: 3.815656806 | AX12: 3.799676528 | AY12: 3.785306024 | AZ12: 3.7726031
B13: JPY | C13: 0.5175 | D13: 0.647921422 | E13: 0.7142826473 | F13: 0.759640109 | G13: 0.7975612267 | H13: 0.8407758868 | I13: 0.8908978908 | J13: 0.9438865295 | K13: 1.000340139 | L13: 1.06326637 | M13: 1.127987357 | N13: 1.192688222 | O13: 1.256955213 | P13: 1.320613991 | Q13: 1.383643164 | R13: 1.445899923 | S13: 1.506529116 | T13: 1.564751543 | U13: 1.62001477 | V13: 1.671921493 | W13: 1.720284234 | X13: 1.765364496 | Y13: 1.807485415 | Z13: 1.846926553 | AA13: 1.883931543 | AB13: 1.91871409 | AC13: 1.951462739 | AD13: 1.982344718 | AE13: 2.011509039 | AF13: 2.039089058 | AG13: 2.065204581 | AH13: 2.089963619 | AI13: 2.113463867 | AJ13: 2.135793946 | AK13: 2.15703447 | AL13: 2.177258949 | AM13: 2.196534572 | AN13: 2.214922883 | AO13: 2.232480368 | AP13: 2.249258966 | AQ13: 2.265306522 | AR13: 2.280667177 | AS13: 2.295381725 | AT13: 2.309487912 | AU13: 2.323020722 | AV13: 2.336012614 | AW13: 2.348493746 | AX13: 2.360492169 | AY13: 2.372034004 | AZ13: 2.383143603
B15: Discount factors based on interest rate curves for selected currencies
B17: Term (in years) | C17: 1 | D17: 2 | E17: 3 | F17: 4 | G17: 5 | H17: 6 | I17: 7 | J17: 8 | K17: 9 | L17: 10 | M17: 11 | N17: 12 | O17: 13 | P17: 14 | Q17: 15 | R17: 16 | S17: 17 | T17: 18 | U17: 19 | V17: 20 | W17: 21 | X17: 22 | Y17: 23 | Z17: 24 | AA17: 25 | AB17: 26 | AC17: 27 | AD17: 28 | AE17: 29 | AF17: 30 | AG17: 31 | AH17: 32 | AI17: 33 | AJ17: 34 | AK17: 35 | AL17: 36 | AM17: 37 | AN17: 38 | AO17: 39 | AP17: 40 | AQ17: 41 | AR17: 42 | AS17: 43 | AT17: 44 | AU17: 45 | AV17: 46 | AW17: 47 | AX17: 48 | AY17: 49 | AZ17: 50
B18: CHF | C18: =(1+C9/100)^(-C$8) -> 0.9990866349 | D18: 0.9999189147 | E18: 0.9992297384 | F18: 0.9971555428 | G18: 0.9939708146 | H18: =(1+H9/100)^(-H$8) -> 0.9899195191 | I18: 0.9852131526 | J18: 0.9800333316 | K18: 0.9745346509 | L18: 0.9688475662 | M18: 0.9632398585 | N18: 0.9577101797 | O18: 0.952178361 | P18: 0.9465668417 | Q18: 0.9407998406 | R18: 0.9348203133 | S18: 0.9286413826 | T18: 0.92229096 | U18: 0.9157940089 | V18: 0.9091728499 | W18: 0.9024474341 | X18: 0.8956355884 | Y18: 0.8887532355 | Z18: 0.8818145911 | AA18: 0.8748323406 | AB18: 0.867817798 | AC18: 0.8607810478 | AD18: 0.8537310725 | AE18: 0.8466758672 | AF18: 0.8396225419 | AG18: 0.8325774135 | AH18: 0.8255460881 | AI18: =(1+AI9/100)^(-AI$8) -> 0.8185335352 | AJ18: 0.8115441538 | AK18: 0.8045818318 | AL18: 0.7976499993 | AM18: 0.7907516763 | AN18: 0.783889516 | AO18: 0.7770658424 | AP18: 0.7702826855 | AQ18: 0.7635418118 | AR18: 0.7568447521 | AS18: 0.7501928261 | AT18: 0.7435871651 | AU18: 0.7370287315 | AV18: 0.7305183369 | AW18: 0.7240566582 | AX18: 0.7176442519 | AY18: 0.7112815668 | AZ18: 0.7049689559
B19: EUR | C19: =(1+C10/100)^(-C$8) -> 0.9799886321 | D19: 0.963169623 | E19: 0.9454054477 | F19: 0.9267494566 | G19: 0.9080430706 | H19: =(1+H10/100)^(-H$8) -> 0.8893306685 | I19: 0.8706796766 | J19: 0.8519523026 | K19: 0.8332931739 | L19: 0.8147396503 | M19: 0.7964138339 | N19: 0.7784900921 | O19: 0.7611354239 | P19: 0.7445040577 | Q19: 0.728739737 | R19: 0.7139552121 | S19: 0.7001698665 | T19: 0.6873845523 | U19: 0.6756050635 | V19: 0.6648420965 | W19: 0.6550722691 | X19: 0.6461272381 | Y19: 0.6378198771 | Z19: 0.6299820823 | AA19: 0.6224622228 | AB19: 0.6151228557 | AC19: 0.6078386737 | AD19: 0.6004946561 | AE19: 0.5929843975 | AF19: 0.5852085913 | AG19: 0.5771001457 | AH19: 0.5686983211 | AI19: =(1+AI10/100)^(-AI$8) -> 0.5600618528 | AJ19: 0.5512422568 | AK19: 0.5422846629 | AL19: 0.5332285538 | AM19: 0.5241084186 | AN19: 0.5149543325 | AO19: 0.5057924699 | AP19: 0.4966455584 | AQ19: 0.4875332819 | AR19: 0.4784726362 | AS19: 0.4694782453 | AT19: 0.46056264 | AU19: 0.4517365059 | AV19: 0.4430089022 | AW19: 0.4343874555 | AX19: 0.4258785311 | AY19: 0.4174873856 | AZ19: 0.4092183005
B20: USD | C20: 0.9599149131 | D20: 0.9232135536 | E20: 0.8876557819 | F20: 0.8535235984 | G20: 0.8204965735 | H20: =(1+H11/100)^(-H$8) -> 0.7883955588 | I20: 0.7574390266 | J20: 0.7275505411 | K20: 0.6986964243 | L20: 0.6707522481 | M20: 0.6435875273 | N20: 0.6172875083 | O20: 0.5919756017 | P20: 0.5677574663 | Q20: 0.5447237906 | R20: 0.5229306227 | S20: 0.5023403604 | T20: 0.4828980366 | U20: 0.464554312 | V20: 0.4472649917 | W20: 0.4309873686 | X20: 0.415670909 | Y20: 0.4012678225 | Z20: 0.3877359104 | AA20: 0.3750380468 | AB20: 0.3631417291 | AC20: 0.3520186889 | AD20: 0.3416445585 | AE20: 0.3319985852 | AF20: 0.3230633888 | AG20: 0.3148094553 | AH20: 0.3071526504 | AI20: =(1+AI11/100)^(-AI$8) -> 0.3000055284 | AJ20: 0.2932919543 | AK20: 0.2869456413 | AL20: 0.2809088686 | AM20: 0.2751313575 | AN20: 0.2695692848 | AO20: 0.2641844176 | AP20: 0.2589433541 | AQ20: 0.2538168569 | AR20: 0.2487792671 | AS20: 0.2438079894 | AT20: 0.2388830387 | AU20: 0.233986641 | AV20: 0.2291028812 | AW20: 0.2242173914 | AX20: 0.2193170755 | AY20: 0.2143898639 | AZ20: 0.2094244956
B21: GBP | C21: 0.9573419897 | D21: 0.9198698966 | E21: 0.8850344777 | F21: 0.8520592429 | G21: 0.82039464 | H21: =(1+H12/100)^(-H$8) -> 0.7895615121 | I21: 0.7591894253 | J21: 0.7292499139 | K21: 0.6997483574 | L21: 0.6709141429 | M21: 0.6425767947 | N21: 0.6148586528 | O21: 0.587958661 | P21: 0.5620428412 | Q21: 0.5372492557 | R21: 0.5136659368 | S21: 0.4912628488 | T21: 0.4699856975 | U21: 0.4497840156 | V21: 0.4306108686 | W21: 0.4124239713 | X21: 0.3951892057 | Y21: 0.3788756907 | Z21: 0.3634542852 | AA21: 0.3488975738 | AB21: 0.3351798533 | AC21: 0.32227712 | AD21: 0.3101670583 | AE21: 0.2988290317 | AF21: 0.2882440744 | AG21: 0.2783817278 | AH21: 0.269164234 | AI21: =(1+AI12/100)^(-AI$8) -> 0.2605116823 | AJ21: 0.2523545942 | AK21: 0.2446325417 | AL21: 0.2372929443 | AM21: 0.2302900207 | AN21: 0.223583876 | AO21: 0.2171397065 | AP21: 0.2109271069 | AQ21: 0.2049194671 | AR21: 0.1990934462 | AS21: 0.1934285141 | AT21: 0.1879065526 | AU21: 0.1825115065 | AV21: 0.1772290802 | AW21: 0.1720464718 | AX21: 0.1669521416 | AY21: 0.1619356089 | AZ21: 0.1569872747
B22: JPY | C22: 0.9948516427 | D22: 0.987166433 | E22: 0.9788740348 | F22: 0.9701827968 | G22: 0.9610586171 | H22: =(1+H13/100)^(-H$8) -> 0.9510052811 | I22: 0.9398014056 | J22: 0.9275980458 | K22: 0.9143121116 | L22: 0.8996357278 | M22: 0.8839241422 | N22: 0.867381991 | O22: 0.8501132149 | P22: 0.8322055722 | Q22: 0.8137323853 | R22: 0.7947819844 | S22: 0.7755367383 | T22: 0.7561810889 | U22: 0.7368756063 | V22: 0.7177602003 | W22: 0.6989419932 | X22: 0.6804561848 | Y22: 0.6623181439 | Z22: 0.6445397901 | AA22: 0.6271300566 | AB22: 0.6100952959 | AC22: 0.5934396347 | AD22: 0.5771652856 | AE22: 0.5612728182 | AF22: 0.5457613982 | AG22: 0.5306289949 | AH22: 0.5158725631 | AI22: =(1+AI13/100)^(-AI$8) -> 0.5014882023 | AJ22: 0.4874712948 | AK22: 0.4738166266 | AL22: 0.4605184927 | AM22: 0.4475707883 | AN22: 0.4349670889 | AO22: 0.4227007187 | AP22: 0.4107648106 | AQ22: 0.399152358 | AR22: 0.3878562594 | AS22: 0.3768693568 | AT22: 0.3661844686 | AU22: 0.3557944182 | AV22: 0.3456920579 | AW22: 0.3358702892 | AX22: 0.3263220806 | AY22: 0.3170404818 | AZ22: 0.3080186361
B25: Exchange rates (e.g. EUR/CHF = how much CHF for one EUR)
B27: FINMA rates are compulsory for the official SST | C27: Selected exchange rates
B28: CHF/CHF | C28: 1
B29: EUR/CHF | C29: 0.94008
B30: USD/CHF | C30: 0.9074
B31: GBP/CHF | C31: 1.1356
B32: JPY/CHF | C32: 0.005762
B33: CHF/EUR | C33: =C28/C$29 -> 1.063739256
B34: EUR/EUR | C34: =C29/C$29 -> 1
B35: USD/EUR | C35: =C30/C$29 -> 0.9652370011
B36: GBP/EUR | C36: =C31/C$29 -> 1.207982299
B37: JPY/EUR | C37: =C32/C$29 -> 0.006129265594
B38: CHF/USD | C38: =C28/C$30 -> 1.102049813
B39: EUR/USD | C39: =C29/C$30 -> 1.036014988
B40: USD/USD | C40: =C30/C$30 -> 1
B41: GBP/USD | C41: =C31/C$30 -> 1.251487767
B42: JPY/USD | C42: =C32/C$30 -> 0.00635001102
B43: CHF/GBP | C43: =C28/C$31 -> 0.8805917577
B44: EUR/GBP | C44: =C29/C$31 -> 0.8278266995
B45: USD/GBP | C45: =C30/C$31 -> 0.7990489609
B46: GBP/GBP | C46: =C31/C$31 -> 1
B47: JPY/GBP | C47: =C32/C$31 -> 0.005073969708
B48: CHF/JPY | C48: =C28/C$32 -> 173.5508504
B49: EUR/JPY | C49: =C29/C$32 -> 163.1516834
B50: USD/JPY | C50: =C30/C$32 -> 157.4800417
B51: GBP/JPY | C51: =C31/C$32 -> 197.0843457
B52: JPY/JPY | C52: =C32/C$32 -> 1
B55: StandRe regions
B57: Full name | C57: Short
B58: Europe | C58: Europe
B59: North America | C59: NorthAm
B60: Rest of world | C60: RestWorld
B61: Not regional | C61: NotReg
B64: StandRe LOBs
B66: Full name | C66: Short
B67: Accident and health | C67: AccHealth
B68: Motor | C68: Motor
B69: Marine, aviation and other transport | C69: MAT
B70: Property | C70: Property
B71: Financial losses | C71: FinLosses
B72: General liability | C72: GenLiab
B73: Other Non-life | C73: Other
B76: StandRe Types of contract
B78: Full name | C78: Short
B79: Prop | C79: P
B80: Non Prop | C80: NP
B83: StandRe Types of scenarios
B85: Full name | C85: Short
B86: Experience scenario | C86: Experience
B87: Portfolio structure scenario | C87: Portfolio structure
B88: Damage event scenario | C88: Damage event
B89: Other event scenario | C89: Other event
B90: Own scenario | C90: Own
B93: StandRe Form of output
B95: Full name | C95: Short
B96: Gross of outward retrocession | C96: gross
B97: Netgross of outward retrocession | C97: netgross
B98: Net of outward retrocession | C98: net

Sheet RE_reserves_and_premiums
A1: 3 | B1: StandRe: Reserves and premiums
B2: =RE_Company_name&" - "&RE_Status&" "&RE_Current_year -> - SST 2025
B8: Non-discounted reserve by LOB, net of retrocession
B9: ="in "&RE_SST_Currency&" (SST currency)" -> in (SST currency)
E10: by Type for a LOB | G10: by High-level region for a LOB | N10: by detailed segment
B11: StandRe LOB and detailed LOB | C11: In SST currency | D11: In % of Total | E11: Prop in % of LOB Total | F11: Non Prop in % of LOB Total | G11: Europe in % of LOB Total | H11: North America in % of LOB Total | I11: Central and South America in % of LOB Total | J11: Middle East and Africa in % of LOB Total | K11: Japan in % of LOB Total | L11: Asia and Pacific in % of LOB Total | M11: Not regional in % of LOB Total | N11: Europe, Prop in SST currency | O11: Europe, Non-Prop in SST currency | P11: North America, Prop in SST currency | Q11: North America, Non-Prop in SST currency | R11: Central and South America, Prop in SST currency | S11: Central and South America, Non-Prop in SST currency | T11: Middle East and Africa, Prop in SST currency | U11: Middle East and Africa, Non-Prop in SST currency | V11: Japan, Prop in SST currency | W11: Japan, Non-Prop in SST currency | X11: Asia and Pacific, Prop in SST currency | Y11: Asia and Pacific, Non-Prop in SST currency | Z11: Not regional, Prop in SST currency | AA11: Not regional, Non-Prop in SST currency
B12: - motor hull (example, do not remove) | C12: =SUM(N12:AA12) -> 9146078.399 | D12: =IF($C$12<>0,C12*100/$C$12,"") -> 100 | E12: =IF(C12<>0,(N12+P12+R12+T12+V12+X12+Z12)*100/C12,"") -> 48.00079561 | F12: =IF(C12<>0,(O12+Q12+S12+U12+W12+Y12+AA12)*100/C12,"") -> 51.99920439 | G12: =IF(C12<>0,(N12+O12)*100/C12,"") -> 52.78049771 | H12: =IF(C12<>0,(P12+Q12)*100/C12,"") -> 24.16388482 | I12: =IF(C12<>0,(R12+S12)*100/C12,"") -> 1.09336478 | J12: =IF(C12<>0,(T12+U12)*100/C12,"") -> 6.232179248 | K12: =IF(C12<>0,(V12+W12)*100/C12,"") -> 14.7144797 | L12: =IF(C12<>0,(X12+Y12)*100/C12,"") -> 0.634140639 | M12: =IF(C12<>0,(Z12+AA12)*100/C12,"") -> 0.3814531046 | N12: 2963095.699 | O12: 1864250 | P12: 481547.8497 | Q12: 1728500 | R12: 100000 | T12: 340000 | U12: 230000 | V12: 481547.8497 | W12: 864250 | X12: 23999 | Y12: 34000 | Z12: 0 | AA12: 34888
B13: ACCIDENT AND HEALTH | C13: =SUM(N13:AA13) -> 0 | D13: =IF($C$60<>0,C13*100/$C$60,"") ->  | E13: =IF(C13<>0,(N13+P13+R13+T13+V13+X13+Z13)*100/C13,"") ->  | F13: =IF(C13<>0,(O13+Q13+S13+U13+W13+Y13+AA13)*100/C13,"") ->  | G13: =IF(C13<>0,(N13+O13)*100/C13,"") ->  | H13: =IF(C13<>0,(P13+Q13)*100/C13,"") ->  | I13: =IF(C13<>0,(R13+S13)*100/C13,"") ->  | J13: =IF(C13<>0,(T13+U13)*100/C13,"") ->  | K13: =IF(C13<>0,(V13+W13)*100/C13,"") ->  | L13: =IF(C13<>0,(X13+Y13)*100/C13,"") ->  | M13: =IF(C13<>0,(Z13+AA13)*100/C13,"") ->  | N13: =SUM(N14:N20) -> 0 | O13: =SUM(O14:O20) -> 0 | P13: 0 | Q13: 0 | R13: 0 | S13: 0 | T13: 0 | U13: 0 | V13: 0 | W13: 0 | X13: 0 | Y13: 0 | Z13: 0 | AA13: 0
B14: compulsory accident | C14: =SUM(N14:AA14) -> 0 | E14: =IF(C14<>0,(N14+P14+R14+T14+V14+X14+Z14)*100/C14,"") ->  | I14: =IF(C14<>0,(R14+S14)*100/C14,"") -> 
B15: non-compulsory accident | C15: =SUM(N15:AA15) -> 0 | E15: =IF(C15<>0,(N15+P15+R15+T15+V15+X15+Z15)*100/C15,"") -> 
B16: compulsory health (care) | C16: 0
B17: non-compulsory health (care) | C17: 0
B18: workers compensation | C18: 0
B19: employers liability | C19: =SUM(N19:AA19) -> 0
B20: other/non-specific or combined accident and health | C20: 0
B21: MOTOR | C21: 0 | G21: =IF(C21<>0,(N21+O21)*100/C21,"") ->  | N21: =SUM(N22:N24) -> 0 | O21: =SUM(O22:O24) -> 0 | P21: =SUM(P22:P24) -> 0 | Q21: 0 | R21: 0 | S21: 0 | T21: 0 | U21: 0 | V21: 0 | W21: 0 | X21: 0 | Y21: 0 | Z21: 0 | AA21: 0
B22: motor hull (and accident) | C22: 0
B23: motor liability | C23: 0
B24: other/non-specific or combined motor | C24: 0
B25: MARINE, AVIATION AND OTHER TRANSPORT | C25: 0 | N25: =SUM(N26:N36) -> 0 | O25: =SUM(O26:O36) -> 0 | P25: 0 | Q25: 0 | R25: 0 | S25: 0 | T25: 0 | U25: 0 | V25: 0 | W25: 0 | X25: 0 | Y25: 0 | Z25: 0 | AA25: 0
B26: marine hull (incl. shipbuilding) | C26: 0
B27: marine cargo (goods in transit) | C27: 0
B28: marine liability (incl. Protection & Indemnity PI) | C28: 0
B29: specie and fine art | C29: 0
B30: railway and other transport | C30: 0
B31: other/non-specific or combined marine | C31: 0
B32: aviation hull (and accident) | C32: 0
B33: aviation liability (incl. aviation products liability) | C33: 0
B34: space (incl. satellites) (hull) | C34: 0
B35: other/non-specific or combined aviation | C35: 0
B36: energy offshore (property, incl. BI) | C36: 0
B37: PROPERTY | C37: 0 | N37: =SUM(N38:N42) -> 0 | O37: 0 | P37: 0 | Q37: =SUM(Q38:Q42) -> 0 | R37: =SUM(R38:R42) -> 0 | S37: =SUM(S38:S42) -> 0 | T37: =SUM(T38:T42) -> 0 | U37: =SUM(U38:U42) -> 0 | V37: 0 | W37: 0 | X37: 0 | Y37: 0 | Z37: 0 | AA37: 0
B38: energy onshore (property, incl. BI) | C38: 0
B39: personal property | C39: =SUM(N39:AA39) -> 0
B40: commercial property (incl. BI) | C40: 0
B41: other/non-specific or combined property | C41: 0
B42: engineering, construction | C42: 0
B43: FINANCIAL LOSSES | C43: 0 | N43: =SUM(N44:N48) -> 0 | O43: =SUM(O44:O48) -> 0 | P43: 0 | Q43: 0 | R43: 0 | S43: 0 | T43: 0 | U43: 0 | V43: 0 | W43: 0 | X43: 0 | Y43: 0 | Z43: 0 | AA43: 0
B44: credit (incl. export credit, mortages) | C44: 0 | D44: =IF($C$60<>0,C44*100/$C$60,"") ->  | G44: =IF(C44<>0,(N44+O44)*100/C44,"") ->  | H44: =IF(C44<>0,(P44+Q44)*100/C44,"") ->  | K44: =IF(C44<>0,(V44+W44)*100/C44,"") ->  | L44: =IF(C44<>0,(X44+Y44)*100/C44,"") ->  | M44: =IF(C44<>0,(Z44+AA44)*100/C44,"") -> 
B45: surety | C45: 0
B46: political risks | C46: 0
B47: agriculture | C47: 0
B48: other financial losses (incl. income protection) | C48: 0
B49: GENERAL LIABILITY | C49: 0 | N49: =SUM(N50:N55) -> 0 | O49: =SUM(O50:O55) -> 0 | P49: 0 | Q49: 0 | R49: 0 | S49: 0 | T49: 0 | U49: 0 | V49: 0 | W49: 0 | X49: 0 | Y49: 0 | Z49: 0 | AA49: 0
B50: personal liability (public liability) | C50: 0
B51: commercial liability (public liability) | C51: 0
B52: product liability | C52: 0
B53: professional indemnity incl. errors & omissions (E&O) | C53: 0
B54: directors and officers (D&O) | C54: 0
B55: other/non-specific liability | C55: 0
B56: OTHER NON-LIFE | C56: 0 | N56: =SUM(N57:N59) -> 0 | O56: =SUM(O57:O59) -> 0 | P56: 0 | Q56: 0 | R56: 0 | S56: 0 | T56: 0 | U56: 0 | V56: 0 | W56: 0 | X56: 0 | Y56: 0 | Z56: 0 | AA56: 0
B57: legal expenses | C57: 0
B58: other non-life (assistance, miscellaneous) | C58: 0
B59: multiline | C59: 0
B60: TOTAL NON-LIFE | C60: 0 | D60: =IF($C$60<>0,C60*100/$C$60,"") ->  | E60: =IF(C60<>0,(N60+P60+R60+T60+V60+X60+Z60)*100/C60,"") ->  | F60: =IF(C60<>0,(O60+Q60+S60+U60+W60+Y60+AA60)*100/C60,"") ->  | G60: =IF(C60<>0,(N60+O60)*100/C60,"") ->  | H60: =IF(C60<>0,(P60+Q60)*100/C60,"") ->  | I60: =IF(C60<>0,(R60+S60)*100/C60,"") ->  | J60: =IF(C60<>0,(T60+U60)*100/C60,"") ->  | K60: =IF(C60<>0,(V60+W60)*100/C60,"") ->  | L60: =IF(C60<>0,(X60+Y60)*100/C60,"") ->  | M60: =IF(C60<>0,(Z60+AA60)*100/C60,"") ->  | N60: =N13+N21+N25+N37+N43+N49+N56 -> 0 | O60: 0 | P60: 0 | Q60: 0 | R60: 0 | S60: 0 | T60: 0 | U60: 0 | V60: 0 | W60: 0 | X60: 0 | Y60: 0 | Z60: 0 | AA60: 0
B64: Premium by LOB, net of retrocession
B65: ="in "&RE_SST_Currency&" (SST currency)" -> in (SST currency)
E66: by Type for a LOB | G66: by High-level region for a LOB | N66: by detailed segment
B67: StandRe LOB and detailed LOB | C67: In SST currency | D67: In % of Total | E67: Prop in % of LOB Total | F67: Non Prop in % of LOB Total | G67: Europe in % of LOB Total | H67: North America in % of LOB Total | I67: Central and South America in % of LOB Total | J67: Middle East and Africa in % of LOB Total | K67: Japan in % of LOB Total | L67: Asia and Pacific in % of LOB Total | M67: Not regional in % of LOB Total | N67: Europe, Prop in SST currency | O67: Europe, Non-Prop in SST currency | P67: North America, Prop in SST currency | Q67: North America, Non-Prop in SST currency | R67: Central and South America, Prop in SST currency | S67: Central and South America, Non-Prop in SST currency | T67: Middle East and Africa, Prop in SST currency | U67: Middle East and Africa, Non-Prop in SST currency | V67: Japan, Prop in SST currency | W67: Japan, Non-Prop in SST currency | X67: Asia and Pacific, Prop in SST currency | Y67: Asia and Pacific, Non-Prop in SST currency | Z67: Not regional, Prop in SST currency | AA67: Not regional, Non-Prop in SST currency
B68: =B12 -> - motor hull (example, do not remove) | C68: =SUM(N68:AA68) -> 18561660.54 | D68: =IF($C$68<>0,C68*100/$C$68,"") -> 100 | E68: =IF(C68<>0,(N68+P68+R68+T68+V68+X68+Z68)*100/C68,"") -> 27.57733085 | F68: =IF(C68<>0,(O68+Q68+S68+U68+W68+Y68+AA68)*100/C68,"") -> 72.42266915 | G68: =IF(C68<>0,(N68+O68)*100/C68,"") -> 15.64506566 | H68: =IF(C68<>0,(P68+Q68)*100/C68,"") -> 12.99066692 | I68: =IF(C68<>0,(R68+S68)*100/C68,"") -> 0 | J68: =IF(C68<>0,(T68+U68)*100/C68,"") -> 37.71214319 | K68: =IF(C68<>0,(V68+W68)*100/C68,"") -> 20.95929433 | L68: =IF(C68<>0,(X68+Y68)*100/C68,"") -> 7.30538088 | M68: =IF(C68<>0,(Z68+AA68)*100/C68,"") -> 5.387449027 | N68: 1348333.979 | O68: 1555650 | P68: 337083.4948 | Q68: 2074200 | R68: 0 | S68: 0 | T68: 2000000 | U68: 5000000 | V68: 433393.0647 | W68: 3457000 | X68: 0 | Y68: 1356000 | Z68: 1000000 | AA68: 0
B69: ACCIDENT AND HEALTH | C69: =SUM(N69:AA69) -> 0 | D69: =IF($C$116<>0,C69*100/$C$116,"") ->  | E69: =IF(C69<>0,(N69+P69+R69+T69+V69+X69+Z69)*100/C69,"") ->  | F69: =IF(C69<>0,(O69+Q69+S69+U69+W69+Y69+AA69)*100/C69,"") ->  | G69: =IF(C69<>0,(N69+O69)*100/C69,"") ->  | I69: =IF(C69<>0,(R69+S69)*100/C69,"") ->  | J69: =IF(C69<>0,(T69+U69)*100/C69,"") ->  | K69: =IF(C69<>0,(V69+W69)*100/C69,"") ->  | L69: =IF(C69<>0,(X69+Y69)*100/C69,"") ->  | M69: =IF(C69<>0,(Z69+AA69)*100/C69,"") ->  | N69: =SUM(N70:N76) -> 0 | O69: =SUM(O70:O76) -> 0 | P69: 0 | Q69: 0 | R69: 0 | S69: 0 | T69: 0 | U69: 0 | V69: 0 | W69: 0 | X69: 0 | Y69: 0 | Z69: 0 | AA69: 0
B70: compulsory accident | C70: 0 | E70: =IF(C70<>0,(N70+P70+R70+T70+V70+X70+Z70)*100/C70,"") -> 
B71: non-compulsory accident | C71: 0
B72: compulsory health (care) | C72: 0
B73: non-compulsory health (care) | C73: 0
B74: workers compensation | C74: =SUM(N74:AA74) -> 0
B75: employers liability | C75: 0
B76: other/non-specific or combined accident and health | C76: 0
B77: MOTOR | C77: 0 | N77: =SUM(N78:N80) -> 0 | O77: =SUM(O78:O80) -> 0 | P77: 0 | Q77: 0 | R77: 0 | S77: 0 | T77: 0 | U77: 0 | V77: 0 | W77: 0 | X77: 0 | Y77: 0 | Z77: 0 | AA77: 0
B78: motor hull (and accident) | C78: 0
B79: motor liability | C79: 0
B80: other/non-specific or combined motor | C80: 0
B81: MARINE, AVIATION AND OTHER TRANSPORT | C81: 0 | N81: =SUM(N82:N92) -> 0 | O81: =SUM(O82:O92) -> 0 | P81: 0 | Q81: 0 | R81: 0 | S81: 0 | T81: 0 | U81: 0 | V81: 0 | W81: 0 | X81: 0 | Y81: 0 | Z81: 0 | AA81: 0
B82: marine hull (incl. shipbuilding) | C82: 0
B83: marine cargo (goods in transit) | C83: 0
B84: marine liability (incl. Protection & Indemnity PI) | C84: 0
B85: specie and fine art | C85: 0
B86: railway and other transport | C86: 0
B87: other/non-specific or combined marine | C87: 0
B88: aviation hull (and accident) | C88: 0
B89: aviation liability (incl. aviation products liability) | C89: 0 | I89: =IF(C89<>0,(R89+S89)*100/C89,"") -> 
B90: space (incl. satellites) (hull) | C90: 0
B91: other/non-specific or combined aviation | C91: 0
B92: energy offshore (property, incl. BI) | C92: 0
B93: PROPERTY | C93: 0 | N93: =SUM(N94:N98) -> 0 | O93: =SUM(O94:O98) -> 0 | P93: 0 | Q93: 0 | R93: 0 | S93: 0 | T93: 0 | U93: 0 | V93: 0 | W93: 0 | X93: 0 | Y93: 0 | Z93: 0 | AA93: 0
B94: energy onshore (property, incl. BI) | C94: 0
B95: personal property | C95: =SUM(N95:AA95) -> 0
B96: commercial property (incl. BI) | C96: 0
B97: other/non-specific or combined property | C97: 0
B98: engineering, construction | C98: 0
B99: FINANCIAL LOSSES | C99: 0 | N99: =SUM(N100:N104) -> 0 | O99: =SUM(O100:O104) -> 0 | P99: 0 | Q99: 0 | R99: 0 | S99: 0 | T99: 0 | U99: 0 | V99: 0 | W99: 0 | X99: 0 | Y99: 0 | Z99: 0 | AA99: 0
B100: =B44 -> credit (incl. export credit, mortages) | C100: 0 | D100: =IF($C$116<>0,C100*100/$C$116,"") ->  | G100: =IF(C100<>0,(N100+O100)*100/C100,"") ->  | H100: =IF(C100<>0,(P100+Q100)*100/C100,"") ->  | K100: =IF(C100<>0,(V100+W100)*100/C100,"") ->  | L100: =IF(C100<>0,(X100+Y100)*100/C100,"") ->  | M100: =IF(C100<>0,(Z100+AA100)*100/C100,"") -> 
B101: surety | C101: 0
B102: political risks | C102: 0
B103: agriculture | C103: 0
B104: other financial losses (incl. income protection) | C104: 0
B105: GENERAL LIABILITY | C105: 0 | N105: =SUM(N106:N111) -> 0 | O105: =SUM(O106:O111) -> 0 | P105: 0 | Q105: 0 | R105: 0 | S105: 0 | T105: 0 | U105: 0 | V105: 0 | W105: 0 | X105: 0 | Y105: 0 | Z105: 0 | AA105: 0
B106: personal liability (public liability) | C106: 0
B107: commercial liability (public liability) | C107: 0
B108: product liability | C108: 0
B109: professional indemnity incl. errors & omissions (E&O) | C109: 0
B110: directors and officers (D&O) | C110: 0
B111: other/non-specific liability | C111: 0
B112: OTHER NON-LIFE | C112: 0 | N112: =SUM(N113:N115) -> 0 | O112: =SUM(O113:O115) -> 0 | P112: 0 | Q112: 0 | R112: 0 | S112: 0 | T112: 0 | U112: 0 | V112: 0 | W112: 0 | X112: 0 | Y112: 0 | Z112: 0 | AA112: 0
B113: legal expenses | C113: 0
B114: other non-life (assistance, miscellaneous) | C114: 0
B115: multiline | C115: 0
B116: TOTAL NON-LIFE | C116: 0 | E116: =IF(C116<>0,(N116+P116+R116+T116+V116+X116+Z116)*100/C116,"") ->  | N116: =N69+N77+N81+N93+N99+N105+N112 -> 0 | O116: =O69+O77+O81+O93+O99+O105+O112 -> 0 | P116: =P69+P77+P81+P93+P99+P105+P112 -> 0 | Q116: =Q69+Q77+Q81+Q93+Q99+Q105+Q112 -> 0 | R116: =R69+R77+R81+R93+R99+R105+R112 -> 0 | S116: =S69+S77+S81+S93+S99+S105+S112 -> 0 | T116: 0 | U116: 0 | V116: 0 | W116: 0 | X116: 0 | Y116: 0 | Z116: 0 | AA116: 0

Sheet RE_input_parameters
A1: 4 | B1: StandRe: Company input parameters
B2: =RE_Company_name&" - "&RE_Status&" "&RE_Current_year -> - SST 2025
B17: Details on reinsurance company | J17: Model segments for AEP | L17: Model segments for IE1 | N17: Model segments for NE
B19: Name of reinsurance company | C19: =RE_Company_name -> 0 | J19: Name of model segment | L19: Name of model segment | N19: Name of model segment | O19: Form of output
B20: Date at which the template was last filled out (dd.mm.yyyy) | C20: =Intro_SM_StandRe!C24 -> 00:00:00 | J20: Motor Hull Prop UK (Example, do not remove) | L20: Motor Hull Prop UK (Example, do not remove) | N20: Winterstorm Europe (Example, do not remove) | O20: Gross
B21: Status of the SST | C21: =RE_Status -> SST
B22: Selected SST currency | C22: =RE_SST_Currency -> 0
B23: Exchange rate SST currency to CHF | C23: =Intro_SM_StandRe!C27 -> 
B25: Reinsurance company in run-off (no new business)?
B26: Is there ceded (outward) retrocession?
B29: Model structure (key parameters)
B31: AER and AEP: on accident or underwriting year basis?
B33: Number of AEP model segments
B34: Output of AEP model segments
B36: Number of IE1 model segments
B37: Output of IE1 model segment(s)
B39: Number of NE model segments
B61: If "TRUE", you can run the initial set up by pressing the button for the initial set up; if "FALSE", restore initial set up first by pressing the button to restore the initial set up | D61: TRUE

Sheet RE_AER_parameter_segments
A1: 5 | B1: StandRe: Parameter segments of AER
B2: =RE_Company_name&" - "&RE_Status&" "&RE_Current_year -> - SST 2025
B20: Parameter segments for AER | F20: Best estimate of outstanding losses, non-discounted | H20: ="Coefficient of variation (net, non-discounted) for the prior " &RE_AE_ayoruwy &"s" -> Coefficient of variation (net, non-discounted) for the prior s
F21: ="for the prior " &RE_AE_ayoruwy &"s" -> for the prior s | H21: Benchmark method (1) | N21: Company selection
B22: Name of parameter segment (indicate by name when not material) | C22: Currency of parameter segment | D22: SST currency | E22: Exchange rate to SST currency | F22: Gross of retrocession in SST currency | G22: Net of retrocession in SST currency | H22: Observation period (development triangle) | I22: Number of Bornhuetter-Ferguson years | J22: Losses paid until t=0 (net), in SST currency | K22: Best estimate (2) of total losses (net) for the observation period, in SST currency | L22: Standard deviation of one-year change, in SST currency | M22: Estimated coefficient of variation | N22: Selected coefficient of variation
B23: Motor Hull Prop UK (example, do not remove) | C23: GBP | D23: =IF(B23<>"",RE_SST_Currency,"") -> 0 | E23: =IF(C23<>"",VLOOKUP(C23&"/"&D23,RE_Exchange_rates,2,FALSE),"") ->  | F23: 3300000 | G23: 3000000 | H23: 1998-2019 | I23: 2 | J23: 1870000 | K23: 5000000 | L23: 1254000 | M23: =IF(OR(K23="",K23=0),"",L23/(K23-J23)) -> 0.4006389776 | N23: 0.43
M24: =IF(OR(K24="",K24=0),"",L24/(K24-J24)) -> 
D25: =IF(B25<>"",RE_SST_Currency,"") ->  | E25: =IF(C25<>"",VLOOKUP(C25&"/"&D25,RE_Exchange_rates,2,FALSE),"") ->  | M25: =IF(OR(K25="",K25=0),"",L25/(K25-J25)) -> 
B64: Total | D64: =IF(B64<>"",RE_SST_Currency,"") -> 0 | F64: =SUM(F24:F63) -> 0 | G64: =SUM(G24:G63) -> 0 | J64: =SUM(J24:J63) -> 0 | K64: =SUM(K24:K63) -> 0

Sheet RE_AEP_parameter_segments
A1: 6 | B1: StandRe: Parameter segments of AEP
B2: =RE_Company_name&" - "&RE_Status&" "&RE_Current_year -> - SST 2025
B16: Parameter segments for AEP | F16: ="Expected premium for current "& RE_AE_ayoruwy &" (1)" -> Expected premium for current (1) | I16: Expected loss ratio | K16: Best estimate of | L16: Coefficient of variation of loss ratio | N16: Standard deviation of loss ratio
F17: non-discounted | I17: ="for current "& RE_AE_ayoruwy &" (netgross, non-discounted) (2)" -> for current (netgross, non-discounted) (2) | K17: oustanding losses | L17: ="for current " &RE_AE_ayoruwy & " (netgross, non-disc)" -> for current (netgross, non-disc) | N17: ="for current " &RE_AE_ayoruwy & " (netgross, non-disc)" -> for current (netgross, non-disc) | R17: -1 | S17: -2 | T17: -3 | U17: -4 | V17: -5 | W17: -6 | X17: -7 | Y17: -8 | Z17: -9 | AA17: -10 | AB17: -11 | AC17: -12 | AD17: -13 | AE17: -14 | AF17: -15 | AG17: -16 | AH17: -17 | AI17: -18 | AJ17: -19 | AK17: -20
B18: Name of parameter segment (indicate by name when not material) | C18: Currency of parameter segment | D18: SST currency | E18: Exchange rate to SST currency | F18: Mean of historical premiums, netgross, in SST currency | G18: Gross of retrocession in SST currency | H18: Netgross of retrocession in SST currency | I18: Estimated from historical data | J18: Selection | K18: ="for current "& RE_AE_ayoruwy &" (netgross, non-discounted), in SST currency" -> for current (netgross, non-discounted), in SST currency | L18: Estimated from historical data | M18: Selection | N18: Estimated from historical data | O18: Selection | Q18: ="Historical loss ratios (best estimates, non-discounted, netgross) by "& RE_AE_ayoruwy -> Historical loss ratios (best estimates, non-discounted, netgross) by | R18: =RE_Current_year+R17 -> 2024 | S18: 2023 | T18: 2022 | U18: 2021 | V18: 2020 | W18: 2019 | X18: 2018 | Y18: 2017 | Z18: 2016 | AA18: 2015 | AB18: 2014 | AC18: 2013 | AD18: 2012 | AE18: 2011 | AF18: 2010 | AG18: 2009 | AH18: 2008 | AI18: 2007 | AJ18: 2006 | AK18: 2005
B19: Motor Hull NonProp UK (example, do not remove) | C19: GBP | D19: =IF(B19<>"",RE_SST_Currency,"") -> 0 | E19: =IF(C19<>"",VLOOKUP(C19&"/"&D19,RE_Exchange_rates,2,FALSE),"") ->  | F19: =IF(B19<>"",AVERAGE(R63:AK63),"") -> 542000 | G19: 1000000 | H19: 600000 | I19: =IF(B19<>"",SUMPRODUCT(R19:AK19,R107:AK107),"") -> 0.9265313653 | J19: 0.95 | K19: =H19*J19 -> 570000 | L19: =IF(B19<>"", SQRT(SUMPRODUCT(R107:AK107, (R19:AK19-I19)^2) / (1 - SUMPRODUCT(R107:AK107,R107:AK107))) / I19,"") -> 0.2663478082 | M19: 0.3 | N19: =IF(B19<>"",L19*I19,"") -> 0.2467795984 | O19: =IF(B19<>"",M19*J19,"") -> 0.285 | Q19: =RE_PREM_Param_seg&"" -> Motor Hull NonProp UK (example, do not remove) | R19: 0.9 | S19: 1.2 | T19: 0.64 | U19: 0.75 | V19: 1.3 | W19: 1.15 | X19: 0.98 | Y19: 0.65 | Z19: 0.87 | AA19: 0.55
E20: =IF(C20<>"",VLOOKUP(C20&"/"&D20,RE_Exchange_rates,2,FALSE),"") ->  | K20: =H20*J20 -> 0 | L20: =IF(B20<>"", SQRT(SUMPRODUCT(R108:AK108, (R20:AK20-I20)^2) / (1 - SUMPRODUCT(R108:AK108,R108:AK108))) / I20,"") -> 
K21: 0
K22: 0
K23: 0 | N23: =IF(B23<>"",L23*I23,"") -> 
K24: 0
K25: 0
K26: 0
K27: 0
K28: 0
K29: 0
K30: 0
K31: 0
K32: 0
K33: 0
K34: 0
K35: 0
K36: 0
K37: 0
K38: 0
K39: 0
K40: 0
K41: 0
K42: 0
K43: 0
K44: 0
K45: 0
K46: 0
K47: 0
K48: 0
K49: 0
K50: 0
K51: 0
K52: 0
K53: 0
K54: 0
K55: 0
K56: 0
K57: 0
K58: 0
K59: 0
B60: Total | D60: 0 | G60: =SUM(G20:G59) -> 0 | H60: =SUM(H20:H59) -> 0 | K60: =SUM(K20:K59) -> 0
R61: -1 | S61: -2 | T61: -3 | U61: -4 | V61: -5 | W61: -6 | X61: -7 | Y61: -8 | Z61: -9 | AA61: -10 | AB61: -11 | AC61: -12 | AD61: -13 | AE61: -14 | AF61: -15 | AG61: -16 | AH61: -17 | AI61: -18 | AJ61: -19 | AK61: -20
Q62: ="Historical premiums (non-discounted, netgross) by "& RE_AE_ayoruwy & " in SST currency" -> Historical premiums (non-discounted, netgross) by in SST currency | R62: =RE_Current_year+R61 -> 2024 | S62: 2023 | T62: 2022 | U62: 2021 | V62: 2020 | W62: 2019 | X62: 2018 | Y62: 2017 | Z62: 2016 | AA62: 2015 | AB62: 2014 | AC62: 2013 | AD62: 2012 | AE62: 2011 | AF62: 2010 | AG62: 2009 | AH62: 2008 | AI62: 2007 | AJ62: 2006 | AK62: 2005
Q63: =RE_PREM_Param_seg&"" -> Motor Hull NonProp UK (example, do not remove) | R63: 900000 | S63: 600000 | T63: 650000 | U63: 700000 | V63: 610000 | W63: 550000 | X63: 420000 | Y63: 380000 | Z63: 410000 | AA63: 200000
R105: -1 | S105: -2 | T105: -3 | U105: -4 | V105: -5 | W105: -6 | X105: -7 | Y105: -8 | Z105: -9 | AA105: -10 | AB105: -11 | AC105: -12 | AD105: -13 | AE105: -14 | AF105: -15 | AG105: -16 | AH105: -17 | AI105: -18 | AJ105: -19 | AK105: -20
Q106: Weights | R106: =RE_Current_year+R105 -> 2024 | S106: 2023 | T106: 2022 | U106: 2021 | V106: 2020 | W106: 2019 | X106: 2018 | Y106: 2017 | Z106: 2016 | AA106: 2015 | AB106: 2014 | AC106: 2013 | AD106: 2012 | AE106: 2011 | AF106: 2010 | AG106: 2009 | AH106: 2008 | AI106: 2007 | AJ106: 2006 | AK106: 2005
Q107: =RE_PREM_Param_seg&"" -> Motor Hull NonProp UK (example, do not remove) | R107: =R63/SUM(R63:AK63) -> 0.1660516605 | S107: =S63/SUM(R63:AK63) -> 0.110701107 | T107: =T63/SUM($R63:$AK63) -> 0.1199261993 | U107: =U63/SUM($R63:$AK63) -> 0.1291512915 | V107: 0.1125461255 | W107: 0.1014760148 | X107: 0.07749077491 | Y107: 0.07011070111 | Z107: 0.07564575646 | AA107: 0.036900369 | AB107: 0 | AC107: 0 | AD107: 0 | AE107: =AE63/SUM($R63:$AK63) -> 0 | AF107: 0 | AG107: 0 | AH107: 0 | AI107: 0 | AJ107: 0 | AK107: 0
R108: =R64/SUM($R64:$AK64) ->  | T108: =T64/SUM($R64:$AK64) ->  | U108: =U64/SUM($R64:$AK64) ->  | AK108: =AK64/SUM($R64:$AK64) -> 
R109: =R65/SUM($R65:$AK65) ->  | S109: =S65/SUM($R65:$AK65) ->  | AK109: =AK65/SUM($R65:$AK65) -> 
R110: =R66/SUM($R66:$AK66) ->  | S110: =S66/SUM($R66:$AK66) -> 
R111: =R67/SUM($R67:$AK67) ->  | S111: =S67/SUM($R67:$AK67) -> 
S112: =S68/SUM($R68:$AK68) -> 
S113: =S69/SUM($R69:$AK69) -> 
S114: =S70/SUM($R70:$AK70) -> 
S115: =S71/SUM($R71:$AK71) -> 
S116: =S72/SUM($R72:$AK72) -> 
S117: =S73/SUM($R73:$AK73) -> 
S118: =S74/SUM($R74:$AK74) -> 
S119: =S75/SUM($R75:$AK75) -> 
S120: =S76/SUM($R76:$AK76) -> 
S121: =S77/SUM($R77:$AK77) -> 
S122: =S78/SUM($R78:$AK78) -> 
S123: =S79/SUM($R79:$AK79) -> 
S124: =S80/SUM($R80:$AK80) -> 
S125: =S81/SUM($R81:$AK81) -> 
S126: =S82/SUM($R82:$AK82) -> 
S127: =S83/SUM($R83:$AK83) -> 
S128: =S84/SUM($R84:$AK84) -> 
S129: =S85/SUM($R85:$AK85) -> 
S130: =S86/SUM($R86:$AK86) -> 
S131: =S87/SUM($R87:$AK87) -> 
S132: =S88/SUM($R88:$AK88) -> 
S133: =S89/SUM($R89:$AK89) -> 
S134: =S90/SUM($R90:$AK90) -> 
S135: =S91/SUM($R91:$AK91) -> 
S136: =S92/SUM($R92:$AK92) -> 
S137: =S93/SUM($R93:$AK93) ->  | AK137: =AK93/SUM($R93:$AK93) -> 
S138: =S94/SUM($R94:$AK94) -> 
S139: =S95/SUM($R95:$AK95) -> 
S140: =S96/SUM($R96:$AK96) -> 
S141: =S97/SUM($R97:$AK97) -> 
S142: =S98/SUM($R98:$AK98) -> 
S143: =S99/SUM($R99:$AK99) -> 
S144: =S100/SUM($R100:$AK100) -> 
S145: =S101/SUM($R101:$AK101) -> 
S146: =S102/SUM($R102:$AK102) -> 
S147: =S103/SUM($R103:$AK103) ->  | AK147: =AK103/SUM($R103:$AK103) -> 

Sheet RE_AE_discount_factors
A1: 7 | B1: StandRe: Discount factors
B2: =RE_Company_name&" - "&RE_Status&" "&RE_Current_year -> - SST 2025
B7: Discount factors for AER | H7: ="Incremental payment pattern by "& RE_AE_ayoruwy -> Incremental payment pattern by
G9: Index --> | H9: 0 | I9: =H9+1 -> 1 | J9: 2 | K9: 3 | L9: 4 | M9: 5 | N9: 6 | O9: 7 | P9: 8 | Q9: 9 | R9: 10 | S9: 11 | T9: 12 | U9: 13 | V9: 14 | W9: 15 | X9: 16 | Y9: 17 | Z9: 18 | AA9: 19 | AB9: 20 | AC9: 21 | AD9: 22 | AE9: 23 | AF9: 24 | AG9: 25 | AH9: 26 | AI9: 27 | AJ9: 28 | AK9: 29 | AL9: 30 | AM9: 31 | AN9: 32 | AO9: =AN9+1 -> 33 | AP9: 34 | AQ9: 35 | AR9: 36 | AS9: 37 | AT9: 38 | AU9: 39 | AV9: =AU9+1 -> 40 | AW9: =AV9+1 -> 41 | AX9: =AW9+1 -> 42 | AY9: =AX9+1 -> 43 | AZ9: =AY9+1 -> 44 | BA9: =AZ9+1 -> 45 | BB9: =BA9+1 -> 46 | BC9: =BB9+1 -> 47 | BD9: =BC9+1 -> 48 | BE9: =BD9+1 -> 49
B10: Name of parameter segment | C10: Currency of parameter segment | D10: Exchange rate to SST currency | E10: Discount factor from payment pattern in parameter segment currency | F10: Check payment pattern sum | G10: Year --> | H10: =H9+RE_Current_year -> 2025 | I10: 2026 | J10: 2027 | K10: 2028 | L10: 2029 | M10: 2030 | N10: 2031 | O10: 2032 | P10: 2033 | Q10: 2034 | R10: 2035 | S10: 2036 | T10: 2037 | U10: 2038 | V10: 2039 | W10: 2040 | X10: 2041 | Y10: 2042 | Z10: 2043 | AA10: 2044 | AB10: 2045 | AC10: 2046 | AD10: 2047 | AE10: 2048 | AF10: 2049 | AG10: 2050 | AH10: 2051 | AI10: 2052 | AJ10: 2053 | AK10: 2054 | AL10: 2055 | AM10: 2056 | AN10: =AN9+RE_Current_year -> 2057 | AO10: 2058 | AP10: 2059 | AQ10: 2060 | AR10: 2061 | AS10: 2062 | AT10: 2063 | AU10: 2064 | AV10: =AV9+RE_Current_year -> 2065 | AW10: 2066 | AX10: 2067 | AY10: 2068 | AZ10: 2069 | BA10: 2070 | BB10: 2071 | BC10: 2072 | BD10: 2073 | BE10: 2074
B11: =RE_RES_Param_seg&"" -> Motor Hull Prop UK (example, do not remove) | C11: =RE_RES_Currency&"" -> GBP | D11: =IF(C11<>"",VLOOKUP(C11&"/"&RE_SST_Currency,RE_Exchange_rates,2,FALSE),"") ->  | E11: =IF(B11="","",SUMPRODUCT(H11:BE11,D105:BA105)) -> 0.828339949 | F11: =IF(SUM(H11:BE11)<>0,SUM(H11:BE11),"") -> 0.9995040693 | H11: 0.24 | I11: 0.215 | J11: 0.098 | K11: 0.0725 | L11: 0.054 | M11: 0.044 | N11: 0.038 | O11: 0.035 | P11: 0.033 | Q11: 0.03 | R11: 0.022 | S11: 0.0185 | T11: 0.0165 | U11: 0.015 | V11: 0.012 | W11: 0.01 | X11: 0.01 | Y11: 0.009 | Z11: 0.008 | AA11: 0.006 | AB11: 0.005 | AC11: 0.003 | AD11: 0.003 | AE11: 0.002 | AF11: 0 | AG11: 0 | AH11: 1.620526418e-06 | AI11: 9.723158506e-07 | AJ11: 5.833895104e-07 | AK11: 3.500337062e-07 | AL11: 2.100202237e-07 | AM11: 1.260121342e-07 | AN11: 7.560728054e-08 | AO11: 4.536436833e-08 | AP11: 2.7218621e-08 | AQ11: 1.63311726e-08 | AR11: 9.798703559e-09 | AS11: 5.879222135e-09 | AT11: 3.527533281e-09 | AU11: 2.116519969e-09 | AV11: 2.116519969e-09 | AW11: 2.116519969e-09 | AX11: 2.116519969e-09 | AY11: 2.116519969e-09 | AZ11: 2.116519969e-09 | BA11: 2.116519969e-09 | BB11: 2.116519969e-09 | BC11: 2.116519969e-09 | BD11: 2.116519969e-09 | BE11: 2.116519969e-09
D12: =IF(C12<>"",VLOOKUP(C12&"/"&RE_SST_Currency,RE_Exchange_rates,2,FALSE),"") ->  | E12: =IF(B12="","",SUMPRODUCT(H12:BE12,D106:BA106)) ->  | F12: =IF(SUM(H12:BE12)<>0,SUM(H12:BE12),"") -> 
F18: =IF(SUM(H18:BE18)<>0,SUM(H18:BE18),"") -> 
B52: Total | H52: =IFERROR(SUMPRODUCT(H$12:H$51,RE_AER_parameter_segments!$G$24:$G$63)/RE_AER_parameter_segments!$G$64,0) -> 0 | I52: =IFERROR(SUMPRODUCT(I$12:I$51,RE_AER_parameter_segments!$G$24:$G$63)/RE_AER_parameter_segments!$G$64,0) -> 0 | J52: =IFERROR(SUMPRODUCT(J$12:J$51,RE_AER_parameter_segments!$G$24:$G$63)/RE_AER_parameter_segments!$G$64,0) -> 0 | K52: =IFERROR(SUMPRODUCT(K$12:K$51,RE_AER_parameter_segments!$G$24:$G$63)/RE_AER_parameter_segments!$G$64,0) -> 0 | L52: =IFERROR(SUMPRODUCT(L$12:L$51,RE_AER_parameter_segments!$G$24:$G$63)/RE_AER_parameter_segments!$G$64,0) -> 0 | M52: =IFERROR(SUMPRODUCT(M$12:M$51,RE_AER_parameter_segments!$G$24:$G$63)/RE_AER_parameter_segments!$G$64,0) -> 0 | N52: =IFERROR(SUMPRODUCT(N$12:N$51,RE_AER_parameter_segments!$G$24:$G$63)/RE_AER_parameter_segments!$G$64,0) -> 0 | O52: =IFERROR(SUMPRODUCT(O$12:O$51,RE_AER_parameter_segments!$G$24:$G$63)/RE_AER_parameter_segments!$G$64,0) -> 0 | P52: =IFERROR(SUMPRODUCT(P$12:P$51,RE_AER_parameter_segments!$G$24:$G$63)/RE_AER_parameter_segments!$G$64,0) -> 0 | Q52: =IFERROR(SUMPRODUCT(Q$12:Q$51,RE_AER_parameter_segments!$G$24:$G$63)/RE_AER_parameter_segments!$G$64,0) -> 0 | R52: =IFERROR(SUMPRODUCT(R$12:R$51,RE_AER_parameter_segments!$G$24:$G$63)/RE_AER_parameter_segments!$G$64,0) -> 0 | S52: =IFERROR(SUMPRODUCT(S$12:S$51,RE_AER_parameter_segments!$G$24:$G$63)/RE_AER_parameter_segments!$G$64,0) -> 0 | T52: =IFERROR(SUMPRODUCT(T$12:T$51,RE_AER_parameter_segments!$G$24:$G$63)/RE_AER_parameter_segments!$G$64,0) -> 0 | U52: =IFERROR(SUMPRODUCT(U$12:U$51,RE_AER_parameter_segments!$G$24:$G$63)/RE_AER_parameter_segments!$G$64,0) -> 0 | V52: =IFERROR(SUMPRODUCT(V$12:V$51,RE_AER_parameter_segments!$G$24:$G$63)/RE_AER_parameter_segments!$G$64,0) -> 0 | W52: =IFERROR(SUMPRODUCT(W$12:W$51,RE_AER_parameter_segments!$G$24:$G$63)/RE_AER_parameter_segments!$G$64,0) -> 0 | X52: =IFERROR(SUMPRODUCT(X$12:X$51,RE_AER_parameter_segments!$G$24:$G$63)/RE_AER_parameter_segments!$G$64,0) -> 0 | Y52: =IFERROR(SUMPRODUCT(Y$12:Y$51,RE_AER_parameter_segments!$G$24:$G$63)/RE_AER_parameter_segments!$G$64,0) -> 0 | Z52: =IFERROR(SUMPRODUCT(Z$12:Z$51,RE_AER_parameter_segments!$G$24:$G$63)/RE_AER_parameter_segments!$G$64,0) -> 0 | AA52: =IFERROR(SUMPRODUCT(AA$12:AA$51,RE_AER_parameter_segments!$G$24:$G$63)/RE_AER_parameter_segments!$G$64,0) -> 0 | AB52: =IFERROR(SUMPRODUCT(AB$12:AB$51,RE_AER_parameter_segments!$G$24:$G$63)/RE_AER_parameter_segments!$G$64,0) -> 0 | AC52: =IFERROR(SUMPRODUCT(AC$12:AC$51,RE_AER_parameter_segments!$G$24:$G$63)/RE_AER_parameter_segments!$G$64,0) -> 0 | AD52: =IFERROR(SUMPRODUCT(AD$12:AD$51,RE_AER_parameter_segments!$G$24:$G$63)/RE_AER_parameter_segments!$G$64,0) -> 0 | AE52: =IFERROR(SUMPRODUCT(AE$12:AE$51,RE_AER_parameter_segments!$G$24:$G$63)/RE_AER_parameter_segments!$G$64,0) -> 0 | AF52: =IFERROR(SUMPRODUCT(AF$12:AF$51,RE_AER_parameter_segments!$G$24:$G$63)/RE_AER_parameter_segments!$G$64,0) -> 0 | AG52: =IFERROR(SUMPRODUCT(AG$12:AG$51,RE_AER_parameter_segments!$G$24:$G$63)/RE_AER_parameter_segments!$G$64,0) -> 0 | AH52: =IFERROR(SUMPRODUCT(AH$12:AH$51,RE_AER_parameter_segments!$G$24:$G$63)/RE_AER_parameter_segments!$G$64,0) -> 0 | AI52: =IFERROR(SUMPRODUCT(AI$12:AI$51,RE_AER_parameter_segments!$G$24:$G$63)/RE_AER_parameter_segments!$G$64,0) -> 0 | AJ52: =IFERROR(SUMPRODUCT(AJ$12:AJ$51,RE_AER_parameter_segments!$G$24:$G$63)/RE_AER_parameter_segments!$G$64,0) -> 0 | AK52: =IFERROR(SUMPRODUCT(AK$12:AK$51,RE_AER_parameter_segments!$G$24:$G$63)/RE_AER_parameter_segments!$G$64,0) -> 0 | AL52: =IFERROR(SUMPRODUCT(AL$12:AL$51,RE_AER_parameter_segments!$G$24:$G$63)/RE_AER_parameter_segments!$G$64,0) -> 0 | AM52: =IFERROR(SUMPRODUCT(AM$12:AM$51,RE_AER_parameter_segments!$G$24:$G$63)/RE_AER_parameter_segments!$G$64,0) -> 0 | AN52: =IFERROR(SUMPRODUCT(AN$12:AN$51,RE_AER_parameter_segments!$G$24:$G$63)/RE_AER_parameter_segments!$G$64,0) -> 0 | AO52: =IFERROR(SUMPRODUCT(AO$12:AO$51,RE_AER_parameter_segments!$G$24:$G$63)/RE_AER_parameter_segments!$G$64,0) -> 0 | AP52: =IFERROR(SUMPRODUCT(AP$12:AP$51,RE_AER_parameter_segments!$G$24:$G$63)/RE_AER_parameter_segments!$G$64,0) -> 0 | AQ52: =IFERROR(SUMPRODUCT(AQ$12:AQ$51,RE_AER_parameter_segments!$G$24:$G$63)/RE_AER_parameter_segments!$G$64,0) -> 0 | AR52: =IFERROR(SUMPRODUCT(AR$12:AR$51,RE_AER_parameter_segments!$G$24:$G$63)/RE_AER_parameter_segments!$G$64,0) -> 0 | AS52: =IFERROR(SUMPRODUCT(AS$12:AS$51,RE_AER_parameter_segments!$G$24:$G$63)/RE_AER_parameter_segments!$G$64,0) -> 0 | AT52: =IFERROR(SUMPRODUCT(AT$12:AT$51,RE_AER_parameter_segments!$G$24:$G$63)/RE_AER_parameter_segments!$G$64,0) -> 0 | AU52: =IFERROR(SUMPRODUCT(AU$12:AU$51,RE_AER_parameter_segments!$G$24:$G$63)/RE_AER_parameter_segments!$G$64,0) -> 0 | AV52: =IFERROR(SUMPRODUCT(AV$12:AV$51,RE_AER_parameter_segments!$G$24:$G$63)/RE_AER_parameter_segments!$G$64,0) -> 0 | AW52: =IFERROR(SUMPRODUCT(AW$12:AW$51,RE_AER_parameter_segments!$G$24:$G$63)/RE_AER_parameter_segments!$G$64,0) -> 0 | AX52: =IFERROR(SUMPRODUCT(AX$12:AX$51,RE_AER_parameter_segments!$G$24:$G$63)/RE_AER_parameter_segments!$G$64,0) -> 0 | AY52: =IFERROR(SUMPRODUCT(AY$12:AY$51,RE_AER_parameter_segments!$G$24:$G$63)/RE_AER_parameter_segments!$G$64,0) -> 0 | AZ52: =IFERROR(SUMPRODUCT(AZ$12:AZ$51,RE_AER_parameter_segments!$G$24:$G$63)/RE_AER_parameter_segments!$G$64,0) -> 0 | BA52: =IFERROR(SUMPRODUCT(BA$12:BA$51,RE_AER_parameter_segments!$G$24:$G$63)/RE_AER_parameter_segments!$G$64,0) -> 0 | BB52: =IFERROR(SUMPRODUCT(BB$12:BB$51,RE_AER_parameter_segments!$G$24:$G$63)/RE_AER_parameter_segments!$G$64,0) -> 0 | BC52: =IFERROR(SUMPRODUCT(BC$12:BC$51,RE_AER_parameter_segments!$G$24:$G$63)/RE_AER_parameter_segments!$G$64,0) -> 0 | BD52: =IFERROR(SUMPRODUCT(BD$12:BD$51,RE_AER_parameter_segments!$G$24:$G$63)/RE_AER_parameter_segments!$G$64,0) -> 0 | BE52: =IFERROR(SUMPRODUCT(BE$12:BE$51,RE_AER_parameter_segments!$G$24:$G$63)/RE_AER_parameter_segments!$G$64,0) -> 0
B54: Discount factors for AEP | H54: ="Incremental payment pattern by "& RE_AE_ayoruwy -> Incremental payment pattern by
G56: Index --> | H56: 0 | I56: =H56+1 -> 1 | J56: 2 | K56: 3 | L56: 4 | M56: 5 | N56: 6 | O56: 7 | P56: 8 | Q56: 9 | R56: 10 | S56: 11 | T56: 12 | U56: 13 | V56: 14 | W56: 15 | X56: 16 | Y56: 17 | Z56: 18 | AA56: 19 | AB56: 20 | AC56: 21 | AD56: 22 | AE56: 23 | AF56: 24 | AG56: 25 | AH56: 26 | AI56: 27 | AJ56: 28 | AK56: 29 | AL56: 30 | AM56: 31 | AN56: 32 | AO56: =AN56+1 -> 33 | AP56: 34 | AQ56: 35 | AR56: 36 | AS56: 37 | AT56: 38 | AU56: 39 | AV56: =AU56+1 -> 40 | AW56: =AV56+1 -> 41 | AX56: =AW56+1 -> 42 | AY56: =AX56+1 -> 43 | AZ56: =AY56+1 -> 44 | BA56: =AZ56+1 -> 45 | BB56: =BA56+1 -> 46 | BC56: =BB56+1 -> 47 | BD56: =BC56+1 -> 48 | BE56: =BD56+1 -> 49
B57: Name of parameter segment | C57: Currency of parameter segment | D57: Exchange rate to SST currency | E57: Discount factor from payment pattern in parameter segment currency | F57: Check payment pattern sum | G57: Year --> | H57: =H56+RE_Current_year -> 2025 | I57: 2026 | J57: 2027 | K57: 2028 | L57: 2029 | M57: 2030 | N57: 2031 | O57: 2032 | P57: 2033 | Q57: 2034 | R57: 2035 | S57: 2036 | T57: 2037 | U57: 2038 | V57: 2039 | W57: 2040 | X57: 2041 | Y57: 2042 | Z57: 2043 | AA57: 2044 | AB57: 2045 | AC57: 2046 | AD57: 2047 | AE57: 2048 | AF57: 2049 | AG57: 2050 | AH57: 2051 | AI57: 2052 | AJ57: 2053 | AK57: 2054 | AL57: 2055 | AM57: 2056 | AN57: =AN56+RE_Current_year -> 2057 | AO57: 2058 | AP57: 2059 | AQ57: 2060 | AR57: 2061 | AS57: 2062 | AT57: 2063 | AU57: 2064 | AV57: =AV56+RE_Current_year -> 2065 | AW57: 2066 | AX57: 2067 | AY57: 2068 | AZ57: 2069 | BA57: 2070 | BB57: 2071 | BC57: 2072 | BD57: 2073 | BE57: 2074
B58: =RE_PREM_Param_seg&"" -> Motor Hull NonProp UK (example, do not remove) | C58: =RE_PREM_Currency&"" -> GBP | D58: =IF(C58<>"",VLOOKUP(C58&"/"&RE_SST_Currency,RE_Exchange_rates,2,FALSE),"") ->  | E58: =IF(B58="","",SUMPRODUCT(H58:BE58,D150:BA150)) -> 0.8047741476 | F58: =IF(SUM(H58:BE58)<>0,SUM(H58:BE58),"") -> 1.000236769 | H58: 0.05 | I58: 0.19 | J58: 0.152 | K58: 0.1216 | L58: 0.09728 | M58: 0.077824 | N58: 0.0622592 | O58: 0.04980736 | P58: 0.039845888 | Q58: 0.0318767104 | R58: 0.02550136832 | S58: 0.02040109466 | T58: 0.01632087572 | U58: 0.01305670058 | V58: 0.01044536046 | W58: 0.008356288371 | X58: 0.006685030697 | Y58: 0.005348024558 | Z58: 0.004278419646 | AA58: 0.003422735717 | AB58: 0.002738188573 | AC58: 0.002190550859 | AD58: 0.001752440687 | AE58: 0.00140195255 | AF58: 0.00112156204 | AG58: 0.0008972496317 | AH58: 0.0007177997054 | AI58: 0.0005742397643 | AJ58: 0.0004593918115 | AK58: 0.0003675134492 | AL58: 0.0002940107593 | AM58: 0.0002352086075 | AN58: 0.000188166886 | AO58: 0.0001505335088 | AP58: 0.000120426807 | AQ58: 9.634144562e-05 | AR58: 7.707315649e-05 | AS58: 6.16585252e-05 | AT58: 4.932682016e-05 | AU58: 3.946145612e-05 | AV58: 3.946145612e-05 | AW58: 3.946145612e-05 | AX58: 3.946145612e-05 | AY58: 3.946145612e-05 | AZ58: 3.946145612e-05 | BA58: 3.946145612e-05 | BB58: 3.946145612e-05 | BC58: 3.946145612e-05 | BD58: 3.946145612e-05 | BE58: 3.946145612e-05
E59: =IF(B59="","",SUMPRODUCT(H59:BE59,D151:BA151)) ->  | F59: =IF(SUM(H59:BE59)<>0,SUM(H59:BE59),"") -> 
B99: Total | H99: =IFERROR(SUMPRODUCT(H$59:H$98,RE_AEP_parameter_segments!$K$20:$K$59)/RE_AEP_parameter_segments!$K$60,0) -> 0 | I99: =IFERROR(SUMPRODUCT(I$59:I$98,RE_AEP_parameter_segments!$K$20:$K$59)/RE_AEP_parameter_segments!$K$60,0) -> 0 | J99: =IFERROR(SUMPRODUCT(J$59:J$98,RE_AEP_parameter_segments!$K$20:$K$59)/RE_AEP_parameter_segments!$K$60,0) -> 0 | K99: =IFERROR(SUMPRODUCT(K$59:K$98,RE_AEP_parameter_segments!$K$20:$K$59)/RE_AEP_parameter_segments!$K$60,0) -> 0 | L99: =IFERROR(SUMPRODUCT(L$59:L$98,RE_AEP_parameter_segments!$K$20:$K$59)/RE_AEP_parameter_segments!$K$60,0) -> 0 | M99: =IFERROR(SUMPRODUCT(M$59:M$98,RE_AEP_parameter_segments!$K$20:$K$59)/RE_AEP_parameter_segments!$K$60,0) -> 0 | N99: =IFERROR(SUMPRODUCT(N$59:N$98,RE_AEP_parameter_segments!$K$20:$K$59)/RE_AEP_parameter_segments!$K$60,0) -> 0 | O99: =IFERROR(SUMPRODUCT(O$59:O$98,RE_AEP_parameter_segments!$K$20:$K$59)/RE_AEP_parameter_segments!$K$60,0) -> 0 | P99: =IFERROR(SUMPRODUCT(P$59:P$98,RE_AEP_parameter_segments!$K$20:$K$59)/RE_AEP_parameter_segments!$K$60,0) -> 0 | Q99: =IFERROR(SUMPRODUCT(Q$59:Q$98,RE_AEP_parameter_segments!$K$20:$K$59)/RE_AEP_parameter_segments!$K$60,0) -> 0 | R99: =IFERROR(SUMPRODUCT(R$59:R$98,RE_AEP_parameter_segments!$K$20:$K$59)/RE_AEP_parameter_segments!$K$60,0) -> 0 | S99: =IFERROR(SUMPRODUCT(S$59:S$98,RE_AEP_parameter_segments!$K$20:$K$59)/RE_AEP_parameter_segments!$K$60,0) -> 0 | T99: =IFERROR(SUMPRODUCT(T$59:T$98,RE_AEP_parameter_segments!$K$20:$K$59)/RE_AEP_parameter_segments!$K$60,0) -> 0 | U99: =IFERROR(SUMPRODUCT(U$59:U$98,RE_AEP_parameter_segments!$K$20:$K$59)/RE_AEP_parameter_segments!$K$60,0) -> 0 | V99: =IFERROR(SUMPRODUCT(V$59:V$98,RE_AEP_parameter_segments!$K$20:$K$59)/RE_AEP_parameter_segments!$K$60,0) -> 0 | W99: =IFERROR(SUMPRODUCT(W$59:W$98,RE_AEP_parameter_segments!$K$20:$K$59)/RE_AEP_parameter_segments!$K$60,0) -> 0 | X99: =IFERROR(SUMPRODUCT(X$59:X$98,RE_AEP_parameter_segments!$K$20:$K$59)/RE_AEP_parameter_segments!$K$60,0) -> 0 | Y99: =IFERROR(SUMPRODUCT(Y$59:Y$98,RE_AEP_parameter_segments!$K$20:$K$59)/RE_AEP_parameter_segments!$K$60,0) -> 0 | Z99: =IFERROR(SUMPRODUCT(Z$59:Z$98,RE_AEP_parameter_segments!$K$20:$K$59)/RE_AEP_parameter_segments!$K$60,0) -> 0 | AA99: =IFERROR(SUMPRODUCT(AA$59:AA$98,RE_AEP_parameter_segments!$K$20:$K$59)/RE_AEP_parameter_segments!$K$60,0) -> 0 | AB99: =IFERROR(SUMPRODUCT(AB$59:AB$98,RE_AEP_parameter_segments!$K$20:$K$59)/RE_AEP_parameter_segments!$K$60,0) -> 0 | AC99: =IFERROR(SUMPRODUCT(AC$59:AC$98,RE_AEP_parameter_segments!$K$20:$K$59)/RE_AEP_parameter_segments!$K$60,0) -> 0 | AD99: =IFERROR(SUMPRODUCT(AD$59:AD$98,RE_AEP_parameter_segments!$K$20:$K$59)/RE_AEP_parameter_segments!$K$60,0) -> 0 | AE99: =IFERROR(SUMPRODUCT(AE$59:AE$98,RE_AEP_parameter_segments!$K$20:$K$59)/RE_AEP_parameter_segments!$K$60,0) -> 0 | AF99: =IFERROR(SUMPRODUCT(AF$59:AF$98,RE_AEP_parameter_segments!$K$20:$K$59)/RE_AEP_parameter_segments!$K$60,0) -> 0 | AG99: =IFERROR(SUMPRODUCT(AG$59:AG$98,RE_AEP_parameter_segments!$K$20:$K$59)/RE_AEP_parameter_segments!$K$60,0) -> 0 | AH99: =IFERROR(SUMPRODUCT(AH$59:AH$98,RE_AEP_parameter_segments!$K$20:$K$59)/RE_AEP_parameter_segments!$K$60,0) -> 0 | AI99: =IFERROR(SUMPRODUCT(AI$59:AI$98,RE_AEP_parameter_segments!$K$20:$K$59)/RE_AEP_parameter_segments!$K$60,0) -> 0 | AJ99: =IFERROR(SUMPRODUCT(AJ$59:AJ$98,RE_AEP_parameter_segments!$K$20:$K$59)/RE_AEP_parameter_segments!$K$60,0) -> 0 | AK99: =IFERROR(SUMPRODUCT(AK$59:AK$98,RE_AEP_parameter_segments!$K$20:$K$59)/RE_AEP_parameter_segments!$K$60,0) -> 0 | AL99: =IFERROR(SUMPRODUCT(AL$59:AL$98,RE_AEP_parameter_segments!$K$20:$K$59)/RE_AEP_parameter_segments!$K$60,0) -> 0 | AM99: =IFERROR(SUMPRODUCT(AM$59:AM$98,RE_AEP_parameter_segments!$K$20:$K$59)/RE_AEP_parameter_segments!$K$60,0) -> 0 | AN99: =IFERROR(SUMPRODUCT(AN$59:AN$98,RE_AEP_parameter_segments!$K$20:$K$59)/RE_AEP_parameter_segments!$K$60,0) -> 0 | AO99: =IFERROR(SUMPRODUCT(AO$59:AO$98,RE_AEP_parameter_segments!$K$20:$K$59)/RE_AEP_parameter_segments!$K$60,0) -> 0 | AP99: =IFERROR(SUMPRODUCT(AP$59:AP$98,RE_AEP_parameter_segments!$K$20:$K$59)/RE_AEP_parameter_segments!$K$60,0) -> 0 | AQ99: =IFERROR(SUMPRODUCT(AQ$59:AQ$98,RE_AEP_parameter_segments!$K$20:$K$59)/RE_AEP_parameter_segments!$K$60,0) -> 0 | AR99: =IFERROR(SUMPRODUCT(AR$59:AR$98,RE_AEP_parameter_segments!$K$20:$K$59)/RE_AEP_parameter_segments!$K$60,0) -> 0 | AS99: =IFERROR(SUMPRODUCT(AS$59:AS$98,RE_AEP_parameter_segments!$K$20:$K$59)/RE_AEP_parameter_segments!$K$60,0) -> 0 | AT99: =IFERROR(SUMPRODUCT(AT$59:AT$98,RE_AEP_parameter_segments!$K$20:$K$59)/RE_AEP_parameter_segments!$K$60,0) -> 0 | AU99: =IFERROR(SUMPRODUCT(AU$59:AU$98,RE_AEP_parameter_segments!$K$20:$K$59)/RE_AEP_parameter_segments!$K$60,0) -> 0 | AV99: =IFERROR(SUMPRODUCT(AV$59:AV$98,RE_AEP_parameter_segments!$K$20:$K$59)/RE_AEP_parameter_segments!$K$60,0) -> 0 | AW99: =IFERROR(SUMPRODUCT(AW$59:AW$98,RE_AEP_parameter_segments!$K$20:$K$59)/RE_AEP_parameter_segments!$K$60,0) -> 0 | AX99: =IFERROR(SUMPRODUCT(AX$59:AX$98,RE_AEP_parameter_segments!$K$20:$K$59)/RE_AEP_parameter_segments!$K$60,0) -> 0 | AY99: =IFERROR(SUMPRODUCT(AY$59:AY$98,RE_AEP_parameter_segments!$K$20:$K$59)/RE_AEP_parameter_segments!$K$60,0) -> 0 | AZ99: =IFERROR(SUMPRODUCT(AZ$59:AZ$98,RE_AEP_parameter_segments!$K$20:$K$59)/RE_AEP_parameter_segments!$K$60,0) -> 0 | BA99: =IFERROR(SUMPRODUCT(BA$59:BA$98,RE_AEP_parameter_segments!$K$20:$K$59)/RE_AEP_parameter_segments!$K$60,0) -> 0 | BB99: =IFERROR(SUMPRODUCT(BB$59:BB$98,RE_AEP_parameter_segments!$K$20:$K$59)/RE_AEP_parameter_segments!$K$60,0) -> 0 | BC99: =IFERROR(SUMPRODUCT(BC$59:BC$98,RE_AEP_parameter_segments!$K$20:$K$59)/RE_AEP_parameter_segments!$K$60,0) -> 0 | BD99: =IFERROR(SUMPRODUCT(BD$59:BD$98,RE_AEP_parameter_segments!$K$20:$K$59)/RE_AEP_parameter_segments!$K$60,0) -> 0 | BE99: =IFERROR(SUMPRODUCT(BE$59:BE$98,RE_AEP_parameter_segments!$K$20:$K$59)/RE_AEP_parameter_segments!$K$60,0) -> 0
B102: Discount factor curves based on zero coupon rates for AER
B104: Name of parameter segment | C104: Currency | D104: 1 | E104: 2 | F104: 3 | G104: 4 | H104: 5 | I104: 6 | J104: 7 | K104: 8 | L104: 9 | M104: 10 | N104: 11 | O104: 12 | P104: 13 | Q104: 14 | R104: 15 | S104: 16 | T104: 17 | U104: 18 | V104: 19 | W104: 20 | X104: 21 | Y104: 22 | Z104: 23 | AA104: 24 | AB104: 25 | AC104: 26 | AD104: 27 | AE104: 28 | AF104: 29 | AG104: 30 | AH104: 31 | AI104: 32 | AJ104: 33 | AK104: 34 | AL104: 35 | AM104: 36 | AN104: 37 | AO104: 38 | AP104: 39 | AQ104: 40 | AR104: 41 | AS104: 42 | AT104: 43 | AU104: 44 | AV104: 45 | AW104: 46 | AX104: 47 | AY104: 48 | AZ104: 49 | BA104: 50
B105: =RE_RES_Param_seg&"" -> Motor Hull Prop UK (example, do not remove) | C105: =RE_RES_Currency&"" -> GBP | D105: =IF($C105<>"",INDEX(RE_Zero_Discount,MATCH($C105,RE_Currencies,0),D$104+1),"") -> 0.9573419897 | E105: 0.9198698966 | F105: 0.8850344777 | G105: 0.8520592429 | H105: 0.82039464 | I105: 0.7895615121 | J105: 0.7591894253 | K105: 0.7292499139 | L105: 0.6997483574 | M105: 0.6709141429 | N105: =IF($C105<>"",INDEX(RE_Zero_Discount,MATCH($C105,RE_Currencies,0),N$104+1),"") -> 0.6425767947 | O105: 0.6148586528 | P105: 0.587958661 | Q105: 0.5620428412 | R105: 0.5372492557 | S105: 0.5136659368 | T105: 0.4912628488 | U105: 0.4699856975 | V105: 0.4497840156 | W105: 0.4306108686 | X105: =IF($C105<>"",INDEX(RE_Zero_Discount,MATCH($C105,RE_Currencies,0),X$104+1),"") -> 0.4124239713 | Y105: 0.3951892057 | Z105: 0.3788756907 | AA105: 0.3634542852 | AB105: 0.3488975738 | AC105: 0.3351798533 | AD105: 0.32227712 | AE105: 0.3101670583 | AF105: 0.2988290317 | AG105: 0.2882440744 | AH105: =IF($C105<>"",INDEX(RE_Zero_Discount,MATCH($C105,RE_Currencies,0),AH$104+1),"") -> 0.2783817278 | AI105: 0.269164234 | AJ105: 0.2605116823 | AK105: 0.2523545942 | AL105: 0.2446325417 | AM105: 0.2372929443 | AN105: 0.2302900207 | AO105: 0.223583876 | AP105: 0.2171397065 | AQ105: 0.2109271069 | AR105: 0.2049194671 | AS105: 0.1990934462 | AT105: 0.1934285141 | AU105: 0.1879065526 | AV105: 0.1825115065 | AW105: 0.1772290802 | AX105: =IF($C105<>"",INDEX(RE_Zero_Discount,MATCH($C105,RE_Currencies,0),AX$104+1),"") -> 0.1720464718 | AY105: 0.1669521416 | AZ105: 0.1619356089 | BA105: 0.1569872747
D106: =IF($C106<>"",INDEX(RE_Zero_Discount,MATCH($C106,RE_Currencies,0),D$104+1),"") -> 
E121: =IF($C121<>"",INDEX(RE_Zero_Discount,MATCH($C121,RE_Currencies,0),E$104+1),"") ->  | O121: =IF($C121<>"",INDEX(RE_Zero_Discount,MATCH($C121,RE_Currencies,0),O$104+1),"") ->  | Y121: =IF($C121<>"",INDEX(RE_Zero_Discount,MATCH($C121,RE_Currencies,0),Y$104+1),"") ->  | AI121: =IF($C121<>"",INDEX(RE_Zero_Discount,MATCH($C121,RE_Currencies,0),AI$104+1),"") ->  | AY121: =IF($C121<>"",INDEX(RE_Zero_Discount,MATCH($C121,RE_Currencies,0),AY$104+1),"") -> 
E131: =IF($C131<>"",INDEX(RE_Zero_Discount,MATCH($C131,RE_Currencies,0),E$104+1),"") ->  | O131: =IF($C131<>"",INDEX(RE_Zero_Discount,MATCH($C131,RE_Currencies,0),O$104+1),"") ->  | Y131: =IF($C131<>"",INDEX(RE_Zero_Discount,MATCH($C131,RE_Currencies,0),Y$104+1),"") ->  | AI131: =IF($C131<>"",INDEX(RE_Zero_Discount,MATCH($C131,RE_Currencies,0),AI$104+1),"") -> 
AR137: =IF($C137<>"",INDEX(RE_Zero_Discount,MATCH($C137,RE_Currencies,0),AR$104+1),"") -> 
E145: =IF($C145<>"",INDEX(RE_Zero_Discount,MATCH($C145,RE_Currencies,0),E$104+1),"") ->  | N145: =IF($C145<>"",INDEX(RE_Zero_Discount,MATCH($C145,RE_Currencies,0),N$104+1),"") ->  | X145: =IF($C145<>"",INDEX(RE_Zero_Discount,MATCH($C145,RE_Currencies,0),X$104+1),"") ->  | AH145: =IF($C145<>"",INDEX(RE_Zero_Discount,MATCH($C145,RE_Currencies,0),AH$104+1),"") -> 
B147: Discount factor curves based on zero coupon rates for AEP
B149: Name of parameter segment | C149: Currency | D149: 1 | E149: 2 | F149: 3 | G149: 4 | H149: 5 | I149: 6 | J149: 7 | K149: 8 | L149: 9 | M149: 10 | N149: 11 | O149: 12 | P149: 13 | Q149: 14 | R149: 15 | S149: 16 | T149: 17 | U149: 18 | V149: 19 | W149: 20 | X149: 21 | Y149: 22 | Z149: 23 | AA149: 24 | AB149: 25 | AC149: 26 | AD149: 27 | AE149: 28 | AF149: 29 | AG149: 30 | AH149: 31 | AI149: 32 | AJ149: 33 | AK149: 34 | AL149: 35 | AM149: 36 | AN149: 37 | AO149: 38 | AP149: 39 | AQ149: 40 | AR149: 41 | AS149: 42 | AT149: 43 | AU149: 44 | AV149: 45 | AW149: 46 | AX149: 47 | AY149: 48 | AZ149: 49 | BA149: 50
B150: =RE_PREM_Param_seg&"" -> Motor Hull NonProp UK (example, do not remove) | C150: =RE_PREM_Currency&"" -> GBP | D150: =IF($C150<>"",INDEX(RE_Zero_Discount,MATCH($C150,RE_Currencies,0),D$104+1),"") -> 0.9573419897 | E150: 0.9198698966 | F150: 0.8850344777 | G150: 0.8520592429 | H150: 0.82039464 | I150: 0.7895615121 | J150: 0.7591894253 | K150: 0.7292499139 | L150: 0.6997483574 | M150: 0.6709141429 | N150: =IF($C150<>"",INDEX(RE_Zero_Discount,MATCH($C150,RE_Currencies,0),N$104+1),"") -> 0.6425767947 | O150: 0.6148586528 | P150: 0.587958661 | Q150: 0.5620428412 | R150: 0.5372492557 | S150: 0.5136659368 | T150: 0.4912628488 | U150: 0.4699856975 | V150: 0.4497840156 | W150: 0.4306108686 | X150: =IF($C150<>"",INDEX(RE_Zero_Discount,MATCH($C150,RE_Currencies,0),X$104+1),"") -> 0.4124239713 | Y150: 0.3951892057 | Z150: 0.3788756907 | AA150: 0.3634542852 | AB150: 0.3488975738 | AC150: 0.3351798533 | AD150: 0.32227712 | AE150: 0.3101670583 | AF150: 0.2988290317 | AG150: 0.2882440744 | AH150: =IF($C150<>"",INDEX(RE_Zero_Discount,MATCH($C150,RE_Currencies,0),AH$104+1),"") -> 0.2783817278 | AI150: 0.269164234 | AJ150: 0.2605116823 | AK150: 0.2523545942 | AL150: 0.2446325417 | AM150: 0.2372929443 | AN150: 0.2302900207 | AO150: 0.223583876 | AP150: 0.2171397065 | AQ150: 0.2109271069 | AR150: 0.2049194671 | AS150: 0.1990934462 | AT150: 0.1934285141 | AU150: 0.1879065526 | AV150: 0.1825115065 | AW150: 0.1772290802 | AX150: =IF($C150<>"",INDEX(RE_Zero_Discount,MATCH($C150,RE_Currencies,0),AX$104+1),"") -> 0.1720464718 | AY150: 0.1669521416 | AZ150: 0.1619356089 | BA150: 0.1569872747
D166: =IF($C166<>"",INDEX(RE_Zero_Discount,MATCH($C166,RE_Currencies,0),D$104+1),"") ->  | T166: =IF($C166<>"",INDEX(RE_Zero_Discount,MATCH($C166,RE_Currencies,0),T$104+1),"") ->  | AJ166: =IF($C166<>"",INDEX(RE_Zero_Discount,MATCH($C166,RE_Currencies,0),AJ$104+1),"") ->  | AX166: =IF($C166<>"",INDEX(RE_Zero_Discount,MATCH($C166,RE_Currencies,0),AX$104+1),"") -> 
D170: =IF($C170<>"",INDEX(RE_Zero_Discount,MATCH($C170,RE_Currencies,0),D$104+1),"") ->  | E170: =IF($C170<>"",INDEX(RE_Zero_Discount,MATCH($C170,RE_Currencies,0),E$104+1),"") ->  | N170: =IF($C170<>"",INDEX(RE_Zero_Discount,MATCH($C170,RE_Currencies,0),N$104+1),"") ->  | X170: =IF($C170<>"",INDEX(RE_Zero_Discount,MATCH($C170,RE_Currencies,0),X$104+1),"") ->  | AH170: =IF($C170<>"",INDEX(RE_Zero_Discount,MATCH($C170,RE_Currencies,0),AH$104+1),"") -> 
D175: =IF($C175<>"",INDEX(RE_Zero_Discount,MATCH($C175,RE_Currencies,0),D$104+1),"") ->  | N175: =IF($C175<>"",INDEX(RE_Zero_Discount,MATCH($C175,RE_Currencies,0),N$104+1),"") ->  | X175: =IF($C175<>"",INDEX(RE_Zero_Discount,MATCH($C175,RE_Currencies,0),X$104+1),"") ->  | AH175: =IF($C175<>"",INDEX(RE_Zero_Discount,MATCH($C175,RE_Currencies,0),AH$104+1),"") -> 
AR182: =IF($C182<>"",INDEX(RE_Zero_Discount,MATCH($C182,RE_Currencies,0),AR$104+1),"") -> 
D185: =IF($C185<>"",INDEX(RE_Zero_Discount,MATCH($C185,RE_Currencies,0),D$104+1),"") ->  | N185: =IF($C185<>"",INDEX(RE_Zero_Discount,MATCH($C185,RE_Currencies,0),N$104+1),"") ->  | X185: =IF($C185<>"",INDEX(RE_Zero_Discount,MATCH($C185,RE_Currencies,0),X$104+1),"") ->  | AH185: =IF($C185<>"",INDEX(RE_Zero_Discount,MATCH($C185,RE_Currencies,0),AH$104+1),"") -> 

Sheet RE_AE_segments_mapping
A1: 8 | B1: StandRe: Mapping of parameter segments to StandRe segments and AEP model segments
B2: =RE_Company_name&" - "&RE_Status&" "&RE_Current_year -> - SST 2025
B10: Parameter segment for AER | C10: Mapping to StandRe segments | D10: Mapping of company internal segments
D11: to parameter segments (if applicable) | H11: Disaggregation into 2 segments
C12: corresponding StandRe segment | D12: list of corresponding company internal segments for AER | H12: Input: first line: name of aggregated segment; following lines: names of the segments to be disaggregated into | I12: Segment ID | J12: Expected value | K12: Standard deviation | L12: Coefficient of variation | M12: =SQRT(J14*J14*N14+J14*J15*O14+J15*J14*N15+J15*J15*O15) -> 0 | N12: <- square root of auxiliary matrices multiplications "mu-transposed GAMMA mu"
B13: =RE_RES_Param_seg&"" -> Motor Hull Prop UK (example, do not remove) | C13: Motor_P_Europe_(Example) | D13: Auto UK Proportional | I13: All | J13: =SUM(J14:J15) -> 0 | K13: =J13*L13 -> 0 | M13: Correlation matrix | N13: =M14 -> Seg1 | O13: =M15 -> Seg2
I14: Seg1 | K14: 0 | L14: =IF(M12>0,J13*L13/M12,0) -> 0 | M14: =I14 -> Seg1 | N14: 1 | O14: =N15 -> 0
I15: Seg2 | K15: =J15*L15 -> 0 | L15: =L14 -> 0 | M15: =I15 -> Seg2 | O15: 1
H18: Disaggregation into up to 10 segments
H19: Input: first line: name of aggregated segment; following lines: names of the segments to be disaggregated into | I19: Segment ID | J19: Expected value | K19: Standard deviation | L19: Coefficient of variation | M19: =SQRT(MMULT(TRANSPOSE(J21:J30),MMULT(N21:W30,J21:J30))) -> 0 | N19: <- square root of auxiliary matrices multiplications "mu-transposed GAMMA mu" (fill out non-used input fields with 0 values and not with blanks)
I20: All | J20: =SUM(J21:J30) -> 0 | K20: =J20*L20 -> 0 | L20: =L13 -> 0 | M20: Correlation matrix | N20: =M21 -> Seg1 | O20: =M22 -> Seg2 | P20: =M23 -> Seg3 | Q20: =M24 -> Seg4 | R20: =M25 -> Seg5 | S20: =M26 -> Seg6 | T20: =M27 -> Seg7 | U20: =M28 -> Seg8 | V20: =M29 -> Seg9 | W20: =M30 -> Seg10
I21: Seg1 | J21: =J14 -> 0 | K21: 0 | L21: =IF(M19>0,J20*L20/M19,0) -> 0 | M21: =I21 -> Seg1 | N21: 1 | O21: =N22 -> 0 | P21: =N23 -> 0 | Q21: =N24 -> 0 | R21: =N25 -> 0 | S21: =N26 -> 0 | T21: =N27 -> 0 | U21: =N28 -> 0 | V21: =N29 -> 0 | W21: =N30 -> 0
I22: Seg2 | J22: =J15 -> 0 | K22: =J22*L22 -> 0 | L22: =IF(J22>0,L21,0) -> 0 | M22: =I22 -> Seg2 | N22: =N15 -> 0 | O22: 1 | P22: =O23 -> 0 | Q22: =O24 -> 0 | R22: =O25 -> 0 | S22: =O26 -> 0 | T22: =O27 -> 0 | U22: =O28 -> 0 | V22: =O29 -> 0 | W22: =O30 -> 0
I23: Seg3 | J23: 0 | K23: =J23*L23 -> 0 | L23: =IF(J23>0,L22,0) -> 0 | M23: =I23 -> Seg3 | N23: 0 | O23: 0 | P23: 1 | Q23: =P24 -> 0 | R23: =P25 -> 0 | S23: =P26 -> 0 | T23: =P27 -> 0 | U23: =P28 -> 0 | V23: =P29 -> 0 | W23: =P30 -> 0
I24: Seg4 | J24: 0 | K24: 0 | L24: 0 | M24: Seg4 | N24: 0 | O24: 0 | P24: 0 | Q24: 1 | R24: =Q25 -> 0 | S24: =Q26 -> 0 | T24: =Q27 -> 0 | U24: =Q28 -> 0 | V24: =Q29 -> 0 | W24: =Q30 -> 0
I25: Seg5 | J25: 0 | K25: 0 | L25: 0 | M25: Seg5 | N25: 0 | O25: 0 | P25: 0 | Q25: 0 | R25: 1 | S25: =R26 -> 0 | T25: =R27 -> 0 | U25: =R28 -> 0 | V25: =R29 -> 0 | W25: =R30 -> 0
I26: Seg6 | J26: 0 | K26: 0 | L26: 0 | M26: Seg6 | N26: 0 | O26: 0 | P26: 0 | Q26: 0 | R26: 0 | S26: 1 | T26: =S27 -> 0 | U26: =S28 -> 0 | V26: =S29 -> 0 | W26: =S30 -> 0
I27: Seg7 | J27: 0 | K27: 0 | L27: 0 | M27: Seg7 | N27: 0 | O27: 0 | P27: 0 | Q27: 0 | R27: 0 | S27: 0 | T27: 1 | U27: =T28 -> 0 | V27: =T29 -> 0 | W27: =T30 -> 0
I28: Seg8 | J28: 0 | K28: 0 | L28: 0 | M28: Seg8 | N28: 0 | O28: 0 | P28: 0 | Q28: 0 | R28: 0 | S28: 0 | T28: 0 | U28: 1 | V28: =U29 -> 0 | W28: =U30 -> 0
I29: Seg9 | J29: 0 | K29: 0 | L29: 0 | M29: Seg9 | N29: 0 | O29: 0 | P29: 0 | Q29: 0 | R29: 0 | S29: 0 | T29: 0 | U29: 0 | V29: 1 | W29: =V30 -> 0
I30: Seg10 | J30: 0 | K30: 0 | L30: 0 | M30: Seg10 | N30: 0 | O30: 0 | P30: 0 | Q30: 0 | R30: 0 | S30: 0 | T30: 0 | U30: 0 | V30: 0 | W30: 1
H33: Aggregation of 2 segments
H34: Input: first line: name of aggregated segment; following lines: names of the segments to be aggregated | I34: Segment ID | J34: Expected value | K34: Standard deviation | L34: Coefficient of variation | M34: =SQRT(K36*K36*N36+K36*K37*O36+K37*K36*N37+K37*K37*O37) -> 0 | N34: <- square root of auxiliary matrices multiplications "sigma-transposed GAMMA sigma"
I35: All | J35: =SUM(J36:J37) -> 0 | K35: =M34 -> 0 | L35: =IF(J35>0,K35/J35,0) -> 0 | M35: Correlation matrix | N35: =M36 -> Seg1 | O35: =M37 -> Seg2
I36: Seg1 | J36: =J14 -> 0 | K36: =J36*L36 -> 0 | L36: =L14 -> 0 | M36: =I36 -> Seg1 | N36: 1 | O36: =N37 -> 0
I37: Seg2 | J37: =J15 -> 0 | K37: =J37*L37 -> 0 | L37: =L15 -> 0 | M37: =I37 -> Seg2 | N37: =N15 -> 0 | O37: 1
K38: =SQRT(K36^2+K37^2+2*K36*K37*N37) -> 0 | L38: =K38/J35 ->  | M38: =L35=L38 -> 
H40: Aggregation of up to 10 segments
H41: Input: first line: name of aggregated segment; following lines: names of the segments to be aggregated | I41: Segment ID | J41: Expected value | K41: Standard deviation | L41: Coefficient of variation | M41: =SQRT(MMULT(TRANSPOSE(K43:K52),MMULT(N43:W52,K43:K52))) -> 0 | N41: <- square root of auxiliary matrices multiplications "mu-transposed GAMMA mu" (fill out non-used input fields with 0 values and not with blanks)
I42: All | J42: =SUM(J43:J52) -> 0 | K42: =M41 -> 0 | L42: =IF(J42>0,K42/J42,0) -> 0 | M42: Correlation matrix | N42: =M43 -> Seg1 | O42: =M44 -> Seg2 | P42: =M45 -> Seg3 | Q42: =M46 -> Seg4 | R42: =M47 -> Seg5 | S42: =M48 -> Seg6 | T42: =M49 -> Seg7 | U42: =M50 -> Seg8 | V42: =M51 -> Seg9 | W42: =M52 -> Seg10
I43: Seg1 | J43: =J36 -> 0 | K43: =J43*L43 -> 0 | L43: =L36 -> 0 | M43: =I43 -> Seg1 | N43: 1 | O43: =N44 -> 0 | P43: =N45 -> 0 | Q43: =N46 -> 0 | R43: =N47 -> 0 | S43: =N48 -> 0 | T43: =N49 -> 0 | U43: =N50 -> 0 | V43: =N51 -> 0 | W43: =N52 -> 0
I44: Seg2 | J44: =J37 -> 0 | K44: =J44*L44 -> 0 | L44: =L37 -> 0 | M44: =I44 -> Seg2 | N44: =N37 -> 0 | O44: 1 | P44: =O45 -> 0 | Q44: =O46 -> 0 | R44: =O47 -> 0 | S44: =O48 -> 0 | T44: =O49 -> 0 | U44: =O50 -> 0 | V44: =O51 -> 0 | W44: =O52 -> 0
I45: Seg3 | J45: 0 | K45: =J45*L45 -> 0 | L45: 0 | M45: =I45 -> Seg3 | N45: 0 | O45: 0 | P45: 1 | Q45: =P46 -> 0 | R45: =P47 -> 0 | S45: =P48 -> 0 | T45: =P49 -> 0 | U45: =P50 -> 0 | V45: =P51 -> 0 | W45: =P52 -> 0
I46: Seg4 | J46: 0 | K46: 0 | L46: 0 | M46: Seg4 | N46: 0 | O46: 0 | P46: 0 | Q46: 1 | R46: =Q47 -> 0 | S46: =Q48 -> 0 | T46: =Q49 -> 0 | U46: =Q50 -> 0 | V46: =Q51 -> 0 | W46: =Q52 -> 0
I47: Seg5 | J47: 0 | K47: 0 | L47: 0 | M47: Seg5 | N47: 0 | O47: 0 | P47: 0 | Q47: 0 | R47: 1 | S47: =R48 -> 0 | T47: =R49 -> 0 | U47: =R50 -> 0 | V47: =R51 -> 0 | W47: =R52 -> 0
I48: Seg6 | J48: 0 | K48: 0 | L48: 0 | M48: Seg6 | N48: 0 | O48: 0 | P48: 0 | Q48: 0 | R48: 0 | S48: 1 | T48: =S49 -> 0 | U48: =S50 -> 0 | V48: =S51 -> 0 | W48: =S52 -> 0
I49: Seg7 | J49: 0 | K49: 0 | L49: 0 | M49: Seg7 | N49: 0 | O49: 0 | P49: 0 | Q49: 0 | R49: 0 | S49: 0 | T49: 1 | U49: =T50 -> 0 | V49: =T51 -> 0 | W49: =T52 -> 0
I50: Seg8 | J50: 0 | K50: 0 | L50: 0 | M50: Seg8 | N50: 0 | O50: 0 | P50: 0 | Q50: 0 | R50: 0 | S50: 0 | T50: 0 | U50: 1 | V50: =U51 -> 0 | W50: =U52 -> 0
I51: Seg9 | J51: 0 | K51: 0 | L51: 0 | M51: Seg9 | N51: 0 | O51: 0 | P51: 0 | Q51: 0 | R51: 0 | S51: 0 | T51: 0 | U51: 0 | V51: 1 | W51: =V52 -> 0
I52: Seg10 | J52: 0 | K52: 0 | L52: =IF(J52>0,L51,0) -> 0 | M52: Seg10 | N52: 0 | O52: 0 | P52: 0 | Q52: 0 | R52: 0 | S52: 0 | T52: 0 | U52: 0 | V52: 0 | W52: 1
B61: Parameter segment for AEP | C61: Mapping to StandRe segments | D61: Mapping to AEP model segments | E61: Mapping of company internal segments
E62: to parameter segments (if applicable)
C63: corresponding StandRe segment | D63: corresponding AEP model segment | E63: list of corresponding company internal segments for AEP
B64: =RE_PREM_Param_seg&"" -> Motor Hull NonProp UK (example, do not remove) | C64: Motor_P_Europe_(Example) | D64: AEP model segment 1 | E64: Motor Hull Prop WALES; Motor Hull Prop ENGLAND

Sheet RE_AER_output
A1: 9 | B1: StandRe: Resulting parameters and key figures for AER
B2: =RE_Company_name&" - "&RE_Status&" "&RE_Current_year -> - SST 2025
B9: ="Key figures related to AER (prior "&RE_AE_ayoruwy&"s)" -> Key figures related to AER (prior s)
B10: ="SST currency is "&RE_SST_Currency -> SST currency is
F11: Coeff. of variation | G11: Mean in SST currency | H11: Standard deviation in SST currency | I11: Mu of lognormal distribution | J11: Sigma of lognormal distribution | K11: Value at risk 99% in SST currency | L11: Expected shortfall 99% in SST currency
B12: lognormal distribution of non-discounted AER | F12: =IF(G12<>0,SQRT(H12^2/G12^2),"") ->  | G12: =H78 -> 0 | H12: =K78 -> 0 | I12: =IF(ISNUMBER(F12),LN(G12)-0.5*J12^2,"") ->  | J12: =IF(ISNUMBER(F12),SQRT(LN(F12^2+1)),"") ->  | K12: =EXP(I12+J12*NORMINV(0.99,0,1)) ->  | L12: =(1-NORMSDIST(NORMSINV(0.99)-J12))*G12/0.01 -> 
B13: lognormal distribution of discounted AER | F13: =IF(G13<>0,SQRT(H13^2/G13^2),"") ->  | G13: =I78 -> 0 | H13: =L78 -> 0 | I13: =IF(ISNUMBER(F13),LN(G13)-0.5*J13^2,"") ->  | J13: =IF(ISNUMBER(F13),SQRT(LN(F13^2+1)),"") ->  | K13: =EXP(I13+J13*NORMINV(0.99,0,1)) ->  | L13: =(1-NORMSDIST(NORMSINV(0.99)-J13))*G13/0.01 -> 
B14: discount factor | F14: =IF(AND(F12<>0,F12<>""),F13/F12,"") ->  | G14: =IF(AND(G12<>0,G12<>""),G13/G12,"") ->  | K14: =IF(AND(K12<>0,K12<>""),K13/K12,"") ->  | L14: =IF(AND(L12<>0,L12<>""),L13/L12,"") -> 
B17: StandRe segment | F17: AER
B18: ="SST currency is "&RE_SST_Currency -> SST currency is | G18: Best estimate of outstanding losses, net of retrocession | J18: ="Standard deviation (on "&RE_AE_ayoruwy&")" -> Standard deviation (on )
B19: Region | C19: Line of business (LOB) | D19: Type | E19: Name of StandRe segment | F19: Discount factor | G19: Non-discounted, for the prior underwriting years for the StandRe segment, in SST currency | H19: ="Non-discounted, for AER sub-model on "&RE_AE_ayoruwy&", in SST currency" -> Non-discounted, for AER sub-model on , in SST currency | I19: ="Discounted, for AER sub-model on "&RE_AE_ayoruwy&", in SST currency" -> Discounted, for AER sub-model on , in SST currency | J19: Coefficient of variation | K19: Non-discounted standard deviation, in SST currency | L19: Discounted standard deviation, in SST currency | O19: Correlation matrix for AER | P19: AccHealth_P_Europe | Q19: AccHealth_NP_Europe | R19: Motor_P_Europe | S19: Motor_NP_Europe | T19: MAT_P_Europe | U19: MAT_NP_Europe | V19: Property_P_Europe | W19: Property_NP_Europe | X19: FinLosses_P_Europe | Y19: FinLosses_NP_Europe | Z19: GenLiab_P_Europe | AA19: GenLiab_NP_Europe | AB19: Other_P_Europe | AC19: Other_NP_Europe | AD19: AccHealth_P_NorthAm | AE19: AccHealth_NP_NorthAm | AF19: Motor_P_NorthAm | AG19: Motor_NP_NorthAm | AH19: MAT_P_NorthAm | AI19: MAT_NP_NorthAm | AJ19: Property_P_NorthAm | AK19: Property_NP_NorthAm | AL19: FinLosses_P_NorthAm | AM19: FinLosses_NP_NorthAm | AN19: GenLiab_P_NorthAm | AO19: GenLiab_NP_NorthAm | AP19: Other_P_NorthAm | AQ19: Other_NP_NorthAm | AR19: AccHealth_P_RestWorld | AS19: AccHealth_NP_RestWorld | AT19: Motor_P_RestWorld | AU19: Motor_NP_RestWorld | AV19: MAT_P_RestWorld | AW19: MAT_NP_RestWorld | AX19: Property_P_RestWorld | AY19: Property_NP_RestWorld | AZ19: FinLosses_P_RestWorld | BA19: FinLosses_NP_RestWorld | BB19: GenLiab_P_RestWorld | BC19: GenLiab_NP_RestWorld | BD19: Other_P_RestWorld | BE19: Other_NP_RestWorld | BF19: AccHealth_P_NotReg | BG19: AccHealth_NP_NotReg | BH19: Motor_P_NotReg | BI19: Motor_NP_NotReg | BJ19: MAT_P_NotReg | BK19: MAT_NP_NotReg | BL19: Property_P_NotReg | BM19: Property_NP_NotReg | BN19: FinLosses_P_NotReg | BO19: FinLosses_NP_NotReg | BP19: GenLiab_P_NotReg | BQ19: GenLiab_NP_NotReg | BR19: Other_P_NotReg | BS19: Other_NP_NotReg
B20: Europe | C20: Motor | D20: Prop | E20: Motor_P_Europe_(example, do not remove) | F20: 0.96 | G20: =RE_reserves_and_premiums!N12 -> 2963095.699 | H20: 2456000 | I20: =F20*H20 -> 2357760 | J20: 0.43 | K20: =H20*J20 -> 1056080 | L20: =I20*J20 -> 1013836.8
B21: Europe | C21: Accident and health | D21: Prop | E21: AccHealth_P_Europe | G21: =RE_reserves_and_premiums!N$13 -> 0 | I21: =F21*H21 -> 0 | K21: =H21*J21 -> 0 | L21: =I21*J21 -> 0 | O21: AccHealth_P_Europe | P21: 1 | Q21: 0.75 | R21: 0.5 | S21: 0.375 | T21: 0.25 | U21: 0.1875 | V21: 0.15 | W21: 0.1125 | X21: 0.25 | Y21: 0.1875 | Z21: 0.25 | AA21: 0.1875 | AB21: 0.25 | AC21: 0.1875 | AD21: 0.5 | AE21: 0.375 | AF21: 0.25 | AG21: 0.1875 | AH21: 0.125 | AI21: 0.09375 | AJ21: 0.075 | AK21: 0.05625 | AL21: 0.125 | AM21: 0.09375 | AN21: 0.125 | AO21: 0.09375 | AP21: 0.125 | AQ21: 0.09375 | AR21: 0.5 | AS21: 0.375 | AT21: 0.25 | AU21: 0.1875 | AV21: 0.125 | AW21: 0.09375 | AX21: 0.075 | AY21: 0.05625 | AZ21: 0.125 | BA21: 0.09375 | BB21: 0.125 | BC21: 0.09375 | BD21: 0.125 | BE21: 0.09375 | BF21: 0.75 | BG21: 0.5625 | BH21: 0.375 | BI21: 0.28125 | BJ21: 0.1875 | BK21: 0.140625 | BL21: 0.1125 | BM21: 0.084375 | BN21: 0.1875 | BO21: 0.140625 | BP21: 0.1875 | BQ21: 0.140625 | BR21: 0.1875 | BS21: 0.140625
D22: Non Prop | E22: AccHealth_NP_Europe | G22: =RE_reserves_and_premiums!O$13 -> 0 | I22: =F22*H22 -> 0 | K22: 0 | L22: 0 | O22: AccHealth_NP_Europe | P22: 0.75 | Q22: 1 | R22: 0.375 | S22: 0.5 | T22: 0.1875 | U22: 0.25 | V22: 0.1125 | W22: 0.15 | X22: 0.1875 | Y22: 0.25 | Z22: 0.1875 | AA22: 0.25 | AB22: 0.1875 | AC22: 0.25 | AD22: 0.375 | AE22: 0.5 | AF22: 0.1875 | AG22: 0.25 | AH22: 0.09375 | AI22: 0.125 | AJ22: 0.05625 | AK22: 0.075 | AL22: 0.09375 | AM22: 0.125 | AN22: 0.09375 | AO22: 0.125 | AP22: 0.09375 | AQ22: 0.125 | AR22: 0.375 | AS22: 0.5 | AT22: 0.1875 | AU22: 0.25 | AV22: 0.09375 | AW22: 0.125 | AX22: 0.05625 | AY22: 0.075 | AZ22: 0.09375 | BA22: 0.125 | BB22: 0.09375 | BC22: 0.125 | BD22: 0.09375 | BE22: 0.125 | BF22: 0.5625 | BG22: 0.75 | BH22: 0.28125 | BI22: 0.375 | BJ22: 0.140625 | BK22: 0.1875 | BL22: 0.084375 | BM22: 0.1125 | BN22: 0.140625 | BO22: 0.1875 | BP22: 0.140625 | BQ22: 0.1875 | BR22: 0.140625 | BS22: 0.1875
C23: Motor | D23: Prop | E23: Motor_P_Europe | G23: =RE_reserves_and_premiums!N$21 -> 0 | I23: 0 | K23: 0 | L23: 0 | O23: Motor_P_Europe | P23: 0.5 | Q23: 0.375 | R23: 1 | S23: 0.75 | T23: 0.25 | U23: 0.1875 | V23: 0.15 | W23: 0.1125 | X23: 0.25 | Y23: 0.1875 | Z23: 0.25 | AA23: 0.1875 | AB23: 0.25 | AC23: 0.1875 | AD23: 0.25 | AE23: 0.1875 | AF23: 0.5 | AG23: 0.375 | AH23: 0.125 | AI23: 0.09375 | AJ23: 0.075 | AK23: 0.05625 | AL23: 0.125 | AM23: 0.09375 | AN23: 0.125 | AO23: 0.09375 | AP23: 0.125 | AQ23: 0.09375 | AR23: 0.25 | AS23: 0.1875 | AT23: 0.5 | AU23: 0.375 | AV23: 0.125 | AW23: 0.09375 | AX23: 0.075 | AY23: 0.05625 | AZ23: 0.125 | BA23: 0.09375 | BB23: 0.125 | BC23: 0.09375 | BD23: 0.125 | BE23: 0.09375 | BF23: 0.375 | BG23: 0.28125 | BH23: 0.75 | BI23: 0.5625 | BJ23: 0.1875 | BK23: 0.140625 | BL23: 0.1125 | BM23: 0.084375 | BN23: 0.1875 | BO23: 0.140625 | BP23: 0.1875 | BQ23: 0.140625 | BR23: 0.1875 | BS23: 0.140625
D24: Non Prop | E24: Motor_NP_Europe | G24: =RE_reserves_and_premiums!O$21 -> 0 | I24: 0 | K24: 0 | L24: 0 | O24: Motor_NP_Europe | P24: 0.375 | Q24: 0.5 | R24: 0.75 | S24: 1 | T24: 0.1875 | U24: 0.25 | V24: 0.1125 | W24: 0.15 | X24: 0.1875 | Y24: 0.25 | Z24: 0.1875 | AA24: 0.25 | AB24: 0.1875 | AC24: 0.25 | AD24: 0.1875 | AE24: 0.25 | AF24: 0.375 | AG24: 0.5 | AH24: 0.09375 | AI24: 0.125 | AJ24: 0.05625 | AK24: 0.075 | AL24: 0.09375 | AM24: 0.125 | AN24: 0.09375 | AO24: 0.125 | AP24: 0.09375 | AQ24: 0.125 | AR24: 0.1875 | AS24: 0.25 | AT24: 0.375 | AU24: 0.5 | AV24: 0.09375 | AW24: 0.125 | AX24: 0.05625 | AY24: 0.075 | AZ24: 0.09375 | BA24: 0.125 | BB24: 0.09375 | BC24: 0.125 | BD24: 0.09375 | BE24: 0.125 | BF24: 0.28125 | BG24: 0.375 | BH24: 0.5625 | BI24: 0.75 | BJ24: 0.140625 | BK24: 0.1875 | BL24: 0.084375 | BM24: 0.1125 | BN24: 0.140625 | BO24: 0.1875 | BP24: 0.140625 | BQ24: 0.1875 | BR24: 0.140625 | BS24: 0.1875
C25: Marine, aviation and other transport | D25: Prop | E25: MAT_P_Europe | G25: =RE_reserves_and_premiums!N$25 -> 0 | I25: 0 | K25: 0 | L25: 0 | O25: MAT_P_Europe | P25: 0.25 | Q25: 0.1875 | R25: 0.25 | S25: 0.1875 | T25: 1 | U25: 0.75 | V25: 0.25 | W25: 0.1875 | X25: 0.15 | Y25: 0.1125 | Z25: 0.15 | AA25: 0.1125 | AB25: 0.25 | AC25: 0.1875 | AD25: 0.125 | AE25: 0.09375 | AF25: 0.125 | AG25: 0.09375 | AH25: 0.5 | AI25: 0.375 | AJ25: 0.125 | AK25: 0.09375 | AL25: 0.075 | AM25: 0.05625 | AN25: 0.075 | AO25: 0.05625 | AP25: 0.125 | AQ25: 0.09375 | AR25: 0.125 | AS25: 0.09375 | AT25: 0.125 | AU25: 0.09375 | AV25: 0.5 | AW25: 0.375 | AX25: 0.125 | AY25: 0.09375 | AZ25: 0.075 | BA25: 0.05625 | BB25: 0.075 | BC25: 0.05625 | BD25: 0.125 | BE25: 0.09375 | BF25: 0.1875 | BG25: 0.140625 | BH25: 0.1875 | BI25: 0.140625 | BJ25: 0.75 | BK25: 0.5625 | BL25: 0.1875 | BM25: 0.140625 | BN25: 0.1125 | BO25: 0.084375 | BP25: 0.1125 | BQ25: 0.084375 | BR25: 0.1875 | BS25: 0.140625
D26: Non Prop | E26: MAT_NP_Europe | G26: =RE_reserves_and_premiums!O$25 -> 0 | I26: 0 | K26: 0 | L26: 0 | O26: MAT_NP_Europe | P26: 0.1875 | Q26: 0.25 | R26: 0.1875 | S26: 0.25 | T26: 0.75 | U26: 1 | V26: 0.1875 | W26: 0.25 | X26: 0.1125 | Y26: 0.15 | Z26: 0.1125 | AA26: 0.15 | AB26: 0.1875 | AC26: 0.25 | AD26: 0.09375 | AE26: 0.125 | AF26: 0.09375 | AG26: 0.125 | AH26: 0.375 | AI26: 0.5 | AJ26: 0.09375 | AK26: 0.125 | AL26: 0.05625 | AM26: 0.075 | AN26: 0.05625 | AO26: 0.075 | AP26: 0.09375 | AQ26: 0.125 | AR26: 0.09375 | AS26: 0.125 | AT26: 0.09375 | AU26: 0.125 | AV26: 0.375 | AW26: 0.5 | AX26: 0.09375 | AY26: 0.125 | AZ26: 0.05625 | BA26: 0.075 | BB26: 0.05625 | BC26: 0.075 | BD26: 0.09375 | BE26: 0.125 | BF26: 0.140625 | BG26: 0.1875 | BH26: 0.140625 | BI26: 0.1875 | BJ26: 0.5625 | BK26: 0.75 | BL26: 0.140625 | BM26: 0.1875 | BN26: 0.084375 | BO26: 0.1125 | BP26: 0.084375 | BQ26: 0.1125 | BR26: 0.140625 | BS26: 0.1875
C27: Property | D27: Prop | E27: Property_P_Europe | G27: =RE_reserves_and_premiums!N$37 -> 0 | I27: 0 | K27: 0 | L27: 0 | O27: Property_P_Europe | P27: 0.15 | Q27: 0.1125 | R27: 0.15 | S27: 0.1125 | T27: 0.25 | U27: 0.1875 | V27: 1 | W27: 0.75 | X27: 0.15 | Y27: 0.1125 | Z27: 0.15 | AA27: 0.1125 | AB27: 0.25 | AC27: 0.1875 | AD27: 0.075 | AE27: 0.05625 | AF27: 0.075 | AG27: 0.05625 | AH27: 0.125 | AI27: 0.09375 | AJ27: 0.5 | AK27: 0.375 | AL27: 0.075 | AM27: 0.05625 | AN27: 0.075 | AO27: 0.05625 | AP27: 0.125 | AQ27: 0.09375 | AR27: 0.075 | AS27: 0.05625 | AT27: 0.075 | AU27: 0.05625 | AV27: 0.125 | AW27: 0.09375 | AX27: 0.5 | AY27: 0.375 | AZ27: 0.075 | BA27: 0.05625 | BB27: 0.075 | BC27: 0.05625 | BD27: 0.125 | BE27: 0.09375 | BF27: 0.1125 | BG27: 0.084375 | BH27: 0.1125 | BI27: 0.084375 | BJ27: 0.1875 | BK27: 0.140625 | BL27: 0.75 | BM27: 0.5625 | BN27: 0.1125 | BO27: 0.084375 | BP27: 0.1125 | BQ27: 0.084375 | BR27: 0.1875 | BS27: 0.140625
D28: Non Prop | E28: Property_NP_Europe | G28: =RE_reserves_and_premiums!O$37 -> 0 | I28: 0 | K28: 0 | L28: 0 | O28: Property_NP_Europe | P28: 0.1125 | Q28: 0.15 | R28: 0.1125 | S28: 0.15 | T28: 0.1875 | U28: 0.25 | V28: 0.75 | W28: 1 | X28: 0.1125 | Y28: 0.15 | Z28: 0.1125 | AA28: 0.15 | AB28: 0.1875 | AC28: 0.25 | AD28: 0.05625 | AE28: 0.075 | AF28: 0.05625 | AG28: 0.075 | AH28: 0.09375 | AI28: 0.125 | AJ28: 0.375 | AK28: 0.5 | AL28: 0.05625 | AM28: 0.075 | AN28: 0.05625 | AO28: 0.075 | AP28: 0.09375 | AQ28: 0.125 | AR28: 0.05625 | AS28: 0.075 | AT28: 0.05625 | AU28: 0.075 | AV28: 0.09375 | AW28: 0.125 | AX28: 0.375 | AY28: 0.5 | AZ28: 0.05625 | BA28: 0.075 | BB28: 0.05625 | BC28: 0.075 | BD28: 0.09375 | BE28: 0.125 | BF28: 0.084375 | BG28: 0.1125 | BH28: 0.084375 | BI28: 0.1125 | BJ28: 0.140625 | BK28: 0.1875 | BL28: 0.5625 | BM28: 0.75 | BN28: 0.084375 | BO28: 0.1125 | BP28: 0.084375 | BQ28: 0.1125 | BR28: 0.140625 | BS28: 0.1875
C29: Financial losses | D29: Prop | E29: FinLosses_P_Europe | G29: =RE_reserves_and_premiums!N$43 -> 0 | I29: 0 | K29: 0 | L29: 0 | O29: FinLosses_P_Europe | P29: 0.25 | Q29: 0.1875 | R29: 0.25 | S29: 0.1875 | T29: 0.15 | U29: 0.1125 | V29: 0.15 | W29: 0.1125 | X29: 1 | Y29: 0.75 | Z29: 0.15 | AA29: 0.1125 | AB29: 0.25 | AC29: 0.1875 | AD29: 0.125 | AE29: 0.09375 | AF29: 0.125 | AG29: 0.09375 | AH29: 0.075 | AI29: 0.05625 | AJ29: 0.075 | AK29: 0.05625 | AL29: 0.5 | AM29: 0.375 | AN29: 0.075 | AO29: 0.05625 | AP29: 0.125 | AQ29: 0.09375 | AR29: 0.125 | AS29: 0.09375 | AT29: 0.125 | AU29: 0.09375 | AV29: 0.075 | AW29: 0.05625 | AX29: 0.075 | AY29: 0.05625 | AZ29: 0.5 | BA29: 0.375 | BB29: 0.075 | BC29: 0.05625 | BD29: 0.125 | BE29: 0.09375 | BF29: 0.1875 | BG29: 0.140625 | BH29: 0.1875 | BI29: 0.140625 | BJ29: 0.1125 | BK29: 0.084375 | BL29: 0.1125 | BM29: 0.084375 | BN29: 0.75 | BO29: 0.5625 | BP29: 0.1125 | BQ29: 0.084375 | BR29: 0.1875 | BS29: 0.140625
D30: Non Prop | E30: FinLosses_NP_Europe | G30: =RE_reserves_and_premiums!O$43 -> 0 | I30: 0 | K30: 0 | L30: 0 | O30: FinLosses_NP_Europe | P30: 0.1875 | Q30: 0.25 | R30: 0.1875 | S30: 0.25 | T30: 0.1125 | U30: 0.15 | V30: 0.1125 | W30: 0.15 | X30: 0.75 | Y30: 1 | Z30: 0.1125 | AA30: 0.15 | AB30: 0.1875 | AC30: 0.25 | AD30: 0.09375 | AE30: 0.125 | AF30: 0.09375 | AG30: 0.125 | AH30: 0.05625 | AI30: 0.075 | AJ30: 0.05625 | AK30: 0.075 | AL30: 0.375 | AM30: 0.5 | AN30: 0.05625 | AO30: 0.075 | AP30: 0.09375 | AQ30: 0.125 | AR30: 0.09375 | AS30: 0.125 | AT30: 0.09375 | AU30: 0.125 | AV30: 0.05625 | AW30: 0.075 | AX30: 0.05625 | AY30: 0.075 | AZ30: 0.375 | BA30: 0.5 | BB30: 0.05625 | BC30: 0.075 | BD30: 0.09375 | BE30: 0.125 | BF30: 0.140625 | BG30: 0.1875 | BH30: 0.140625 | BI30: 0.1875 | BJ30: 0.084375 | BK30: 0.1125 | BL30: 0.084375 | BM30: 0.1125 | BN30: 0.5625 | BO30: 0.75 | BP30: 0.084375 | BQ30: 0.1125 | BR30: 0.140625 | BS30: 0.1875
C31: General liability | D31: Prop | E31: GenLiab_P_Europe | G31: =RE_reserves_and_premiums!N$49 -> 0 | I31: 0 | K31: 0 | L31: 0 | O31: GenLiab_P_Europe | P31: 0.25 | Q31: 0.1875 | R31: 0.25 | S31: 0.1875 | T31: 0.15 | U31: 0.1125 | V31: 0.15 | W31: 0.1125 | X31: 0.15 | Y31: 0.1125 | Z31: 1 | AA31: 0.75 | AB31: 0.25 | AC31: 0.1875 | AD31: 0.125 | AE31: 0.09375 | AF31: 0.125 | AG31: 0.09375 | AH31: 0.075 | AI31: 0.05625 | AJ31: 0.075 | AK31: 0.05625 | AL31: 0.075 | AM31: 0.05625 | AN31: 0.5 | AO31: 0.375 | AP31: 0.125 | AQ31: 0.09375 | AR31: 0.125 | AS31: 0.09375 | AT31: 0.125 | AU31: 0.09375 | AV31: 0.075 | AW31: 0.05625 | AX31: 0.075 | AY31: 0.05625 | AZ31: 0.075 | BA31: 0.05625 | BB31: 0.5 | BC31: 0.375 | BD31: 0.125 | BE31: 0.09375 | BF31: 0.1875 | BG31: 0.140625 | BH31: 0.1875 | BI31: 0.140625 | BJ31: 0.1125 | BK31: 0.084375 | BL31: 0.1125 | BM31: 0.084375 | BN31: 0.1125 | BO31: 0.084375 | BP31: 0.75 | BQ31: 0.5625 | BR31: 0.1875 | BS31: 0.140625
D32: Non Prop | E32: GenLiab_NP_Europe | G32: =RE_reserves_and_premiums!O$49 -> 0 | I32: 0 | K32: 0 | L32: 0 | O32: GenLiab_NP_Europe | P32: 0.1875 | Q32: 0.25 | R32: 0.1875 | S32: 0.25 | T32: 0.1125 | U32: 0.15 | V32: 0.1125 | W32: 0.15 | X32: 0.1125 | Y32: 0.15 | Z32: 0.75 | AA32: 1 | AB32: 0.1875 | AC32: 0.25 | AD32: 0.09375 | AE32: 0.125 | AF32: 0.09375 | AG32: 0.125 | AH32: 0.05625 | AI32: 0.075 | AJ32: 0.05625 | AK32: 0.075 | AL32: 0.05625 | AM32: 0.075 | AN32: 0.375 | AO32: 0.5 | AP32: 0.09375 | AQ32: 0.125 | AR32: 0.09375 | AS32: 0.125 | AT32: 0.09375 | AU32: 0.125 | AV32: 0.05625 | AW32: 0.075 | AX32: 0.05625 | AY32: 0.075 | AZ32: 0.05625 | BA32: 0.075 | BB32: 0.375 | BC32: 0.5 | BD32: 0.09375 | BE32: 0.125 | BF32: 0.140625 | BG32: 0.1875 | BH32: 0.140625 | BI32: 0.1875 | BJ32: 0.084375 | BK32: 0.1125 | BL32: 0.084375 | BM32: 0.1125 | BN32: 0.084375 | BO32: 0.1125 | BP32: 0.5625 | BQ32: 0.75 | BR32: 0.140625 | BS32: 0.1875
C33: Other Non-life | D33: Prop | E33: Other_P_Europe | G33: =RE_reserves_and_premiums!N$56 -> 0 | I33: 0 | K33: 0 | L33: 0 | O33: Other_P_Europe | P33: 0.25 | Q33: 0.1875 | R33: 0.25 | S33: 0.1875 | T33: 0.25 | U33: 0.1875 | V33: 0.25 | W33: 0.1875 | X33: 0.25 | Y33: 0.1875 | Z33: 0.25 | AA33: 0.1875 | AB33: 1 | AC33: 0.75 | AD33: 0.125 | AE33: 0.09375 | AF33: 0.125 | AG33: 0.09375 | AH33: 0.125 | AI33: 0.09375 | AJ33: 0.125 | AK33: 0.09375 | AL33: 0.125 | AM33: 0.09375 | AN33: 0.125 | AO33: 0.09375 | AP33: 0.5 | AQ33: 0.375 | AR33: 0.125 | AS33: 0.09375 | AT33: 0.125 | AU33: 0.09375 | AV33: 0.125 | AW33: 0.09375 | AX33: 0.125 | AY33: 0.09375 | AZ33: 0.125 | BA33: 0.09375 | BB33: 0.125 | BC33: 0.09375 | BD33: 0.5 | BE33: 0.375 | BF33: 0.1875 | BG33: 0.140625 | BH33: 0.1875 | BI33: 0.140625 | BJ33: 0.1875 | BK33: 0.140625 | BL33: 0.1875 | BM33: 0.140625 | BN33: 0.1875 | BO33: 0.140625 | BP33: 0.1875 | BQ33: 0.140625 | BR33: 0.75 | BS33: 0.5625
D34: Non Prop | E34: Other_NP_Europe | G34: =RE_reserves_and_premiums!O$56 -> 0 | I34: 0 | K34: 0 | L34: 0 | O34: Other_NP_Europe | P34: 0.1875 | Q34: 0.25 | R34: 0.1875 | S34: 0.25 | T34: 0.1875 | U34: 0.25 | V34: 0.1875 | W34: 0.25 | X34: 0.1875 | Y34: 0.25 | Z34: 0.1875 | AA34: 0.25 | AB34: 0.75 | AC34: 1 | AD34: 0.09375 | AE34: 0.125 | AF34: 0.09375 | AG34: 0.125 | AH34: 0.09375 | AI34: 0.125 | AJ34: 0.09375 | AK34: 0.125 | AL34: 0.09375 | AM34: 0.125 | AN34: 0.09375 | AO34: 0.125 | AP34: 0.375 | AQ34: 0.5 | AR34: 0.09375 | AS34: 0.125 | AT34: 0.09375 | AU34: 0.125 | AV34: 0.09375 | AW34: 0.125 | AX34: 0.09375 | AY34: 0.125 | AZ34: 0.09375 | BA34: 0.125 | BB34: 0.09375 | BC34: 0.125 | BD34: 0.375 | BE34: 0.5 | BF34: 0.140625 | BG34: 0.1875 | BH34: 0.140625 | BI34: 0.1875 | BJ34: 0.140625 | BK34: 0.1875 | BL34: 0.140625 | BM34: 0.1875 | BN34: 0.140625 | BO34: 0.1875 | BP34: 0.140625 | BQ34: 0.1875 | BR34: 0.5625 | BS34: 0.75
B35: North America | C35: Accident and health | D35: Prop | E35: AccHealth_P_NorthAm | G35: =RE_reserves_and_premiums!P$13 -> 0 | I35: 0 | K35: 0 | L35: 0 | O35: AccHealth_P_NorthAm | P35: 0.5 | Q35: 0.375 | R35: 0.25 | S35: 0.1875 | T35: 0.125 | U35: 0.09375 | V35: 0.075 | W35: 0.05625 | X35: 0.125 | Y35: 0.09375 | Z35: 0.125 | AA35: 0.09375 | AB35: 0.125 | AC35: 0.09375 | AD35: 1 | AE35: 0.75 | AF35: 0.5 | AG35: 0.375 | AH35: 0.25 | AI35: 0.1875 | AJ35: 0.15 | AK35: 0.1125 | AL35: 0.25 | AM35: 0.1875 | AN35: 0.25 | AO35: 0.1875 | AP35: 0.25 | AQ35: 0.1875 | AR35: 0.5 | AS35: 0.375 | AT35: 0.25 | AU35: 0.1875 | AV35: 0.125 | AW35: 0.09375 | AX35: 0.075 | AY35: 0.05625 | AZ35: 0.125 | BA35: 0.09375 | BB35: 0.125 | BC35: 0.09375 | BD35: 0.125 | BE35: 0.09375 | BF35: 0.75 | BG35: 0.5625 | BH35: 0.375 | BI35: 0.28125 | BJ35: 0.1875 | BK35: 0.140625 | BL35: 0.1125 | BM35: 0.084375 | BN35: 0.1875 | BO35: 0.140625 | BP35: 0.1875 | BQ35: 0.140625 | BR35: 0.1875 | BS35: 0.140625
D36: Non Prop | E36: AccHealth_NP_NorthAm | G36: =RE_reserves_and_premiums!Q$13 -> 0 | I36: 0 | K36: 0 | L36: 0 | O36: AccHealth_NP_NorthAm | P36: 0.375 | Q36: 0.5 | R36: 0.1875 | S36: 0.25 | T36: 0.09375 | U36: 0.125 | V36: 0.05625 | W36: 0.075 | X36: 0.09375 | Y36: 0.125 | Z36: 0.09375 | AA36: 0.125 | AB36: 0.09375 | AC36: 0.125 | AD36: 0.75 | AE36: 1 | AF36: 0.375 | AG36: 0.5 | AH36: 0.1875 | AI36: 0.25 | AJ36: 0.1125 | AK36: 0.15 | AL36: 0.1875 | AM36: 0.25 | AN36: 0.1875 | AO36: 0.25 | AP36: 0.1875 | AQ36: 0.25 | AR36: 0.375 | AS36: 0.5 | AT36: 0.1875 | AU36: 0.25 | AV36: 0.09375 | AW36: 0.125 | AX36: 0.05625 | AY36: 0.075 | AZ36: 0.09375 | BA36: 0.125 | BB36: 0.09375 | BC36: 0.125 | BD36: 0.09375 | BE36: 0.125 | BF36: 0.5625 | BG36: 0.75 | BH36: 0.28125 | BI36: 0.375 | BJ36: 0.140625 | BK36: 0.1875 | BL36: 0.084375 | BM36: 0.1125 | BN36: 0.140625 | BO36: 0.1875 | BP36: 0.140625 | BQ36: 0.1875 | BR36: 0.140625 | BS36: 0.1875
C37: Motor | D37: Prop | E37: Motor_P_NorthAm | G37: =RE_reserves_and_premiums!P$21 -> 0 | I37: 0 | K37: 0 | L37: 0 | O37: Motor_P_NorthAm | P37: 0.25 | Q37: 0.1875 | R37: 0.5 | S37: 0.375 | T37: 0.125 | U37: 0.09375 | V37: 0.075 | W37: 0.05625 | X37: 0.125 | Y37: 0.09375 | Z37: 0.125 | AA37: 0.09375 | AB37: 0.125 | AC37: 0.09375 | AD37: 0.5 | AE37: 0.375 | AF37: 1 | AG37: 0.75 | AH37: 0.25 | AI37: 0.1875 | AJ37: 0.15 | AK37: 0.1125 | AL37: 0.25 | AM37: 0.1875 | AN37: 0.25 | AO37: 0.1875 | AP37: 0.25 | AQ37: 0.1875 | AR37: 0.25 | AS37: 0.1875 | AT37: 0.5 | AU37: 0.375 | AV37: 0.125 | AW37: 0.09375 | AX37: 0.075 | AY37: 0.05625 | AZ37: 0.125 | BA37: 0.09375 | BB37: 0.125 | BC37: 0.09375 | BD37: 0.125 | BE37: 0.09375 | BF37: 0.375 | BG37: 0.28125 | BH37: 0.75 | BI37: 0.5625 | BJ37: 0.1875 | BK37: 0.140625 | BL37: 0.1125 | BM37: 0.084375 | BN37: 0.1875 | BO37: 0.140625 | BP37: 0.1875 | BQ37: 0.140625 | BR37: 0.1875 | BS37: 0.140625
D38: Non Prop | E38: Motor_NP_NorthAm | G38: =RE_reserves_and_premiums!Q$21 -> 0 | I38: =F38*H38 -> 0 | K38: 0 | L38: 0 | O38: Motor_NP_NorthAm | P38: 0.1875 | Q38: 0.25 | R38: 0.375 | S38: 0.5 | T38: 0.09375 | U38: 0.125 | V38: 0.05625 | W38: 0.075 | X38: 0.09375 | Y38: 0.125 | Z38: 0.09375 | AA38: 0.125 | AB38: 0.09375 | AC38: 0.125 | AD38: 0.375 | AE38: 0.5 | AF38: 0.75 | AG38: 1 | AH38: 0.1875 | AI38: 0.25 | AJ38: 0.1125 | AK38: 0.15 | AL38: 0.1875 | AM38: 0.25 | AN38: 0.1875 | AO38: 0.25 | AP38: 0.1875 | AQ38: 0.25 | AR38: 0.1875 | AS38: 0.25 | AT38: 0.375 | AU38: 0.5 | AV38: 0.09375 | AW38: 0.125 | AX38: 0.05625 | AY38: 0.075 | AZ38: 0.09375 | BA38: 0.125 | BB38: 0.09375 | BC38: 0.125 | BD38: 0.09375 | BE38: 0.125 | BF38: 0.28125 | BG38: 0.375 | BH38: 0.5625 | BI38: 0.75 | BJ38: 0.140625 | BK38: 0.1875 | BL38: 0.084375 | BM38: 0.1125 | BN38: 0.140625 | BO38: 0.1875 | BP38: 0.140625 | BQ38: 0.1875 | BR38: 0.140625 | BS38: 0.1875
C39: Marine, aviation and other transport | D39: Prop | E39: MAT_P_NorthAm | G39: =RE_reserves_and_premiums!P$25 -> 0 | I39: 0 | K39: 0 | L39: 0 | O39: MAT_P_NorthAm | P39: 0.125 | Q39: 0.09375 | R39: 0.125 | S39: 0.09375 | T39: 0.5 | U39: 0.375 | V39: 0.125 | W39: 0.09375 | X39: 0.075 | Y39: 0.05625 | Z39: 0.075 | AA39: 0.05625 | AB39: 0.125 | AC39: 0.09375 | AD39: 0.25 | AE39: 0.1875 | AF39: 0.25 | AG39: 0.1875 | AH39: 1 | AI39: 0.75 | AJ39: 0.25 | AK39: 0.1875 | AL39: 0.15 | AM39: 0.1125 | AN39: 0.15 | AO39: 0.1125 | AP39: 0.25 | AQ39: 0.1875 | AR39: 0.125 | AS39: 0.09375 | AT39: 0.125 | AU39: 0.09375 | AV39: 0.5 | AW39: 0.375 | AX39: 0.125 | AY39: 0.09375 | AZ39: 0.075 | BA39: 0.05625 | BB39: 0.075 | BC39: 0.05625 | BD39: 0.125 | BE39: 0.09375 | BF39: 0.1875 | BG39: 0.140625 | BH39: 0.1875 | BI39: 0.140625 | BJ39: 0.75 | BK39: 0.5625 | BL39: 0.1875 | BM39: 0.140625 | BN39: 0.1125 | BO39: 0.084375 | BP39: 0.1125 | BQ39: 0.084375 | BR39: 0.1875 | BS39: 0.140625
D40: Non Prop | E40: MAT_NP_NorthAm | G40: =RE_reserves_and_premiums!Q$25 -> 0 | I40: 0 | K40: 0 | L40: 0 | O40: MAT_NP_NorthAm | P40: 0.09375 | Q40: 0.125 | R40: 0.09375 | S40: 0.125 | T40: 0.375 | U40: 0.5 | V40: 0.09375 | W40: 0.125 | X40: 0.05625 | Y40: 0.075 | Z40: 0.05625 | AA40: 0.075 | AB40: 0.09375 | AC40: 0.125 | AD40: 0.1875 | AE40: 0.25 | AF40: 0.1875 | AG40: 0.25 | AH40: 0.75 | AI40: 1 | AJ40: 0.1875 | AK40: 0.25 | AL40: 0.1125 | AM40: 0.15 | AN40: 0.1125 | AO40: 0.15 | AP40: 0.1875 | AQ40: 0.25 | AR40: 0.09375 | AS40: 0.125 | AT40: 0.09375 | AU40: 0.125 | AV40: 0.375 | AW40: 0.5 | AX40: 0.09375 | AY40: 0.125 | AZ40: 0.05625 | BA40: 0.075 | BB40: 0.05625 | BC40: 0.075 | BD40: 0.09375 | BE40: 0.125 | BF40: 0.140625 | BG40: 0.1875 | BH40: 0.140625 | BI40: 0.1875 | BJ40: 0.5625 | BK40: 0.75 | BL40: 0.140625 | BM40: 0.1875 | BN40: 0.084375 | BO40: 0.1125 | BP40: 0.084375 | BQ40: 0.1125 | BR40: 0.140625 | BS40: 0.1875
C41: Property | D41: Prop | E41: Property_P_NorthAm | G41: =RE_reserves_and_premiums!P$37 -> 0 | I41: 0 | K41: 0 | L41: 0 | O41: Property_P_NorthAm | P41: 0.075 | Q41: 0.05625 | R41: 0.075 | S41: 0.05625 | T41: 0.125 | U41: 0.09375 | V41: 0.5 | W41: 0.375 | X41: 0.075 | Y41: 0.05625 | Z41: 0.075 | AA41: 0.05625 | AB41: 0.125 | AC41: 0.09375 | AD41: 0.15 | AE41: 0.1125 | AF41: 0.15 | AG41: 0.1125 | AH41: 0.25 | AI41: 0.1875 | AJ41: 1 | AK41: 0.75 | AL41: 0.15 | AM41: 0.1125 | AN41: 0.15 | AO41: 0.1125 | AP41: 0.25 | AQ41: 0.1875 | AR41: 0.075 | AS41: 0.05625 | AT41: 0.075 | AU41: 0.05625 | AV41: 0.125 | AW41: 0.09375 | AX41: 0.5 | AY41: 0.375 | AZ41: 0.075 | BA41: 0.05625 | BB41: 0.075 | BC41: 0.05625 | BD41: 0.125 | BE41: 0.09375 | BF41: 0.1125 | BG41: 0.084375 | BH41: 0.1125 | BI41: 0.084375 | BJ41: 0.1875 | BK41: 0.140625 | BL41: 0.75 | BM41: 0.5625 | BN41: 0.1125 | BO41: 0.084375 | BP41: 0.1125 | BQ41: 0.084375 | BR41: 0.1875 | BS41: 0.140625
D42: Non Prop | E42: Property_NP_NorthAm | G42: =RE_reserves_and_premiums!Q$37 -> 0 | I42: 0 | K42: 0 | L42: 0 | O42: Property_NP_NorthAm | P42: 0.05625 | Q42: 0.075 | R42: 0.05625 | S42: 0.075 | T42: 0.09375 | U42: 0.125 | V42: 0.375 | W42: 0.5 | X42: 0.05625 | Y42: 0.075 | Z42: 0.05625 | AA42: 0.075 | AB42: 0.09375 | AC42: 0.125 | AD42: 0.1125 | AE42: 0.15 | AF42: 0.1125 | AG42: 0.15 | AH42: 0.1875 | AI42: 0.25 | AJ42: 0.75 | AK42: 1 | AL42: 0.1125 | AM42: 0.15 | AN42: 0.1125 | AO42: 0.15 | AP42: 0.1875 | AQ42: 0.25 | AR42: 0.05625 | AS42: 0.075 | AT42: 0.05625 | AU42: 0.075 | AV42: 0.09375 | AW42: 0.125 | AX42: 0.375 | AY42: 0.5 | AZ42: 0.05625 | BA42: 0.075 | BB42: 0.05625 | BC42: 0.075 | BD42: 0.09375 | BE42: 0.125 | BF42: 0.084375 | BG42: 0.1125 | BH42: 0.084375 | BI42: 0.1125 | BJ42: 0.140625 | BK42: 0.1875 | BL42: 0.5625 | BM42: 0.75 | BN42: 0.084375 | BO42: 0.1125 | BP42: 0.084375 | BQ42: 0.1125 | BR42: 0.140625 | BS42: 0.1875
C43: Financial losses | D43: Prop | E43: FinLosses_P_NorthAm | G43: =RE_reserves_and_premiums!P$43 -> 0 | I43: 0 | K43: 0 | L43: 0 | O43: FinLosses_P_NorthAm | P43: 0.125 | Q43: 0.09375 | R43: 0.125 | S43: 0.09375 | T43: 0.075 | U43: 0.05625 | V43: 0.075 | W43: 0.05625 | X43: 0.5 | Y43: 0.375 | Z43: 0.075 | AA43: 0.05625 | AB43: 0.125 | AC43: 0.09375 | AD43: 0.25 | AE43: 0.1875 | AF43: 0.25 | AG43: 0.1875 | AH43: 0.15 | AI43: 0.1125 | AJ43: 0.15 | AK43: 0.1125 | AL43: 1 | AM43: 0.75 | AN43: 0.15 | AO43: 0.1125 | AP43: 0.25 | AQ43: 0.1875 | AR43: 0.125 | AS43: 0.09375 | AT43: 0.125 | AU43: 0.09375 | AV43: 0.075 | AW43: 0.05625 | AX43: 0.075 | AY43: 0.05625 | AZ43: 0.5 | BA43: 0.375 | BB43: 0.075 | BC43: 0.05625 | BD43: 0.125 | BE43: 0.09375 | BF43: 0.1875 | BG43: 0.140625 | BH43: 0.1875 | BI43: 0.140625 | BJ43: 0.1125 | BK43: 0.084375 | BL43: 0.1125 | BM43: 0.084375 | BN43: 0.75 | BO43: 0.5625 | BP43: 0.1125 | BQ43: 0.084375 | BR43: 0.1875 | BS43: 0.140625
D44: Non Prop | E44: FinLosses_NP_NorthAm | G44: =RE_reserves_and_premiums!Q$43 -> 0 | I44: 0 | K44: 0 | L44: 0 | O44: FinLosses_NP_NorthAm | P44: 0.09375 | Q44: 0.125 | R44: 0.09375 | S44: 0.125 | T44: 0.05625 | U44: 0.075 | V44: 0.05625 | W44: 0.075 | X44: 0.375 | Y44: 0.5 | Z44: 0.05625 | AA44: 0.075 | AB44: 0.09375 | AC44: 0.125 | AD44: 0.1875 | AE44: 0.25 | AF44: 0.1875 | AG44: 0.25 | AH44: 0.1125 | AI44: 0.15 | AJ44: 0.1125 | AK44: 0.15 | AL44: 0.75 | AM44: 1 | AN44: 0.1125 | AO44: 0.15 | AP44: 0.1875 | AQ44: 0.25 | AR44: 0.09375 | AS44: 0.125 | AT44: 0.09375 | AU44: 0.125 | AV44: 0.05625 | AW44: 0.075 | AX44: 0.05625 | AY44: 0.075 | AZ44: 0.375 | BA44: 0.5 | BB44: 0.05625 | BC44: 0.075 | BD44: 0.09375 | BE44: 0.125 | BF44: 0.140625 | BG44: 0.1875 | BH44: 0.140625 | BI44: 0.1875 | BJ44: 0.084375 | BK44: 0.1125 | BL44: 0.084375 | BM44: 0.1125 | BN44: 0.5625 | BO44: 0.75 | BP44: 0.084375 | BQ44: 0.1125 | BR44: 0.140625 | BS44: 0.1875
C45: General liability | D45: Prop | E45: GenLiab_P_NorthAm | G45: =RE_reserves_and_premiums!P$49 -> 0 | I45: 0 | K45: 0 | L45: 0 | O45: GenLiab_P_NorthAm | P45: 0.125 | Q45: 0.09375 | R45: 0.125 | S45: 0.09375 | T45: 0.075 | U45: 0.05625 | V45: 0.075 | W45: 0.05625 | X45: 0.075 | Y45: 0.05625 | Z45: 0.5 | AA45: 0.375 | AB45: 0.125 | AC45: 0.09375 | AD45: 0.25 | AE45: 0.1875 | AF45: 0.25 | AG45: 0.1875 | AH45: 0.15 | AI45: 0.1125 | AJ45: 0.15 | AK45: 0.1125 | AL45: 0.15 | AM45: 0.1125 | AN45: 1 | AO45: 0.75 | AP45: 0.25 | AQ45: 0.1875 | AR45: 0.125 | AS45: 0.09375 | AT45: 0.125 | AU45: 0.09375 | AV45: 0.075 | AW45: 0.05625 | AX45: 0.075 | AY45: 0.05625 | AZ45: 0.075 | BA45: 0.05625 | BB45: 0.5 | BC45: 0.375 | BD45: 0.125 | BE45: 0.09375 | BF45: 0.1875 | BG45: 0.140625 | BH45: 0.1875 | BI45: 0.140625 | BJ45: 0.1125 | BK45: 0.084375 | BL45: 0.1125 | BM45: 0.084375 | BN45: 0.1125 | BO45: 0.084375 | BP45: 0.75 | BQ45: 0.5625 | BR45: 0.1875 | BS45: 0.140625
D46: Non Prop | E46: GenLiab_NP_NorthAm | G46: =RE_reserves_and_premiums!Q$49 -> 0 | I46: 0 | K46: 0 | L46: 0 | O46: GenLiab_NP_NorthAm | P46: 0.09375 | Q46: 0.125 | R46: 0.09375 | S46: 0.125 | T46: 0.05625 | U46: 0.075 | V46: 0.05625 | W46: 0.075 | X46: 0.05625 | Y46: 0.075 | Z46: 0.375 | AA46: 0.5 | AB46: 0.09375 | AC46: 0.125 | AD46: 0.1875 | AE46: 0.25 | AF46: 0.1875 | AG46: 0.25 | AH46: 0.1125 | AI46: 0.15 | AJ46: 0.1125 | AK46: 0.15 | AL46: 0.1125 | AM46: 0.15 | AN46: 0.75 | AO46: 1 | AP46: 0.1875 | AQ46: 0.25 | AR46: 0.09375 | AS46: 0.125 | AT46: 0.09375 | AU46: 0.125 | AV46: 0.05625 | AW46: 0.075 | AX46: 0.05625 | AY46: 0.075 | AZ46: 0.05625 | BA46: 0.075 | BB46: 0.375 | BC46: 0.5 | BD46: 0.09375 | BE46: 0.125 | BF46: 0.140625 | BG46: 0.1875 | BH46: 0.140625 | BI46: 0.1875 | BJ46: 0.084375 | BK46: 0.1125 | BL46: 0.084375 | BM46: 0.1125 | BN46: 0.084375 | BO46: 0.1125 | BP46: 0.5625 | BQ46: 0.75 | BR46: 0.140625 | BS46: 0.1875
C47: Other Non-life | D47: Prop | E47: Other_P_NorthAm | G47: =RE_reserves_and_premiums!P$56 -> 0 | I47: 0 | K47: 0 | L47: 0 | O47: Other_P_NorthAm | P47: 0.125 | Q47: 0.09375 | R47: 0.125 | S47: 0.09375 | T47: 0.125 | U47: 0.09375 | V47: 0.125 | W47: 0.09375 | X47: 0.125 | Y47: 0.09375 | Z47: 0.125 | AA47: 0.09375 | AB47: 0.5 | AC47: 0.375 | AD47: 0.25 | AE47: 0.1875 | AF47: 0.25 | AG47: 0.1875 | AH47: 0.25 | AI47: 0.1875 | AJ47: 0.25 | AK47: 0.1875 | AL47: 0.25 | AM47: 0.1875 | AN47: 0.25 | AO47: 0.1875 | AP47: 1 | AQ47: 0.75 | AR47: 0.125 | AS47: 0.09375 | AT47: 0.125 | AU47: 0.09375 | AV47: 0.125 | AW47: 0.09375 | AX47: 0.125 | AY47: 0.09375 | AZ47: 0.125 | BA47: 0.09375 | BB47: 0.125 | BC47: 0.09375 | BD47: 0.5 | BE47: 0.375 | BF47: 0.1875 | BG47: 0.140625 | BH47: 0.1875 | BI47: 0.140625 | BJ47: 0.1875 | BK47: 0.140625 | BL47: 0.1875 | BM47: 0.140625 | BN47: 0.1875 | BO47: 0.140625 | BP47: 0.1875 | BQ47: 0.140625 | BR47: 0.75 | BS47: 0.5625
D48: Non Prop | E48: Other_NP_NorthAm | G48: =RE_reserves_and_premiums!Q$56 -> 0 | I48: 0 | K48: 0 | L48: 0 | O48: Other_NP_NorthAm | P48: 0.09375 | Q48: 0.125 | R48: 0.09375 | S48: 0.125 | T48: 0.09375 | U48: 0.125 | V48: 0.09375 | W48: 0.125 | X48: 0.09375 | Y48: 0.125 | Z48: 0.09375 | AA48: 0.125 | AB48: 0.375 | AC48: 0.5 | AD48: 0.1875 | AE48: 0.25 | AF48: 0.1875 | AG48: 0.25 | AH48: 0.1875 | AI48: 0.25 | AJ48: 0.1875 | AK48: 0.25 | AL48: 0.1875 | AM48: 0.25 | AN48: 0.1875 | AO48: 0.25 | AP48: 0.75 | AQ48: 1 | AR48: 0.09375 | AS48: 0.125 | AT48: 0.09375 | AU48: 0.125 | AV48: 0.09375 | AW48: 0.125 | AX48: 0.09375 | AY48: 0.125 | AZ48: 0.09375 | BA48: 0.125 | BB48: 0.09375 | BC48: 0.125 | BD48: 0.375 | BE48: 0.5 | BF48: 0.140625 | BG48: 0.1875 | BH48: 0.140625 | BI48: 0.1875 | BJ48: 0.140625 | BK48: 0.1875 | BL48: 0.140625 | BM48: 0.1875 | BN48: 0.140625 | BO48: 0.1875 | BP48: 0.140625 | BQ48: 0.1875 | BR48: 0.5625 | BS48: 0.75
B49: Rest of world | C49: Accident and health | D49: Prop | E49: AccHealth_P_RestWorld | G49: =RE_reserves_and_premiums!R$13+RE_reserves_and_premiums!T$13+RE_reserves_and_premiums!V$13+RE_reserves_and_premiums!X$13 -> 0 | I49: 0 | K49: 0 | L49: 0 | O49: AccHealth_P_RestWorld | P49: 0.5 | Q49: 0.375 | R49: 0.25 | S49: 0.1875 | T49: 0.125 | U49: 0.09375 | V49: 0.075 | W49: 0.05625 | X49: 0.125 | Y49: 0.09375 | Z49: 0.125 | AA49: 0.09375 | AB49: 0.125 | AC49: 0.09375 | AD49: 0.5 | AE49: 0.375 | AF49: 0.25 | AG49: 0.1875 | AH49: 0.125 | AI49: 0.09375 | AJ49: 0.075 | AK49: 0.05625 | AL49: 0.125 | AM49: 0.09375 | AN49: 0.125 | AO49: 0.09375 | AP49: 0.125 | AQ49: 0.09375 | AR49: 1 | AS49: 0.75 | AT49: 0.5 | AU49: 0.375 | AV49: 0.25 | AW49: 0.1875 | AX49: 0.15 | AY49: 0.1125 | AZ49: 0.25 | BA49: 0.1875 | BB49: 0.25 | BC49: 0.1875 | BD49: 0.25 | BE49: 0.1875 | BF49: 0.75 | BG49: 0.5625 | BH49: 0.375 | BI49: 0.28125 | BJ49: 0.1875 | BK49: 0.140625 | BL49: 0.1125 | BM49: 0.084375 | BN49: 0.1875 | BO49: 0.140625 | BP49: 0.1875 | BQ49: 0.140625 | BR49: 0.1875 | BS49: 0.140625
D50: Non Prop | E50: AccHealth_NP_RestWorld | G50: =RE_reserves_and_premiums!S$13+RE_reserves_and_premiums!U$13+RE_reserves_and_premiums!W$13+RE_reserves_and_premiums!Y$13 -> 0 | I50: 0 | K50: 0 | L50: 0 | O50: AccHealth_NP_RestWorld | P50: 0.375 | Q50: 0.5 | R50: 0.1875 | S50: 0.25 | T50: 0.09375 | U50: 0.125 | V50: 0.05625 | W50: 0.075 | X50: 0.09375 | Y50: 0.125 | Z50: 0.09375 | AA50: 0.125 | AB50: 0.09375 | AC50: 0.125 | AD50: 0.375 | AE50: 0.5 | AF50: 0.1875 | AG50: 0.25 | AH50: 0.09375 | AI50: 0.125 | AJ50: 0.05625 | AK50: 0.075 | AL50: 0.09375 | AM50: 0.125 | AN50: 0.09375 | AO50: 0.125 | AP50: 0.09375 | AQ50: 0.125 | AR50: 0.75 | AS50: 1 | AT50: 0.375 | AU50: 0.5 | AV50: 0.1875 | AW50: 0.25 | AX50: 0.1125 | AY50: 0.15 | AZ50: 0.1875 | BA50: 0.25 | BB50: 0.1875 | BC50: 0.25 | BD50: 0.1875 | BE50: 0.25 | BF50: 0.5625 | BG50: 0.75 | BH50: 0.28125 | BI50: 0.375 | BJ50: 0.140625 | BK50: 0.1875 | BL50: 0.084375 | BM50: 0.1125 | BN50: 0.140625 | BO50: 0.1875 | BP50: 0.140625 | BQ50: 0.1875 | BR50: 0.140625 | BS50: 0.1875
C51: Motor | D51: Prop | E51: Motor_P_RestWorld | G51: =RE_reserves_and_premiums!R$21+RE_reserves_and_premiums!T$21+RE_reserves_and_premiums!V$21+RE_reserves_and_premiums!X$21 -> 0 | I51: 0 | K51: 0 | L51: 0 | O51: Motor_P_RestWorld | P51: 0.25 | Q51: 0.1875 | R51: 0.5 | S51: 0.375 | T51: 0.125 | U51: 0.09375 | V51: 0.075 | W51: 0.05625 | X51: 0.125 | Y51: 0.09375 | Z51: 0.125 | AA51: 0.09375 | AB51: 0.125 | AC51: 0.09375 | AD51: 0.25 | AE51: 0.1875 | AF51: 0.5 | AG51: 0.375 | AH51: 0.125 | AI51: 0.09375 | AJ51: 0.075 | AK51: 0.05625 | AL51: 0.125 | AM51: 0.09375 | AN51: 0.125 | AO51: 0.09375 | AP51: 0.125 | AQ51: 0.09375 | AR51: 0.5 | AS51: 0.375 | AT51: 1 | AU51: 0.75 | AV51: 0.25 | AW51: 0.1875 | AX51: 0.15 | AY51: 0.1125 | AZ51: 0.25 | BA51: 0.1875 | BB51: 0.25 | BC51: 0.1875 | BD51: 0.25 | BE51: 0.1875 | BF51: 0.375 | BG51: 0.28125 | BH51: 0.75 | BI51: 0.5625 | BJ51: 0.1875 | BK51: 0.140625 | BL51: 0.1125 | BM51: 0.084375 | BN51: 0.1875 | BO51: 0.140625 | BP51: 0.1875 | BQ51: 0.140625 | BR51: 0.1875 | BS51: 0.140625
D52: Non Prop | E52: Motor_NP_RestWorld | G52: =RE_reserves_and_premiums!S$21+RE_reserves_and_premiums!U$21+RE_reserves_and_premiums!W$21+RE_reserves_and_premiums!Y$21 -> 0 | I52: 0 | K52: 0 | L52: 0 | O52: Motor_NP_RestWorld | P52: 0.1875 | Q52: 0.25 | R52: 0.375 | S52: 0.5 | T52: 0.09375 | U52: 0.125 | V52: 0.05625 | W52: 0.075 | X52: 0.09375 | Y52: 0.125 | Z52: 0.09375 | AA52: 0.125 | AB52: 0.09375 | AC52: 0.125 | AD52: 0.1875 | AE52: 0.25 | AF52: 0.375 | AG52: 0.5 | AH52: 0.09375 | AI52: 0.125 | AJ52: 0.05625 | AK52: 0.075 | AL52: 0.09375 | AM52: 0.125 | AN52: 0.09375 | AO52: 0.125 | AP52: 0.09375 | AQ52: 0.125 | AR52: 0.375 | AS52: 0.5 | AT52: 0.75 | AU52: 1 | AV52: 0.1875 | AW52: 0.25 | AX52: 0.1125 | AY52: 0.15 | AZ52: 0.1875 | BA52: 0.25 | BB52: 0.1875 | BC52: 0.25 | BD52: 0.1875 | BE52: 0.25 | BF52: 0.28125 | BG52: 0.375 | BH52: 0.5625 | BI52: 0.75 | BJ52: 0.140625 | BK52: 0.1875 | BL52: 0.084375 | BM52: 0.1125 | BN52: 0.140625 | BO52: 0.1875 | BP52: 0.140625 | BQ52: 0.1875 | BR52: 0.140625 | BS52: 0.1875
C53: Marine, aviation and other transport | D53: Prop | E53: MAT_P_RestWorld | G53: =RE_reserves_and_premiums!R$25+RE_reserves_and_premiums!T$25+RE_reserves_and_premiums!V$25+RE_reserves_and_premiums!X$25 -> 0 | I53: 0 | K53: 0 | L53: 0 | O53: MAT_P_RestWorld | P53: 0.125 | Q53: 0.09375 | R53: 0.125 | S53: 0.09375 | T53: 0.5 | U53: 0.375 | V53: 0.125 | W53: 0.09375 | X53: 0.075 | Y53: 0.05625 | Z53: 0.075 | AA53: 0.05625 | AB53: 0.125 | AC53: 0.09375 | AD53: 0.125 | AE53: 0.09375 | AF53: 0.125 | AG53: 0.09375 | AH53: 0.5 | AI53: 0.375 | AJ53: 0.125 | AK53: 0.09375 | AL53: 0.075 | AM53: 0.05625 | AN53: 0.075 | AO53: 0.05625 | AP53: 0.125 | AQ53: 0.09375 | AR53: 0.25 | AS53: 0.1875 | AT53: 0.25 | AU53: 0.1875 | AV53: 1 | AW53: 0.75 | AX53: 0.25 | AY53: 0.1875 | AZ53: 0.15 | BA53: 0.1125 | BB53: 0.15 | BC53: 0.1125 | BD53: 0.25 | BE53: 0.1875 | BF53: 0.1875 | BG53: 0.140625 | BH53: 0.1875 | BI53: 0.140625 | BJ53: 0.75 | BK53: 0.5625 | BL53: 0.1875 | BM53: 0.140625 | BN53: 0.1125 | BO53: 0.084375 | BP53: 0.1125 | BQ53: 0.084375 | BR53: 0.1875 | BS53: 0.140625
D54: Non Prop | E54: MAT_NP_RestWorld | G54: =RE_reserves_and_premiums!S$25+RE_reserves_and_premiums!U$25+RE_reserves_and_premiums!W$25+RE_reserves_and_premiums!Y$25 -> 0 | I54: 0 | K54: 0 | L54: 0 | O54: MAT_NP_RestWorld | P54: 0.09375 | Q54: 0.125 | R54: 0.09375 | S54: 0.125 | T54: 0.375 | U54: 0.5 | V54: 0.09375 | W54: 0.125 | X54: 0.05625 | Y54: 0.075 | Z54: 0.05625 | AA54: 0.075 | AB54: 0.09375 | AC54: 0.125 | AD54: 0.09375 | AE54: 0.125 | AF54: 0.09375 | AG54: 0.125 | AH54: 0.375 | AI54: 0.5 | AJ54: 0.09375 | AK54: 0.125 | AL54: 0.05625 | AM54: 0.075 | AN54: 0.05625 | AO54: 0.075 | AP54: 0.09375 | AQ54: 0.125 | AR54: 0.1875 | AS54: 0.25 | AT54: 0.1875 | AU54: 0.25 | AV54: 0.75 | AW54: 1 | AX54: 0.1875 | AY54: 0.25 | AZ54: 0.1125 | BA54: 0.15 | BB54: 0.1125 | BC54: 0.15 | BD54: 0.1875 | BE54: 0.25 | BF54: 0.140625 | BG54: 0.1875 | BH54: 0.140625 | BI54: 0.1875 | BJ54: 0.5625 | BK54: 0.75 | BL54: 0.140625 | BM54: 0.1875 | BN54: 0.084375 | BO54: 0.1125 | BP54: 0.084375 | BQ54: 0.1125 | BR54: 0.140625 | BS54: 0.1875
C55: Property | D55: Prop | E55: Property_P_RestWorld | G55: =RE_reserves_and_premiums!R$37+RE_reserves_and_premiums!T$37+RE_reserves_and_premiums!V$37+RE_reserves_and_premiums!X$37 -> 0 | I55: 0 | K55: 0 | L55: 0 | O55: Property_P_RestWorld | P55: 0.075 | Q55: 0.05625 | R55: 0.075 | S55: 0.05625 | T55: 0.125 | U55: 0.09375 | V55: 0.5 | W55: 0.375 | X55: 0.075 | Y55: 0.05625 | Z55: 0.075 | AA55: 0.05625 | AB55: 0.125 | AC55: 0.09375 | AD55: 0.075 | AE55: 0.05625 | AF55: 0.075 | AG55: 0.05625 | AH55: 0.125 | AI55: 0.09375 | AJ55: 0.5 | AK55: 0.375 | AL55: 0.075 | AM55: 0.05625 | AN55: 0.075 | AO55: 0.05625 | AP55: 0.125 | AQ55: 0.09375 | AR55: 0.15 | AS55: 0.1125 | AT55: 0.15 | AU55: 0.1125 | AV55: 0.25 | AW55: 0.1875 | AX55: 1 | AY55: 0.75 | AZ55: 0.15 | BA55: 0.1125 | BB55: 0.15 | BC55: 0.1125 | BD55: 0.25 | BE55: 0.1875 | BF55: 0.1125 | BG55: 0.084375 | BH55: 0.1125 | BI55: 0.084375 | BJ55: 0.1875 | BK55: 0.140625 | BL55: 0.75 | BM55: 0.5625 | BN55: 0.1125 | BO55: 0.084375 | BP55: 0.1125 | BQ55: 0.084375 | BR55: 0.1875 | BS55: 0.140625
D56: Non Prop | E56: Property_NP_RestWorld | G56: =RE_reserves_and_premiums!S$37+RE_reserves_and_premiums!U$37+RE_reserves_and_premiums!W$37+RE_reserves_and_premiums!Y$37 -> 0 | I56: 0 | K56: 0 | L56: 0 | O56: Property_NP_RestWorld | P56: 0.05625 | Q56: 0.075 | R56: 0.05625 | S56: 0.075 | T56: 0.09375 | U56: 0.125 | V56: 0.375 | W56: 0.5 | X56: 0.05625 | Y56: 0.075 | Z56: 0.05625 | AA56: 0.075 | AB56: 0.09375 | AC56: 0.125 | AD56: 0.05625 | AE56: 0.075 | AF56: 0.05625 | AG56: 0.075 | AH56: 0.09375 | AI56: 0.125 | AJ56: 0.375 | AK56: 0.5 | AL56: 0.05625 | AM56: 0.075 | AN56: 0.05625 | AO56: 0.075 | AP56: 0.09375 | AQ56: 0.125 | AR56: 0.1125 | AS56: 0.15 | AT56: 0.1125 | AU56: 0.15 | AV56: 0.1875 | AW56: 0.25 | AX56: 0.75 | AY56: 1 | AZ56: 0.1125 | BA56: 0.15 | BB56: 0.1125 | BC56: 0.15 | BD56: 0.1875 | BE56: 0.25 | BF56: 0.084375 | BG56: 0.1125 | BH56: 0.084375 | BI56: 0.1125 | BJ56: 0.140625 | BK56: 0.1875 | BL56: 0.5625 | BM56: 0.75 | BN56: 0.084375 | BO56: 0.1125 | BP56: 0.084375 | BQ56: 0.1125 | BR56: 0.140625 | BS56: 0.1875
C57: Financial losses | D57: Prop | E57: FinLosses_P_RestWorld | G57: =RE_reserves_and_premiums!R$43+RE_reserves_and_premiums!T$43+RE_reserves_and_premiums!V$43+RE_reserves_and_premiums!X$43 -> 0 | I57: 0 | K57: 0 | L57: 0 | O57: FinLosses_P_RestWorld | P57: 0.125 | Q57: 0.09375 | R57: 0.125 | S57: 0.09375 | T57: 0.075 | U57: 0.05625 | V57: 0.075 | W57: 0.05625 | X57: 0.5 | Y57: 0.375 | Z57: 0.075 | AA57: 0.05625 | AB57: 0.125 | AC57: 0.09375 | AD57: 0.125 | AE57: 0.09375 | AF57: 0.125 | AG57: 0.09375 | AH57: 0.075 | AI57: 0.05625 | AJ57: 0.075 | AK57: 0.05625 | AL57: 0.5 | AM57: 0.375 | AN57: 0.075 | AO57: 0.05625 | AP57: 0.125 | AQ57: 0.09375 | AR57: 0.25 | AS57: 0.1875 | AT57: 0.25 | AU57: 0.1875 | AV57: 0.15 | AW57: 0.1125 | AX57: 0.15 | AY57: 0.1125 | AZ57: 1 | BA57: 0.75 | BB57: 0.15 | BC57: 0.1125 | BD57: 0.25 | BE57: 0.1875 | BF57: 0.1875 | BG57: 0.140625 | BH57: 0.1875 | BI57: 0.140625 | BJ57: 0.1125 | BK57: 0.084375 | BL57: 0.1125 | BM57: 0.084375 | BN57: 0.75 | BO57: 0.5625 | BP57: 0.1125 | BQ57: 0.084375 | BR57: 0.1875 | BS57: 0.140625
D58: Non Prop | E58: FinLosses_NP_RestWorld | G58: =RE_reserves_and_premiums!S$43+RE_reserves_and_premiums!U$43+RE_reserves_and_premiums!W$43+RE_reserves_and_premiums!Y$43 -> 0 | I58: 0 | K58: 0 | L58: 0 | O58: FinLosses_NP_RestWorld | P58: 0.09375 | Q58: 0.125 | R58: 0.09375 | S58: 0.125 | T58: 0.05625 | U58: 0.075 | V58: 0.05625 | W58: 0.075 | X58: 0.375 | Y58: 0.5 | Z58: 0.05625 | AA58: 0.075 | AB58: 0.09375 | AC58: 0.125 | AD58: 0.09375 | AE58: 0.125 | AF58: 0.09375 | AG58: 0.125 | AH58: 0.05625 | AI58: 0.075 | AJ58: 0.05625 | AK58: 0.075 | AL58: 0.375 | AM58: 0.5 | AN58: 0.05625 | AO58: 0.075 | AP58: 0.09375 | AQ58: 0.125 | AR58: 0.1875 | AS58: 0.25 | AT58: 0.1875 | AU58: 0.25 | AV58: 0.1125 | AW58: 0.15 | AX58: 0.1125 | AY58: 0.15 | AZ58: 0.75 | BA58: 1 | BB58: 0.1125 | BC58: 0.15 | BD58: 0.1875 | BE58: 0.25 | BF58: 0.140625 | BG58: 0.1875 | BH58: 0.140625 | BI58: 0.1875 | BJ58: 0.084375 | BK58: 0.1125 | BL58: 0.084375 | BM58: 0.1125 | BN58: 0.5625 | BO58: 0.75 | BP58: 0.084375 | BQ58: 0.1125 | BR58: 0.140625 | BS58: 0.1875
C59: General liability | D59: Prop | E59: GenLiab_P_RestWorld | G59: =RE_reserves_and_premiums!R$49+RE_reserves_and_premiums!T$49+RE_reserves_and_premiums!V$49+RE_reserves_and_premiums!X$49 -> 0 | I59: 0 | K59: 0 | L59: 0 | O59: GenLiab_P_RestWorld | P59: 0.125 | Q59: 0.09375 | R59: 0.125 | S59: 0.09375 | T59: 0.075 | U59: 0.05625 | V59: 0.075 | W59: 0.05625 | X59: 0.075 | Y59: 0.05625 | Z59: 0.5 | AA59: 0.375 | AB59: 0.125 | AC59: 0.09375 | AD59: 0.125 | AE59: 0.09375 | AF59: 0.125 | AG59: 0.09375 | AH59: 0.075 | AI59: 0.05625 | AJ59: 0.075 | AK59: 0.05625 | AL59: 0.075 | AM59: 0.05625 | AN59: 0.5 | AO59: 0.375 | AP59: 0.125 | AQ59: 0.09375 | AR59: 0.25 | AS59: 0.1875 | AT59: 0.25 | AU59: 0.1875 | AV59: 0.15 | AW59: 0.1125 | AX59: 0.15 | AY59: 0.1125 | AZ59: 0.15 | BA59: 0.1125 | BB59: 1 | BC59: 0.75 | BD59: 0.25 | BE59: 0.1875 | BF59: 0.1875 | BG59: 0.140625 | BH59: 0.1875 | BI59: 0.140625 | BJ59: 0.1125 | BK59: 0.084375 | BL59: 0.1125 | BM59: 0.084375 | BN59: 0.1125 | BO59: 0.084375 | BP59: 0.75 | BQ59: 0.5625 | BR59: 0.1875 | BS59: 0.140625
D60: Non Prop | E60: GenLiab_NP_RestWorld | G60: =RE_reserves_and_premiums!S$49+RE_reserves_and_premiums!U$49+RE_reserves_and_premiums!W$49+RE_reserves_and_premiums!Y$49 -> 0 | I60: 0 | K60: 0 | L60: 0 | O60: GenLiab_NP_RestWorld | P60: 0.09375 | Q60: 0.125 | R60: 0.09375 | S60: 0.125 | T60: 0.05625 | U60: 0.075 | V60: 0.05625 | W60: 0.075 | X60: 0.05625 | Y60: 0.075 | Z60: 0.375 | AA60: 0.5 | AB60: 0.09375 | AC60: 0.125 | AD60: 0.09375 | AE60: 0.125 | AF60: 0.09375 | AG60: 0.125 | AH60: 0.05625 | AI60: 0.075 | AJ60: 0.05625 | AK60: 0.075 | AL60: 0.05625 | AM60: 0.075 | AN60: 0.375 | AO60: 0.5 | AP60: 0.09375 | AQ60: 0.125 | AR60: 0.1875 | AS60: 0.25 | AT60: 0.1875 | AU60: 0.25 | AV60: 0.1125 | AW60: 0.15 | AX60: 0.1125 | AY60: 0.15 | AZ60: 0.1125 | BA60: 0.15 | BB60: 0.75 | BC60: 1 | BD60: 0.1875 | BE60: 0.25 | BF60: 0.140625 | BG60: 0.1875 | BH60: 0.140625 | BI60: 0.1875 | BJ60: 0.084375 | BK60: 0.1125 | BL60: 0.084375 | BM60: 0.1125 | BN60: 0.084375 | BO60: 0.1125 | BP60: 0.5625 | BQ60: 0.75 | BR60: 0.140625 | BS60: 0.1875
C61: Other Non-life | D61: Prop | E61: Other_P_RestWorld | G61: =RE_reserves_and_premiums!R$56+RE_reserves_and_premiums!T$56+RE_reserves_and_premiums!V$56+RE_reserves_and_premiums!X$56 -> 0 | I61: 0 | K61: 0 | L61: 0 | O61: Other_P_RestWorld | P61: 0.125 | Q61: 0.09375 | R61: 0.125 | S61: 0.09375 | T61: 0.125 | U61: 0.09375 | V61: 0.125 | W61: 0.09375 | X61: 0.125 | Y61: 0.09375 | Z61: 0.125 | AA61: 0.09375 | AB61: 0.5 | AC61: 0.375 | AD61: 0.125 | AE61: 0.09375 | AF61: 0.125 | AG61: 0.09375 | AH61: 0.125 | AI61: 0.09375 | AJ61: 0.125 | AK61: 0.09375 | AL61: 0.125 | AM61: 0.09375 | AN61: 0.125 | AO61: 0.09375 | AP61: 0.5 | AQ61: 0.375 | AR61: 0.25 | AS61: 0.1875 | AT61: 0.25 | AU61: 0.1875 | AV61: 0.25 | AW61: 0.1875 | AX61: 0.25 | AY61: 0.1875 | AZ61: 0.25 | BA61: 0.1875 | BB61: 0.25 | BC61: 0.1875 | BD61: 1 | BE61: 0.75 | BF61: 0.1875 | BG61: 0.140625 | BH61: 0.1875 | BI61: 0.140625 | BJ61: 0.1875 | BK61: 0.140625 | BL61: 0.1875 | BM61: 0.140625 | BN61: 0.1875 | BO61: 0.140625 | BP61: 0.1875 | BQ61: 0.140625 | BR61: 0.75 | BS61: 0.5625
D62: Non Prop | E62: Other_NP_RestWorld | G62: =RE_reserves_and_premiums!S$56+RE_reserves_and_premiums!U$56+RE_reserves_and_premiums!W$56+RE_reserves_and_premiums!Y$56 -> 0 | I62: 0 | K62: 0 | L62: 0 | O62: Other_NP_RestWorld | P62: 0.09375 | Q62: 0.125 | R62: 0.09375 | S62: 0.125 | T62: 0.09375 | U62: 0.125 | V62: 0.09375 | W62: 0.125 | X62: 0.09375 | Y62: 0.125 | Z62: 0.09375 | AA62: 0.125 | AB62: 0.375 | AC62: 0.5 | AD62: 0.09375 | AE62: 0.125 | AF62: 0.09375 | AG62: 0.125 | AH62: 0.09375 | AI62: 0.125 | AJ62: 0.09375 | AK62: 0.125 | AL62: 0.09375 | AM62: 0.125 | AN62: 0.09375 | AO62: 0.125 | AP62: 0.375 | AQ62: 0.5 | AR62: 0.1875 | AS62: 0.25 | AT62: 0.1875 | AU62: 0.25 | AV62: 0.1875 | AW62: 0.25 | AX62: 0.1875 | AY62: 0.25 | AZ62: 0.1875 | BA62: 0.25 | BB62: 0.1875 | BC62: 0.25 | BD62: 0.75 | BE62: 1 | BF62: 0.140625 | BG62: 0.1875 | BH62: 0.140625 | BI62: 0.1875 | BJ62: 0.140625 | BK62: 0.1875 | BL62: 0.140625 | BM62: 0.1875 | BN62: 0.140625 | BO62: 0.1875 | BP62: 0.140625 | BQ62: 0.1875 | BR62: 0.5625 | BS62: 0.75
B63: Not regional | C63: Accident and health | D63: Prop | E63: AccHealth_P_NotReg | G63: =RE_reserves_and_premiums!Z$13 -> 0 | I63: 0 | K63: 0 | L63: 0 | O63: AccHealth_P_NotReg | P63: 0.75 | Q63: 0.5625 | R63: 0.375 | S63: 0.28125 | T63: 0.1875 | U63: 0.140625 | V63: 0.1125 | W63: 0.084375 | X63: 0.1875 | Y63: 0.140625 | Z63: 0.1875 | AA63: 0.140625 | AB63: 0.1875 | AC63: 0.140625 | AD63: 0.75 | AE63: 0.5625 | AF63: 0.375 | AG63: 0.28125 | AH63: 0.1875 | AI63: 0.140625 | AJ63: 0.1125 | AK63: 0.084375 | AL63: 0.1875 | AM63: 0.140625 | AN63: 0.1875 | AO63: 0.140625 | AP63: 0.1875 | AQ63: 0.140625 | AR63: 0.75 | AS63: 0.5625 | AT63: 0.375 | AU63: 0.28125 | AV63: 0.1875 | AW63: 0.140625 | AX63: 0.1125 | AY63: 0.084375 | AZ63: 0.1875 | BA63: 0.140625 | BB63: 0.1875 | BC63: 0.140625 | BD63: 0.1875 | BE63: 0.140625 | BF63: 1 | BG63: 0.75 | BH63: 0.5 | BI63: 0.375 | BJ63: 0.25 | BK63: 0.1875 | BL63: 0.15 | BM63: 0.1125 | BN63: 0.25 | BO63: 0.1875 | BP63: 0.25 | BQ63: 0.1875 | BR63: 0.25 | BS63: 0.1875
D64: Non Prop | E64: AccHealth_NP_NotReg | G64: =RE_reserves_and_premiums!AA$13 -> 0 | I64: 0 | K64: 0 | L64: 0 | O64: AccHealth_NP_NotReg | P64: 0.5625 | Q64: 0.75 | R64: 0.28125 | S64: 0.375 | T64: 0.140625 | U64: 0.1875 | V64: 0.084375 | W64: 0.1125 | X64: 0.140625 | Y64: 0.1875 | Z64: 0.140625 | AA64: 0.1875 | AB64: 0.140625 | AC64: 0.1875 | AD64: 0.5625 | AE64: 0.75 | AF64: 0.28125 | AG64: 0.375 | AH64: 0.140625 | AI64: 0.1875 | AJ64: 0.084375 | AK64: 0.1125 | AL64: 0.140625 | AM64: 0.1875 | AN64: 0.140625 | AO64: 0.1875 | AP64: 0.140625 | AQ64: 0.1875 | AR64: 0.5625 | AS64: 0.75 | AT64: 0.28125 | AU64: 0.375 | AV64: 0.140625 | AW64: 0.1875 | AX64: 0.084375 | AY64: 0.1125 | AZ64: 0.140625 | BA64: 0.1875 | BB64: 0.140625 | BC64: 0.1875 | BD64: 0.140625 | BE64: 0.1875 | BF64: 0.75 | BG64: 1 | BH64: 0.375 | BI64: 0.5 | BJ64: 0.1875 | BK64: 0.25 | BL64: 0.1125 | BM64: 0.15 | BN64: 0.1875 | BO64: 0.25 | BP64: 0.1875 | BQ64: 0.25 | BR64: 0.1875 | BS64: 0.25
C65: Motor | D65: Prop | E65: Motor_P_NotReg | G65: =RE_reserves_and_premiums!Z$21 -> 0 | I65: 0 | K65: 0 | L65: 0 | O65: Motor_P_NotReg | P65: 0.375 | Q65: 0.28125 | R65: 0.75 | S65: 0.5625 | T65: 0.1875 | U65: 0.140625 | V65: 0.1125 | W65: 0.084375 | X65: 0.1875 | Y65: 0.140625 | Z65: 0.1875 | AA65: 0.140625 | AB65: 0.1875 | AC65: 0.140625 | AD65: 0.375 | AE65: 0.28125 | AF65: 0.75 | AG65: 0.5625 | AH65: 0.1875 | AI65: 0.140625 | AJ65: 0.1125 | AK65: 0.084375 | AL65: 0.1875 | AM65: 0.140625 | AN65: 0.1875 | AO65: 0.140625 | AP65: 0.1875 | AQ65: 0.140625 | AR65: 0.375 | AS65: 0.28125 | AT65: 0.75 | AU65: 0.5625 | AV65: 0.1875 | AW65: 0.140625 | AX65: 0.1125 | AY65: 0.084375 | AZ65: 0.1875 | BA65: 0.140625 | BB65: 0.1875 | BC65: 0.140625 | BD65: 0.1875 | BE65: 0.140625 | BF65: 0.5 | BG65: 0.375 | BH65: 1 | BI65: 0.75 | BJ65: 0.25 | BK65: 0.1875 | BL65: 0.15 | BM65: 0.1125 | BN65: 0.25 | BO65: 0.1875 | BP65: 0.25 | BQ65: 0.1875 | BR65: 0.25 | BS65: 0.1875
D66: Non Prop | E66: Motor_NP_NotReg | G66: =RE_reserves_and_premiums!AA$21 -> 0 | I66: 0 | K66: 0 | L66: 0 | O66: Motor_NP_NotReg | P66: 0.28125 | Q66: 0.375 | R66: 0.5625 | S66: 0.75 | T66: 0.140625 | U66: 0.1875 | V66: 0.084375 | W66: 0.1125 | X66: 0.140625 | Y66: 0.1875 | Z66: 0.140625 | AA66: 0.1875 | AB66: 0.140625 | AC66: 0.1875 | AD66: 0.28125 | AE66: 0.375 | AF66: 0.5625 | AG66: 0.75 | AH66: 0.140625 | AI66: 0.1875 | AJ66: 0.084375 | AK66: 0.1125 | AL66: 0.140625 | AM66: 0.1875 | AN66: 0.140625 | AO66: 0.1875 | AP66: 0.140625 | AQ66: 0.1875 | AR66: 0.28125 | AS66: 0.375 | AT66: 0.5625 | AU66: 0.75 | AV66: 0.140625 | AW66: 0.1875 | AX66: 0.084375 | AY66: 0.1125 | AZ66: 0.140625 | BA66: 0.1875 | BB66: 0.140625 | BC66: 0.1875 | BD66: 0.140625 | BE66: 0.1875 | BF66: 0.375 | BG66: 0.5 | BH66: 0.75 | BI66: 1 | BJ66: 0.1875 | BK66: 0.25 | BL66: 0.1125 | BM66: 0.15 | BN66: 0.1875 | BO66: 0.25 | BP66: 0.1875 | BQ66: 0.25 | BR66: 0.1875 | BS66: 0.25
C67: Marine, aviation and other transport | D67: Prop | E67: MAT_P_NotReg | G67: =RE_reserves_and_premiums!Z$25 -> 0 | I67: 0 | K67: 0 | L67: 0 | O67: MAT_P_NotReg | P67: 0.1875 | Q67: 0.140625 | R67: 0.1875 | S67: 0.140625 | T67: 0.75 | U67: 0.5625 | V67: 0.1875 | W67: 0.140625 | X67: 0.1125 | Y67: 0.084375 | Z67: 0.1125 | AA67: 0.084375 | AB67: 0.1875 | AC67: 0.140625 | AD67: 0.1875 | AE67: 0.140625 | AF67: 0.1875 | AG67: 0.140625 | AH67: 0.75 | AI67: 0.5625 | AJ67: 0.1875 | AK67: 0.140625 | AL67: 0.1125 | AM67: 0.084375 | AN67: 0.1125 | AO67: 0.084375 | AP67: 0.1875 | AQ67: 0.140625 | AR67: 0.1875 | AS67: 0.140625 | AT67: 0.1875 | AU67: 0.140625 | AV67: 0.75 | AW67: 0.5625 | AX67: 0.1875 | AY67: 0.140625 | AZ67: 0.1125 | BA67: 0.084375 | BB67: 0.1125 | BC67: 0.084375 | BD67: 0.1875 | BE67: 0.140625 | BF67: 0.25 | BG67: 0.1875 | BH67: 0.25 | BI67: 0.1875 | BJ67: 1 | BK67: 0.75 | BL67: 0.25 | BM67: 0.1875 | BN67: 0.15 | BO67: 0.1125 | BP67: 0.15 | BQ67: 0.1125 | BR67: 0.25 | BS67: 0.1875
D68: Non Prop | E68: MAT_NP_NotReg | G68: =RE_reserves_and_premiums!AA$25 -> 0 | I68: 0 | K68: 0 | L68: 0 | O68: MAT_NP_NotReg | P68: 0.140625 | Q68: 0.1875 | R68: 0.140625 | S68: 0.1875 | T68: 0.5625 | U68: 0.75 | V68: 0.140625 | W68: 0.1875 | X68: 0.084375 | Y68: 0.1125 | Z68: 0.084375 | AA68: 0.1125 | AB68: 0.140625 | AC68: 0.1875 | AD68: 0.140625 | AE68: 0.1875 | AF68: 0.140625 | AG68: 0.1875 | AH68: 0.5625 | AI68: 0.75 | AJ68: 0.140625 | AK68: 0.1875 | AL68: 0.084375 | AM68: 0.1125 | AN68: 0.084375 | AO68: 0.1125 | AP68: 0.140625 | AQ68: 0.1875 | AR68: 0.140625 | AS68: 0.1875 | AT68: 0.140625 | AU68: 0.1875 | AV68: 0.5625 | AW68: 0.75 | AX68: 0.140625 | AY68: 0.1875 | AZ68: 0.084375 | BA68: 0.1125 | BB68: 0.084375 | BC68: 0.1125 | BD68: 0.140625 | BE68: 0.1875 | BF68: 0.1875 | BG68: 0.25 | BH68: 0.1875 | BI68: 0.25 | BJ68: 0.75 | BK68: 1 | BL68: 0.1875 | BM68: 0.25 | BN68: 0.1125 | BO68: 0.15 | BP68: 0.1125 | BQ68: 0.15 | BR68: 0.1875 | BS68: 0.25
C69: Property | D69: Prop | E69: Property_P_NotReg | G69: =RE_reserves_and_premiums!Z$37 -> 0 | I69: 0 | K69: 0 | L69: 0 | O69: Property_P_NotReg | P69: 0.1125 | Q69: 0.084375 | R69: 0.1125 | S69: 0.084375 | T69: 0.1875 | U69: 0.140625 | V69: 0.75 | W69: 0.5625 | X69: 0.1125 | Y69: 0.084375 | Z69: 0.1125 | AA69: 0.084375 | AB69: 0.1875 | AC69: 0.140625 | AD69: 0.1125 | AE69: 0.084375 | AF69: 0.1125 | AG69: 0.084375 | AH69: 0.1875 | AI69: 0.140625 | AJ69: 0.75 | AK69: 0.5625 | AL69: 0.1125 | AM69: 0.084375 | AN69: 0.1125 | AO69: 0.084375 | AP69: 0.1875 | AQ69: 0.140625 | AR69: 0.1125 | AS69: 0.084375 | AT69: 0.1125 | AU69: 0.084375 | AV69: 0.1875 | AW69: 0.140625 | AX69: 0.75 | AY69: 0.5625 | AZ69: 0.1125 | BA69: 0.084375 | BB69: 0.1125 | BC69: 0.084375 | BD69: 0.1875 | BE69: 0.140625 | BF69: 0.15 | BG69: 0.1125 | BH69: 0.15 | BI69: 0.1125 | BJ69: 0.25 | BK69: 0.1875 | BL69: 1 | BM69: 0.75 | BN69: 0.15 | BO69: 0.1125 | BP69: 0.15 | BQ69: 0.1125 | BR69: 0.25 | BS69: 0.1875
D70: Non Prop | E70: Property_NP_NotReg | G70: =RE_reserves_and_premiums!AA$37 -> 0 | I70: 0 | K70: 0 | L70: 0 | O70: Property_NP_NotReg | P70: 0.084375 | Q70: 0.1125 | R70: 0.084375 | S70: 0.1125 | T70: 0.140625 | U70: 0.1875 | V70: 0.5625 | W70: 0.75 | X70: 0.084375 | Y70: 0.1125 | Z70: 0.084375 | AA70: 0.1125 | AB70: 0.140625 | AC70: 0.1875 | AD70: 0.084375 | AE70: 0.1125 | AF70: 0.084375 | AG70: 0.1125 | AH70: 0.140625 | AI70: 0.1875 | AJ70: 0.5625 | AK70: 0.75 | AL70: 0.084375 | AM70: 0.1125 | AN70: 0.084375 | AO70: 0.1125 | AP70: 0.140625 | AQ70: 0.1875 | AR70: 0.084375 | AS70: 0.1125 | AT70: 0.084375 | AU70: 0.1125 | AV70: 0.140625 | AW70: 0.1875 | AX70: 0.5625 | AY70: 0.75 | AZ70: 0.084375 | BA70: 0.1125 | BB70: 0.084375 | BC70: 0.1125 | BD70: 0.140625 | BE70: 0.1875 | BF70: 0.1125 | BG70: 0.15 | BH70: 0.1125 | BI70: 0.15 | BJ70: 0.1875 | BK70: 0.25 | BL70: 0.75 | BM70: 1 | BN70: 0.1125 | BO70: 0.15 | BP70: 0.1125 | BQ70: 0.15 | BR70: 0.1875 | BS70: 0.25
C71: Financial losses | D71: Prop | E71: FinLosses_P_NotReg | G71: =RE_reserves_and_premiums!Z$43 -> 0 | I71: =F71*H71 -> 0 | K71: =H71*J71 -> 0 | L71: =I71*J71 -> 0 | O71: FinLosses_P_NotReg | P71: 0.1875 | Q71: 0.140625 | R71: 0.1875 | S71: 0.140625 | T71: 0.1125 | U71: 0.084375 | V71: 0.1125 | W71: 0.084375 | X71: 0.75 | Y71: 0.5625 | Z71: 0.1125 | AA71: 0.084375 | AB71: 0.1875 | AC71: 0.140625 | AD71: 0.1875 | AE71: 0.140625 | AF71: 0.1875 | AG71: 0.140625 | AH71: 0.1125 | AI71: 0.084375 | AJ71: 0.1125 | AK71: 0.084375 | AL71: 0.75 | AM71: 0.5625 | AN71: 0.1125 | AO71: 0.084375 | AP71: 0.1875 | AQ71: 0.140625 | AR71: 0.1875 | AS71: 0.140625 | AT71: 0.1875 | AU71: 0.140625 | AV71: 0.1125 | AW71: 0.084375 | AX71: 0.1125 | AY71: 0.084375 | AZ71: 0.75 | BA71: 0.5625 | BB71: 0.1125 | BC71: 0.084375 | BD71: 0.1875 | BE71: 0.140625 | BF71: 0.25 | BG71: 0.1875 | BH71: 0.25 | BI71: 0.1875 | BJ71: 0.15 | BK71: 0.1125 | BL71: 0.15 | BM71: 0.1125 | BN71: 1 | BO71: 0.75 | BP71: 0.15 | BQ71: 0.1125 | BR71: 0.25 | BS71: 0.1875
D72: Non Prop | E72: FinLosses_NP_NotReg | G72: =RE_reserves_and_premiums!AA$43 -> 0 | I72: 0 | K72: 0 | L72: 0 | O72: FinLosses_NP_NotReg | P72: 0.140625 | Q72: 0.1875 | R72: 0.140625 | S72: 0.1875 | T72: 0.084375 | U72: 0.1125 | V72: 0.084375 | W72: 0.1125 | X72: 0.5625 | Y72: 0.75 | Z72: 0.084375 | AA72: 0.1125 | AB72: 0.140625 | AC72: 0.1875 | AD72: 0.140625 | AE72: 0.1875 | AF72: 0.140625 | AG72: 0.1875 | AH72: 0.084375 | AI72: 0.1125 | AJ72: 0.084375 | AK72: 0.1125 | AL72: 0.5625 | AM72: 0.75 | AN72: 0.084375 | AO72: 0.1125 | AP72: 0.140625 | AQ72: 0.1875 | AR72: 0.140625 | AS72: 0.1875 | AT72: 0.140625 | AU72: 0.1875 | AV72: 0.084375 | AW72: 0.1125 | AX72: 0.084375 | AY72: 0.1125 | AZ72: 0.5625 | BA72: 0.75 | BB72: 0.084375 | BC72: 0.1125 | BD72: 0.140625 | BE72: 0.1875 | BF72: 0.1875 | BG72: 0.25 | BH72: 0.1875 | BI72: 0.25 | BJ72: 0.1125 | BK72: 0.15 | BL72: 0.1125 | BM72: 0.15 | BN72: 0.75 | BO72: 1 | BP72: 0.1125 | BQ72: 0.15 | BR72: 0.1875 | BS72: 0.25
C73: General liability | D73: Prop | E73: GenLiab_P_NotReg | G73: =RE_reserves_and_premiums!Z$49 -> 0 | I73: 0 | K73: 0 | L73: 0 | O73: GenLiab_P_NotReg | P73: 0.1875 | Q73: 0.140625 | R73: 0.1875 | S73: 0.140625 | T73: 0.1125 | U73: 0.084375 | V73: 0.1125 | W73: 0.084375 | X73: 0.1125 | Y73: 0.084375 | Z73: 0.75 | AA73: 0.5625 | AB73: 0.1875 | AC73: 0.140625 | AD73: 0.1875 | AE73: 0.140625 | AF73: 0.1875 | AG73: 0.140625 | AH73: 0.1125 | AI73: 0.084375 | AJ73: 0.1125 | AK73: 0.084375 | AL73: 0.1125 | AM73: 0.084375 | AN73: 0.75 | AO73: 0.5625 | AP73: 0.1875 | AQ73: 0.140625 | AR73: 0.1875 | AS73: 0.140625 | AT73: 0.1875 | AU73: 0.140625 | AV73: 0.1125 | AW73: 0.084375 | AX73: 0.1125 | AY73: 0.084375 | AZ73: 0.1125 | BA73: 0.084375 | BB73: 0.75 | BC73: 0.5625 | BD73: 0.1875 | BE73: 0.140625 | BF73: 0.25 | BG73: 0.1875 | BH73: 0.25 | BI73: 0.1875 | BJ73: 0.15 | BK73: 0.1125 | BL73: 0.15 | BM73: 0.1125 | BN73: 0.15 | BO73: 0.1125 | BP73: 1 | BQ73: 0.75 | BR73: 0.25 | BS73: 0.1875
D74: Non Prop | E74: GenLiab_NP_NotReg | G74: =RE_reserves_and_premiums!AA$49 -> 0 | I74: 0 | K74: 0 | L74: 0 | O74: GenLiab_NP_NotReg | P74: 0.140625 | Q74: 0.1875 | R74: 0.140625 | S74: 0.1875 | T74: 0.084375 | U74: 0.1125 | V74: 0.084375 | W74: 0.1125 | X74: 0.084375 | Y74: 0.1125 | Z74: 0.5625 | AA74: 0.75 | AB74: 0.140625 | AC74: 0.1875 | AD74: 0.140625 | AE74: 0.1875 | AF74: 0.140625 | AG74: 0.1875 | AH74: 0.084375 | AI74: 0.1125 | AJ74: 0.084375 | AK74: 0.1125 | AL74: 0.084375 | AM74: 0.1125 | AN74: 0.5625 | AO74: 0.75 | AP74: 0.140625 | AQ74: 0.1875 | AR74: 0.140625 | AS74: 0.1875 | AT74: 0.140625 | AU74: 0.1875 | AV74: 0.084375 | AW74: 0.1125 | AX74: 0.084375 | AY74: 0.1125 | AZ74: 0.084375 | BA74: 0.1125 | BB74: 0.5625 | BC74: 0.75 | BD74: 0.140625 | BE74: 0.1875 | BF74: 0.1875 | BG74: 0.25 | BH74: 0.1875 | BI74: 0.25 | BJ74: 0.1125 | BK74: 0.15 | BL74: 0.1125 | BM74: 0.15 | BN74: 0.1125 | BO74: 0.15 | BP74: 0.75 | BQ74: 1 | BR74: 0.1875 | BS74: 0.25
C75: Other Non-life | D75: Prop | E75: Other_P_NotReg | G75: =RE_reserves_and_premiums!Z$56 -> 0 | I75: 0 | K75: 0 | L75: 0 | O75: Other_P_NotReg | P75: 0.1875 | Q75: 0.140625 | R75: 0.1875 | S75: 0.140625 | T75: 0.1875 | U75: 0.140625 | V75: 0.1875 | W75: 0.140625 | X75: 0.1875 | Y75: 0.140625 | Z75: 0.1875 | AA75: 0.140625 | AB75: 0.75 | AC75: 0.5625 | AD75: 0.1875 | AE75: 0.140625 | AF75: 0.1875 | AG75: 0.140625 | AH75: 0.1875 | AI75: 0.140625 | AJ75: 0.1875 | AK75: 0.140625 | AL75: 0.1875 | AM75: 0.140625 | AN75: 0.1875 | AO75: 0.140625 | AP75: 0.75 | AQ75: 0.5625 | AR75: 0.1875 | AS75: 0.140625 | AT75: 0.1875 | AU75: 0.140625 | AV75: 0.1875 | AW75: 0.140625 | AX75: 0.1875 | AY75: 0.140625 | AZ75: 0.1875 | BA75: 0.140625 | BB75: 0.1875 | BC75: 0.140625 | BD75: 0.75 | BE75: 0.5625 | BF75: 0.25 | BG75: 0.1875 | BH75: 0.25 | BI75: 0.1875 | BJ75: 0.25 | BK75: 0.1875 | BL75: 0.25 | BM75: 0.1875 | BN75: 0.25 | BO75: 0.1875 | BP75: 0.25 | BQ75: 0.1875 | BR75: 1 | BS75: 0.75
D76: Non Prop | E76: Other_NP_NotReg | G76: =RE_reserves_and_premiums!AA$56 -> 0 | I76: 0 | K76: 0 | L76: 0 | O76: Other_NP_NotReg | P76: 0.140625 | Q76: 0.1875 | R76: 0.140625 | S76: 0.1875 | T76: 0.140625 | U76: 0.1875 | V76: 0.140625 | W76: 0.1875 | X76: 0.140625 | Y76: 0.1875 | Z76: 0.140625 | AA76: 0.1875 | AB76: 0.5625 | AC76: 0.75 | AD76: 0.140625 | AE76: 0.1875 | AF76: 0.140625 | AG76: 0.1875 | AH76: 0.140625 | AI76: 0.1875 | AJ76: 0.140625 | AK76: 0.1875 | AL76: 0.140625 | AM76: 0.1875 | AN76: 0.140625 | AO76: 0.1875 | AP76: 0.5625 | AQ76: 0.75 | AR76: 0.140625 | AS76: 0.1875 | AT76: 0.140625 | AU76: 0.1875 | AV76: 0.140625 | AW76: 0.1875 | AX76: 0.140625 | AY76: 0.1875 | AZ76: 0.140625 | BA76: 0.1875 | BB76: 0.140625 | BC76: 0.1875 | BD76: 0.5625 | BE76: 0.75 | BF76: 0.1875 | BG76: 0.25 | BH76: 0.1875 | BI76: 0.25 | BJ76: 0.1875 | BK76: 0.25 | BL76: 0.1875 | BM76: 0.25 | BN76: 0.1875 | BO76: 0.25 | BP76: 0.1875 | BQ76: 0.25 | BR76: 0.75 | BS76: 1
B78: TOTAL attritional reserve risk (AER) | G78: =SUM(G21:G76) -> 0 | H78: =SUM(H21:H76) -> 0 | I78: =SUM(I21:I76) -> 0 | K78: =SQRT(MMULT(TRANSPOSE(K21:K76),MMULT(RE_RES_Corr,K21:K76))) -> 0 | L78: =SQRT(MMULT(TRANSPOSE(L21:L76),MMULT(RE_RES_Corr,L21:L76))) -> 0
G79: sum | H79: sum | I79: sum | K79: var-cov | L79: var-cov

Sheet RE_AEP_model_parameters (hidden)
A1: =10 -> 10 | B1: StandRe: Correlation matrix between AEP model segments
B2: =RE_Company_name&" - "&RE_Status&" "&RE_Current_year -> - SST 2025

Sheet RE_AEP_output
A1: 10 | B1: StandRe: Resulting parameters and key figures for AEP (by AEP model segment)
B2: =RE_Company_name&" - "&RE_Status&" "&RE_Current_year -> - SST 2025
B11: For the AEP model segment
B13: Name of AEP model segment | C13: =INDEX(RE_AEP_MSeg_names,1) -> 0
B15: ="Key figures related to AEP model segment (current "&RE_AE_ayoruwy&")" -> Key figures related to AEP model segment (current )
B16: ="SST currency is "&RE_SST_Currency -> SST currency is
F17: Coeff. of variation | G17: Mean in SST currency | H17: Standard deviation in SST currency | I17: Mu of lognormal distribution | J17: Sigma of lognormal distribution | K17: Value at risk 99% in SST currency | L17: Expected shortfall 99% in SST currency
B18: lognormal distribution of non-discounted AEP | F18: =IF(G18<>0,SQRT(H18^2/G18^2),"") ->  | G18: =K83 -> 0 | H18: =N83 -> 0 | I18: =IF(ISNUMBER(F18),LN(G18)-0.5*J18^2,"") ->  | J18: =IF(ISNUMBER(F18),SQRT(LN(F18^2+1)),"") ->  | K18: =EXP(I18+J18*NORMINV(0.99,0,1)) ->  | L18: =(1-NORMSDIST(NORMSINV(0.99)-J18))*G18/0.01 -> 
B19: lognormal distribution of discounted AEP | F19: =IF(G19<>0,SQRT(H19^2/G19^2),"") ->  | G19: =L83 -> 0 | H19: =O83 -> 0 | I19: =IF(ISNUMBER(F19),LN(G19)-0.5*J19^2,"") ->  | J19: =IF(ISNUMBER(F19),SQRT(LN(F19^2+1)),"") ->  | K19: =EXP(I19+J19*NORMINV(0.99,0,1)) ->  | L19: =(1-NORMSDIST(NORMSINV(0.99)-J19))*G19/0.01 -> 
B20: discount factor | F20: =IF(AND(F18<>"",F18<>0),F19/F18,"") ->  | G20: =IF(G18<>0,G19/G18,"") ->  | I20: =IF(AND(I18<>"",I18<>0),I19/I18,"") ->  | J20: =IF(AND(J18<>"",J18<>0),J19/J18,"") -> 
B22: StandRe segment | F22: AEP
B23: ="SST currency is "&RE_SST_Currency -> SST currency is | G23: Expected premiums | I23: ="Mean (for current "&RE_AE_ayoruwy&")" -> Mean (for current ) | M23: ="Standard deviation (for current "&RE_AE_ayoruwy&")" -> Standard deviation (for current )
B24: Region | C24: Line of business (LOB) | D24: Type | E24: Name of StandRe Segment | F24: Discount factor | G24: Net of retrocession, non-discounted, for the current underwriting year for the StandRe segment, in SST currency | H24: ="Netgross of retrocession, for the current "& RE_AE_ayoruwy &" for the intersection of the AEP model segment and the StandRe segment, in SST currency" -> Netgross of retrocession, for the current for the intersection of the AEP model segment and the StandRe segment, in SST currency | I24: Non-discounted mean loss ratio, netgross of retrocession | J24: Discounted mean loss ratio, netgross of retrocession | K24: Non-discounted mean loss, in SST currency | L24: Discounted mean loss, in SST currency | M24: Coefficient of variation | N24: Non-discounted standard deviation, in SST currency | O24: Discounted standard deviation, in SST currency | R24: Correlation matrix for AEP | S24: AccHealth_P_Europe | T24: AccHealth_NP_Europe | U24: Motor_P_Europe | V24: Motor_NP_Europe | W24: MAT_P_Europe | X24: MAT_NP_Europe | Y24: Property_P_Europe | Z24: Property_NP_Europe | AA24: FinLosses_P_Europe | AB24: FinLosses_NP_Europe | AC24: GenLiab_P_Europe | AD24: GenLiab_NP_Europe | AE24: Other_P_Europe | AF24: Other_NP_Europe | AG24: AccHealth_P_NorthAm | AH24: AccHealth_NP_NorthAm | AI24: Motor_P_NorthAm | AJ24: Motor_NP_NorthAm | AK24: MAT_P_NorthAm | AL24: MAT_NP_NorthAm | AM24: Property_P_NorthAm | AN24: Property_NP_NorthAm | AO24: FinLosses_P_NorthAm | AP24: FinLosses_NP_NorthAm | AQ24: GenLiab_P_NorthAm | AR24: GenLiab_NP_NorthAm | AS24: Other_P_NorthAm | AT24: Other_NP_NorthAm | AU24: AccHealth_P_RestWorld | AV24: AccHealth_NP_RestWorld | AW24: Motor_P_RestWorld | AX24: Motor_NP_RestWorld | AY24: MAT_P_RestWorld | AZ24: MAT_NP_RestWorld | BA24: Property_P_RestWorld | BB24: Property_NP_RestWorld | BC24: FinLosses_P_RestWorld | BD24: FinLosses_NP_RestWorld | BE24: GenLiab_P_RestWorld | BF24: GenLiab_NP_RestWorld | BG24: Other_P_RestWorld | BH24: Other_NP_RestWorld | BI24: AccHealth_P_NotReg | BJ24: AccHealth_NP_NotReg | BK24: Motor_P_NotReg | BL24: Motor_NP_NotReg | BM24: MAT_P_NotReg | BN24: MAT_NP_NotReg | BO24: Property_P_NotReg | BP24: Property_NP_NotReg | BQ24: FinLosses_P_NotReg | BR24: FinLosses_NP_NotReg | BS24: GenLiab_P_NotReg | BT24: GenLiab_NP_NotReg | BU24: Other_P_NotReg | BV24: Other_NP_NotReg
B25: EUROPE | C25: Motor | D25: Prop | E25: Motor_NP_Europe_(example, do not remove) | F25: 0.96 | G25: =RE_reserves_and_premiums!O$68 -> 1555650 | H25: 142000 | I25: 0.95 | J25: =IF(AND(H25="",I25=""),"",F25*I25) -> 0.912 | K25: =IF(AND(H25="",I25=""),"",H25*I25) -> 134900 | L25: =IF(AND(H25="",I25=""),"",H25*J25) -> 129504 | M25: 0.3 | N25: =IF(AND(H25="",I25=""),0,K25*M25) -> 40470 | O25: =IF(AND(H25="",I25=""),0,L25*M25) -> 38851.2
B26: EUROPE | C26: Accident and health | D26: Prop | E26: AccHealth_P_Europe | G26: =RE_reserves_and_premiums!N$69 -> 0 | J26: =IF(AND(H26="",I26=""),"",F26*I26) ->  | K26: =IF(AND(H26="",I26=""),"",H26*I26) ->  | L26: =IF(AND(H26="",I26=""),"",H26*J26) ->  | N26: =IF(AND(H26="",I26=""),0,K26*M26) -> 0 | O26: =IF(AND(H26="",I26=""),0,L26*M26) -> 0 | R26: AccHealth_P_Europe | S26: 1 | T26: 0.65 | U26: 0.25 | V26: 0.1625 | W26: 0.25 | X26: 0.1625 | Y26: 0.15 | Z26: 0.0975 | AA26: 0.25 | AB26: 0.1625 | AC26: 0.15 | AD26: 0.0975 | AE26: 0.25 | AF26: 0.1625 | AG26: 0.15 | AH26: 0.0975 | AI26: 0.0375 | AJ26: 0.024375 | AK26: 0.0375 | AL26: 0.024375 | AM26: 0.0225 | AN26: 0.014625 | AO26: 0.0375 | AP26: 0.024375 | AQ26: 0.0225 | AR26: 0.014625 | AS26: 0.0375 | AT26: 0.024375 | AU26: 0.15 | AV26: 0.0975 | AW26: 0.0375 | AX26: 0.024375 | AY26: 0.0375 | AZ26: 0.024375 | BA26: 0.0225 | BB26: 0.014625 | BC26: 0.0375 | BD26: 0.024375 | BE26: 0.0225 | BF26: 0.014625 | BG26: 0.0375 | BH26: 0.024375 | BI26: 0.5 | BJ26: 0.325 | BK26: 0.125 | BL26: 0.08125 | BM26: 0.125 | BN26: 0.08125 | BO26: 0.075 | BP26: 0.04875 | BQ26: 0.125 | BR26: 0.08125 | BS26: 0.075 | BT26: 0.04875 | BU26: 0.125 | BV26: 0.08125
D27: Non Prop | E27: AccHealth_NP_Europe | G27: =RE_reserves_and_premiums!O$69 -> 0 | N27: =IF(AND(H27="",I27=""),0,K27*M27) -> 0 | O27: 0 | R27: AccHealth_NP_Europe | S27: 0.65 | T27: 1 | U27: 0.1625 | V27: 0.25 | W27: 0.1625 | X27: 0.25 | Y27: 0.0975 | Z27: 0.15 | AA27: 0.1625 | AB27: 0.25 | AC27: 0.0975 | AD27: 0.15 | AE27: 0.1625 | AF27: 0.25 | AG27: 0.0975 | AH27: 0.15 | AI27: 0.024375 | AJ27: 0.0375 | AK27: 0.024375 | AL27: 0.0375 | AM27: 0.014625 | AN27: 0.0225 | AO27: 0.024375 | AP27: 0.0375 | AQ27: 0.014625 | AR27: 0.0225 | AS27: 0.024375 | AT27: 0.0375 | AU27: 0.0975 | AV27: 0.15 | AW27: 0.024375 | AX27: 0.0375 | AY27: 0.024375 | AZ27: 0.0375 | BA27: 0.014625 | BB27: 0.0225 | BC27: 0.024375 | BD27: 0.0375 | BE27: 0.014625 | BF27: 0.0225 | BG27: 0.024375 | BH27: 0.0375 | BI27: 0.325 | BJ27: 0.5 | BK27: 0.08125 | BL27: 0.125 | BM27: 0.08125 | BN27: 0.125 | BO27: 0.04875 | BP27: 0.075 | BQ27: 0.08125 | BR27: 0.125 | BS27: 0.04875 | BT27: 0.075 | BU27: 0.08125 | BV27: 0.125
C28: Motor | D28: Prop | E28: Motor_P_Europe | G28: =RE_reserves_and_premiums!N$77 -> 0 | N28: 0 | O28: 0 | R28: Motor_P_Europe | S28: 0.25 | T28: 0.1625 | U28: 1 | V28: 0.65 | W28: 0.15 | X28: 0.0975 | Y28: 0.25 | Z28: 0.1625 | AA28: 0.15 | AB28: 0.0975 | AC28: 0.25 | AD28: 0.1625 | AE28: 0.25 | AF28: 0.1625 | AG28: 0.0375 | AH28: 0.024375 | AI28: 0.15 | AJ28: 0.0975 | AK28: 0.0225 | AL28: 0.014625 | AM28: 0.0375 | AN28: 0.024375 | AO28: 0.0225 | AP28: 0.014625 | AQ28: 0.0375 | AR28: 0.024375 | AS28: 0.0375 | AT28: 0.024375 | AU28: 0.0375 | AV28: 0.024375 | AW28: 0.15 | AX28: 0.0975 | AY28: 0.0225 | AZ28: 0.014625 | BA28: 0.0375 | BB28: 0.024375 | BC28: 0.0225 | BD28: 0.014625 | BE28: 0.0375 | BF28: 0.024375 | BG28: 0.0375 | BH28: 0.024375 | BI28: 0.125 | BJ28: 0.08125 | BK28: 0.5 | BL28: 0.325 | BM28: 0.075 | BN28: 0.04875 | BO28: 0.125 | BP28: 0.08125 | BQ28: 0.075 | BR28: 0.04875 | BS28: 0.125 | BT28: 0.08125 | BU28: 0.125 | BV28: 0.08125
D29: Non Prop | E29: Motor_NP_Europe | G29: =RE_reserves_and_premiums!O$77 -> 0 | N29: 0 | O29: 0 | R29: Motor_NP_Europe | S29: 0.1625 | T29: 0.25 | U29: 0.65 | V29: 1 | W29: 0.0975 | X29: 0.15 | Y29: 0.1625 | Z29: 0.25 | AA29: 0.0975 | AB29: 0.15 | AC29: 0.1625 | AD29: 0.25 | AE29: 0.1625 | AF29: 0.25 | AG29: 0.024375 | AH29: 0.0375 | AI29: 0.0975 | AJ29: 0.15 | AK29: 0.014625 | AL29: 0.0225 | AM29: 0.024375 | AN29: 0.0375 | AO29: 0.014625 | AP29: 0.0225 | AQ29: 0.024375 | AR29: 0.0375 | AS29: 0.024375 | AT29: 0.0375 | AU29: 0.024375 | AV29: 0.0375 | AW29: 0.0975 | AX29: 0.15 | AY29: 0.014625 | AZ29: 0.0225 | BA29: 0.024375 | BB29: 0.0375 | BC29: 0.014625 | BD29: 0.0225 | BE29: 0.024375 | BF29: 0.0375 | BG29: 0.024375 | BH29: 0.0375 | BI29: 0.08125 | BJ29: 0.125 | BK29: 0.325 | BL29: 0.5 | BM29: 0.04875 | BN29: 0.075 | BO29: 0.08125 | BP29: 0.125 | BQ29: 0.04875 | BR29: 0.075 | BS29: 0.08125 | BT29: 0.125 | BU29: 0.08125 | BV29: 0.125
C30: Marine, aviation and other transport | D30: Prop | E30: MAT_P_Europe | G30: =RE_reserves_and_premiums!N$81 -> 0 | N30: 0 | O30: 0 | R30: MAT_P_Europe | S30: 0.25 | T30: 0.1625 | U30: 0.15 | V30: 0.0975 | W30: 1 | X30: 0.65 | Y30: 0.15 | Z30: 0.0975 | AA30: 0.15 | AB30: 0.0975 | AC30: 0.25 | AD30: 0.1625 | AE30: 0.25 | AF30: 0.1625 | AG30: 0.0375 | AH30: 0.024375 | AI30: 0.0225 | AJ30: 0.014625 | AK30: 0.15 | AL30: 0.0975 | AM30: 0.0225 | AN30: 0.014625 | AO30: 0.0225 | AP30: 0.014625 | AQ30: 0.0375 | AR30: 0.024375 | AS30: 0.0375 | AT30: 0.024375 | AU30: 0.0375 | AV30: 0.024375 | AW30: 0.0225 | AX30: 0.014625 | AY30: 0.15 | AZ30: 0.0975 | BA30: 0.0225 | BB30: 0.014625 | BC30: 0.0225 | BD30: 0.014625 | BE30: 0.0375 | BF30: 0.024375 | BG30: 0.0375 | BH30: 0.024375 | BI30: 0.125 | BJ30: 0.08125 | BK30: 0.075 | BL30: 0.04875 | BM30: 0.5 | BN30: 0.325 | BO30: 0.075 | BP30: 0.04875 | BQ30: 0.075 | BR30: 0.04875 | BS30: 0.125 | BT30: 0.08125 | BU30: 0.125 | BV30: 0.08125
D31: Non Prop | E31: MAT_NP_Europe | G31: =RE_reserves_and_premiums!O$81 -> 0 | N31: 0 | O31: 0 | R31: MAT_NP_Europe | S31: 0.1625 | T31: 0.25 | U31: 0.0975 | V31: 0.15 | W31: 0.65 | X31: 1 | Y31: 0.0975 | Z31: 0.15 | AA31: 0.0975 | AB31: 0.15 | AC31: 0.1625 | AD31: 0.25 | AE31: 0.1625 | AF31: 0.25 | AG31: 0.024375 | AH31: 0.0375 | AI31: 0.014625 | AJ31: 0.0225 | AK31: 0.0975 | AL31: 0.15 | AM31: 0.014625 | AN31: 0.0225 | AO31: 0.014625 | AP31: 0.0225 | AQ31: 0.024375 | AR31: 0.0375 | AS31: 0.024375 | AT31: 0.0375 | AU31: 0.024375 | AV31: 0.0375 | AW31: 0.014625 | AX31: 0.0225 | AY31: 0.0975 | AZ31: 0.15 | BA31: 0.014625 | BB31: 0.0225 | BC31: 0.014625 | BD31: 0.0225 | BE31: 0.024375 | BF31: 0.0375 | BG31: 0.024375 | BH31: 0.0375 | BI31: 0.08125 | BJ31: 0.125 | BK31: 0.04875 | BL31: 0.075 | BM31: 0.325 | BN31: 0.5 | BO31: 0.04875 | BP31: 0.075 | BQ31: 0.04875 | BR31: 0.075 | BS31: 0.08125 | BT31: 0.125 | BU31: 0.08125 | BV31: 0.125
C32: Property | D32: Prop | E32: Property_P_Europe | G32: =RE_reserves_and_premiums!N$93 -> 0 | N32: 0 | O32: 0 | R32: Property_P_Europe | S32: 0.15 | T32: 0.0975 | U32: 0.25 | V32: 0.1625 | W32: 0.15 | X32: 0.0975 | Y32: 1 | Z32: 0.65 | AA32: 0.15 | AB32: 0.0975 | AC32: 0.25 | AD32: 0.1625 | AE32: 0.25 | AF32: 0.1625 | AG32: 0.0225 | AH32: 0.014625 | AI32: 0.0375 | AJ32: 0.024375 | AK32: 0.0225 | AL32: 0.014625 | AM32: 0.15 | AN32: 0.0975 | AO32: 0.0225 | AP32: 0.014625 | AQ32: 0.0375 | AR32: 0.024375 | AS32: 0.0375 | AT32: 0.024375 | AU32: 0.0225 | AV32: 0.014625 | AW32: 0.0375 | AX32: 0.024375 | AY32: 0.0225 | AZ32: 0.014625 | BA32: 0.15 | BB32: 0.0975 | BC32: 0.0225 | BD32: 0.014625 | BE32: 0.0375 | BF32: 0.024375 | BG32: 0.0375 | BH32: 0.024375 | BI32: 0.075 | BJ32: 0.04875 | BK32: 0.125 | BL32: 0.08125 | BM32: 0.075 | BN32: 0.04875 | BO32: 0.5 | BP32: 0.325 | BQ32: 0.075 | BR32: 0.04875 | BS32: 0.125 | BT32: 0.08125 | BU32: 0.125 | BV32: 0.08125
D33: Non Prop | E33: Property_NP_Europe | G33: =RE_reserves_and_premiums!O$93 -> 0 | N33: 0 | O33: 0 | R33: Property_NP_Europe | S33: 0.0975 | T33: 0.15 | U33: 0.1625 | V33: 0.25 | W33: 0.0975 | X33: 0.15 | Y33: 0.65 | Z33: 1 | AA33: 0.0975 | AB33: 0.15 | AC33: 0.1625 | AD33: 0.25 | AE33: 0.1625 | AF33: 0.25 | AG33: 0.014625 | AH33: 0.0225 | AI33: 0.024375 | AJ33: 0.0375 | AK33: 0.014625 | AL33: 0.0225 | AM33: 0.0975 | AN33: 0.15 | AO33: 0.014625 | AP33: 0.0225 | AQ33: 0.024375 | AR33: 0.0375 | AS33: 0.024375 | AT33: 0.0375 | AU33: 0.014625 | AV33: 0.0225 | AW33: 0.024375 | AX33: 0.0375 | AY33: 0.014625 | AZ33: 0.0225 | BA33: 0.0975 | BB33: 0.15 | BC33: 0.014625 | BD33: 0.0225 | BE33: 0.024375 | BF33: 0.0375 | BG33: 0.024375 | BH33: 0.0375 | BI33: 0.04875 | BJ33: 0.075 | BK33: 0.08125 | BL33: 0.125 | BM33: 0.04875 | BN33: 0.075 | BO33: 0.325 | BP33: 0.5 | BQ33: 0.04875 | BR33: 0.075 | BS33: 0.08125 | BT33: 0.125 | BU33: 0.08125 | BV33: 0.125
C34: Financial losses | D34: Prop | E34: FinLosses_P_Europe | G34: =RE_reserves_and_premiums!N$99 -> 0 | N34: 0 | O34: 0 | R34: FinLosses_P_Europe | S34: 0.25 | T34: 0.1625 | U34: 0.15 | V34: 0.0975 | W34: 0.15 | X34: 0.0975 | Y34: 0.15 | Z34: 0.0975 | AA34: 1 | AB34: 0.65 | AC34: 0.15 | AD34: 0.0975 | AE34: 0.25 | AF34: 0.1625 | AG34: 0.0375 | AH34: 0.024375 | AI34: 0.0225 | AJ34: 0.014625 | AK34: 0.0225 | AL34: 0.014625 | AM34: 0.0225 | AN34: 0.014625 | AO34: 0.15 | AP34: 0.0975 | AQ34: 0.0225 | AR34: 0.014625 | AS34: 0.0375 | AT34: 0.024375 | AU34: 0.0375 | AV34: 0.024375 | AW34: 0.0225 | AX34: 0.014625 | AY34: 0.0225 | AZ34: 0.014625 | BA34: 0.0225 | BB34: 0.014625 | BC34: 0.15 | BD34: 0.0975 | BE34: 0.0225 | BF34: 0.014625 | BG34: 0.0375 | BH34: 0.024375 | BI34: 0.125 | BJ34: 0.08125 | BK34: 0.075 | BL34: 0.04875 | BM34: 0.075 | BN34: 0.04875 | BO34: 0.075 | BP34: 0.04875 | BQ34: 0.5 | BR34: 0.325 | BS34: 0.075 | BT34: 0.04875 | BU34: 0.125 | BV34: 0.08125
D35: Non Prop | E35: FinLosses_NP_Europe | G35: =RE_reserves_and_premiums!O$99 -> 0 | N35: 0 | O35: 0 | R35: FinLosses_NP_Europe | S35: 0.1625 | T35: 0.25 | U35: 0.0975 | V35: 0.15 | W35: 0.0975 | X35: 0.15 | Y35: 0.0975 | Z35: 0.15 | AA35: 0.65 | AB35: 1 | AC35: 0.0975 | AD35: 0.15 | AE35: 0.1625 | AF35: 0.25 | AG35: 0.024375 | AH35: 0.0375 | AI35: 0.014625 | AJ35: 0.0225 | AK35: 0.014625 | AL35: 0.0225 | AM35: 0.014625 | AN35: 0.0225 | AO35: 0.0975 | AP35: 0.15 | AQ35: 0.014625 | AR35: 0.0225 | AS35: 0.024375 | AT35: 0.0375 | AU35: 0.024375 | AV35: 0.0375 | AW35: 0.014625 | AX35: 0.0225 | AY35: 0.014625 | AZ35: 0.0225 | BA35: 0.014625 | BB35: 0.0225 | BC35: 0.0975 | BD35: 0.15 | BE35: 0.014625 | BF35: 0.0225 | BG35: 0.024375 | BH35: 0.0375 | BI35: 0.08125 | BJ35: 0.125 | BK35: 0.04875 | BL35: 0.075 | BM35: 0.04875 | BN35: 0.075 | BO35: 0.04875 | BP35: 0.075 | BQ35: 0.325 | BR35: 0.5 | BS35: 0.04875 | BT35: 0.075 | BU35: 0.08125 | BV35: 0.125
C36: General liability | D36: Prop | E36: GenLiab_P_Europe | G36: =RE_reserves_and_premiums!N$105 -> 0 | N36: 0 | O36: 0 | R36: GenLiab_P_Europe | S36: 0.15 | T36: 0.0975 | U36: 0.25 | V36: 0.1625 | W36: 0.25 | X36: 0.1625 | Y36: 0.25 | Z36: 0.1625 | AA36: 0.15 | AB36: 0.0975 | AC36: 1 | AD36: 0.65 | AE36: 0.25 | AF36: 0.1625 | AG36: 0.0225 | AH36: 0.014625 | AI36: 0.0375 | AJ36: 0.024375 | AK36: 0.0375 | AL36: 0.024375 | AM36: 0.0375 | AN36: 0.024375 | AO36: 0.0225 | AP36: 0.014625 | AQ36: 0.15 | AR36: 0.0975 | AS36: 0.0375 | AT36: 0.024375 | AU36: 0.0225 | AV36: 0.014625 | AW36: 0.0375 | AX36: 0.024375 | AY36: 0.0375 | AZ36: 0.024375 | BA36: 0.0375 | BB36: 0.024375 | BC36: 0.0225 | BD36: 0.014625 | BE36: 0.15 | BF36: 0.0975 | BG36: 0.0375 | BH36: 0.024375 | BI36: 0.075 | BJ36: 0.04875 | BK36: 0.125 | BL36: 0.08125 | BM36: 0.125 | BN36: 0.08125 | BO36: 0.125 | BP36: 0.08125 | BQ36: 0.075 | BR36: 0.04875 | BS36: 0.5 | BT36: 0.325 | BU36: 0.125 | BV36: 0.08125
D37: Non Prop | E37: GenLiab_NP_Europe | G37: =RE_reserves_and_premiums!O$105 -> 0 | N37: 0 | O37: 0 | R37: GenLiab_NP_Europe | S37: 0.0975 | T37: 0.15 | U37: 0.1625 | V37: 0.25 | W37: 0.1625 | X37: 0.25 | Y37: 0.1625 | Z37: 0.25 | AA37: 0.0975 | AB37: 0.15 | AC37: 0.65 | AD37: 1 | AE37: 0.1625 | AF37: 0.25 | AG37: 0.014625 | AH37: 0.0225 | AI37: 0.024375 | AJ37: 0.0375 | AK37: 0.024375 | AL37: 0.0375 | AM37: 0.024375 | AN37: 0.0375 | AO37: 0.014625 | AP37: 0.0225 | AQ37: 0.0975 | AR37: 0.15 | AS37: 0.024375 | AT37: 0.0375 | AU37: 0.014625 | AV37: 0.0225 | AW37: 0.024375 | AX37: 0.0375 | AY37: 0.024375 | AZ37: 0.0375 | BA37: 0.024375 | BB37: 0.0375 | BC37: 0.014625 | BD37: 0.0225 | BE37: 0.0975 | BF37: 0.15 | BG37: 0.024375 | BH37: 0.0375 | BI37: 0.04875 | BJ37: 0.075 | BK37: 0.08125 | BL37: 0.125 | BM37: 0.08125 | BN37: 0.125 | BO37: 0.08125 | BP37: 0.125 | BQ37: 0.04875 | BR37: 0.075 | BS37: 0.325 | BT37: 0.5 | BU37: 0.08125 | BV37: 0.125
C38: Other Non-life | D38: Prop | E38: Other_P_Europe | G38: =RE_reserves_and_premiums!N$112 -> 0 | N38: 0 | O38: 0 | R38: Other_P_Europe | S38: 0.25 | T38: 0.1625 | U38: 0.25 | V38: 0.1625 | W38: 0.25 | X38: 0.1625 | Y38: 0.25 | Z38: 0.1625 | AA38: 0.25 | AB38: 0.1625 | AC38: 0.25 | AD38: 0.1625 | AE38: 1 | AF38: 0.65 | AG38: 0.0375 | AH38: 0.024375 | AI38: 0.0375 | AJ38: 0.024375 | AK38: 0.0375 | AL38: 0.024375 | AM38: 0.0375 | AN38: 0.024375 | AO38: 0.0375 | AP38: 0.024375 | AQ38: 0.0375 | AR38: 0.024375 | AS38: 0.15 | AT38: 0.0975 | AU38: 0.0375 | AV38: 0.024375 | AW38: 0.0375 | AX38: 0.024375 | AY38: 0.0375 | AZ38: 0.024375 | BA38: 0.0375 | BB38: 0.024375 | BC38: 0.0375 | BD38: 0.024375 | BE38: 0.0375 | BF38: 0.024375 | BG38: 0.15 | BH38: 0.0975 | BI38: 0.125 | BJ38: 0.08125 | BK38: 0.125 | BL38: 0.08125 | BM38: 0.125 | BN38: 0.08125 | BO38: 0.125 | BP38: 0.08125 | BQ38: 0.125 | BR38: 0.08125 | BS38: 0.125 | BT38: 0.08125 | BU38: 0.5 | BV38: 0.325
D39: Non Prop | E39: Other_NP_Europe | G39: =RE_reserves_and_premiums!O$112 -> 0 | N39: 0 | O39: 0 | R39: Other_NP_Europe | S39: 0.1625 | T39: 0.25 | U39: 0.1625 | V39: 0.25 | W39: 0.1625 | X39: 0.25 | Y39: 0.1625 | Z39: 0.25 | AA39: 0.1625 | AB39: 0.25 | AC39: 0.1625 | AD39: 0.25 | AE39: 0.65 | AF39: 1 | AG39: 0.024375 | AH39: 0.0375 | AI39: 0.024375 | AJ39: 0.0375 | AK39: 0.024375 | AL39: 0.0375 | AM39: 0.024375 | AN39: 0.0375 | AO39: 0.024375 | AP39: 0.0375 | AQ39: 0.024375 | AR39: 0.0375 | AS39: 0.0975 | AT39: 0.15 | AU39: 0.024375 | AV39: 0.0375 | AW39: 0.024375 | AX39: 0.0375 | AY39: 0.024375 | AZ39: 0.0375 | BA39: 0.024375 | BB39: 0.0375 | BC39: 0.024375 | BD39: 0.0375 | BE39: 0.024375 | BF39: 0.0375 | BG39: 0.0975 | BH39: 0.15 | BI39: 0.08125 | BJ39: 0.125 | BK39: 0.08125 | BL39: 0.125 | BM39: 0.08125 | BN39: 0.125 | BO39: 0.08125 | BP39: 0.125 | BQ39: 0.08125 | BR39: 0.125 | BS39: 0.08125 | BT39: 0.125 | BU39: 0.325 | BV39: 0.5
B40: NORTH AMERICA | C40: Accident and health | D40: Prop | E40: AccHealth_P_NorthAm | G40: =RE_reserves_and_premiums!P$69 -> 0 | N40: 0 | O40: 0 | R40: AccHealth_P_NorthAm | S40: 0.15 | T40: 0.0975 | U40: 0.0375 | V40: 0.024375 | W40: 0.0375 | X40: 0.024375 | Y40: 0.0225 | Z40: 0.014625 | AA40: 0.0375 | AB40: 0.024375 | AC40: 0.0225 | AD40: 0.014625 | AE40: 0.0375 | AF40: 0.024375 | AG40: 1 | AH40: 0.65 | AI40: 0.25 | AJ40: 0.1625 | AK40: 0.25 | AL40: 0.1625 | AM40: 0.15 | AN40: 0.0975 | AO40: 0.25 | AP40: 0.1625 | AQ40: 0.15 | AR40: 0.0975 | AS40: 0.25 | AT40: 0.1625 | AU40: 0.15 | AV40: 0.0975 | AW40: 0.0375 | AX40: 0.024375 | AY40: 0.0375 | AZ40: 0.024375 | BA40: 0.0225 | BB40: 0.014625 | BC40: 0.0375 | BD40: 0.024375 | BE40: 0.0225 | BF40: 0.014625 | BG40: 0.0375 | BH40: 0.024375 | BI40: 0.5 | BJ40: 0.325 | BK40: 0.125 | BL40: 0.08125 | BM40: 0.125 | BN40: 0.08125 | BO40: 0.075 | BP40: 0.04875 | BQ40: 0.125 | BR40: 0.08125 | BS40: 0.075 | BT40: 0.04875 | BU40: 0.125 | BV40: 0.08125
D41: Non Prop | E41: AccHealth_NP_NorthAm | G41: =RE_reserves_and_premiums!Q$69 -> 0 | N41: 0 | O41: 0 | R41: AccHealth_NP_NorthAm | S41: 0.0975 | T41: 0.15 | U41: 0.024375 | V41: 0.0375 | W41: 0.024375 | X41: 0.0375 | Y41: 0.014625 | Z41: 0.0225 | AA41: 0.024375 | AB41: 0.0375 | AC41: 0.014625 | AD41: 0.0225 | AE41: 0.024375 | AF41: 0.0375 | AG41: 0.65 | AH41: 1 | AI41: 0.1625 | AJ41: 0.25 | AK41: 0.1625 | AL41: 0.25 | AM41: 0.0975 | AN41: 0.15 | AO41: 0.1625 | AP41: 0.25 | AQ41: 0.0975 | AR41: 0.15 | AS41: 0.1625 | AT41: 0.25 | AU41: 0.0975 | AV41: 0.15 | AW41: 0.024375 | AX41: 0.0375 | AY41: 0.024375 | AZ41: 0.0375 | BA41: 0.014625 | BB41: 0.0225 | BC41: 0.024375 | BD41: 0.0375 | BE41: 0.014625 | BF41: 0.0225 | BG41: 0.024375 | BH41: 0.0375 | BI41: 0.325 | BJ41: 0.5 | BK41: 0.08125 | BL41: 0.125 | BM41: 0.08125 | BN41: 0.125 | BO41: 0.04875 | BP41: 0.075 | BQ41: 0.08125 | BR41: 0.125 | BS41: 0.04875 | BT41: 0.075 | BU41: 0.08125 | BV41: 0.125
C42: Motor | D42: Prop | E42: Motor_P_NorthAm | G42: =RE_reserves_and_premiums!P$77 -> 0 | N42: 0 | O42: 0 | R42: Motor_P_NorthAm | S42: 0.0375 | T42: 0.024375 | U42: 0.15 | V42: 0.0975 | W42: 0.0225 | X42: 0.014625 | Y42: 0.0375 | Z42: 0.024375 | AA42: 0.0225 | AB42: 0.014625 | AC42: 0.0375 | AD42: 0.024375 | AE42: 0.0375 | AF42: 0.024375 | AG42: 0.25 | AH42: 0.1625 | AI42: 1 | AJ42: 0.65 | AK42: 0.15 | AL42: 0.0975 | AM42: 0.25 | AN42: 0.1625 | AO42: 0.15 | AP42: 0.0975 | AQ42: 0.25 | AR42: 0.1625 | AS42: 0.25 | AT42: 0.1625 | AU42: 0.0375 | AV42: 0.024375 | AW42: 0.15 | AX42: 0.0975 | AY42: 0.0225 | AZ42: 0.014625 | BA42: 0.0375 | BB42: 0.024375 | BC42: 0.0225 | BD42: 0.014625 | BE42: 0.0375 | BF42: 0.024375 | BG42: 0.0375 | BH42: 0.024375 | BI42: 0.125 | BJ42: 0.08125 | BK42: 0.5 | BL42: 0.325 | BM42: 0.075 | BN42: 0.04875 | BO42: 0.125 | BP42: 0.08125 | BQ42: 0.075 | BR42: 0.04875 | BS42: 0.125 | BT42: 0.08125 | BU42: 0.125 | BV42: 0.08125
D43: Non Prop | E43: Motor_NP_NorthAm | G43: =RE_reserves_and_premiums!Q$77 -> 0 | N43: 0 | O43: 0 | R43: Motor_NP_NorthAm | S43: 0.024375 | T43: 0.0375 | U43: 0.0975 | V43: 0.15 | W43: 0.014625 | X43: 0.0225 | Y43: 0.024375 | Z43: 0.0375 | AA43: 0.014625 | AB43: 0.0225 | AC43: 0.024375 | AD43: 0.0375 | AE43: 0.024375 | AF43: 0.0375 | AG43: 0.1625 | AH43: 0.25 | AI43: 0.65 | AJ43: 1 | AK43: 0.0975 | AL43: 0.15 | AM43: 0.1625 | AN43: 0.25 | AO43: 0.0975 | AP43: 0.15 | AQ43: 0.1625 | AR43: 0.25 | AS43: 0.1625 | AT43: 0.25 | AU43: 0.024375 | AV43: 0.0375 | AW43: 0.0975 | AX43: 0.15 | AY43: 0.014625 | AZ43: 0.0225 | BA43: 0.024375 | BB43: 0.0375 | BC43: 0.014625 | BD43: 0.0225 | BE43: 0.024375 | BF43: 0.0375 | BG43: 0.024375 | BH43: 0.0375 | BI43: 0.08125 | BJ43: 0.125 | BK43: 0.325 | BL43: 0.5 | BM43: 0.04875 | BN43: 0.075 | BO43: 0.08125 | BP43: 0.125 | BQ43: 0.04875 | BR43: 0.075 | BS43: 0.08125 | BT43: 0.125 | BU43: 0.08125 | BV43: 0.125
C44: Marine, aviation and other transport | D44: Prop | E44: MAT_P_NorthAm | G44: =RE_reserves_and_premiums!P$81 -> 0 | N44: 0 | O44: 0 | R44: MAT_P_NorthAm | S44: 0.0375 | T44: 0.024375 | U44: 0.0225 | V44: 0.014625 | W44: 0.15 | X44: 0.0975 | Y44: 0.0225 | Z44: 0.014625 | AA44: 0.0225 | AB44: 0.014625 | AC44: 0.0375 | AD44: 0.024375 | AE44: 0.0375 | AF44: 0.024375 | AG44: 0.25 | AH44: 0.1625 | AI44: 0.15 | AJ44: 0.0975 | AK44: 1 | AL44: 0.65 | AM44: 0.15 | AN44: 0.0975 | AO44: 0.15 | AP44: 0.0975 | AQ44: 0.25 | AR44: 0.1625 | AS44: 0.25 | AT44: 0.1625 | AU44: 0.0375 | AV44: 0.024375 | AW44: 0.0225 | AX44: 0.014625 | AY44: 0.15 | AZ44: 0.0975 | BA44: 0.0225 | BB44: 0.014625 | BC44: 0.0225 | BD44: 0.014625 | BE44: 0.0375 | BF44: 0.024375 | BG44: 0.0375 | BH44: 0.024375 | BI44: 0.125 | BJ44: 0.08125 | BK44: 0.075 | BL44: 0.04875 | BM44: 0.5 | BN44: 0.325 | BO44: 0.075 | BP44: 0.04875 | BQ44: 0.075 | BR44: 0.04875 | BS44: 0.125 | BT44: 0.08125 | BU44: 0.125 | BV44: 0.08125
D45: Non Prop | E45: MAT_NP_NorthAm | G45: =RE_reserves_and_premiums!Q$81 -> 0 | N45: 0 | O45: 0 | R45: MAT_NP_NorthAm | S45: 0.024375 | T45: 0.0375 | U45: 0.014625 | V45: 0.0225 | W45: 0.0975 | X45: 0.15 | Y45: 0.014625 | Z45: 0.0225 | AA45: 0.014625 | AB45: 0.0225 | AC45: 0.024375 | AD45: 0.0375 | AE45: 0.024375 | AF45: 0.0375 | AG45: 0.1625 | AH45: 0.25 | AI45: 0.0975 | AJ45: 0.15 | AK45: 0.65 | AL45: 1 | AM45: 0.0975 | AN45: 0.15 | AO45: 0.0975 | AP45: 0.15 | AQ45: 0.1625 | AR45: 0.25 | AS45: 0.1625 | AT45: 0.25 | AU45: 0.024375 | AV45: 0.0375 | AW45: 0.014625 | AX45: 0.0225 | AY45: 0.0975 | AZ45: 0.15 | BA45: 0.014625 | BB45: 0.0225 | BC45: 0.014625 | BD45: 0.0225 | BE45: 0.024375 | BF45: 0.0375 | BG45: 0.024375 | BH45: 0.0375 | BI45: 0.08125 | BJ45: 0.125 | BK45: 0.04875 | BL45: 0.075 | BM45: 0.325 | BN45: 0.5 | BO45: 0.04875 | BP45: 0.075 | BQ45: 0.04875 | BR45: 0.075 | BS45: 0.08125 | BT45: 0.125 | BU45: 0.08125 | BV45: 0.125
C46: Property | D46: Prop | E46: Property_P_NorthAm | G46: =RE_reserves_and_premiums!P$93 -> 0 | N46: 0 | O46: 0 | R46: Property_P_NorthAm | S46: 0.0225 | T46: 0.014625 | U46: 0.0375 | V46: 0.024375 | W46: 0.0225 | X46: 0.014625 | Y46: 0.15 | Z46: 0.0975 | AA46: 0.0225 | AB46: 0.014625 | AC46: 0.0375 | AD46: 0.024375 | AE46: 0.0375 | AF46: 0.024375 | AG46: 0.15 | AH46: 0.0975 | AI46: 0.25 | AJ46: 0.1625 | AK46: 0.15 | AL46: 0.0975 | AM46: 1 | AN46: 0.65 | AO46: 0.15 | AP46: 0.0975 | AQ46: 0.25 | AR46: 0.1625 | AS46: 0.25 | AT46: 0.1625 | AU46: 0.0225 | AV46: 0.014625 | AW46: 0.0375 | AX46: 0.024375 | AY46: 0.0225 | AZ46: 0.014625 | BA46: 0.15 | BB46: 0.0975 | BC46: 0.0225 | BD46: 0.014625 | BE46: 0.0375 | BF46: 0.024375 | BG46: 0.0375 | BH46: 0.024375 | BI46: 0.075 | BJ46: 0.04875 | BK46: 0.125 | BL46: 0.08125 | BM46: 0.075 | BN46: 0.04875 | BO46: 0.5 | BP46: 0.325 | BQ46: 0.075 | BR46: 0.04875 | BS46: 0.125 | BT46: 0.08125 | BU46: 0.125 | BV46: 0.08125
D47: Non Prop | E47: Property_NP_NorthAm | G47: =RE_reserves_and_premiums!Q$93 -> 0 | N47: 0 | O47: 0 | R47: Property_NP_NorthAm | S47: 0.014625 | T47: 0.0225 | U47: 0.024375 | V47: 0.0375 | W47: 0.014625 | X47: 0.0225 | Y47: 0.0975 | Z47: 0.15 | AA47: 0.014625 | AB47: 0.0225 | AC47: 0.024375 | AD47: 0.0375 | AE47: 0.024375 | AF47: 0.0375 | AG47: 0.0975 | AH47: 0.15 | AI47: 0.1625 | AJ47: 0.25 | AK47: 0.0975 | AL47: 0.15 | AM47: 0.65 | AN47: 1 | AO47: 0.0975 | AP47: 0.15 | AQ47: 0.1625 | AR47: 0.25 | AS47: 0.1625 | AT47: 0.25 | AU47: 0.014625 | AV47: 0.0225 | AW47: 0.024375 | AX47: 0.0375 | AY47: 0.014625 | AZ47: 0.0225 | BA47: 0.0975 | BB47: 0.15 | BC47: 0.014625 | BD47: 0.0225 | BE47: 0.024375 | BF47: 0.0375 | BG47: 0.024375 | BH47: 0.0375 | BI47: 0.04875 | BJ47: 0.075 | BK47: 0.08125 | BL47: 0.125 | BM47: 0.04875 | BN47: 0.075 | BO47: 0.325 | BP47: 0.5 | BQ47: 0.04875 | BR47: 0.075 | BS47: 0.08125 | BT47: 0.125 | BU47: 0.08125 | BV47: 0.125
C48: Financial losses | D48: Prop | E48: FinLosses_P_NorthAm | G48: =RE_reserves_and_premiums!P$99 -> 0 | N48: 0 | O48: 0 | R48: FinLosses_P_NorthAm | S48: 0.0375 | T48: 0.024375 | U48: 0.0225 | V48: 0.014625 | W48: 0.0225 | X48: 0.014625 | Y48: 0.0225 | Z48: 0.014625 | AA48: 0.15 | AB48: 0.0975 | AC48: 0.0225 | AD48: 0.014625 | AE48: 0.0375 | AF48: 0.024375 | AG48: 0.25 | AH48: 0.1625 | AI48: 0.15 | AJ48: 0.0975 | AK48: 0.15 | AL48: 0.0975 | AM48: 0.15 | AN48: 0.0975 | AO48: 1 | AP48: 0.65 | AQ48: 0.15 | AR48: 0.0975 | AS48: 0.25 | AT48: 0.1625 | AU48: 0.0375 | AV48: 0.024375 | AW48: 0.0225 | AX48: 0.014625 | AY48: 0.0225 | AZ48: 0.014625 | BA48: 0.0225 | BB48: 0.014625 | BC48: 0.15 | BD48: 0.0975 | BE48: 0.0225 | BF48: 0.014625 | BG48: 0.0375 | BH48: 0.024375 | BI48: 0.125 | BJ48: 0.08125 | BK48: 0.075 | BL48: 0.04875 | BM48: 0.075 | BN48: 0.04875 | BO48: 0.075 | BP48: 0.04875 | BQ48: 0.5 | BR48: 0.325 | BS48: 0.075 | BT48: 0.04875 | BU48: 0.125 | BV48: 0.08125
D49: Non Prop | E49: FinLosses_NP_NorthAm | G49: =RE_reserves_and_premiums!Q$99 -> 0 | N49: 0 | O49: 0 | R49: FinLosses_NP_NorthAm | S49: 0.024375 | T49: 0.0375 | U49: 0.014625 | V49: 0.0225 | W49: 0.014625 | X49: 0.0225 | Y49: 0.014625 | Z49: 0.0225 | AA49: 0.0975 | AB49: 0.15 | AC49: 0.014625 | AD49: 0.0225 | AE49: 0.024375 | AF49: 0.0375 | AG49: 0.1625 | AH49: 0.25 | AI49: 0.0975 | AJ49: 0.15 | AK49: 0.0975 | AL49: 0.15 | AM49: 0.0975 | AN49: 0.15 | AO49: 0.65 | AP49: 1 | AQ49: 0.0975 | AR49: 0.15 | AS49: 0.1625 | AT49: 0.25 | AU49: 0.024375 | AV49: 0.0375 | AW49: 0.014625 | AX49: 0.0225 | AY49: 0.014625 | AZ49: 0.0225 | BA49: 0.014625 | BB49: 0.0225 | BC49: 0.0975 | BD49: 0.15 | BE49: 0.014625 | BF49: 0.0225 | BG49: 0.024375 | BH49: 0.0375 | BI49: 0.08125 | BJ49: 0.125 | BK49: 0.04875 | BL49: 0.075 | BM49: 0.04875 | BN49: 0.075 | BO49: 0.04875 | BP49: 0.075 | BQ49: 0.325 | BR49: 0.5 | BS49: 0.04875 | BT49: 0.075 | BU49: 0.08125 | BV49: 0.125
C50: General liability | D50: Prop | E50: GenLiab_P_NorthAm | G50: =RE_reserves_and_premiums!P$105 -> 0 | N50: 0 | O50: 0 | R50: GenLiab_P_NorthAm | S50: 0.0225 | T50: 0.014625 | U50: 0.0375 | V50: 0.024375 | W50: 0.0375 | X50: 0.024375 | Y50: 0.0375 | Z50: 0.024375 | AA50: 0.0225 | AB50: 0.014625 | AC50: 0.15 | AD50: 0.0975 | AE50: 0.0375 | AF50: 0.024375 | AG50: 0.15 | AH50: 0.0975 | AI50: 0.25 | AJ50: 0.1625 | AK50: 0.25 | AL50: 0.1625 | AM50: 0.25 | AN50: 0.1625 | AO50: 0.15 | AP50: 0.0975 | AQ50: 1 | AR50: 0.65 | AS50: 0.25 | AT50: 0.1625 | AU50: 0.0225 | AV50: 0.014625 | AW50: 0.0375 | AX50: 0.024375 | AY50: 0.0375 | AZ50: 0.024375 | BA50: 0.0375 | BB50: 0.024375 | BC50: 0.0225 | BD50: 0.014625 | BE50: 0.15 | BF50: 0.0975 | BG50: 0.0375 | BH50: 0.024375 | BI50: 0.075 | BJ50: 0.04875 | BK50: 0.125 | BL50: 0.08125 | BM50: 0.125 | BN50: 0.08125 | BO50: 0.125 | BP50: 0.08125 | BQ50: 0.075 | BR50: 0.04875 | BS50: 0.5 | BT50: 0.325 | BU50: 0.125 | BV50: 0.08125
D51: Non Prop | E51: GenLiab_NP_NorthAm | G51: =RE_reserves_and_premiums!Q$105 -> 0 | N51: 0 | O51: 0 | R51: GenLiab_NP_NorthAm | S51: 0.014625 | T51: 0.0225 | U51: 0.024375 | V51: 0.0375 | W51: 0.024375 | X51: 0.0375 | Y51: 0.024375 | Z51: 0.0375 | AA51: 0.014625 | AB51: 0.0225 | AC51: 0.0975 | AD51: 0.15 | AE51: 0.024375 | AF51: 0.0375 | AG51: 0.0975 | AH51: 0.15 | AI51: 0.1625 | AJ51: 0.25 | AK51: 0.1625 | AL51: 0.25 | AM51: 0.1625 | AN51: 0.25 | AO51: 0.0975 | AP51: 0.15 | AQ51: 0.65 | AR51: 1 | AS51: 0.1625 | AT51: 0.25 | AU51: 0.014625 | AV51: 0.0225 | AW51: 0.024375 | AX51: 0.0375 | AY51: 0.024375 | AZ51: 0.0375 | BA51: 0.024375 | BB51: 0.0375 | BC51: 0.014625 | BD51: 0.0225 | BE51: 0.0975 | BF51: 0.15 | BG51: 0.024375 | BH51: 0.0375 | BI51: 0.04875 | BJ51: 0.075 | BK51: 0.08125 | BL51: 0.125 | BM51: 0.08125 | BN51: 0.125 | BO51: 0.08125 | BP51: 0.125 | BQ51: 0.04875 | BR51: 0.075 | BS51: 0.325 | BT51: 0.5 | BU51: 0.08125 | BV51: 0.125
C52: Other Non-life | D52: Prop | E52: Other_P_NorthAm | G52: =RE_reserves_and_premiums!P$112 -> 0 | N52: 0 | O52: 0 | R52: Other_P_NorthAm | S52: 0.0375 | T52: 0.024375 | U52: 0.0375 | V52: 0.024375 | W52: 0.0375 | X52: 0.024375 | Y52: 0.0375 | Z52: 0.024375 | AA52: 0.0375 | AB52: 0.024375 | AC52: 0.0375 | AD52: 0.024375 | AE52: 0.15 | AF52: 0.0975 | AG52: 0.25 | AH52: 0.1625 | AI52: 0.25 | AJ52: 0.1625 | AK52: 0.25 | AL52: 0.1625 | AM52: 0.25 | AN52: 0.1625 | AO52: 0.25 | AP52: 0.1625 | AQ52: 0.25 | AR52: 0.1625 | AS52: 1 | AT52: 0.65 | AU52: 0.0375 | AV52: 0.024375 | AW52: 0.0375 | AX52: 0.024375 | AY52: 0.0375 | AZ52: 0.024375 | BA52: 0.0375 | BB52: 0.024375 | BC52: 0.0375 | BD52: 0.024375 | BE52: 0.0375 | BF52: 0.024375 | BG52: 0.15 | BH52: 0.0975 | BI52: 0.125 | BJ52: 0.08125 | BK52: 0.125 | BL52: 0.08125 | BM52: 0.125 | BN52: 0.08125 | BO52: 0.125 | BP52: 0.08125 | BQ52: 0.125 | BR52: 0.08125 | BS52: 0.125 | BT52: 0.08125 | BU52: 0.5 | BV52: 0.325
D53: Non Prop | E53: Other_NP_NorthAm | G53: =RE_reserves_and_premiums!Q$112 -> 0 | N53: 0 | O53: 0 | R53: Other_NP_NorthAm | S53: 0.024375 | T53: 0.0375 | U53: 0.024375 | V53: 0.0375 | W53: 0.024375 | X53: 0.0375 | Y53: 0.024375 | Z53: 0.0375 | AA53: 0.024375 | AB53: 0.0375 | AC53: 0.024375 | AD53: 0.0375 | AE53: 0.0975 | AF53: 0.15 | AG53: 0.1625 | AH53: 0.25 | AI53: 0.1625 | AJ53: 0.25 | AK53: 0.1625 | AL53: 0.25 | AM53: 0.1625 | AN53: 0.25 | AO53: 0.1625 | AP53: 0.25 | AQ53: 0.1625 | AR53: 0.25 | AS53: 0.65 | AT53: 1 | AU53: 0.024375 | AV53: 0.0375 | AW53: 0.024375 | AX53: 0.0375 | AY53: 0.024375 | AZ53: 0.0375 | BA53: 0.024375 | BB53: 0.0375 | BC53: 0.024375 | BD53: 0.0375 | BE53: 0.024375 | BF53: 0.0375 | BG53: 0.0975 | BH53: 0.15 | BI53: 0.08125 | BJ53: 0.125 | BK53: 0.08125 | BL53: 0.125 | BM53: 0.08125 | BN53: 0.125 | BO53: 0.08125 | BP53: 0.125 | BQ53: 0.08125 | BR53: 0.125 | BS53: 0.08125 | BT53: 0.125 | BU53: 0.325 | BV53: 0.5
B54: REST OF WORLD | C54: Accident and health | D54: Prop | E54: AccHealth_P_RestWorld | G54: =RE_reserves_and_premiums!R$69+RE_reserves_and_premiums!T$69+RE_reserves_and_premiums!V$69+RE_reserves_and_premiums!X$69 -> 0 | N54: 0 | O54: 0 | R54: AccHealth_P_RestWorld | S54: 0.15 | T54: 0.0975 | U54: 0.0375 | V54: 0.024375 | W54: 0.0375 | X54: 0.024375 | Y54: 0.0225 | Z54: 0.014625 | AA54: 0.0375 | AB54: 0.024375 | AC54: 0.0225 | AD54: 0.014625 | AE54: 0.0375 | AF54: 0.024375 | AG54: 0.15 | AH54: 0.0975 | AI54: 0.0375 | AJ54: 0.024375 | AK54: 0.0375 | AL54: 0.024375 | AM54: 0.0225 | AN54: 0.014625 | AO54: 0.0375 | AP54: 0.024375 | AQ54: 0.0225 | AR54: 0.014625 | AS54: 0.0375 | AT54: 0.024375 | AU54: 1 | AV54: 0.65 | AW54: 0.25 | AX54: 0.1625 | AY54: 0.25 | AZ54: 0.1625 | BA54: 0.15 | BB54: 0.0975 | BC54: 0.25 | BD54: 0.1625 | BE54: 0.15 | BF54: 0.0975 | BG54: 0.25 | BH54: 0.1625 | BI54: 0.5 | BJ54: 0.325 | BK54: 0.125 | BL54: 0.08125 | BM54: 0.125 | BN54: 0.08125 | BO54: 0.075 | BP54: 0.04875 | BQ54: 0.125 | BR54: 0.08125 | BS54: 0.075 | BT54: 0.04875 | BU54: 0.125 | BV54: 0.08125
D55: Non Prop | E55: AccHealth_NP_RestWorld | G55: =RE_reserves_and_premiums!S$69+RE_reserves_and_premiums!U$69+RE_reserves_and_premiums!W$69+RE_reserves_and_premiums!Y$69 -> 0 | N55: 0 | O55: 0 | R55: AccHealth_NP_RestWorld | S55: 0.0975 | T55: 0.15 | U55: 0.024375 | V55: 0.0375 | W55: 0.024375 | X55: 0.0375 | Y55: 0.014625 | Z55: 0.0225 | AA55: 0.024375 | AB55: 0.0375 | AC55: 0.014625 | AD55: 0.0225 | AE55: 0.024375 | AF55: 0.0375 | AG55: 0.0975 | AH55: 0.15 | AI55: 0.024375 | AJ55: 0.0375 | AK55: 0.024375 | AL55: 0.0375 | AM55: 0.014625 | AN55: 0.0225 | AO55: 0.024375 | AP55: 0.0375 | AQ55: 0.014625 | AR55: 0.0225 | AS55: 0.024375 | AT55: 0.0375 | AU55: 0.65 | AV55: 1 | AW55: 0.1625 | AX55: 0.25 | AY55: 0.1625 | AZ55: 0.25 | BA55: 0.0975 | BB55: 0.15 | BC55: 0.1625 | BD55: 0.25 | BE55: 0.0975 | BF55: 0.15 | BG55: 0.1625 | BH55: 0.25 | BI55: 0.325 | BJ55: 0.5 | BK55: 0.08125 | BL55: 0.125 | BM55: 0.08125 | BN55: 0.125 | BO55: 0.04875 | BP55: 0.075 | BQ55: 0.08125 | BR55: 0.125 | BS55: 0.04875 | BT55: 0.075 | BU55: 0.08125 | BV55: 0.125
C56: Motor | D56: Prop | E56: Motor_P_RestWorld | G56: =RE_reserves_and_premiums!R$77+RE_reserves_and_premiums!T$77+RE_reserves_and_premiums!V$77+RE_reserves_and_premiums!X$77 -> 0 | N56: 0 | O56: 0 | R56: Motor_P_RestWorld | S56: 0.0375 | T56: 0.024375 | U56: 0.15 | V56: 0.0975 | W56: 0.0225 | X56: 0.014625 | Y56: 0.0375 | Z56: 0.024375 | AA56: 0.0225 | AB56: 0.014625 | AC56: 0.0375 | AD56: 0.024375 | AE56: 0.0375 | AF56: 0.024375 | AG56: 0.0375 | AH56: 0.024375 | AI56: 0.15 | AJ56: 0.0975 | AK56: 0.0225 | AL56: 0.014625 | AM56: 0.0375 | AN56: 0.024375 | AO56: 0.0225 | AP56: 0.014625 | AQ56: 0.0375 | AR56: 0.024375 | AS56: 0.0375 | AT56: 0.024375 | AU56: 0.25 | AV56: 0.1625 | AW56: 1 | AX56: 0.65 | AY56: 0.15 | AZ56: 0.0975 | BA56: 0.25 | BB56: 0.1625 | BC56: 0.15 | BD56: 0.0975 | BE56: 0.25 | BF56: 0.1625 | BG56: 0.25 | BH56: 0.1625 | BI56: 0.125 | BJ56: 0.08125 | BK56: 0.5 | BL56: 0.325 | BM56: 0.075 | BN56: 0.04875 | BO56: 0.125 | BP56: 0.08125 | BQ56: 0.075 | BR56: 0.04875 | BS56: 0.125 | BT56: 0.08125 | BU56: 0.125 | BV56: 0.08125
D57: Non Prop | E57: Motor_NP_RestWorld | G57: =RE_reserves_and_premiums!S$77+RE_reserves_and_premiums!U$77+RE_reserves_and_premiums!W$77+RE_reserves_and_premiums!Y$77 -> 0 | N57: 0 | O57: 0 | R57: Motor_NP_RestWorld | S57: 0.024375 | T57: 0.0375 | U57: 0.0975 | V57: 0.15 | W57: 0.014625 | X57: 0.0225 | Y57: 0.024375 | Z57: 0.0375 | AA57: 0.014625 | AB57: 0.0225 | AC57: 0.024375 | AD57: 0.0375 | AE57: 0.024375 | AF57: 0.0375 | AG57: 0.024375 | AH57: 0.0375 | AI57: 0.0975 | AJ57: 0.15 | AK57: 0.014625 | AL57: 0.0225 | AM57: 0.024375 | AN57: 0.0375 | AO57: 0.014625 | AP57: 0.0225 | AQ57: 0.024375 | AR57: 0.0375 | AS57: 0.024375 | AT57: 0.0375 | AU57: 0.1625 | AV57: 0.25 | AW57: 0.65 | AX57: 1 | AY57: 0.0975 | AZ57: 0.15 | BA57: 0.1625 | BB57: 0.25 | BC57: 0.0975 | BD57: 0.15 | BE57: 0.1625 | BF57: 0.25 | BG57: 0.1625 | BH57: 0.25 | BI57: 0.08125 | BJ57: 0.125 | BK57: 0.325 | BL57: 0.5 | BM57: 0.04875 | BN57: 0.075 | BO57: 0.08125 | BP57: 0.125 | BQ57: 0.04875 | BR57: 0.075 | BS57: 0.08125 | BT57: 0.125 | BU57: 0.08125 | BV57: 0.125
C58: Marine, aviation and other transport | D58: Prop | E58: MAT_P_RestWorld | G58: =RE_reserves_and_premiums!R$81+RE_reserves_and_premiums!T$81+RE_reserves_and_premiums!V$81+RE_reserves_and_premiums!X$81 -> 0 | N58: 0 | O58: 0 | R58: MAT_P_RestWorld | S58: 0.0375 | T58: 0.024375 | U58: 0.0225 | V58: 0.014625 | W58: 0.15 | X58: 0.0975 | Y58: 0.0225 | Z58: 0.014625 | AA58: 0.0225 | AB58: 0.014625 | AC58: 0.0375 | AD58: 0.024375 | AE58: 0.0375 | AF58: 0.024375 | AG58: 0.0375 | AH58: 0.024375 | AI58: 0.0225 | AJ58: 0.014625 | AK58: 0.15 | AL58: 0.0975 | AM58: 0.0225 | AN58: 0.014625 | AO58: 0.0225 | AP58: 0.014625 | AQ58: 0.0375 | AR58: 0.024375 | AS58: 0.0375 | AT58: 0.024375 | AU58: 0.25 | AV58: 0.1625 | AW58: 0.15 | AX58: 0.0975 | AY58: 1 | AZ58: 0.65 | BA58: 0.15 | BB58: 0.0975 | BC58: 0.15 | BD58: 0.0975 | BE58: 0.25 | BF58: 0.1625 | BG58: 0.25 | BH58: 0.1625 | BI58: 0.125 | BJ58: 0.08125 | BK58: 0.075 | BL58: 0.04875 | BM58: 0.5 | BN58: 0.325 | BO58: 0.075 | BP58: 0.04875 | BQ58: 0.075 | BR58: 0.04875 | BS58: 0.125 | BT58: 0.08125 | BU58: 0.125 | BV58: 0.08125
D59: Non Prop | E59: MAT_NP_RestWorld | G59: =RE_reserves_and_premiums!S$81+RE_reserves_and_premiums!U$81+RE_reserves_and_premiums!W$81+RE_reserves_and_premiums!Y$81 -> 0 | N59: 0 | O59: 0 | R59: MAT_NP_RestWorld | S59: 0.024375 | T59: 0.0375 | U59: 0.014625 | V59: 0.0225 | W59: 0.0975 | X59: 0.15 | Y59: 0.014625 | Z59: 0.0225 | AA59: 0.014625 | AB59: 0.0225 | AC59: 0.024375 | AD59: 0.0375 | AE59: 0.024375 | AF59: 0.0375 | AG59: 0.024375 | AH59: 0.0375 | AI59: 0.014625 | AJ59: 0.0225 | AK59: 0.0975 | AL59: 0.15 | AM59: 0.014625 | AN59: 0.0225 | AO59: 0.014625 | AP59: 0.0225 | AQ59: 0.024375 | AR59: 0.0375 | AS59: 0.024375 | AT59: 0.0375 | AU59: 0.1625 | AV59: 0.25 | AW59: 0.0975 | AX59: 0.15 | AY59: 0.65 | AZ59: 1 | BA59: 0.0975 | BB59: 0.15 | BC59: 0.0975 | BD59: 0.15 | BE59: 0.1625 | BF59: 0.25 | BG59: 0.1625 | BH59: 0.25 | BI59: 0.08125 | BJ59: 0.125 | BK59: 0.04875 | BL59: 0.075 | BM59: 0.325 | BN59: 0.5 | BO59: 0.04875 | BP59: 0.075 | BQ59: 0.04875 | BR59: 0.075 | BS59: 0.08125 | BT59: 0.125 | BU59: 0.08125 | BV59: 0.125
C60: Property | D60: Prop | E60: Property_P_RestWorld | G60: =RE_reserves_and_premiums!R$93+RE_reserves_and_premiums!T$93+RE_reserves_and_premiums!V$93+RE_reserves_and_premiums!X$93 -> 0 | N60: 0 | O60: 0 | R60: Property_P_RestWorld | S60: 0.0225 | T60: 0.014625 | U60: 0.0375 | V60: 0.024375 | W60: 0.0225 | X60: 0.014625 | Y60: 0.15 | Z60: 0.0975 | AA60: 0.0225 | AB60: 0.014625 | AC60: 0.0375 | AD60: 0.024375 | AE60: 0.0375 | AF60: 0.024375 | AG60: 0.0225 | AH60: 0.014625 | AI60: 0.0375 | AJ60: 0.024375 | AK60: 0.0225 | AL60: 0.014625 | AM60: 0.15 | AN60: 0.0975 | AO60: 0.0225 | AP60: 0.014625 | AQ60: 0.0375 | AR60: 0.024375 | AS60: 0.0375 | AT60: 0.024375 | AU60: 0.15 | AV60: 0.0975 | AW60: 0.25 | AX60: 0.1625 | AY60: 0.15 | AZ60: 0.0975 | BA60: 1 | BB60: 0.65 | BC60: 0.15 | BD60: 0.0975 | BE60: 0.25 | BF60: 0.1625 | BG60: 0.25 | BH60: 0.1625 | BI60: 0.075 | BJ60: 0.04875 | BK60: 0.125 | BL60: 0.08125 | BM60: 0.075 | BN60: 0.04875 | BO60: 0.5 | BP60: 0.325 | BQ60: 0.075 | BR60: 0.04875 | BS60: 0.125 | BT60: 0.08125 | BU60: 0.125 | BV60: 0.08125
D61: Non Prop | E61: Property_NP_RestWorld | G61: =RE_reserves_and_premiums!S$93+RE_reserves_and_premiums!U$93+RE_reserves_and_premiums!W$93+RE_reserves_and_premiums!Y$93 -> 0 | N61: 0 | O61: 0 | R61: Property_NP_RestWorld | S61: 0.014625 | T61: 0.0225 | U61: 0.024375 | V61: 0.0375 | W61: 0.014625 | X61: 0.0225 | Y61: 0.0975 | Z61: 0.15 | AA61: 0.014625 | AB61: 0.0225 | AC61: 0.024375 | AD61: 0.0375 | AE61: 0.024375 | AF61: 0.0375 | AG61: 0.014625 | AH61: 0.0225 | AI61: 0.024375 | AJ61: 0.0375 | AK61: 0.014625 | AL61: 0.0225 | AM61: 0.0975 | AN61: 0.15 | AO61: 0.014625 | AP61: 0.0225 | AQ61: 0.024375 | AR61: 0.0375 | AS61: 0.024375 | AT61: 0.0375 | AU61: 0.0975 | AV61: 0.15 | AW61: 0.1625 | AX61: 0.25 | AY61: 0.0975 | AZ61: 0.15 | BA61: 0.65 | BB61: 1 | BC61: 0.0975 | BD61: 0.15 | BE61: 0.1625 | BF61: 0.25 | BG61: 0.1625 | BH61: 0.25 | BI61: 0.04875 | BJ61: 0.075 | BK61: 0.08125 | BL61: 0.125 | BM61: 0.04875 | BN61: 0.075 | BO61: 0.325 | BP61: 0.5 | BQ61: 0.04875 | BR61: 0.075 | BS61: 0.08125 | BT61: 0.125 | BU61: 0.08125 | BV61: 0.125
C62: Financial losses | D62: Prop | E62: FinLosses_P_RestWorld | G62: =RE_reserves_and_premiums!R$99+RE_reserves_and_premiums!T$99+RE_reserves_and_premiums!V$99+RE_reserves_and_premiums!X$99 -> 0 | N62: 0 | O62: 0 | R62: FinLosses_P_RestWorld | S62: 0.0375 | T62: 0.024375 | U62: 0.0225 | V62: 0.014625 | W62: 0.0225 | X62: 0.014625 | Y62: 0.0225 | Z62: 0.014625 | AA62: 0.15 | AB62: 0.0975 | AC62: 0.0225 | AD62: 0.014625 | AE62: 0.0375 | AF62: 0.024375 | AG62: 0.0375 | AH62: 0.024375 | AI62: 0.0225 | AJ62: 0.014625 | AK62: 0.0225 | AL62: 0.014625 | AM62: 0.0225 | AN62: 0.014625 | AO62: 0.15 | AP62: 0.0975 | AQ62: 0.0225 | AR62: 0.014625 | AS62: 0.0375 | AT62: 0.024375 | AU62: 0.25 | AV62: 0.1625 | AW62: 0.15 | AX62: 0.0975 | AY62: 0.15 | AZ62: 0.0975 | BA62: 0.15 | BB62: 0.0975 | BC62: 1 | BD62: 0.65 | BE62: 0.15 | BF62: 0.0975 | BG62: 0.25 | BH62: 0.1625 | BI62: 0.125 | BJ62: 0.08125 | BK62: 0.075 | BL62: 0.04875 | BM62: 0.075 | BN62: 0.04875 | BO62: 0.075 | BP62: 0.04875 | BQ62: 0.5 | BR62: 0.325 | BS62: 0.075 | BT62: 0.04875 | BU62: 0.125 | BV62: 0.08125
D63: Non Prop | E63: FinLosses_NP_RestWorld | G63: =RE_reserves_and_premiums!S$99+RE_reserves_and_premiums!U$99+RE_reserves_and_premiums!W$99+RE_reserves_and_premiums!Y$99 -> 0 | N63: 0 | O63: 0 | R63: FinLosses_NP_RestWorld | S63: 0.024375 | T63: 0.0375 | U63: 0.014625 | V63: 0.0225 | W63: 0.014625 | X63: 0.0225 | Y63: 0.014625 | Z63: 0.0225 | AA63: 0.0975 | AB63: 0.15 | AC63: 0.014625 | AD63: 0.0225 | AE63: 0.024375 | AF63: 0.0375 | AG63: 0.024375 | AH63: 0.0375 | AI63: 0.014625 | AJ63: 0.0225 | AK63: 0.014625 | AL63: 0.0225 | AM63: 0.014625 | AN63: 0.0225 | AO63: 0.0975 | AP63: 0.15 | AQ63: 0.014625 | AR63: 0.0225 | AS63: 0.024375 | AT63: 0.0375 | AU63: 0.1625 | AV63: 0.25 | AW63: 0.0975 | AX63: 0.15 | AY63: 0.0975 | AZ63: 0.15 | BA63: 0.0975 | BB63: 0.15 | BC63: 0.65 | BD63: 1 | BE63: 0.0975 | BF63: 0.15 | BG63: 0.1625 | BH63: 0.25 | BI63: 0.08125 | BJ63: 0.125 | BK63: 0.04875 | BL63: 0.075 | BM63: 0.04875 | BN63: 0.075 | BO63: 0.04875 | BP63: 0.075 | BQ63: 0.325 | BR63: 0.5 | BS63: 0.04875 | BT63: 0.075 | BU63: 0.08125 | BV63: 0.125
C64: General liability | D64: Prop | E64: GenLiab_P_RestWorld | G64: =RE_reserves_and_premiums!R$105+RE_reserves_and_premiums!T$105+RE_reserves_and_premiums!V$105+RE_reserves_and_premiums!X$105 -> 0 | N64: 0 | O64: 0 | R64: GenLiab_P_RestWorld | S64: 0.0225 | T64: 0.014625 | U64: 0.0375 | V64: 0.024375 | W64: 0.0375 | X64: 0.024375 | Y64: 0.0375 | Z64: 0.024375 | AA64: 0.0225 | AB64: 0.014625 | AC64: 0.15 | AD64: 0.0975 | AE64: 0.0375 | AF64: 0.024375 | AG64: 0.0225 | AH64: 0.014625 | AI64: 0.0375 | AJ64: 0.024375 | AK64: 0.0375 | AL64: 0.024375 | AM64: 0.0375 | AN64: 0.024375 | AO64: 0.0225 | AP64: 0.014625 | AQ64: 0.15 | AR64: 0.0975 | AS64: 0.0375 | AT64: 0.024375 | AU64: 0.15 | AV64: 0.0975 | AW64: 0.25 | AX64: 0.1625 | AY64: 0.25 | AZ64: 0.1625 | BA64: 0.25 | BB64: 0.1625 | BC64: 0.15 | BD64: 0.0975 | BE64: 1 | BF64: 0.65 | BG64: 0.25 | BH64: 0.1625 | BI64: 0.075 | BJ64: 0.04875 | BK64: 0.125 | BL64: 0.08125 | BM64: 0.125 | BN64: 0.08125 | BO64: 0.125 | BP64: 0.08125 | BQ64: 0.075 | BR64: 0.04875 | BS64: 0.5 | BT64: 0.325 | BU64: 0.125 | BV64: 0.08125
D65: Non Prop | E65: GenLiab_NP_RestWorld | G65: =RE_reserves_and_premiums!S$105+RE_reserves_and_premiums!U$105+RE_reserves_and_premiums!W$105+RE_reserves_and_premiums!Y$105 -> 0 | N65: 0 | O65: 0 | R65: GenLiab_NP_RestWorld | S65: 0.014625 | T65: 0.0225 | U65: 0.024375 | V65: 0.0375 | W65: 0.024375 | X65: 0.0375 | Y65: 0.024375 | Z65: 0.0375 | AA65: 0.014625 | AB65: 0.0225 | AC65: 0.0975 | AD65: 0.15 | AE65: 0.024375 | AF65: 0.0375 | AG65: 0.014625 | AH65: 0.0225 | AI65: 0.024375 | AJ65: 0.0375 | AK65: 0.024375 | AL65: 0.0375 | AM65: 0.024375 | AN65: 0.0375 | AO65: 0.014625 | AP65: 0.0225 | AQ65: 0.0975 | AR65: 0.15 | AS65: 0.024375 | AT65: 0.0375 | AU65: 0.0975 | AV65: 0.15 | AW65: 0.1625 | AX65: 0.25 | AY65: 0.1625 | AZ65: 0.25 | BA65: 0.1625 | BB65: 0.25 | BC65: 0.0975 | BD65: 0.15 | BE65: 0.65 | BF65: 1 | BG65: 0.1625 | BH65: 0.25 | BI65: 0.04875 | BJ65: 0.075 | BK65: 0.08125 | BL65: 0.125 | BM65: 0.08125 | BN65: 0.125 | BO65: 0.08125 | BP65: 0.125 | BQ65: 0.04875 | BR65: 0.075 | BS65: 0.325 | BT65: 0.5 | BU65: 0.08125 | BV65: 0.125
C66: Other Non-life | D66: Prop | E66: Other_P_RestWorld | G66: =RE_reserves_and_premiums!R$112+RE_reserves_and_premiums!T$112+RE_reserves_and_premiums!V$112+RE_reserves_and_premiums!X$112 -> 0 | N66: 0 | O66: 0 | R66: Other_P_RestWorld | S66: 0.0375 | T66: 0.024375 | U66: 0.0375 | V66: 0.024375 | W66: 0.0375 | X66: 0.024375 | Y66: 0.0375 | Z66: 0.024375 | AA66: 0.0375 | AB66: 0.024375 | AC66: 0.0375 | AD66: 0.024375 | AE66: 0.15 | AF66: 0.0975 | AG66: 0.0375 | AH66: 0.024375 | AI66: 0.0375 | AJ66: 0.024375 | AK66: 0.0375 | AL66: 0.024375 | AM66: 0.0375 | AN66: 0.024375 | AO66: 0.0375 | AP66: 0.024375 | AQ66: 0.0375 | AR66: 0.024375 | AS66: 0.15 | AT66: 0.0975 | AU66: 0.25 | AV66: 0.1625 | AW66: 0.25 | AX66: 0.1625 | AY66: 0.25 | AZ66: 0.1625 | BA66: 0.25 | BB66: 0.1625 | BC66: 0.25 | BD66: 0.1625 | BE66: 0.25 | BF66: 0.1625 | BG66: 1 | BH66: 0.65 | BI66: 0.125 | BJ66: 0.08125 | BK66: 0.125 | BL66: 0.08125 | BM66: 0.125 | BN66: 0.08125 | BO66: 0.125 | BP66: 0.08125 | BQ66: 0.125 | BR66: 0.08125 | BS66: 0.125 | BT66: 0.08125 | BU66: 0.5 | BV66: 0.325
D67: Non Prop | E67: Other_NP_RestWorld | G67: =RE_reserves_and_premiums!S$112+RE_reserves_and_premiums!U$112+RE_reserves_and_premiums!W$112+RE_reserves_and_premiums!Y$112 -> 0 | N67: 0 | O67: 0 | R67: Other_NP_RestWorld | S67: 0.024375 | T67: 0.0375 | U67: 0.024375 | V67: 0.0375 | W67: 0.024375 | X67: 0.0375 | Y67: 0.024375 | Z67: 0.0375 | AA67: 0.024375 | AB67: 0.0375 | AC67: 0.024375 | AD67: 0.0375 | AE67: 0.0975 | AF67: 0.15 | AG67: 0.024375 | AH67: 0.0375 | AI67: 0.024375 | AJ67: 0.0375 | AK67: 0.024375 | AL67: 0.0375 | AM67: 0.024375 | AN67: 0.0375 | AO67: 0.024375 | AP67: 0.0375 | AQ67: 0.024375 | AR67: 0.0375 | AS67: 0.0975 | AT67: 0.15 | AU67: 0.1625 | AV67: 0.25 | AW67: 0.1625 | AX67: 0.25 | AY67: 0.1625 | AZ67: 0.25 | BA67: 0.1625 | BB67: 0.25 | BC67: 0.1625 | BD67: 0.25 | BE67: 0.1625 | BF67: 0.25 | BG67: 0.65 | BH67: 1 | BI67: 0.08125 | BJ67: 0.125 | BK67: 0.08125 | BL67: 0.125 | BM67: 0.08125 | BN67: 0.125 | BO67: 0.08125 | BP67: 0.125 | BQ67: 0.08125 | BR67: 0.125 | BS67: 0.08125 | BT67: 0.125 | BU67: 0.325 | BV67: 0.5
B68: NOT REGIONAL | C68: Accident and health | D68: Prop | E68: AccHealth_P_NotReg | G68: =RE_reserves_and_premiums!Z$69 -> 0 | N68: 0 | O68: 0 | R68: AccHealth_P_NotReg | S68: 0.5 | T68: 0.325 | U68: 0.125 | V68: 0.08125 | W68: 0.125 | X68: 0.08125 | Y68: 0.075 | Z68: 0.04875 | AA68: 0.125 | AB68: 0.08125 | AC68: 0.075 | AD68: 0.04875 | AE68: 0.125 | AF68: 0.08125 | AG68: 0.5 | AH68: 0.325 | AI68: 0.125 | AJ68: 0.08125 | AK68: 0.125 | AL68: 0.08125 | AM68: 0.075 | AN68: 0.04875 | AO68: 0.125 | AP68: 0.08125 | AQ68: 0.075 | AR68: 0.04875 | AS68: 0.125 | AT68: 0.08125 | AU68: 0.5 | AV68: 0.325 | AW68: 0.125 | AX68: 0.08125 | AY68: 0.125 | AZ68: 0.08125 | BA68: 0.075 | BB68: 0.04875 | BC68: 0.125 | BD68: 0.08125 | BE68: 0.075 | BF68: 0.04875 | BG68: 0.125 | BH68: 0.08125 | BI68: 1 | BJ68: 0.65 | BK68: 0.25 | BL68: 0.1625 | BM68: 0.25 | BN68: 0.1625 | BO68: 0.15 | BP68: 0.0975 | BQ68: 0.25 | BR68: 0.1625 | BS68: 0.15 | BT68: 0.0975 | BU68: 0.25 | BV68: 0.1625
D69: Non Prop | E69: AccHealth_NP_NotReg | G69: =RE_reserves_and_premiums!AA$69 -> 0 | N69: 0 | O69: 0 | R69: AccHealth_NP_NotReg | S69: 0.325 | T69: 0.5 | U69: 0.08125 | V69: 0.125 | W69: 0.08125 | X69: 0.125 | Y69: 0.04875 | Z69: 0.075 | AA69: 0.08125 | AB69: 0.125 | AC69: 0.04875 | AD69: 0.075 | AE69: 0.08125 | AF69: 0.125 | AG69: 0.325 | AH69: 0.5 | AI69: 0.08125 | AJ69: 0.125 | AK69: 0.08125 | AL69: 0.125 | AM69: 0.04875 | AN69: 0.075 | AO69: 0.08125 | AP69: 0.125 | AQ69: 0.04875 | AR69: 0.075 | AS69: 0.08125 | AT69: 0.125 | AU69: 0.325 | AV69: 0.5 | AW69: 0.08125 | AX69: 0.125 | AY69: 0.08125 | AZ69: 0.125 | BA69: 0.04875 | BB69: 0.075 | BC69: 0.08125 | BD69: 0.125 | BE69: 0.04875 | BF69: 0.075 | BG69: 0.08125 | BH69: 0.125 | BI69: 0.65 | BJ69: 1 | BK69: 0.1625 | BL69: 0.25 | BM69: 0.1625 | BN69: 0.25 | BO69: 0.0975 | BP69: 0.15 | BQ69: 0.1625 | BR69: 0.25 | BS69: 0.0975 | BT69: 0.15 | BU69: 0.1625 | BV69: 0.25
C70: Motor | D70: Prop | E70: Motor_P_NotReg | G70: =RE_reserves_and_premiums!Z$77 -> 0 | N70: 0 | O70: 0 | R70: Motor_P_NotReg | S70: 0.125 | T70: 0.08125 | U70: 0.5 | V70: 0.325 | W70: 0.075 | X70: 0.04875 | Y70: 0.125 | Z70: 0.08125 | AA70: 0.075 | AB70: 0.04875 | AC70: 0.125 | AD70: 0.08125 | AE70: 0.125 | AF70: 0.08125 | AG70: 0.125 | AH70: 0.08125 | AI70: 0.5 | AJ70: 0.325 | AK70: 0.075 | AL70: 0.04875 | AM70: 0.125 | AN70: 0.08125 | AO70: 0.075 | AP70: 0.04875 | AQ70: 0.125 | AR70: 0.08125 | AS70: 0.125 | AT70: 0.08125 | AU70: 0.125 | AV70: 0.08125 | AW70: 0.5 | AX70: 0.325 | AY70: 0.075 | AZ70: 0.04875 | BA70: 0.125 | BB70: 0.08125 | BC70: 0.075 | BD70: 0.04875 | BE70: 0.125 | BF70: 0.08125 | BG70: 0.125 | BH70: 0.08125 | BI70: 0.25 | BJ70: 0.1625 | BK70: 1 | BL70: 0.65 | BM70: 0.15 | BN70: 0.0975 | BO70: 0.25 | BP70: 0.1625 | BQ70: 0.15 | BR70: 0.0975 | BS70: 0.25 | BT70: 0.1625 | BU70: 0.25 | BV70: 0.1625
D71: Non Prop | E71: Motor_NP_NotReg | G71: =RE_reserves_and_premiums!AA$77 -> 0 | N71: 0 | O71: 0 | R71: Motor_NP_NotReg | S71: 0.08125 | T71: 0.125 | U71: 0.325 | V71: 0.5 | W71: 0.04875 | X71: 0.075 | Y71: 0.08125 | Z71: 0.125 | AA71: 0.04875 | AB71: 0.075 | AC71: 0.08125 | AD71: 0.125 | AE71: 0.08125 | AF71: 0.125 | AG71: 0.08125 | AH71: 0.125 | AI71: 0.325 | AJ71: 0.5 | AK71: 0.04875 | AL71: 0.075 | AM71: 0.08125 | AN71: 0.125 | AO71: 0.04875 | AP71: 0.075 | AQ71: 0.08125 | AR71: 0.125 | AS71: 0.08125 | AT71: 0.125 | AU71: 0.08125 | AV71: 0.125 | AW71: 0.325 | AX71: 0.5 | AY71: 0.04875 | AZ71: 0.075 | BA71: 0.08125 | BB71: 0.125 | BC71: 0.04875 | BD71: 0.075 | BE71: 0.08125 | BF71: 0.125 | BG71: 0.08125 | BH71: 0.125 | BI71: 0.1625 | BJ71: 0.25 | BK71: 0.65 | BL71: 1 | BM71: 0.0975 | BN71: 0.15 | BO71: 0.1625 | BP71: 0.25 | BQ71: 0.0975 | BR71: 0.15 | BS71: 0.1625 | BT71: 0.25 | BU71: 0.1625 | BV71: 0.25
C72: Marine, aviation and other transport | D72: Prop | E72: MAT_P_NotReg | G72: =RE_reserves_and_premiums!Z$81 -> 0 | N72: 0 | O72: 0 | R72: MAT_P_NotReg | S72: 0.125 | T72: 0.08125 | U72: 0.075 | V72: 0.04875 | W72: 0.5 | X72: 0.325 | Y72: 0.075 | Z72: 0.04875 | AA72: 0.075 | AB72: 0.04875 | AC72: 0.125 | AD72: 0.08125 | AE72: 0.125 | AF72: 0.08125 | AG72: 0.125 | AH72: 0.08125 | AI72: 0.075 | AJ72: 0.04875 | AK72: 0.5 | AL72: 0.325 | AM72: 0.075 | AN72: 0.04875 | AO72: 0.075 | AP72: 0.04875 | AQ72: 0.125 | AR72: 0.08125 | AS72: 0.125 | AT72: 0.08125 | AU72: 0.125 | AV72: 0.08125 | AW72: 0.075 | AX72: 0.04875 | AY72: 0.5 | AZ72: 0.325 | BA72: 0.075 | BB72: 0.04875 | BC72: 0.075 | BD72: 0.04875 | BE72: 0.125 | BF72: 0.08125 | BG72: 0.125 | BH72: 0.08125 | BI72: 0.25 | BJ72: 0.1625 | BK72: 0.15 | BL72: 0.0975 | BM72: 1 | BN72: 0.65 | BO72: 0.15 | BP72: 0.0975 | BQ72: 0.15 | BR72: 0.0975 | BS72: 0.25 | BT72: 0.1625 | BU72: 0.25 | BV72: 0.1625
D73: Non Prop | E73: MAT_NP_NotReg | G73: =RE_reserves_and_premiums!AA$81 -> 0 | N73: 0 | O73: 0 | R73: MAT_NP_NotReg | S73: 0.08125 | T73: 0.125 | U73: 0.04875 | V73: 0.075 | W73: 0.325 | X73: 0.5 | Y73: 0.04875 | Z73: 0.075 | AA73: 0.04875 | AB73: 0.075 | AC73: 0.08125 | AD73: 0.125 | AE73: 0.08125 | AF73: 0.125 | AG73: 0.08125 | AH73: 0.125 | AI73: 0.04875 | AJ73: 0.075 | AK73: 0.325 | AL73: 0.5 | AM73: 0.04875 | AN73: 0.075 | AO73: 0.04875 | AP73: 0.075 | AQ73: 0.08125 | AR73: 0.125 | AS73: 0.08125 | AT73: 0.125 | AU73: 0.08125 | AV73: 0.125 | AW73: 0.04875 | AX73: 0.075 | AY73: 0.325 | AZ73: 0.5 | BA73: 0.04875 | BB73: 0.075 | BC73: 0.04875 | BD73: 0.075 | BE73: 0.08125 | BF73: 0.125 | BG73: 0.08125 | BH73: 0.125 | BI73: 0.1625 | BJ73: 0.25 | BK73: 0.0975 | BL73: 0.15 | BM73: 0.65 | BN73: 1 | BO73: 0.0975 | BP73: 0.15 | BQ73: 0.0975 | BR73: 0.15 | BS73: 0.1625 | BT73: 0.25 | BU73: 0.1625 | BV73: 0.25
C74: Property | D74: Prop | E74: Property_P_NotReg | G74: =RE_reserves_and_premiums!Z$93 -> 0 | N74: 0 | O74: 0 | R74: Property_P_NotReg | S74: 0.075 | T74: 0.04875 | U74: 0.125 | V74: 0.08125 | W74: 0.075 | X74: 0.04875 | Y74: 0.5 | Z74: 0.325 | AA74: 0.075 | AB74: 0.04875 | AC74: 0.125 | AD74: 0.08125 | AE74: 0.125 | AF74: 0.08125 | AG74: 0.075 | AH74: 0.04875 | AI74: 0.125 | AJ74: 0.08125 | AK74: 0.075 | AL74: 0.04875 | AM74: 0.5 | AN74: 0.325 | AO74: 0.075 | AP74: 0.04875 | AQ74: 0.125 | AR74: 0.08125 | AS74: 0.125 | AT74: 0.08125 | AU74: 0.075 | AV74: 0.04875 | AW74: 0.125 | AX74: 0.08125 | AY74: 0.075 | AZ74: 0.04875 | BA74: 0.5 | BB74: 0.325 | BC74: 0.075 | BD74: 0.04875 | BE74: 0.125 | BF74: 0.08125 | BG74: 0.125 | BH74: 0.08125 | BI74: 0.15 | BJ74: 0.0975 | BK74: 0.25 | BL74: 0.1625 | BM74: 0.15 | BN74: 0.0975 | BO74: 1 | BP74: 0.65 | BQ74: 0.15 | BR74: 0.0975 | BS74: 0.25 | BT74: 0.1625 | BU74: 0.25 | BV74: 0.1625
D75: Non Prop | E75: Property_NP_NotReg | G75: =RE_reserves_and_premiums!AA$93 -> 0 | N75: 0 | O75: 0 | R75: Property_NP_NotReg | S75: 0.04875 | T75: 0.075 | U75: 0.08125 | V75: 0.125 | W75: 0.04875 | X75: 0.075 | Y75: 0.325 | Z75: 0.5 | AA75: 0.04875 | AB75: 0.075 | AC75: 0.08125 | AD75: 0.125 | AE75: 0.08125 | AF75: 0.125 | AG75: 0.04875 | AH75: 0.075 | AI75: 0.08125 | AJ75: 0.125 | AK75: 0.04875 | AL75: 0.075 | AM75: 0.325 | AN75: 0.5 | AO75: 0.04875 | AP75: 0.075 | AQ75: 0.08125 | AR75: 0.125 | AS75: 0.08125 | AT75: 0.125 | AU75: 0.04875 | AV75: 0.075 | AW75: 0.08125 | AX75: 0.125 | AY75: 0.04875 | AZ75: 0.075 | BA75: 0.325 | BB75: 0.5 | BC75: 0.04875 | BD75: 0.075 | BE75: 0.08125 | BF75: 0.125 | BG75: 0.08125 | BH75: 0.125 | BI75: 0.0975 | BJ75: 0.15 | BK75: 0.1625 | BL75: 0.25 | BM75: 0.0975 | BN75: 0.15 | BO75: 0.65 | BP75: 1 | BQ75: 0.0975 | BR75: 0.15 | BS75: 0.1625 | BT75: 0.25 | BU75: 0.1625 | BV75: 0.25
C76: Financial losses | D76: Prop | E76: FinLosses_P_NotReg | G76: =RE_reserves_and_premiums!Z$99 -> 0 | N76: 0 | O76: 0 | R76: FinLosses_P_NotReg | S76: 0.125 | T76: 0.08125 | U76: 0.075 | V76: 0.04875 | W76: 0.075 | X76: 0.04875 | Y76: 0.075 | Z76: 0.04875 | AA76: 0.5 | AB76: 0.325 | AC76: 0.075 | AD76: 0.04875 | AE76: 0.125 | AF76: 0.08125 | AG76: 0.125 | AH76: 0.08125 | AI76: 0.075 | AJ76: 0.04875 | AK76: 0.075 | AL76: 0.04875 | AM76: 0.075 | AN76: 0.04875 | AO76: 0.5 | AP76: 0.325 | AQ76: 0.075 | AR76: 0.04875 | AS76: 0.125 | AT76: 0.08125 | AU76: 0.125 | AV76: 0.08125 | AW76: 0.075 | AX76: 0.04875 | AY76: 0.075 | AZ76: 0.04875 | BA76: 0.075 | BB76: 0.04875 | BC76: 0.5 | BD76: 0.325 | BE76: 0.075 | BF76: 0.04875 | BG76: 0.125 | BH76: 0.08125 | BI76: 0.25 | BJ76: 0.1625 | BK76: 0.15 | BL76: 0.0975 | BM76: 0.15 | BN76: 0.0975 | BO76: 0.15 | BP76: 0.0975 | BQ76: 1 | BR76: 0.65 | BS76: 0.15 | BT76: 0.0975 | BU76: 0.25 | BV76: 0.1625
D77: Non Prop | E77: FinLosses_NP_NotReg | G77: =RE_reserves_and_premiums!AA$99 -> 0 | N77: 0 | O77: 0 | R77: FinLosses_NP_NotReg | S77: 0.08125 | T77: 0.125 | U77: 0.04875 | V77: 0.075 | W77: 0.04875 | X77: 0.075 | Y77: 0.04875 | Z77: 0.075 | AA77: 0.325 | AB77: 0.5 | AC77: 0.04875 | AD77: 0.075 | AE77: 0.08125 | AF77: 0.125 | AG77: 0.08125 | AH77: 0.125 | AI77: 0.04875 | AJ77: 0.075 | AK77: 0.04875 | AL77: 0.075 | AM77: 0.04875 | AN77: 0.075 | AO77: 0.325 | AP77: 0.5 | AQ77: 0.04875 | AR77: 0.075 | AS77: 0.08125 | AT77: 0.125 | AU77: 0.08125 | AV77: 0.125 | AW77: 0.04875 | AX77: 0.075 | AY77: 0.04875 | AZ77: 0.075 | BA77: 0.04875 | BB77: 0.075 | BC77: 0.325 | BD77: 0.5 | BE77: 0.04875 | BF77: 0.075 | BG77: 0.08125 | BH77: 0.125 | BI77: 0.1625 | BJ77: 0.25 | BK77: 0.0975 | BL77: 0.15 | BM77: 0.0975 | BN77: 0.15 | BO77: 0.0975 | BP77: 0.15 | BQ77: 0.65 | BR77: 1 | BS77: 0.0975 | BT77: 0.15 | BU77: 0.1625 | BV77: 0.25
C78: General liability | D78: Prop | E78: GenLiab_P_NotReg | G78: =RE_reserves_and_premiums!Z$105 -> 0 | N78: 0 | O78: 0 | R78: GenLiab_P_NotReg | S78: 0.075 | T78: 0.04875 | U78: 0.125 | V78: 0.08125 | W78: 0.125 | X78: 0.08125 | Y78: 0.125 | Z78: 0.08125 | AA78: 0.075 | AB78: 0.04875 | AC78: 0.5 | AD78: 0.325 | AE78: 0.125 | AF78: 0.08125 | AG78: 0.075 | AH78: 0.04875 | AI78: 0.125 | AJ78: 0.08125 | AK78: 0.125 | AL78: 0.08125 | AM78: 0.125 | AN78: 0.08125 | AO78: 0.075 | AP78: 0.04875 | AQ78: 0.5 | AR78: 0.325 | AS78: 0.125 | AT78: 0.08125 | AU78: 0.075 | AV78: 0.04875 | AW78: 0.125 | AX78: 0.08125 | AY78: 0.125 | AZ78: 0.08125 | BA78: 0.125 | BB78: 0.08125 | BC78: 0.075 | BD78: 0.04875 | BE78: 0.5 | BF78: 0.325 | BG78: 0.125 | BH78: 0.08125 | BI78: 0.15 | BJ78: 0.0975 | BK78: 0.25 | BL78: 0.1625 | BM78: 0.25 | BN78: 0.1625 | BO78: 0.25 | BP78: 0.1625 | BQ78: 0.15 | BR78: 0.0975 | BS78: 1 | BT78: 0.65 | BU78: 0.25 | BV78: 0.1625
D79: Non Prop | E79: GenLiab_NP_NotReg | G79: =RE_reserves_and_premiums!AA$105 -> 0 | N79: 0 | O79: 0 | R79: GenLiab_NP_NotReg | S79: 0.04875 | T79: 0.075 | U79: 0.08125 | V79: 0.125 | W79: 0.08125 | X79: 0.125 | Y79: 0.08125 | Z79: 0.125 | AA79: 0.04875 | AB79: 0.075 | AC79: 0.325 | AD79: 0.5 | AE79: 0.08125 | AF79: 0.125 | AG79: 0.04875 | AH79: 0.075 | AI79: 0.08125 | AJ79: 0.125 | AK79: 0.08125 | AL79: 0.125 | AM79: 0.08125 | AN79: 0.125 | AO79: 0.04875 | AP79: 0.075 | AQ79: 0.325 | AR79: 0.5 | AS79: 0.08125 | AT79: 0.125 | AU79: 0.04875 | AV79: 0.075 | AW79: 0.08125 | AX79: 0.125 | AY79: 0.08125 | AZ79: 0.125 | BA79: 0.08125 | BB79: 0.125 | BC79: 0.04875 | BD79: 0.075 | BE79: 0.325 | BF79: 0.5 | BG79: 0.08125 | BH79: 0.125 | BI79: 0.0975 | BJ79: 0.15 | BK79: 0.1625 | BL79: 0.25 | BM79: 0.1625 | BN79: 0.25 | BO79: 0.1625 | BP79: 0.25 | BQ79: 0.0975 | BR79: 0.15 | BS79: 0.65 | BT79: 1 | BU79: 0.1625 | BV79: 0.25
C80: Other Non-life | D80: Prop | E80: Other_P_NotReg | G80: =RE_reserves_and_premiums!Z$112 -> 0 | N80: 0 | O80: 0 | R80: Other_P_NotReg | S80: 0.125 | T80: 0.08125 | U80: 0.125 | V80: 0.08125 | W80: 0.125 | X80: 0.08125 | Y80: 0.125 | Z80: 0.08125 | AA80: 0.125 | AB80: 0.08125 | AC80: 0.125 | AD80: 0.08125 | AE80: 0.5 | AF80: 0.325 | AG80: 0.125 | AH80: 0.08125 | AI80: 0.125 | AJ80: 0.08125 | AK80: 0.125 | AL80: 0.08125 | AM80: 0.125 | AN80: 0.08125 | AO80: 0.125 | AP80: 0.08125 | AQ80: 0.125 | AR80: 0.08125 | AS80: 0.5 | AT80: 0.325 | AU80: 0.125 | AV80: 0.08125 | AW80: 0.125 | AX80: 0.08125 | AY80: 0.125 | AZ80: 0.08125 | BA80: 0.125 | BB80: 0.08125 | BC80: 0.125 | BD80: 0.08125 | BE80: 0.125 | BF80: 0.08125 | BG80: 0.5 | BH80: 0.325 | BI80: 0.25 | BJ80: 0.1625 | BK80: 0.25 | BL80: 0.1625 | BM80: 0.25 | BN80: 0.1625 | BO80: 0.25 | BP80: 0.1625 | BQ80: 0.25 | BR80: 0.1625 | BS80: 0.25 | BT80: 0.1625 | BU80: 1 | BV80: 0.65
D81: Non Prop | E81: Other_NP_NotReg | G81: =RE_reserves_and_premiums!AA$112 -> 0 | N81: 0 | O81: 0 | R81: Other_NP_NotReg | S81: 0.08125 | T81: 0.125 | U81: 0.08125 | V81: 0.125 | W81: 0.08125 | X81: 0.125 | Y81: 0.08125 | Z81: 0.125 | AA81: 0.08125 | AB81: 0.125 | AC81: 0.08125 | AD81: 0.125 | AE81: 0.325 | AF81: 0.5 | AG81: 0.08125 | AH81: 0.125 | AI81: 0.08125 | AJ81: 0.125 | AK81: 0.08125 | AL81: 0.125 | AM81: 0.08125 | AN81: 0.125 | AO81: 0.08125 | AP81: 0.125 | AQ81: 0.08125 | AR81: 0.125 | AS81: 0.325 | AT81: 0.5 | AU81: 0.08125 | AV81: 0.125 | AW81: 0.08125 | AX81: 0.125 | AY81: 0.08125 | AZ81: 0.125 | BA81: 0.08125 | BB81: 0.125 | BC81: 0.08125 | BD81: 0.125 | BE81: 0.08125 | BF81: 0.125 | BG81: 0.325 | BH81: 0.5 | BI81: 0.1625 | BJ81: 0.25 | BK81: 0.1625 | BL81: 0.25 | BM81: 0.1625 | BN81: 0.25 | BO81: 0.1625 | BP81: 0.25 | BQ81: 0.1625 | BR81: 0.25 | BS81: 0.1625 | BT81: 0.25 | BU81: 0.65 | BV81: 1
B83: TOTAL attritional premium risk (AEP) | F83: =SUM(K26:K81) -> 0 | G83: =SUM(G26:G81) -> 0 | H83: =SUM(H26:H81) -> 0 | K83: =SUM(K26:K81) -> 0 | L83: =SUM(L26:L81) -> 0 | N83: =SQRT(MMULT(TRANSPOSE(N26:N81),MMULT(RE_PREM_Corr,N26:N81))) -> 0 | O83: =SQRT(MMULT(TRANSPOSE(O26:O81),MMULT(RE_PREM_Corr,O26:O81))) -> 0
G84: sum | H84: sum | K84: sum | L84: sum | N84: var-cov | O84: var-cov

Sheet RE_IE1_experience_scen_info
A1: 11 | B1: StandRe: Additional info for experience scenarios IE1
B2: =RE_Company_name&" - "&RE_Status&" "&RE_Current_year -> - SST 2025
B13: Observation period (accident years) (start, end)
B14: Number of IE1 model segments | C14: =RE_IE1_Mseg_nr -> 0
B15: Number of frequency as-if adjustment segments
B16: Number of severity as-if adjustment segments

Sheet RE_IE1_exp_scen_hist_losses
A1: 12 | B1: StandRe: Input of historical large info event losses (for IE1 experience scenarios)
B2: =RE_Company_name&" - "&RE_Status&" "&RE_Current_year -> - SST 2025
H5: start column for severity as-if adj segments | I5: O
H6: start column to delete | I6: P
H7: row to put severity as-if adj names | I7: 18
B16: Historical large info event losses | M16: Severity of historical info event loss | O16: Severity of historical event loss per severity as-if adjustment segment
L17: Assigned frequency as-if adjustment segment (5) | M17: Estimated ultimate total loss severity to reinsurer (6) | O17: =""&RE_IE1_OutputForm &" of retrocession, non-discounted (6)" -> of retrocession, non-discounted (6)
B18: Description (cause of loss, affected insured risks) (1) | C18: Affected lines of business (in "detailed LOB" granularity) (2) | D18: Number of affected cedants per LOB (2) | E18: Additional comments | F18: Identifier (3) | G18: Date of loss (dd.mm.yyyy) | H18: Accident year of loss | I18: Reporting year of loss (4) | J18: Affected underwriting years | K18: Geographical region | L18: Name of frequency as-if adjustment segment | M18: =""&RE_IE1_OutputForm &" of retrocession, non-discounted, in SST currency" -> of retrocession, non-discounted, in SST currency | N18: Check if loss per severity as-if adjustment segment sums up to total loss | O18: =INDEX(RE_IE1_SevAsifSeg_names,1) -> 0
B19: Liability US (example, do not remove) | C19: product liability, workers compensation | D19: 3 for product liability, 2 for workers compensation | F19: EXP-00001 | G19: 2007-01-23 | H19: =IF(G19<>"",YEAR(G19),"") -> 2007 | I19: 2008 | J19: 2006,2007 | K19: North America | L19: Freq as-if adjustment segment 1 | M19: 60000000
N20: =IF(OR(M20="",M20=0),"",IF(M20=SUM(O20:AH20),"ok","NO")) -> 
H83: =IF(G83<>"",YEAR(G83),"") ->  | N83: =IF(OR(M83="",M83=0),"",IF(M83=SUM(O83:AH83),"ok","NO")) -> 
H147: =IF(G147<>"",YEAR(G147),"") ->  | N147: =IF(OR(M147="",M147=0),"",IF(M147=SUM(O147:AH147),"ok","NO")) -> 
H211: =IF(G211<>"",YEAR(G211),"") ->  | N211: =IF(OR(M211="",M211=0),"",IF(M211=SUM(O211:AH211),"ok","NO")) -> 
H275: =IF(G275<>"",YEAR(G275),"") ->  | N275: =IF(OR(M275="",M275=0),"",IF(M275=SUM(O275:AH275),"ok","NO")) -> 
H276: =IF(G276<>"",YEAR(G276),"") -> 
H277: =IF(G277<>"",YEAR(G277),"") -> 
H278: =IF(G278<>"",YEAR(G278),"") -> 
H279: =IF(G279<>"",YEAR(G279),"") -> 

Sheet RE_IE1_experience_scenarios
A1: 13 | B1: StandRe: Experience scenarios assigned to IE1
B2: =RE_Company_name&" - "&RE_Status&" "&RE_Current_year -> - SST 2025
H4: start column for IE1 model segments | I4: J
H5: start column to delete | I5: K
H6: row to put IE1 model segment names | I6: 27
B16: Mean of the frequency distribution
C17: Default | D17: Proposed (3) | E17: Selected
B18: Mean before frequency uplift (from scenarios below) | C18: =SUMPRODUCT(C31:C290,H31:H290) -> 0 | E18: =IF(ISBLANK(D18),C18,IF(D18>0, D18, NA())) -> 0
B19: Frequency uplift | C19: =SQRT(SUMPRODUCT((C31:C290)^2,H31:H290)) -> 0 | E19: =IF(ISBLANK(D19),C19,IF(D19>0, D19, NA())) -> 0
B20: Coefficient of Variation of the mean estimate | C20: =IF(C18=0, NA(), C19/C18) ->  | D20: =IF(D18=0, NA(), D19/D18) -> 
B21: Mean frequency | C21: =SUM(C18:C19) -> 0 | D21: =SUM(D18:D19) -> 0 | E21: =SUM(E18:E19) -> 0
B24: Experience scenarios
C25: Frequency | E25: Severity | H25: In scope of IE1 (1) | J25: Severity per IE1 model segment (2)
C26: As-if adjusted frequency incl. IBNyR | D26: Occurence frequency | E26: Historical | F26: ="As-if adjusted total loss severity ("& RE_IE1_OutputForm &" is used for modelling)" -> As-if adjusted total loss severity ( is used for modelling) | J26: =""&RE_IE1_OutputForm&" and non-discounted as-if adjusted loss severity at model segment granularity" -> and non-discounted as-if adjusted loss severity at model segment granularity
B27: Identifier | C27: before frequency uplift and correction for IE1 non-experience scenarios | D27: after frequency uplift and correction for IE1 non-experience scenarios | E27: =""&RE_IE1_OutputForm &" of retrocession, non-discounted, in SST currency" -> of retrocession, non-discounted, in SST currency | F27: gross of retrocession, non-discounted, in SST currency | G27: netgross of current year retrocession, non-discounted, in SST currency | H27: equal to 1 if it produces a scenario | I27: check if severities by IE1 model segments add up to total severity | J27: =INDEX(RE_IE1_ModSeg_names,1) -> 0
B28: TOTAL | H28: =SUM(H31:H290) -> 0
B30: =RE_IE1_exp_scen_hist_losses!F19 -> EXP-00001 | C30: 0.15 | D30: =IF(OR(C30=""),"",C30*1) -> 0.15 | E30: =RE_IE1_exp_scen_hist_losses!M19 -> 60000000 | F30: 50000000 | G30: 50000000
B31: =RE_IE1_exp_scen_hist_losses!F20 -> 0 | D31: =IF(OR(C31="",C31<=0),"",C31*'RE_IE1_non-experience_scenarios'!$G$24) ->  | E31: =RE_IE1_exp_scen_hist_losses!M20 -> 0 | H31: =IF(OR(C31="",C31<=0),"",IF(SUMPRODUCT(--(TRANSPOSE(J31:INDEX(J31:CK31,RE_IE1_Mseg_nr))>=RE_IE1_ModThres_amounts))>=1, 1, 0)) ->  | I31: =IF(IF(RE_IE1_OutputForm=RE_prescribed_parameters!$C$96,F31,G31)="","",IF(IF(RE_IE1_OutputForm=RE_prescribed_parameters!$C$96,F31,G31)=SUM(J31:CK31),"ok","NO")) -> 
B32: =RE_IE1_exp_scen_hist_losses!F21 -> 0 | D32: =IF(OR(C32="",C32<=0),"",C32*'RE_IE1_non-experience_scenarios'!$G$24) ->  | E32: =RE_IE1_exp_scen_hist_losses!M21 -> 0 | H32: =IF(OR(C32="",C32<=0),"",IF(SUMPRODUCT(--(TRANSPOSE(J32:INDEX(J32:CK32,RE_IE1_Mseg_nr))>=RE_IE1_ModThres_amounts))>=1, 1, 0)) ->  | I32: =IF(IF(RE_IE1_OutputForm=RE_prescribed_parameters!$C$96,F32,G32)="","",IF(IF(RE_IE1_OutputForm=RE_prescribed_parameters!$C$96,F32,G32)=SUM(J32:CK32),"ok","NO")) -> 
B33: =RE_IE1_exp_scen_hist_losses!F22 -> 0 | D33: =IF(OR(C33="",C33<=0),"",C33*'RE_IE1_non-experience_scenarios'!$G$24) ->  | E33: =RE_IE1_exp_scen_hist_losses!M22 -> 0 | H33: =IF(OR(C33="",C33<=0),"",IF(SUMPRODUCT(--(TRANSPOSE(J33:INDEX(J33:CK33,RE_IE1_Mseg_nr))>=RE_IE1_ModThres_amounts))>=1, 1, 0)) ->  | I33: =IF(IF(RE_IE1_OutputForm=RE_prescribed_parameters!$C$96,F33,G33)="","",IF(IF(RE_IE1_OutputForm=RE_prescribed_parameters!$C$96,F33,G33)=SUM(J33:CK33),"ok","NO")) -> 
B34: =RE_IE1_exp_scen_hist_losses!F23 -> 0 | D34: =IF(OR(C34="",C34<=0),"",C34*'RE_IE1_non-experience_scenarios'!$G$24) ->  | E34: =RE_IE1_exp_scen_hist_losses!M23 -> 0 | H34: =IF(OR(C34="",C34<=0),"",IF(SUMPRODUCT(--(TRANSPOSE(J34:INDEX(J34:CK34,RE_IE1_Mseg_nr))>=RE_IE1_ModThres_amounts))>=1, 1, 0)) ->  | I34: =IF(IF(RE_IE1_OutputForm=RE_prescribed_parameters!$C$96,F34,G34)="","",IF(IF(RE_IE1_OutputForm=RE_prescribed_parameters!$C$96,F34,G34)=SUM(J34:CK34),"ok","NO")) -> 
B35: =RE_IE1_exp_scen_hist_losses!F24 -> 0 | D35: =IF(OR(C35="",C35<=0),"",C35*'RE_IE1_non-experience_scenarios'!$G$24) ->  | E35: =RE_IE1_exp_scen_hist_losses!M24 -> 0 | H35: =IF(OR(C35="",C35<=0),"",IF(SUMPRODUCT(--(TRANSPOSE(J35:INDEX(J35:CK35,RE_IE1_Mseg_nr))>=RE_IE1_ModThres_amounts))>=1, 1, 0)) ->  | I35: =IF(IF(RE_IE1_OutputForm=RE_prescribed_parameters!$C$96,F35,G35)="","",IF(IF(RE_IE1_OutputForm=RE_prescribed_parameters!$C$96,F35,G35)=SUM(J35:CK35),"ok","NO")) -> 
B36: =RE_IE1_exp_scen_hist_losses!F25 -> 0 | D36: =IF(OR(C36="",C36<=0),"",C36*'RE_IE1_non-experience_scenarios'!$G$24) ->  | E36: =RE_IE1_exp_scen_hist_losses!M25 -> 0 | H36: =IF(OR(C36="",C36<=0),"",IF(SUMPRODUCT(--(TRANSPOSE(J36:INDEX(J36:CK36,RE_IE1_Mseg_nr))>=RE_IE1_ModThres_amounts))>=1, 1, 0)) ->  | I36: =IF(IF(RE_IE1_OutputForm=RE_prescribed_parameters!$C$96,F36,G36)="","",IF(IF(RE_IE1_OutputForm=RE_prescribed_parameters!$C$96,F36,G36)=SUM(J36:CK36),"ok","NO")) -> 
B37: =RE_IE1_exp_scen_hist_losses!F26 -> 0 | D37: =IF(OR(C37="",C37<=0),"",C37*'RE_IE1_non-experience_scenarios'!$G$24) ->  | E37: =RE_IE1_exp_scen_hist_losses!M26 -> 0 | H37: =IF(OR(C37="",C37<=0),"",IF(SUMPRODUCT(--(TRANSPOSE(J37:INDEX(J37:CK37,RE_IE1_Mseg_nr))>=RE_IE1_ModThres_amounts))>=1, 1, 0)) ->  | I37: =IF(IF(RE_IE1_OutputForm=RE_prescribed_parameters!$C$96,F37,G37)="","",IF(IF(RE_IE1_OutputForm=RE_prescribed_parameters!$C$96,F37,G37)=SUM(J37:CK37),"ok","NO")) -> 
B38: =RE_IE1_exp_scen_hist_losses!F27 -> 0 | D38: =IF(OR(C38="",C38<=0),"",C38*'RE_IE1_non-experience_scenarios'!$G$24) ->  | E38: =RE_IE1_exp_scen_hist_losses!M27 -> 0 | H38: =IF(OR(C38="",C38<=0),"",IF(SUMPRODUCT(--(TRANSPOSE(J38:INDEX(J38:CK38,RE_IE1_Mseg_nr))>=RE_IE1_ModThres_amounts))>=1, 1, 0)) ->  | I38: =IF(IF(RE_IE1_OutputForm=RE_prescribed_parameters!$C$96,F38,G38)="","",IF(IF(RE_IE1_OutputForm=RE_prescribed_parameters!$C$96,F38,G38)=SUM(J38:CK38),"ok","NO")) -> 
B39: =RE_IE1_exp_scen_hist_losses!F28 -> 0 | D39: =IF(OR(C39="",C39<=0),"",C39*'RE_IE1_non-experience_scenarios'!$G$24) ->  | E39: =RE_IE1_exp_scen_hist_losses!M28 -> 0 | H39: =IF(OR(C39="",C39<=0),"",IF(SUMPRODUCT(--(TRANSPOSE(J39:INDEX(J39:CK39,RE_IE1_Mseg_nr))>=RE_IE1_ModThres_amounts))>=1, 1, 0)) ->  | I39: =IF(IF(RE_IE1_OutputForm=RE_prescribed_parameters!$C$96,F39,G39)="","",IF(IF(RE_IE1_OutputForm=RE_prescribed_parameters!$C$96,F39,G39)=SUM(J39:CK39),"ok","NO")) -> 
B40: =RE_IE1_exp_scen_hist_losses!F29 -> 0 | D40: =IF(OR(C40="",C40<=0),"",C40*'RE_IE1_non-experience_scenarios'!$G$24) ->  | E40: =RE_IE1_exp_scen_hist_losses!M29 -> 0 | H40: =IF(OR(C40="",C40<=0),"",IF(SUMPRODUCT(--(TRANSPOSE(J40:INDEX(J40:CK40,RE_IE1_Mseg_nr))>=RE_IE1_ModThres_amounts))>=1, 1, 0)) ->  | I40: =IF(IF(RE_IE1_OutputForm=RE_prescribed_parameters!$C$96,F40,G40)="","",IF(IF(RE_IE1_OutputForm=RE_prescribed_parameters!$C$96,F40,G40)=SUM(J40:CK40),"ok","NO")) -> 
B41: =RE_IE1_exp_scen_hist_losses!F30 -> 0 | D41: =IF(OR(C41="",C41<=0),"",C41*'RE_IE1_non-experience_scenarios'!$G$24) ->  | E41: =RE_IE1_exp_scen_hist_losses!M30 -> 0 | H41: =IF(OR(C41="",C41<=0),"",IF(SUMPRODUCT(--(TRANSPOSE(J41:INDEX(J41:CK41,RE_IE1_Mseg_nr))>=RE_IE1_ModThres_amounts))>=1, 1, 0)) ->  | I41: =IF(IF(RE_IE1_OutputForm=RE_prescribed_parameters!$C$96,F41,G41)="","",IF(IF(RE_IE1_OutputForm=RE_prescribed_parameters!$C$96,F41,G41)=SUM(J41:CK41),"ok","NO")) -> 
B42: =RE_IE1_exp_scen_hist_losses!F31 -> 0 | D42: =IF(OR(C42="",C42<=0),"",C42*'RE_IE1_non-experience_scenarios'!$G$24) ->  | E42: =RE_IE1_exp_scen_hist_losses!M31 -> 0 | H42: =IF(OR(C42="",C42<=0),"",IF(SUMPRODUCT(--(TRANSPOSE(J42:INDEX(J42:CK42,RE_IE1_Mseg_nr))>=RE_IE1_ModThres_amounts))>=1, 1, 0)) ->  | I42: =IF(IF(RE_IE1_OutputForm=RE_prescribed_parameters!$C$96,F42,G42)="","",IF(IF(RE_IE1_OutputForm=RE_prescribed_parameters!$C$96,F42,G42)=SUM(J42:CK42),"ok","NO")) -> 
B43: =RE_IE1_exp_scen_hist_losses!F32 -> 0 | D43: =IF(OR(C43="",C43<=0),"",C43*'RE_IE1_non-experience_scenarios'!$G$24) ->  | E43: =RE_IE1_exp_scen_hist_losses!M32 -> 0 | H43: =IF(OR(C43="",C43<=0),"",IF(SUMPRODUCT(--(TRANSPOSE(J43:INDEX(J43:CK43,RE_IE1_Mseg_nr))>=RE_IE1_ModThres_amounts))>=1, 1, 0)) ->  | I43: =IF(IF(RE_IE1_OutputForm=RE_prescribed_parameters!$C$96,F43,G43)="","",IF(IF(RE_IE1_OutputForm=RE_prescribed_parameters!$C$96,F43,G43)=SUM(J43:CK43),"ok","NO")) -> 
B44: =RE_IE1_exp_scen_hist_losses!F33 -> 0 | D44: =IF(OR(C44="",C44<=0),"",C44*'RE_IE1_non-experience_scenarios'!$G$24) ->  | E44: =RE_IE1_exp_scen_hist_losses!M33 -> 0 | H44: =IF(OR(C44="",C44<=0),"",IF(SUMPRODUCT(--(TRANSPOSE(J44:INDEX(J44:CK44,RE_IE1_Mseg_nr))>=RE_IE1_ModThres_amounts))>=1, 1, 0)) ->  | I44: =IF(IF(RE_IE1_OutputForm=RE_prescribed_parameters!$C$96,F44,G44)="","",IF(IF(RE_IE1_OutputForm=RE_prescribed_parameters!$C$96,F44,G44)=SUM(J44:CK44),"ok","NO")) -> 
B45: =RE_IE1_exp_scen_hist_losses!F34 -> 0 | D45: =IF(OR(C45="",C45<=0),"",C45*'RE_IE1_non-experience_scenarios'!$G$24) ->  | E45: =RE_IE1_exp_scen_hist_losses!M34 -> 0 | H45: =IF(OR(C45="",C45<=0),"",IF(SUMPRODUCT(--(TRANSPOSE(J45:INDEX(J45:CK45,RE_IE1_Mseg_nr))>=RE_IE1_ModThres_amounts))>=1, 1, 0)) ->  | I45: =IF(IF(RE_IE1_OutputForm=RE_prescribed_parameters!$C$96,F45,G45)="","",IF(IF(RE_IE1_OutputForm=RE_prescribed_parameters!$C$96,F45,G45)=SUM(J45:CK45),"ok","NO")) -> 
B46: =RE_IE1_exp_scen_hist_losses!F35 -> 0 | D46: =IF(OR(C46="",C46<=0),"",C46*'RE_IE1_non-experience_scenarios'!$G$24) ->  | E46: =RE_IE1_exp_scen_hist_losses!M35 -> 0 | H46: =IF(OR(C46="",C46<=0),"",IF(SUMPRODUCT(--(TRANSPOSE(J46:INDEX(J46:CK46,RE_IE1_Mseg_nr))>=RE_IE1_ModThres_amounts))>=1, 1, 0)) ->  | I46: =IF(IF(RE_IE1_OutputForm=RE_prescribed_parameters!$C$96,F46,G46)="","",IF(IF(RE_IE1_OutputForm=RE_prescribed_parameters!$C$96,F46,G46)=SUM(J46:CK46),"ok","NO")) -> 
B47: =RE_IE1_exp_scen_hist_losses!F36 -> 0 | D47: =IF(OR(C47="",C47<=0),"",C47*'RE_IE1_non-experience_scenarios'!$G$24) ->  | E47: =RE_IE1_exp_scen_hist_losses!M36 -> 0 | H47: =IF(OR(C47="",C47<=0),"",IF(SUMPRODUCT(--(TRANSPOSE(J47:INDEX(J47:CK47,RE_IE1_Mseg_nr))>=RE_IE1_ModThres_amounts))>=1, 1, 0)) ->  | I47: =IF(IF(RE_IE1_OutputForm=RE_prescribed_parameters!$C$96,F47,G47)="","",IF(IF(RE_IE1_OutputForm=RE_prescribed_parameters!$C$96,F47,G47)=SUM(J47:CK47),"ok","NO")) -> 
B48: =RE_IE1_exp_scen_hist_losses!F37 -> 0 | D48: =IF(OR(C48="",C48<=0),"",C48*'RE_IE1_non-experience_scenarios'!$G$24) ->  | E48: =RE_IE1_exp_scen_hist_losses!M37 -> 0 | H48: =IF(OR(C48="",C48<=0),"",IF(SUMPRODUCT(--(TRANSPOSE(J48:INDEX(J48:CK48,RE_IE1_Mseg_nr))>=RE_IE1_ModThres_amounts))>=1, 1, 0)) ->  | I48: =IF(IF(RE_IE1_OutputForm=RE_prescribed_parameters!$C$96,F48,G48)="","",IF(IF(RE_IE1_OutputForm=RE_prescribed_parameters!$C$96,F48,G48)=SUM(J48:CK48),"ok","NO")) -> 
B49: =RE_IE1_exp_scen_hist_losses!F38 -> 0 | D49: =IF(OR(C49="",C49<=0),"",C49*'RE_IE1_non-experience_scenarios'!$G$24) ->  | E49: =RE_IE1_exp_scen_hist_losses!M38 -> 0 | H49: =IF(OR(C49="",C49<=0),"",IF(SUMPRODUCT(--(TRANSPOSE(J49:INDEX(J49:CK49,RE_IE1_Mseg_nr))>=RE_IE1_ModThres_amounts))>=1, 1, 0)) ->  | I49: =IF(IF(RE_IE1_OutputForm=RE_prescribed_parameters!$C$96,F49,G49)="","",IF(IF(RE_IE1_OutputForm=RE_prescribed_parameters!$C$96,F49,G49)=SUM(J49:CK49),"ok","NO")) -> 
B50: =RE_IE1_exp_scen_hist_losses!F39 -> 0 | D50: =IF(OR(C50="",C50<=0),"",C50*'RE_IE1_non-experience_scenarios'!$G$24) ->  | E50: =RE_IE1_exp_scen_hist_losses!M39 -> 0 | H50: =IF(OR(C50="",C50<=0),"",IF(SUMPRODUCT(--(TRANSPOSE(J50:INDEX(J50:CK50,RE_IE1_Mseg_nr))>=RE_IE1_ModThres_amounts))>=1, 1, 0)) ->  | I50: =IF(IF(RE_IE1_OutputForm=RE_prescribed_parameters!$C$96,F50,G50)="","",IF(IF(RE_IE1_OutputForm=RE_prescribed_parameters!$C$96,F50,G50)=SUM(J50:CK50),"ok","NO")) -> 
B51: =RE_IE1_exp_scen_hist_losses!F40 -> 0 | D51: =IF(OR(C51="",C51<=0),"",C51*'RE_IE1_non-experience_scenarios'!$G$24) ->  | E51: =RE_IE1_exp_scen_hist_losses!M40 -> 0 | H51: =IF(OR(C51="",C51<=0),"",IF(SUMPRODUCT(--(TRANSPOSE(J51:INDEX(J51:CK51,RE_IE1_Mseg_nr))>=RE_IE1_ModThres_amounts))>=1, 1, 0)) ->  | I51: =IF(IF(RE_IE1_OutputForm=RE_prescribed_parameters!$C$96,F51,G51)="","",IF(IF(RE_IE1_OutputForm=RE_prescribed_parameters!$C$96,F51,G51)=SUM(J51:CK51),"ok","NO")) -> 
B52: =RE_IE1_exp_scen_hist_losses!F41 -> 0 | D52: =IF(OR(C52="",C52<=0),"",C52*'RE_IE1_non-experience_scenarios'!$G$24) ->  | E52: =RE_IE1_exp_scen_hist_losses!M41 -> 0 | H52: =IF(OR(C52="",C52<=0),"",IF(SUMPRODUCT(--(TRANSPOSE(J52:INDEX(J52:CK52,RE_IE1_Mseg_nr))>=RE_IE1_ModThres_amounts))>=1, 1, 0)) ->  | I52: =IF(IF(RE_IE1_OutputForm=RE_prescribed_parameters!$C$96,F52,G52)="","",IF(IF(RE_IE1_OutputForm=RE_prescribed_parameters!$C$96,F52,G52)=SUM(J52:CK52),"ok","NO")) -> 
B53: =RE_IE1_exp_scen_hist_losses!F42 -> 0 | D53: =IF(OR(C53="",C53<=0),"",C53*'RE_IE1_non-experience_scenarios'!$G$24) ->  | E53: =RE_IE1_exp_scen_hist_losses!M42 -> 0 | H53: =IF(OR(C53="",C53<=0),"",IF(SUMPRODUCT(--(TRANSPOSE(J53:INDEX(J53:CK53,RE_IE1_Mseg_nr))>=RE_IE1_ModThres_amounts))>=1, 1, 0)) ->  | I53: =IF(IF(RE_IE1_OutputForm=RE_prescribed_parameters!$C$96,F53,G53)="","",IF(IF(RE_IE1_OutputForm=RE_prescribed_parameters!$C$96,F53,G53)=SUM(J53:CK53),"ok","NO")) -> 
B54: =RE_IE1_exp_scen_hist_losses!F43 -> 0 | D54: =IF(OR(C54="",C54<=0),"",C54*'RE_IE1_non-experience_scenarios'!$G$24) ->  | E54: =RE_IE1_exp_scen_hist_losses!M43 -> 0 | H54: =IF(OR(C54="",C54<=0),"",IF(SUMPRODUCT(--(TRANSPOSE(J54:INDEX(J54:CK54,RE_IE1_Mseg_nr))>=RE_IE1_ModThres_amounts))>=1, 1, 0)) ->  | I54: =IF(IF(RE_IE1_OutputForm=RE_prescribed_parameters!$C$96,F54,G54)="","",IF(IF(RE_IE1_OutputForm=RE_prescribed_parameters!$C$96,F54,G54)=SUM(J54:CK54),"ok","NO")) -> 
B55: =RE_IE1_exp_scen_hist_losses!F44 -> 0 | D55: =IF(OR(C55="",C55<=0),"",C55*'RE_IE1_non-experience_scenarios'!$G$24) ->  | E55: =RE_IE1_exp_scen_hist_losses!M44 -> 0 | H55: =IF(OR(C55="",C55<=0),"",IF(SUMPRODUCT(--(TRANSPOSE(J55:INDEX(J55:CK55,RE_IE1_Mseg_nr))>=RE_IE1_ModThres_amounts))>=1, 1, 0)) ->  | I55: =IF(IF(RE_IE1_OutputForm=RE_prescribed_parameters!$C$96,F55,G55)="","",IF(IF(RE_IE1_OutputForm=RE_prescribed_parameters!$C$96,F55,G55)=SUM(J55:CK55),"ok","NO")) -> 
B56: =RE_IE1_exp_scen_hist_losses!F45 -> 0 | D56: =IF(OR(C56="",C56<=0),"",C56*'RE_IE1_non-experience_scenarios'!$G$24) ->  | E56: =RE_IE1_exp_scen_hist_losses!M45 -> 0 | H56: =IF(OR(C56="",C56<=0),"",IF(SUMPRODUCT(--(TRANSPOSE(J56:INDEX(J56:CK56,RE_IE1_Mseg_nr))>=RE_IE1_ModThres_amounts))>=1, 1, 0)) ->  | I56: =IF(IF(RE_IE1_OutputForm=RE_prescribed_parameters!$C$96,F56,G56)="","",IF(IF(RE_IE1_OutputForm=RE_prescribed_parameters!$C$96,F56,G56)=SUM(J56:CK56),"ok","NO")) -> 
B57: =RE_IE1_exp_scen_hist_losses!F46 -> 0 | D57: =IF(OR(C57="",C57<=0),"",C57*'RE_IE1_non-experience_scenarios'!$G$24) ->  | E57: =RE_IE1_exp_scen_hist_losses!M46 -> 0 | H57: =IF(OR(C57="",C57<=0),"",IF(SUMPRODUCT(--(TRANSPOSE(J57:INDEX(J57:CK57,RE_IE1_Mseg_nr))>=RE_IE1_ModThres_amounts))>=1, 1, 0)) ->  | I57: =IF(IF(RE_IE1_OutputForm=RE_prescribed_parameters!$C$96,F57,G57)="","",IF(IF(RE_IE1_OutputForm=RE_prescribed_parameters!$C$96,F57,G57)=SUM(J57:CK57),"ok","NO")) -> 
B58: =RE_IE1_exp_scen_hist_losses!F47 -> 0 | D58: =IF(OR(C58="",C58<=0),"",C58*'RE_IE1_non-experience_scenarios'!$G$24) ->  | E58: =RE_IE1_exp_scen_hist_losses!M47 -> 0 | H58: =IF(OR(C58="",C58<=0),"",IF(SUMPRODUCT(--(TRANSPOSE(J58:INDEX(J58:CK58,RE_IE1_Mseg_nr))>=RE_IE1_ModThres_amounts))>=1, 1, 0)) ->  | I58: =IF(IF(RE_IE1_OutputForm=RE_prescribed_parameters!$C$96,F58,G58)="","",IF(IF(RE_IE1_OutputForm=RE_prescribed_parameters!$C$96,F58,G58)=SUM(J58:CK58),"ok","NO")) -> 
B59: =RE_IE1_exp_scen_hist_losses!F48 -> 0 | D59: =IF(OR(C59="",C59<=0),"",C59*'RE_IE1_non-experience_scenarios'!$G$24) ->  | E59: =RE_IE1_exp_scen_hist_losses!M48 -> 0 | H59: =IF(OR(C59="",C59<=0),"",IF(SUMPRODUCT(--(TRANSPOSE(J59:INDEX(J59:CK59,RE_IE1_Mseg_nr))>=RE_IE1_ModThres_amounts))>=1, 1, 0)) ->  | I59: =IF(IF(RE_IE1_OutputForm=RE_prescribed_parameters!$C$96,F59,G59)="","",IF(IF(RE_IE1_OutputForm=RE_prescribed_parameters!$C$96,F59,G59)=SUM(J59:CK59),"ok","NO")) -> 
B60: =RE_IE1_exp_scen_hist_losses!F49 -> 0 | D60: =IF(OR(C60="",C60<=0),"",C60*'RE_IE1_non-experience_scenarios'!$G$24) ->  | E60: =RE_IE1_exp_scen_hist_losses!M49 -> 0 | H60: =IF(OR(C60="",C60<=0),"",IF(SUMPRODUCT(--(TRANSPOSE(J60:INDEX(J60:CK60,RE_IE1_Mseg_nr))>=RE_IE1_ModThres_amounts))>=1, 1, 0)) ->  | I60: =IF(IF(RE_IE1_OutputForm=RE_prescribed_parameters!$C$96,F60,G60)="","",IF(IF(RE_IE1_OutputForm=RE_prescribed_parameters!$C$96,F60,G60)=SUM(J60:CK60),"ok","NO")) -> 
B61: =RE_IE1_exp_scen_hist_losses!F50 -> 0 | D61: =IF(OR(C61="",C61<=0),"",C61*'RE_IE1_non-experience_scenarios'!$G$24) ->  | E61: =RE_IE1_exp_scen_hist_losses!M50 -> 0 | H61: =IF(OR(C61="",C61<=0),"",IF(SUMPRODUCT(--(TRANSPOSE(J61:INDEX(J61:CK61,RE_IE1_Mseg_nr))>=RE_IE1_ModThres_amounts))>=1, 1, 0)) ->  | I61: =IF(IF(RE_IE1_OutputForm=RE_prescribed_parameters!$C$96,F61,G61)="","",IF(IF(RE_IE1_OutputForm=RE_prescribed_parameters!$C$96,F61,G61)=SUM(J61:CK61),"ok","NO")) -> 
B62: =RE_IE1_exp_scen_hist_losses!F51 -> 0 | D62: =IF(OR(C62="",C62<=0),"",C62*'RE_IE1_non-experience_scenarios'!$G$24) ->  | E62: =RE_IE1_exp_scen_hist_losses!M51 -> 0 | H62: =IF(OR(C62="",C62<=0),"",IF(SUMPRODUCT(--(TRANSPOSE(J62:INDEX(J62:CK62,RE_IE1_Mseg_nr))>=RE_IE1_ModThres_amounts))>=1, 1, 0)) ->  | I62: =IF(IF(RE_IE1_OutputForm=RE_prescribed_parameters!$C$96,F62,G62)="","",IF(IF(RE_IE1_OutputForm=RE_prescribed_parameters!$C$96,F62,G62)=SUM(J62:CK62),"ok","NO")) -> 
B63: =RE_IE1_exp_scen_hist_losses!F52 -> 0 | D63: =IF(OR(C63="",C63<=0),"",C63*'RE_IE1_non-experience_scenarios'!$G$24) ->  | E63: =RE_IE1_exp_scen_hist_losses!M52 -> 0 | H63: =IF(OR(C63="",C63<=0),"",IF(SUMPRODUCT(--(TRANSPOSE(J63:INDEX(J63:CK63,RE_IE1_Mseg_nr))>=RE_IE1_ModThres_amounts))>=1, 1, 0)) ->  | I63: =IF(IF(RE_IE1_OutputForm=RE_prescribed_parameters!$C$96,F63,G63)="","",IF(IF(RE_IE1_OutputForm=RE_prescribed_parameters!$C$96,F63,G63)=SUM(J63:CK63),"ok","NO")) -> 
B64: =RE_IE1_exp_scen_hist_losses!F53 -> 0 | D64: =IF(OR(C64="",C64<=0),"",C64*'RE_IE1_non-experience_scenarios'!$G$24) ->  | E64: =RE_IE1_exp_scen_hist_losses!M53 -> 0 | H64: =IF(OR(C64="",C64<=0),"",IF(SUMPRODUCT(--(TRANSPOSE(J64:INDEX(J64:CK64,RE_IE1_Mseg_nr))>=RE_IE1_ModThres_amounts))>=1, 1, 0)) ->  | I64: =IF(IF(RE_IE1_OutputForm=RE_prescribed_parameters!$C$96,F64,G64)="","",IF(IF(RE_IE1_OutputForm=RE_prescribed_parameters!$C$96,F64,G64)=SUM(J64:CK64),"ok","NO")) -> 
B65: =RE_IE1_exp_scen_hist_losses!F54 -> 0 | D65: =IF(OR(C65="",C65<=0),"",C65*'RE_IE1_non-experience_scenarios'!$G$24) ->  | E65: =RE_IE1_exp_scen_hist_losses!M54 -> 0 | H65: =IF(OR(C65="",C65<=0),"",IF(SUMPRODUCT(--(TRANSPOSE(J65:INDEX(J65:CK65,RE_IE1_Mseg_nr))>=RE_IE1_ModThres_amounts))>=1, 1, 0)) ->  | I65: =IF(IF(RE_IE1_OutputForm=RE_prescribed_parameters!$C$96,F65,G65)="","",IF(IF(RE_IE1_OutputForm=RE_prescribed_parameters!$C$96,F65,G65)=SUM(J65:CK65),"ok","NO")) -> 
B66: =RE_IE1_exp_scen_hist_losses!F55 -> 0 | D66: =IF(OR(C66="",C66<=0),"",C66*'RE_IE1_non-experience_scenarios'!$G$24) ->  | E66: =RE_IE1_exp_scen_hist_losses!M55 -> 0 | H66: =IF(OR(C66="",C66<=0),"",IF(SUMPRODUCT(--(TRANSPOSE(J66:INDEX(J66:CK66,RE_IE1_Mseg_nr))>=RE_IE1_ModThres_amounts))>=1, 1, 0)) ->  | I66: =IF(IF(RE_IE1_OutputForm=RE_prescribed_parameters!$C$96,F66,G66)="","",IF(IF(RE_IE1_OutputForm=RE_prescribed_parameters!$C$96,F66,G66)=SUM(J66:CK66),"ok","NO")) -> 
B67: =RE_IE1_exp_scen_hist_losses!F56 -> 0 | D67: =IF(OR(C67="",C67<=0),"",C67*'RE_IE1_non-experience_scenarios'!$G$24) ->  | E67: =RE_IE1_exp_scen_hist_losses!M56 -> 0 | H67: =IF(OR(C67="",C67<=0),"",IF(SUMPRODUCT(--(TRANSPOSE(J67:INDEX(J67:CK67,RE_IE1_Mseg_nr))>=RE_IE1_ModThres_amounts))>=1, 1, 0)) ->  | I67: =IF(IF(RE_IE1_OutputForm=RE_prescribed_parameters!$C$96,F67,G67)="","",IF(IF(RE_IE1_OutputForm=RE_prescribed_parameters!$C$96,F67,G67)=SUM(J67:CK67),"ok","NO")) -> 
B68: =RE_IE1_exp_scen_hist_losses!F57 -> 0 | D68: =IF(OR(C68="",C68<=0),"",C68*'RE_IE1_non-experience_scenarios'!$G$24) ->  | E68: =RE_IE1_exp_scen_hist_losses!M57 -> 0 | H68: =IF(OR(C68="",C68<=0),"",IF(SUMPRODUCT(--(TRANSPOSE(J68:INDEX(J68:CK68,RE_IE1_Mseg_nr))>=RE_IE1_ModThres_amounts))>=1, 1, 0)) ->  | I68: =IF(IF(RE_IE1_OutputForm=RE_prescribed_parameters!$C$96,F68,G68)="","",IF(IF(RE_IE1_OutputForm=RE_prescribed_parameters!$C$96,F68,G68)=SUM(J68:CK68),"ok","NO")) -> 
B69: =RE_IE1_exp_scen_hist_losses!F58 -> 0 | D69: =IF(OR(C69="",C69<=0),"",C69*'RE_IE1_non-experience_scenarios'!$G$24) ->  | E69: =RE_IE1_exp_scen_hist_losses!M58 -> 0 | H69: =IF(OR(C69="",C69<=0),"",IF(SUMPRODUCT(--(TRANSPOSE(J69:INDEX(J69:CK69,RE_IE1_Mseg_nr))>=RE_IE1_ModThres_amounts))>=1, 1, 0)) ->  | I69: =IF(IF(RE_IE1_OutputForm=RE_prescribed_parameters!$C$96,F69,G69)="","",IF(IF(RE_IE1_OutputForm=RE_prescribed_parameters!$C$96,F69,G69)=SUM(J69:CK69),"ok","NO")) -> 
B70: =RE_IE1_exp_scen_hist_losses!F59 -> 0 | D70: =IF(OR(C70="",C70<=0),"",C70*'RE_IE1_non-experience_scenarios'!$G$24) ->  | E70: =RE_IE1_exp_scen_hist_losses!M59 -> 0 | H70: =IF(OR(C70="",C70<=0),"",IF(SUMPRODUCT(--(TRANSPOSE(J70:INDEX(J70:CK70,RE_IE1_Mseg_nr))>=RE_IE1_ModThres_amounts))>=1, 1, 0)) ->  | I70: =IF(IF(RE_IE1_OutputForm=RE_prescribed_parameters!$C$96,F70,G70)="","",IF(IF(RE_IE1_OutputForm=RE_prescribed_parameters!$C$96,F70,G70)=SUM(J70:CK70),"ok","NO")) -> 
B71: =RE_IE1_exp_scen_hist_losses!F60 -> 0 | D71: =IF(OR(C71="",C71<=0),"",C71*'RE_IE1_non-experience_scenarios'!$G$24) ->  | E71: =RE_IE1_exp_scen_hist_losses!M60 -> 0 | H71: =IF(OR(C71="",C71<=0),"",IF(SUMPRODUCT(--(TRANSPOSE(J71:INDEX(J71:CK71,RE_IE1_Mseg_nr))>=RE_IE1_ModThres_amounts))>=1, 1, 0)) ->  | I71: =IF(IF(RE_IE1_OutputForm=RE_prescribed_parameters!$C$96,F71,G71)="","",IF(IF(RE_IE1_OutputForm=RE_prescribed_parameters!$C$96,F71,G71)=SUM(J71:CK71),"ok","NO")) -> 
B72: =RE_IE1_exp_scen_hist_losses!F61 -> 0 | D72: =IF(OR(C72="",C72<=0),"",C72*'RE_IE1_non-experience_scenarios'!$G$24) ->  | E72: =RE_IE1_exp_scen_hist_losses!M61 -> 0 | H72: =IF(OR(C72="",C72<=0),"",IF(SUMPRODUCT(--(TRANSPOSE(J72:INDEX(J72:CK72,RE_IE1_Mseg_nr))>=RE_IE1_ModThres_amounts))>=1, 1, 0)) ->  | I72: =IF(IF(RE_IE1_OutputForm=RE_prescribed_parameters!$C$96,F72,G72)="","",IF(IF(RE_IE1_OutputForm=RE_prescribed_parameters!$C$96,F72,G72)=SUM(J72:CK72),"ok","NO")) -> 
B73: =RE_IE1_exp_scen_hist_losses!F62 -> 0 | D73: =IF(OR(C73="",C73<=0),"",C73*'RE_IE1_non-experience_scenarios'!$G$24) ->  | E73: =RE_IE1_exp_scen_hist_losses!M62 -> 0 | H73: =IF(OR(C73="",C73<=0),"",IF(SUMPRODUCT(--(TRANSPOSE(J73:INDEX(J73:CK73,RE_IE1_Mseg_nr))>=RE_IE1_ModThres_amounts))>=1, 1, 0)) ->  | I73: =IF(IF(RE_IE1_OutputForm=RE_prescribed_parameters!$C$96,F73,G73)="","",IF(IF(RE_IE1_OutputForm=RE_prescribed_parameters!$C$96,F73,G73)=SUM(J73:CK73),"ok","NO")) -> 
B74: =RE_IE1_exp_scen_hist_losses!F63 -> 0 | D74: =IF(OR(C74="",C74<=0),"",C74*'RE_IE1_non-experience_scenarios'!$G$24) ->  | E74: =RE_IE1_exp_scen_hist_losses!M63 -> 0 | H74: =IF(OR(C74="",C74<=0),"",IF(SUMPRODUCT(--(TRANSPOSE(J74:INDEX(J74:CK74,RE_IE1_Mseg_nr))>=RE_IE1_ModThres_amounts))>=1, 1, 0)) ->  | I74: =IF(IF(RE_IE1_OutputForm=RE_prescribed_parameters!$C$96,F74,G74)="","",IF(IF(RE_IE1_OutputForm=RE_prescribed_parameters!$C$96,F74,G74)=SUM(J74:CK74),"ok","NO")) -> 
B75: =RE_IE1_exp_scen_hist_losses!F64 -> 0 | D75: =IF(OR(C75="",C75<=0),"",C75*'RE_IE1_non-experience_scenarios'!$G$24) ->  | E75: =RE_IE1_exp_scen_hist_losses!M64 -> 0 | H75: =IF(OR(C75="",C75<=0),"",IF(SUMPRODUCT(--(TRANSPOSE(J75:INDEX(J75:CK75,RE_IE1_Mseg_nr))>=RE_IE1_ModThres_amounts))>=1, 1, 0)) ->  | I75: =IF(IF(RE_IE1_OutputForm=RE_prescribed_parameters!$C$96,F75,G75)="","",IF(IF(RE_IE1_OutputForm=RE_prescribed_parameters!$C$96,F75,G75)=SUM(J75:CK75),"ok","NO")) -> 
B76: =RE_IE1_exp_scen_hist_losses!F65 -> 0 | D76: =IF(OR(C76="",C76<=0),"",C76*'RE_IE1_non-experience_scenarios'!$G$24) ->  | E76: =RE_IE1_exp_scen_hist_losses!M65 -> 0 | H76: =IF(OR(C76="",C76<=0),"",IF(SUMPRODUCT(--(TRANSPOSE(J76:INDEX(J76:CK76,RE_IE1_Mseg_nr))>=RE_IE1_ModThres_amounts))>=1, 1, 0)) ->  | I76: =IF(IF(RE_IE1_OutputForm=RE_prescribed_parameters!$C$96,F76,G76)="","",IF(IF(RE_IE1_OutputForm=RE_prescribed_parameters!$C$96,F76,G76)=SUM(J76:CK76),"ok","NO")) -> 
B77: =RE_IE1_exp_scen_hist_losses!F66 -> 0 | D77: =IF(OR(C77="",C77<=0),"",C77*'RE_IE1_non-experience_scenarios'!$G$24) ->  | E77: =RE_IE1_exp_scen_hist_losses!M66 -> 0 | H77: =IF(OR(C77="",C77<=0),"",IF(SUMPRODUCT(--(TRANSPOSE(J77:INDEX(J77:CK77,RE_IE1_Mseg_nr))>=RE_IE1_ModThres_amounts))>=1, 1, 0)) ->  | I77: =IF(IF(RE_IE1_OutputForm=RE_prescribed_parameters!$C$96,F77,G77)="","",IF(IF(RE_IE1_OutputForm=RE_prescribed_parameters!$C$96,F77,G77)=SUM(J77:CK77),"ok","NO")) -> 
B78: =RE_IE1_exp_scen_hist_losses!F67 -> 0 | D78: =IF(OR(C78="",C78<=0),"",C78*'RE_IE1_non-experience_scenarios'!$G$24) ->  | E78: =RE_IE1_exp_scen_hist_losses!M67 -> 0 | H78: =IF(OR(C78="",C78<=0),"",IF(SUMPRODUCT(--(TRANSPOSE(J78:INDEX(J78:CK78,RE_IE1_Mseg_nr))>=RE_IE1_ModThres_amounts))>=1, 1, 0)) ->  | I78: =IF(IF(RE_IE1_OutputForm=RE_prescribed_parameters!$C$96,F78,G78)="","",IF(IF(RE_IE1_OutputForm=RE_prescribed_parameters!$C$96,F78,G78)=SUM(J78:CK78),"ok","NO")) -> 
B79: =RE_IE1_exp_scen_hist_losses!F68 -> 0 | D79: =IF(OR(C79="",C79<=0),"",C79*'RE_IE1_non-experience_scenarios'!$G$24) ->  | E79: =RE_IE1_exp_scen_hist_losses!M68 -> 0 | H79: =IF(OR(C79="",C79<=0),"",IF(SUMPRODUCT(--(TRANSPOSE(J79:INDEX(J79:CK79,RE_IE1_Mseg_nr))>=RE_IE1_ModThres_amounts))>=1, 1, 0)) ->  | I79: =IF(IF(RE_IE1_OutputForm=RE_prescribed_parameters!$C$96,F79,G79)="","",IF(IF(RE_IE1_OutputForm=RE_prescribed_parameters!$C$96,F79,G79)=SUM(J79:CK79),"ok","NO")) -> 
B80: =RE_IE1_exp_scen_hist_losses!F69 -> 0 | D80: =IF(OR(C80="",C80<=0),"",C80*'RE_IE1_non-experience_scenarios'!$G$24) ->  | E80: =RE_IE1_exp_scen_hist_losses!M69 -> 0 | H80: =IF(OR(C80="",C80<=0),"",IF(SUMPRODUCT(--(TRANSPOSE(J80:INDEX(J80:CK80,RE_IE1_Mseg_nr))>=RE_IE1_ModThres_amounts))>=1, 1, 0)) ->  | I80: =IF(IF(RE_IE1_OutputForm=RE_prescribed_parameters!$C$96,F80,G80)="","",IF(IF(RE_IE1_OutputForm=RE_prescribed_parameters!$C$96,F80,G80)=SUM(J80:CK80),"ok","NO")) -> 
B81: =RE_IE1_exp_scen_hist_losses!F70 -> 0 | D81: =IF(OR(C81="",C81<=0),"",C81*'RE_IE1_non-experience_scenarios'!$G$24) ->  | E81: =RE_IE1_exp_scen_hist_losses!M70 -> 0 | H81: =IF(OR(C81="",C81<=0),"",IF(SUMPRODUCT(--(TRANSPOSE(J81:INDEX(J81:CK81,RE_IE1_Mseg_nr))>=RE_IE1_ModThres_amounts))>=1, 1, 0)) ->  | I81: =IF(IF(RE_IE1_OutputForm=RE_prescribed_parameters!$C$96,F81,G81)="","",IF(IF(RE_IE1_OutputForm=RE_prescribed_parameters!$C$96,F81,G81)=SUM(J81:CK81),"ok","NO")) -> 
B82: =RE_IE1_exp_scen_hist_losses!F71 -> 0 | D82: =IF(OR(C82="",C82<=0),"",C82*'RE_IE1_non-experience_scenarios'!$G$24) ->  | E82: =RE_IE1_exp_scen_hist_losses!M71 -> 0 | H82: =IF(OR(C82="",C82<=0),"",IF(SUMPRODUCT(--(TRANSPOSE(J82:INDEX(J82:CK82,RE_IE1_Mseg_nr))>=RE_IE1_ModThres_amounts))>=1, 1, 0)) ->  | I82: =IF(IF(RE_IE1_OutputForm=RE_prescribed_parameters!$C$96,F82,G82)="","",IF(IF(RE_IE1_OutputForm=RE_prescribed_parameters!$C$96,F82,G82)=SUM(J82:CK82),"ok","NO")) -> 
B83: =RE_IE1_exp_scen_hist_losses!F72 -> 0 | D83: =IF(OR(C83="",C83<=0),"",C83*'RE_IE1_non-experience_scenarios'!$G$24) ->  | E83: =RE_IE1_exp_scen_hist_losses!M72 -> 0 | H83: =IF(OR(C83="",C83<=0),"",IF(SUMPRODUCT(--(TRANSPOSE(J83:INDEX(J83:CK83,RE_IE1_Mseg_nr))>=RE_IE1_ModThres_amounts))>=1, 1, 0)) ->  | I83: =IF(IF(RE_IE1_OutputForm=RE_prescribed_parameters!$C$96,F83,G83)="","",IF(IF(RE_IE1_OutputForm=RE_prescribed_parameters!$C$96,F83,G83)=SUM(J83:CK83),"ok","NO")) -> 
B84: =RE_IE1_exp_scen_hist_losses!F73 -> 0 | D84: =IF(OR(C84="",C84<=0),"",C84*'RE_IE1_non-experience_scenarios'!$G$24) ->  | E84: =RE_IE1_exp_scen_hist_losses!M73 -> 0 | H84: =IF(OR(C84="",C84<=0),"",IF(SUMPRODUCT(--(TRANSPOSE(J84:INDEX(J84:CK84,RE_IE1_Mseg_nr))>=RE_IE1_ModThres_amounts))>=1, 1, 0)) ->  | I84: =IF(IF(RE_IE1_OutputForm=RE_prescribed_parameters!$C$96,F84,G84)="","",IF(IF(RE_IE1_OutputForm=RE_prescribed_parameters!$C$96,F84,G84)=SUM(J84:CK84),"ok","NO")) -> 
B85: =RE_IE1_exp_scen_hist_losses!F74 -> 0 | D85: =IF(OR(C85="",C85<=0),"",C85*'RE_IE1_non-experience_scenarios'!$G$24) ->  | E85: =RE_IE1_exp_scen_hist_losses!M74 -> 0 | H85: =IF(OR(C85="",C85<=0),"",IF(SUMPRODUCT(--(TRANSPOSE(J85:INDEX(J85:CK85,RE_IE1_Mseg_nr))>=RE_IE1_ModThres_amounts))>=1, 1, 0)) ->  | I85: =IF(IF(RE_IE1_OutputForm=RE_prescribed_parameters!$C$96,F85,G85)="","",IF(IF(RE_IE1_OutputForm=RE_prescribed_parameters!$C$96,F85,G85)=SUM(J85:CK85),"ok","NO")) -> 
B86: =RE_IE1_exp_scen_hist_losses!F75 -> 0 | D86: =IF(OR(C86="",C86<=0),"",C86*'RE_IE1_non-experience_scenarios'!$G$24) ->  | E86: =RE_IE1_exp_scen_hist_losses!M75 -> 0 | H86: =IF(OR(C86="",C86<=0),"",IF(SUMPRODUCT(--(TRANSPOSE(J86:INDEX(J86:CK86,RE_IE1_Mseg_nr))>=RE_IE1_ModThres_amounts))>=1, 1, 0)) ->  | I86: =IF(IF(RE_IE1_OutputForm=RE_prescribed_parameters!$C$96,F86,G86)="","",IF(IF(RE_IE1_OutputForm=RE_prescribed_parameters!$C$96,F86,G86)=SUM(J86:CK86),"ok","NO")) -> 
B87: =RE_IE1_exp_scen_hist_losses!F76 -> 0 | D87: =IF(OR(C87="",C87<=0),"",C87*'RE_IE1_non-experience_scenarios'!$G$24) ->  | E87: =RE_IE1_exp_scen_hist_losses!M76 -> 0 | H87: =IF(OR(C87="",C87<=0),"",IF(SUMPRODUCT(--(TRANSPOSE(J87:INDEX(J87:CK87,RE_IE1_Mseg_nr))>=RE_IE1_ModThres_amounts))>=1, 1, 0)) ->  | I87: =IF(IF(RE_IE1_OutputForm=RE_prescribed_parameters!$C$96,F87,G87)="","",IF(IF(RE_IE1_OutputForm=RE_prescribed_parameters!$C$96,F87,G87)=SUM(J87:CK87),"ok","NO")) -> 
B88: =RE_IE1_exp_scen_hist_losses!F77 -> 0 | D88: =IF(OR(C88="",C88<=0),"",C88*'RE_IE1_non-experience_scenarios'!$G$24) ->  | E88: =RE_IE1_exp_scen_hist_losses!M77 -> 0 | H88: =IF(OR(C88="",C88<=0),"",IF(SUMPRODUCT(--(TRANSPOSE(J88:INDEX(J88:CK88,RE_IE1_Mseg_nr))>=RE_IE1_ModThres_amounts))>=1, 1, 0)) ->  | I88: =IF(IF(RE_IE1_OutputForm=RE_prescribed_parameters!$C$96,F88,G88)="","",IF(IF(RE_IE1_OutputForm=RE_prescribed_parameters!$C$96,F88,G88)=SUM(J88:CK88),"ok","NO")) -> 
B89: =RE_IE1_exp_scen_hist_losses!F78 -> 0 | D89: =IF(OR(C89="",C89<=0),"",C89*'RE_IE1_non-experience_scenarios'!$G$24) ->  | E89: =RE_IE1_exp_scen_hist_losses!M78 -> 0 | H89: =IF(OR(C89="",C89<=0),"",IF(SUMPRODUCT(--(TRANSPOSE(J89:INDEX(J89:CK89,RE_IE1_Mseg_nr))>=RE_IE1_ModThres_amounts))>=1, 1, 0)) ->  | I89: =IF(IF(RE_IE1_OutputForm=RE_prescribed_parameters!$C$96,F89,G89)="","",IF(IF(RE_IE1_OutputForm=RE_prescribed_parameters!$C$96,F89,G89)=SUM(J89:CK89),"ok","NO")) -> 
B90: =RE_IE1_exp_scen_hist_losses!F79 -> 0 | D90: =IF(OR(C90="",C90<=0),"",C90*'RE_IE1_non-experience_scenarios'!$G$24) ->  | E90: =RE_IE1_exp_scen_hist_losses!M79 -> 0 | H90: =IF(OR(C90="",C90<=0),"",IF(SUMPRODUCT(--(TRANSPOSE(J90:INDEX(J90:CK90,RE_IE1_Mseg_nr))>=RE_IE1_ModThres_amounts))>=1, 1, 0)) ->  | I90: =IF(IF(RE_IE1_OutputForm=RE_prescribed_parameters!$C$96,F90,G90)="","",IF(IF(RE_IE1_OutputForm=RE_prescribed_parameters!$C$96,F90,G90)=SUM(J90:CK90),"ok","NO")) -> 
B91: =RE_IE1_exp_scen_hist_losses!F80 -> 0 | D91: =IF(OR(C91="",C91<=0),"",C91*'RE_IE1_non-experience_scenarios'!$G$24) ->  | E91: =RE_IE1_exp_scen_hist_losses!M80 -> 0 | H91: =IF(OR(C91="",C91<=0),"",IF(SUMPRODUCT(--(TRANSPOSE(J91:INDEX(J91:CK91,RE_IE1_Mseg_nr))>=RE_IE1_ModThres_amounts))>=1, 1, 0)) ->  | I91: =IF(IF(RE_IE1_OutputForm=RE_prescribed_parameters!$C$96,F91,G91)="","",IF(IF(RE_IE1_OutputForm=RE_prescribed_parameters!$C$96,F91,G91)=SUM(J91:CK91),"ok","NO")) -> 
B92: =RE_IE1_exp_scen_hist_losses!F81 -> 0 | D92: =IF(OR(C92="",C92<=0),"",C92*'RE_IE1_non-experience_scenarios'!$G$24) ->  | E92: =RE_IE1_exp_scen_hist_losses!M81 -> 0 | H92: =IF(OR(C92="",C92<=0),"",IF(SUMPRODUCT(--(TRANSPOSE(J92:INDEX(J92:CK92,RE_IE1_Mseg_nr))>=RE_IE1_ModThres_amounts))>=1, 1, 0)) ->  | I92: =IF(IF(RE_IE1_OutputForm=RE_prescribed_parameters!$C$96,F92,G92)="","",IF(IF(RE_IE1_OutputForm=RE_prescribed_parameters!$C$96,F92,G92)=SUM(J92:CK92),"ok","NO")) -> 
B93: =RE_IE1_exp_scen_hist_losses!F82 -> 0 | D93: =IF(OR(C93="",C93<=0),"",C93*'RE_IE1_non-experience_scenarios'!$G$24) ->  | E93: =RE_IE1_exp_scen_hist_losses!M82 -> 0 | H93: =IF(OR(C93="",C93<=0),"",IF(SUMPRODUCT(--(TRANSPOSE(J93:INDEX(J93:CK93,RE_IE1_Mseg_nr))>=RE_IE1_ModThres_amounts))>=1, 1, 0)) ->  | I93: =IF(IF(RE_IE1_OutputForm=RE_prescribed_parameters!$C$96,F93,G93)="","",IF(IF(RE_IE1_OutputForm=RE_prescribed_parameters!$C$96,F93,G93)=SUM(J93:CK93),"ok","NO")) -> 
B94: =RE_IE1_exp_scen_hist_losses!F83 -> 0 | D94: =IF(OR(C94="",C94<=0),"",C94*'RE_IE1_non-experience_scenarios'!$G$24) ->  | E94: =RE_IE1_exp_scen_hist_losses!M83 -> 0 | H94: =IF(OR(C94="",C94<=0),"",IF(SUMPRODUCT(--(TRANSPOSE(J94:INDEX(J94:CK94,RE_IE1_Mseg_nr))>=RE_IE1_ModThres_amounts))>=1, 1, 0)) ->  | I94: =IF(IF(RE_IE1_OutputForm=RE_prescribed_parameters!$C$96,F94,G94)="","",IF(IF(RE_IE1_OutputForm=RE_prescribed_parameters!$C$96,F94,G94)=SUM(J94:CK94),"ok","NO")) -> 
B95: =RE_IE1_exp_scen_hist_losses!F84 -> 0 | D95: =IF(OR(C95="",C95<=0),"",C95*'RE_IE1_non-experience_scenarios'!$G$24) ->  | E95: =RE_IE1_exp_scen_hist_losses!M84 -> 0 | H95: =IF(OR(C95="",C95<=0),"",IF(SUMPRODUCT(--(TRANSPOSE(J95:INDEX(J95:CK95,RE_IE1_Mseg_nr))>=RE_IE1_ModThres_amounts))>=1, 1, 0)) ->  | I95: =IF(IF(RE_IE1_OutputForm=RE_prescribed_parameters!$C$96,F95,G95)="","",IF(IF(RE_IE1_OutputForm=RE_prescribed_parameters!$C$96,F95,G95)=SUM(J95:CK95),"ok","NO")) -> 
B96: =RE_IE1_exp_scen_hist_losses!F85 -> 0 | D96: =IF(OR(C96="",C96<=0),"",C96*'RE_IE1_non-experience_scenarios'!$G$24) ->  | E96: =RE_IE1_exp_scen_hist_losses!M85 -> 0 | H96: =IF(OR(C96="",C96<=0),"",IF(SUMPRODUCT(--(TRANSPOSE(J96:INDEX(J96:CK96,RE_IE1_Mseg_nr))>=RE_IE1_ModThres_amounts))>=1, 1, 0)) ->  | I96: =IF(IF(RE_IE1_OutputForm=RE_prescribed_parameters!$C$96,F96,G96)="","",IF(IF(RE_IE1_OutputForm=RE_prescribed_parameters!$C$96,F96,G96)=SUM(J96:CK96),"ok","NO")) -> 
B97: =RE_IE1_exp_scen_hist_losses!F86 -> 0 | D97: =IF(OR(C97="",C97<=0),"",C97*'RE_IE1_non-experience_scenarios'!$G$24) ->  | E97: =RE_IE1_exp_scen_hist_losses!M86 -> 0 | H97: =IF(OR(C97="",C97<=0),"",IF(SUMPRODUCT(--(TRANSPOSE(J97:INDEX(J97:CK97,RE_IE1_Mseg_nr))>=RE_IE1_ModThres_amounts))>=1, 1, 0)) ->  | I97: =IF(IF(RE_IE1_OutputForm=RE_prescribed_parameters!$C$96,F97,G97)="","",IF(IF(RE_IE1_OutputForm=RE_prescribed_parameters!$C$96,F97,G97)=SUM(J97:CK97),"ok","NO")) -> 
B98: =RE_IE1_exp_scen_hist_losses!F87 -> 0 | D98: =IF(OR(C98="",C98<=0),"",C98*'RE_IE1_non-experience_scenarios'!$G$24) ->  | E98: =RE_IE1_exp_scen_hist_losses!M87 -> 0 | H98: =IF(OR(C98="",C98<=0),"",IF(SUMPRODUCT(--(TRANSPOSE(J98:INDEX(J98:CK98,RE_IE1_Mseg_nr))>=RE_IE1_ModThres_amounts))>=1, 1, 0)) ->  | I98: =IF(IF(RE_IE1_OutputForm=RE_prescribed_parameters!$C$96,F98,G98)="","",IF(IF(RE_IE1_OutputForm=RE_prescribed_parameters!$C$96,F98,G98)=SUM(J98:CK98),"ok","NO")) -> 
B99: =RE_IE1_exp_scen_hist_losses!F88 -> 0 | D99: =IF(OR(C99="",C99<=0),"",C99*'RE_IE1_non-experience_scenarios'!$G$24) ->  | E99: =RE_IE1_exp_scen_hist_losses!M88 -> 0 | H99: =IF(OR(C99="",C99<=0),"",IF(SUMPRODUCT(--(TRANSPOSE(J99:INDEX(J99:CK99,RE_IE1_Mseg_nr))>=RE_IE1_ModThres_amounts))>=1, 1, 0)) ->  | I99: =IF(IF(RE_IE1_OutputForm=RE_prescribed_parameters!$C$96,F99,G99)="","",IF(IF(RE_IE1_OutputForm=RE_prescribed_parameters!$C$96,F99,G99)=SUM(J99:CK99),"ok","NO")) -> 
B100: =RE_IE1_exp_scen_hist_losses!F89 -> 0 | D100: =IF(OR(C100="",C100<=0),"",C100*'RE_IE1_non-experience_scenarios'!$G$24) ->  | E100: =RE_IE1_exp_scen_hist_losses!M89 -> 0 | H100: =IF(OR(C100="",C100<=0),"",IF(SUMPRODUCT(--(TRANSPOSE(J100:INDEX(J100:CK100,RE_IE1_Mseg_nr))>=RE_IE1_ModThres_amounts))>=1, 1, 0)) ->  | I100: =IF(IF(RE_IE1_OutputForm=RE_prescribed_parameters!$C$96,F100,G100)="","",IF(IF(RE_IE1_OutputForm=RE_prescribed_parameters!$C$96,F100,G100)=SUM(J100:CK100),"ok","NO")) -> 
B101: =RE_IE1_exp_scen_hist_losses!F90 -> 0 | D101: =IF(OR(C101="",C101<=0),"",C101*'RE_IE1_non-experience_scenarios'!$G$24) ->  | E101: =RE_IE1_exp_scen_hist_losses!M90 -> 0 | H101: =IF(OR(C101="",C101<=0),"",IF(SUMPRODUCT(--(TRANSPOSE(J101:INDEX(J101:CK101,RE_IE1_Mseg_nr))>=RE_IE1_ModThres_amounts))>=1, 1, 0)) ->  | I101: =IF(IF(RE_IE1_OutputForm=RE_prescribed_parameters!$C$96,F101,G101)="","",IF(IF(RE_IE1_OutputForm=RE_prescribed_parameters!$C$96,F101,G101)=SUM(J101:CK101),"ok","NO")) -> 
B102: =RE_IE1_exp_scen_hist_losses!F91 -> 0 | D102: =IF(OR(C102="",C102<=0),"",C102*'RE_IE1_non-experience_scenarios'!$G$24) ->  | E102: =RE_IE1_exp_scen_hist_losses!M91 -> 0 | H102: =IF(OR(C102="",C102<=0),"",IF(SUMPRODUCT(--(TRANSPOSE(J102:INDEX(J102:CK102,RE_IE1_Mseg_nr))>=RE_IE1_ModThres_amounts))>=1, 1, 0)) ->  | I102: =IF(IF(RE_IE1_OutputForm=RE_prescribed_parameters!$C$96,F102,G102)="","",IF(IF(RE_IE1_OutputForm=RE_prescribed_parameters!$C$96,F102,G102)=SUM(J102:CK102),"ok","NO")) -> 
B103: =RE_IE1_exp_scen_hist_losses!F92 -> 0 | D103: =IF(OR(C103="",C103<=0),"",C103*'RE_IE1_non-experience_scenarios'!$G$24) ->  | E103: =RE_IE1_exp_scen_hist_losses!M92 -> 0 | H103: =IF(OR(C103="",C103<=0),"",IF(SUMPRODUCT(--(TRANSPOSE(J103:INDEX(J103:CK103,RE_IE1_Mseg_nr))>=RE_IE1_ModThres_amounts))>=1, 1, 0)) ->  | I103: =IF(IF(RE_IE1_OutputForm=RE_prescribed_parameters!$C$96,F103,G103)="","",IF(IF(RE_IE1_OutputForm=RE_prescribed_parameters!$C$96,F103,G103)=SUM(J103:CK103),"ok","NO")) -> 
B104: =RE_IE1_exp_scen_hist_losses!F93 -> 0 | D104: =IF(OR(C104="",C104<=0),"",C104*'RE_IE1_non-experience_scenarios'!$G$24) ->  | E104: =RE_IE1_exp_scen_hist_losses!M93 -> 0 | H104: =IF(OR(C104="",C104<=0),"",IF(SUMPRODUCT(--(TRANSPOSE(J104:INDEX(J104:CK104,RE_IE1_Mseg_nr))>=RE_IE1_ModThres_amounts))>=1, 1, 0)) ->  | I104: =IF(IF(RE_IE1_OutputForm=RE_prescribed_parameters!$C$96,F104,G104)="","",IF(IF(RE_IE1_OutputForm=RE_prescribed_parameters!$C$96,F104,G104)=SUM(J104:CK104),"ok","NO")) -> 
B105: =RE_IE1_exp_scen_hist_losses!F94 -> 0 | D105: =IF(OR(C105="",C105<=0),"",C105*'RE_IE1_non-experience_scenarios'!$G$24) ->  | E105: =RE_IE1_exp_scen_hist_losses!M94 -> 0 | H105: =IF(OR(C105="",C105<=0),"",IF(SUMPRODUCT(--(TRANSPOSE(J105:INDEX(J105:CK105,RE_IE1_Mseg_nr))>=RE_IE1_ModThres_amounts))>=1, 1, 0)) ->  | I105: =IF(IF(RE_IE1_OutputForm=RE_prescribed_parameters!$C$96,F105,G105)="","",IF(IF(RE_IE1_OutputForm=RE_prescribed_parameters!$C$96,F105,G105)=SUM(J105:CK105),"ok","NO")) -> 
B106: =RE_IE1_exp_scen_hist_losses!F95 -> 0 | D106: =IF(OR(C106="",C106<=0),"",C106*'RE_IE1_non-experience_scenarios'!$G$24) ->  | E106: =RE_IE1_exp_scen_hist_losses!M95 -> 0 | H106: =IF(OR(C106="",C106<=0),"",IF(SUMPRODUCT(--(TRANSPOSE(J106:INDEX(J106:CK106,RE_IE1_Mseg_nr))>=RE_IE1_ModThres_amounts))>=1, 1, 0)) ->  | I106: =IF(IF(RE_IE1_OutputForm=RE_prescribed_parameters!$C$96,F106,G106)="","",IF(IF(RE_IE1_OutputForm=RE_prescribed_parameters!$C$96,F106,G106)=SUM(J106:CK106),"ok","NO")) -> 
B107: =RE_IE1_exp_scen_hist_losses!F96 -> 0 | D107: =IF(OR(C107="",C107<=0),"",C107*'RE_IE1_non-experience_scenarios'!$G$24) ->  | E107: =RE_IE1_exp_scen_hist_losses!M96 -> 0 | H107: =IF(OR(C107="",C107<=0),"",IF(SUMPRODUCT(--(TRANSPOSE(J107:INDEX(J107:CK107,RE_IE1_Mseg_nr))>=RE_IE1_ModThres_amounts))>=1, 1, 0)) ->  | I107: =IF(IF(RE_IE1_OutputForm=RE_prescribed_parameters!$C$96,F107,G107)="","",IF(IF(RE_IE1_OutputForm=RE_prescribed_parameters!$C$96,F107,G107)=SUM(J107:CK107),"ok","NO")) -> 
B108: =RE_IE1_exp_scen_hist_losses!F97 -> 0 | D108: =IF(OR(C108="",C108<=0),"",C108*'RE_IE1_non-experience_scenarios'!$G$24) ->  | E108: =RE_IE1_exp_scen_hist_losses!M97 -> 0 | H108: =IF(OR(C108="",C108<=0),"",IF(SUMPRODUCT(--(TRANSPOSE(J108:INDEX(J108:CK108,RE_IE1_Mseg_nr))>=RE_IE1_ModThres_amounts))>=1, 1, 0)) ->  | I108: =IF(IF(RE_IE1_OutputForm=RE_prescribed_parameters!$C$96,F108,G108)="","",IF(IF(RE_IE1_OutputForm=RE_prescribed_parameters!$C$96,F108,G108)=SUM(J108:CK108),"ok","NO")) -> 
B109: =RE_IE1_exp_scen_hist_losses!F98 -> 0 | D109: =IF(OR(C109="",C109<=0),"",C109*'RE_IE1_non-experience_scenarios'!$G$24) ->  | E109: =RE_IE1_exp_scen_hist_losses!M98 -> 0 | H109: =IF(OR(C109="",C109<=0),"",IF(SUMPRODUCT(--(TRANSPOSE(J109:INDEX(J109:CK109,RE_IE1_Mseg_nr))>=RE_IE1_ModThres_amounts))>=1, 1, 0)) ->  | I109: =IF(IF(RE_IE1_OutputForm=RE_prescribed_parameters!$C$96,F109,G109)="","",IF(IF(RE_IE1_OutputForm=RE_prescribed_parameters!$C$96,F109,G109)=SUM(J109:CK109),"ok","NO")) -> 
B110: =RE_IE1_exp_scen_hist_losses!F99 -> 0 | D110: =IF(OR(C110="",C110<=0),"",C110*'RE_IE1_non-experience_scenarios'!$G$24) ->  | E110: =RE_IE1_exp_scen_hist_losses!M99 -> 0 | H110: =IF(OR(C110="",C110<=0),"",IF(SUMPRODUCT(--(TRANSPOSE(J110:INDEX(J110:CK110,RE_IE1_Mseg_nr))>=RE_IE1_ModThres_amounts))>=1, 1, 0)) ->  | I110: =IF(IF(RE_IE1_OutputForm=RE_prescribed_parameters!$C$96,F110,G110)="","",IF(IF(RE_IE1_OutputForm=RE_prescribed_parameters!$C$96,F110,G110)=SUM(J110:CK110),"ok","NO")) -> 
B111: =RE_IE1_exp_scen_hist_losses!F100 -> 0 | D111: =IF(OR(C111="",C111<=0),"",C111*'RE_IE1_non-experience_scenarios'!$G$24) ->  | E111: =RE_IE1_exp_scen_hist_losses!M100 -> 0 | H111: =IF(OR(C111="",C111<=0),"",IF(SUMPRODUCT(--(TRANSPOSE(J111:INDEX(J111:CK111,RE_IE1_Mseg_nr))>=RE_IE1_ModThres_amounts))>=1, 1, 0)) ->  | I111: =IF(IF(RE_IE1_OutputForm=RE_prescribed_parameters!$C$96,F111,G111)="","",IF(IF(RE_IE1_OutputForm=RE_prescribed_parameters!$C$96,F111,G111)=SUM(J111:CK111),"ok","NO")) -> 
B112: =RE_IE1_exp_scen_hist_losses!F101 -> 0 | D112: =IF(OR(C112="",C112<=0),"",C112*'RE_IE1_non-experience_scenarios'!$G$24) ->  | E112: =RE_IE1_exp_scen_hist_losses!M101 -> 0 | H112: =IF(OR(C112="",C112<=0),"",IF(SUMPRODUCT(--(TRANSPOSE(J112:INDEX(J112:CK112,RE_IE1_Mseg_nr))>=RE_IE1_ModThres_amounts))>=1, 1, 0)) ->  | I112: =IF(IF(RE_IE1_OutputForm=RE_prescribed_parameters!$C$96,F112,G112)="","",IF(IF(RE_IE1_OutputForm=RE_prescribed_parameters!$C$96,F112,G112)=SUM(J112:CK112),"ok","NO")) -> 
B113: =RE_IE1_exp_scen_hist_losses!F102 -> 0 | D113: =IF(OR(C113="",C113<=0),"",C113*'RE_IE1_non-experience_scenarios'!$G$24) ->  | E113: =RE_IE1_exp_scen_hist_losses!M102 -> 0 | H113: =IF(OR(C113="",C113<=0),"",IF(SUMPRODUCT(--(TRANSPOSE(J113:INDEX(J113:CK113,RE_IE1_Mseg_nr))>=RE_IE1_ModThres_amounts))>=1, 1, 0)) ->  | I113: =IF(IF(RE_IE1_OutputForm=RE_prescribed_parameters!$C$96,F113,G113)="","",IF(IF(RE_IE1_OutputForm=RE_prescribed_parameters!$C$96,F113,G113)=SUM(J113:CK113),"ok","NO")) -> 
B114: =RE_IE1_exp_scen_hist_losses!F103 -> 0 | D114: =IF(OR(C114="",C114<=0),"",C114*'RE_IE1_non-experience_scenarios'!$G$24) ->  | E114: =RE_IE1_exp_scen_hist_losses!M103 -> 0 | H114: =IF(OR(C114="",C114<=0),"",IF(SUMPRODUCT(--(TRANSPOSE(J114:INDEX(J114:CK114,RE_IE1_Mseg_nr))>=RE_IE1_ModThres_amounts))>=1, 1, 0)) ->  | I114: =IF(IF(RE_IE1_OutputForm=RE_prescribed_parameters!$C$96,F114,G114)="","",IF(IF(RE_IE1_OutputForm=RE_prescribed_parameters!$C$96,F114,G114)=SUM(J114:CK114),"ok","NO")) -> 
B115: =RE_IE1_exp_scen_hist_losses!F104 -> 0 | D115: =IF(OR(C115="",C115<=0),"",C115*'RE_IE1_non-experience_scenarios'!$G$24) ->  | E115: =RE_IE1_exp_scen_hist_losses!M104 -> 0 | H115: =IF(OR(C115="",C115<=0),"",IF(SUMPRODUCT(--(TRANSPOSE(J115:INDEX(J115:CK115,RE_IE1_Mseg_nr))>=RE_IE1_ModThres_amounts))>=1, 1, 0)) ->  | I115: =IF(IF(RE_IE1_OutputForm=RE_prescribed_parameters!$C$96,F115,G115)="","",IF(IF(RE_IE1_OutputForm=RE_prescribed_parameters!$C$96,F115,G115)=SUM(J115:CK115),"ok","NO")) -> 
B116: =RE_IE1_exp_scen_hist_losses!F105 -> 0 | D116: =IF(OR(C116="",C116<=0),"",C116*'RE_IE1_non-experience_scenarios'!$G$24) ->  | E116: =RE_IE1_exp_scen_hist_losses!M105 -> 0 | H116: =IF(OR(C116="",C116<=0),"",IF(SUMPRODUCT(--(TRANSPOSE(J116:INDEX(J116:CK116,RE_IE1_Mseg_nr))>=RE_IE1_ModThres_amounts))>=1, 1, 0)) ->  | I116: =IF(IF(RE_IE1_OutputForm=RE_prescribed_parameters!$C$96,F116,G116)="","",IF(IF(RE_IE1_OutputForm=RE_prescribed_parameters!$C$96,F116,G116)=SUM(J116:CK116),"ok","NO")) -> 
B117: =RE_IE1_exp_scen_hist_losses!F106 -> 0 | D117: =IF(OR(C117="",C117<=0),"",C117*'RE_IE1_non-experience_scenarios'!$G$24) ->  | E117: =RE_IE1_exp_scen_hist_losses!M106 -> 0 | H117: =IF(OR(C117="",C117<=0),"",IF(SUMPRODUCT(--(TRANSPOSE(J117:INDEX(J117:CK117,RE_IE1_Mseg_nr))>=RE_IE1_ModThres_amounts))>=1, 1, 0)) ->  | I117: =IF(IF(RE_IE1_OutputForm=RE_prescribed_parameters!$C$96,F117,G117)="","",IF(IF(RE_IE1_OutputForm=RE_prescribed_parameters!$C$96,F117,G117)=SUM(J117:CK117),"ok","NO")) -> 
B118: =RE_IE1_exp_scen_hist_losses!F107 -> 0 | D118: =IF(OR(C118="",C118<=0),"",C118*'RE_IE1_non-experience_scenarios'!$G$24) ->  | E118: =RE_IE1_exp_scen_hist_losses!M107 -> 0 | H118: =IF(OR(C118="",C118<=0),"",IF(SUMPRODUCT(--(TRANSPOSE(J118:INDEX(J118:CK118,RE_IE1_Mseg_nr))>=RE_IE1_ModThres_amounts))>=1, 1, 0)) ->  | I118: =IF(IF(RE_IE1_OutputForm=RE_prescribed_parameters!$C$96,F118,G118)="","",IF(IF(RE_IE1_OutputForm=RE_prescribed_parameters!$C$96,F118,G118)=SUM(J118:CK118),"ok","NO")) -> 
B119: =RE_IE1_exp_scen_hist_losses!F108 -> 0 | D119: =IF(OR(C119="",C119<=0),"",C119*'RE_IE1_non-experience_scenarios'!$G$24) ->  | E119: =RE_IE1_exp_scen_hist_losses!M108 -> 0 | H119: =IF(OR(C119="",C119<=0),"",IF(SUMPRODUCT(--(TRANSPOSE(J119:INDEX(J119:CK119,RE_IE1_Mseg_nr))>=RE_IE1_ModThres_amounts))>=1, 1, 0)) ->  | I119: =IF(IF(RE_IE1_OutputForm=RE_prescribed_parameters!$C$96,F119,G119)="","",IF(IF(RE_IE1_OutputForm=RE_prescribed_parameters!$C$96,F119,G119)=SUM(J119:CK119),"ok","NO")) -> 
B120: =RE_IE1_exp_scen_hist_losses!F109 -> 0 | D120: =IF(OR(C120="",C120<=0),"",C120*'RE_IE1_non-experience_scenarios'!$G$24) ->  | E120: =RE_IE1_exp_scen_hist_losses!M109 -> 0 | H120: =IF(OR(C120="",C120<=0),"",IF(SUMPRODUCT(--(TRANSPOSE(J120:INDEX(J120:CK120,RE_IE1_Mseg_nr))>=RE_IE1_ModThres_amounts))>=1, 1, 0)) ->  | I120: =IF(IF(RE_IE1_OutputForm=RE_prescribed_parameters!$C$96,F120,G120)="","",IF(IF(RE_IE1_OutputForm=RE_prescribed_parameters!$C$96,F120,G120)=SUM(J120:CK120),"ok","NO")) -> 
B121: =RE_IE1_exp_scen_hist_losses!F110 -> 0 | D121: =IF(OR(C121="",C121<=0),"",C121*'RE_IE1_non-experience_scenarios'!$G$24) ->  | E121: =RE_IE1_exp_scen_hist_losses!M110 -> 0 | H121: =IF(OR(C121="",C121<=0),"",IF(SUMPRODUCT(--(TRANSPOSE(J121:INDEX(J121:CK121,RE_IE1_Mseg_nr))>=RE_IE1_ModThres_amounts))>=1, 1, 0)) ->  | I121: =IF(IF(RE_IE1_OutputForm=RE_prescribed_parameters!$C$96,F121,G121)="","",IF(IF(RE_IE1_OutputForm=RE_prescribed_parameters!$C$96,F121,G121)=SUM(J121:CK121),"ok","NO")) -> 
B122: =RE_IE1_exp_scen_hist_losses!F111 -> 0 | D122: =IF(OR(C122="",C122<=0),"",C122*'RE_IE1_non-experience_scenarios'!$G$24) ->  | E122: =RE_IE1_exp_scen_hist_losses!M111 -> 0 | H122: =IF(OR(C122="",C122<=0),"",IF(SUMPRODUCT(--(TRANSPOSE(J122:INDEX(J122:CK122,RE_IE1_Mseg_nr))>=RE_IE1_ModThres_amounts))>=1, 1, 0)) ->  | I122: =IF(IF(RE_IE1_OutputForm=RE_prescribed_parameters!$C$96,F122,G122)="","",IF(IF(RE_IE1_OutputForm=RE_prescribed_parameters!$C$96,F122,G122)=SUM(J122:CK122),"ok","NO")) -> 
B123: =RE_IE1_exp_scen_hist_losses!F112 -> 0 | D123: =IF(OR(C123="",C123<=0),"",C123*'RE_IE1_non-experience_scenarios'!$G$24) ->  | E123: =RE_IE1_exp_scen_hist_losses!M112 -> 0 | H123: =IF(OR(C123="",C123<=0),"",IF(SUMPRODUCT(--(TRANSPOSE(J123:INDEX(J123:CK123,RE_IE1_Mseg_nr))>=RE_IE1_ModThres_amounts))>=1, 1, 0)) ->  | I123: =IF(IF(RE_IE1_OutputForm=RE_prescribed_parameters!$C$96,F123,G123)="","",IF(IF(RE_IE1_OutputForm=RE_prescribed_parameters!$C$96,F123,G123)=SUM(J123:CK123),"ok","NO")) -> 
B124: =RE_IE1_exp_scen_hist_losses!F113 -> 0 | D124: =IF(OR(C124="",C124<=0),"",C124*'RE_IE1_non-experience_scenarios'!$G$24) ->  | E124: =RE_IE1_exp_scen_hist_losses!M113 -> 0 | H124: =IF(OR(C124="",C124<=0),"",IF(SUMPRODUCT(--(TRANSPOSE(J124:INDEX(J124:CK124,RE_IE1_Mseg_nr))>=RE_IE1_ModThres_amounts))>=1, 1, 0)) ->  | I124: =IF(IF(RE_IE1_OutputForm=RE_prescribed_parameters!$C$96,F124,G124)="","",IF(IF(RE_IE1_OutputForm=RE_prescribed_parameters!$C$96,F124,G124)=SUM(J124:CK124),"ok","NO")) -> 
B125: =RE_IE1_exp_scen_hist_losses!F114 -> 0 | D125: =IF(OR(C125="",C125<=0),"",C125*'RE_IE1_non-experience_scenarios'!$G$24) ->  | E125: =RE_IE1_exp_scen_hist_losses!M114 -> 0 | H125: =IF(OR(C125="",C125<=0),"",IF(SUMPRODUCT(--(TRANSPOSE(J125:INDEX(J125:CK125,RE_IE1_Mseg_nr))>=RE_IE1_ModThres_amounts))>=1, 1, 0)) ->  | I125: =IF(IF(RE_IE1_OutputForm=RE_prescribed_parameters!$C$96,F125,G125)="","",IF(IF(RE_IE1_OutputForm=RE_prescribed_parameters!$C$96,F125,G125)=SUM(J125:CK125),"ok","NO")) -> 
B126: =RE_IE1_exp_scen_hist_losses!F115 -> 0 | D126: =IF(OR(C126="",C126<=0),"",C126*'RE_IE1_non-experience_scenarios'!$G$24) ->  | E126: =RE_IE1_exp_scen_hist_losses!M115 -> 0 | H126: =IF(OR(C126="",C126<=0),"",IF(SUMPRODUCT(--(TRANSPOSE(J126:INDEX(J126:CK126,RE_IE1_Mseg_nr))>=RE_IE1_ModThres_amounts))>=1, 1, 0)) ->  | I126: =IF(IF(RE_IE1_OutputForm=RE_prescribed_parameters!$C$96,F126,G126)="","",IF(IF(RE_IE1_OutputForm=RE_prescribed_parameters!$C$96,F126,G126)=SUM(J126:CK126),"ok","NO")) -> 
B127: =RE_IE1_exp_scen_hist_losses!F116 -> 0 | D127: =IF(OR(C127="",C127<=0),"",C127*'RE_IE1_non-experience_scenarios'!$G$24) ->  | E127: =RE_IE1_exp_scen_hist_losses!M116 -> 0 | H127: =IF(OR(C127="",C127<=0),"",IF(SUMPRODUCT(--(TRANSPOSE(J127:INDEX(J127:CK127,RE_IE1_Mseg_nr))>=RE_IE1_ModThres_amounts))>=1, 1, 0)) ->  | I127: =IF(IF(RE_IE1_OutputForm=RE_prescribed_parameters!$C$96,F127,G127)="","",IF(IF(RE_IE1_OutputForm=RE_prescribed_parameters!$C$96,F127,G127)=SUM(J127:CK127),"ok","NO")) -> 
B128: =RE_IE1_exp_scen_hist_losses!F117 -> 0 | D128: =IF(OR(C128="",C128<=0),"",C128*'RE_IE1_non-experience_scenarios'!$G$24) ->  | E128: =RE_IE1_exp_scen_hist_losses!M117 -> 0 | H128: =IF(OR(C128="",C128<=0),"",IF(SUMPRODUCT(--(TRANSPOSE(J128:INDEX(J128:CK128,RE_IE1_Mseg_nr))>=RE_IE1_ModThres_amounts))>=1, 1, 0)) ->  | I128: =IF(IF(RE_IE1_OutputForm=RE_prescribed_parameters!$C$96,F128,G128)="","",IF(IF(RE_IE1_OutputForm=RE_prescribed_parameters!$C$96,F128,G128)=SUM(J128:CK128),"ok","NO")) -> 
B129: =RE_IE1_exp_scen_hist_losses!F118 -> 0 | D129: =IF(OR(C129="",C129<=0),"",C129*'RE_IE1_non-experience_scenarios'!$G$24) ->  | E129: =RE_IE1_exp_scen_hist_losses!M118 -> 0 | H129: =IF(OR(C129="",C129<=0),"",IF(SUMPRODUCT(--(TRANSPOSE(J129:INDEX(J129:CK129,RE_IE1_Mseg_nr))>=RE_IE1_ModThres_amounts))>=1, 1, 0)) ->  | I129: =IF(IF(RE_IE1_OutputForm=RE_prescribed_parameters!$C$96,F129,G129)="","",IF(IF(RE_IE1_OutputForm=RE_prescribed_parameters!$C$96,F129,G129)=SUM(J129:CK129),"ok","NO")) -> 
B130: =RE_IE1_exp_scen_hist_losses!F119 -> 0 | D130: =IF(OR(C130="",C130<=0),"",C130*'RE_IE1_non-experience_scenarios'!$G$24) ->  | E130: =RE_IE1_exp_scen_hist_losses!M119 -> 0 | H130: =IF(OR(C130="",C130<=0),"",IF(SUMPRODUCT(--(TRANSPOSE(J130:INDEX(J130:CK130,RE_IE1_Mseg_nr))>=RE_IE1_ModThres_amounts))>=1, 1, 0)) ->  | I130: =IF(IF(RE_IE1_OutputForm=RE_prescribed_parameters!$C$96,F130,G130)="","",IF(IF(RE_IE1_OutputForm=RE_prescribed_parameters!$C$96,F130,G130)=SUM(J130:CK130),"ok","NO")) -> 
B131: =RE_IE1_exp_scen_hist_losses!F120 -> 0 | D131: =IF(OR(C131="",C131<=0),"",C131*'RE_IE1_non-experience_scenarios'!$G$24) ->  | E131: =RE_IE1_exp_scen_hist_losses!M120 -> 0 | H131: =IF(OR(C131="",C131<=0),"",IF(SUMPRODUCT(--(TRANSPOSE(J131:INDEX(J131:CK131,RE_IE1_Mseg_nr))>=RE_IE1_ModThres_amounts))>=1, 1, 0)) ->  | I131: =IF(IF(RE_IE1_OutputForm=RE_prescribed_parameters!$C$96,F131,G131)="","",IF(IF(RE_IE1_OutputForm=RE_prescribed_parameters!$C$96,F131,G131)=SUM(J131:CK131),"ok","NO")) -> 
B132: =RE_IE1_exp_scen_hist_losses!F121 -> 0 | D132: =IF(OR(C132="",C132<=0),"",C132*'RE_IE1_non-experience_scenarios'!$G$24) ->  | E132: =RE_IE1_exp_scen_hist_losses!M121 -> 0 | H132: =IF(OR(C132="",C132<=0),"",IF(SUMPRODUCT(--(TRANSPOSE(J132:INDEX(J132:CK132,RE_IE1_Mseg_nr))>=RE_IE1_ModThres_amounts))>=1, 1, 0)) ->  | I132: =IF(IF(RE_IE1_OutputForm=RE_prescribed_parameters!$C$96,F132,G132)="","",IF(IF(RE_IE1_OutputForm=RE_prescribed_parameters!$C$96,F132,G132)=SUM(J132:CK132),"ok","NO")) -> 
B133: =RE_IE1_exp_scen_hist_losses!F122 -> 0 | D133: =IF(OR(C133="",C133<=0),"",C133*'RE_IE1_non-experience_scenarios'!$G$24) ->  | E133: =RE_IE1_exp_scen_hist_losses!M122 -> 0 | H133: =IF(OR(C133="",C133<=0),"",IF(SUMPRODUCT(--(TRANSPOSE(J133:INDEX(J133:CK133,RE_IE1_Mseg_nr))>=RE_IE1_ModThres_amounts))>=1, 1, 0)) ->  | I133: =IF(IF(RE_IE1_OutputForm=RE_prescribed_parameters!$C$96,F133,G133)="","",IF(IF(RE_IE1_OutputForm=RE_prescribed_parameters!$C$96,F133,G133)=SUM(J133:CK133),"ok","NO")) -> 
B134: =RE_IE1_exp_scen_hist_losses!F123 -> 0 | D134: =IF(OR(C134="",C134<=0),"",C134*'RE_IE1_non-experience_scenarios'!$G$24) ->  | E134: =RE_IE1_exp_scen_hist_losses!M123 -> 0 | H134: =IF(OR(C134="",C134<=0),"",IF(SUMPRODUCT(--(TRANSPOSE(J134:INDEX(J134:CK134,RE_IE1_Mseg_nr))>=RE_IE1_ModThres_amounts))>=1, 1, 0)) ->  | I134: =IF(IF(RE_IE1_OutputForm=RE_prescribed_parameters!$C$96,F134,G134)="","",IF(IF(RE_IE1_OutputForm=RE_prescribed_parameters!$C$96,F134,G134)=SUM(J134:CK134),"ok","NO")) -> 
B135: =RE_IE1_exp_scen_hist_losses!F124 -> 0 | D135: =IF(OR(C135="",C135<=0),"",C135*'RE_IE1_non-experience_scenarios'!$G$24) ->  | E135: =RE_IE1_exp_scen_hist_losses!M124 -> 0 | H135: =IF(OR(C135="",C135<=0),"",IF(SUMPRODUCT(--(TRANSPOSE(J135:INDEX(J135:CK135,RE_IE1_Mseg_nr))>=RE_IE1_ModThres_amounts))>=1, 1, 0)) ->  | I135: =IF(IF(RE_IE1_OutputForm=RE_prescribed_parameters!$C$96,F135,G135)="","",IF(IF(RE_IE1_OutputForm=RE_prescribed_parameters!$C$96,F135,G135)=SUM(J135:CK135),"ok","NO")) -> 
B136: =RE_IE1_exp_scen_hist_losses!F125 -> 0 | D136: =IF(OR(C136="",C136<=0),"",C136*'RE_IE1_non-experience_scenarios'!$G$24) ->  | E136: =RE_IE1_exp_scen_hist_losses!M125 -> 0 | H136: =IF(OR(C136="",C136<=0),"",IF(SUMPRODUCT(--(TRANSPOSE(J136:INDEX(J136:CK136,RE_IE1_Mseg_nr))>=RE_IE1_ModThres_amounts))>=1, 1, 0)) ->  | I136: =IF(IF(RE_IE1_OutputForm=RE_prescribed_parameters!$C$96,F136,G136)="","",IF(IF(RE_IE1_OutputForm=RE_prescribed_parameters!$C$96,F136,G136)=SUM(J136:CK136),"ok","NO")) -> 
B137: =RE_IE1_exp_scen_hist_losses!F126 -> 0 | D137: =IF(OR(C137="",C137<=0),"",C137*'RE_IE1_non-experience_scenarios'!$G$24) ->  | E137: =RE_IE1_exp_scen_hist_losses!M126 -> 0 | H137: =IF(OR(C137="",C137<=0),"",IF(SUMPRODUCT(--(TRANSPOSE(J137:INDEX(J137:CK137,RE_IE1_Mseg_nr))>=RE_IE1_ModThres_amounts))>=1, 1, 0)) ->  | I137: =IF(IF(RE_IE1_OutputForm=RE_prescribed_parameters!$C$96,F137,G137)="","",IF(IF(RE_IE1_OutputForm=RE_prescribed_parameters!$C$96,F137,G137)=SUM(J137:CK137),"ok","NO")) -> 
B138: =RE_IE1_exp_scen_hist_losses!F127 -> 0 | D138: =IF(OR(C138="",C138<=0),"",C138*'RE_IE1_non-experience_scenarios'!$G$24) ->  | E138: =RE_IE1_exp_scen_hist_losses!M127 -> 0 | H138: =IF(OR(C138="",C138<=0),"",IF(SUMPRODUCT(--(TRANSPOSE(J138:INDEX(J138:CK138,RE_IE1_Mseg_nr))>=RE_IE1_ModThres_amounts))>=1, 1, 0)) ->  | I138: =IF(IF(RE_IE1_OutputForm=RE_prescribed_parameters!$C$96,F138,G138)="","",IF(IF(RE_IE1_OutputForm=RE_prescribed_parameters!$C$96,F138,G138)=SUM(J138:CK138),"ok","NO")) -> 
B139: =RE_IE1_exp_scen_hist_losses!F128 -> 0 | D139: =IF(OR(C139="",C139<=0),"",C139*'RE_IE1_non-experience_scenarios'!$G$24) ->  | E139: =RE_IE1_exp_scen_hist_losses!M128 -> 0 | H139: =IF(OR(C139="",C139<=0),"",IF(SUMPRODUCT(--(TRANSPOSE(J139:INDEX(J139:CK139,RE_IE1_Mseg_nr))>=RE_IE1_ModThres_amounts))>=1, 1, 0)) ->  | I139: =IF(IF(RE_IE1_OutputForm=RE_prescribed_parameters!$C$96,F139,G139)="","",IF(IF(RE_IE1_OutputForm=RE_prescribed_parameters!$C$96,F139,G139)=SUM(J139:CK139),"ok","NO")) -> 
B140: =RE_IE1_exp_scen_hist_losses!F129 -> 0 | D140: =IF(OR(C140="",C140<=0),"",C140*'RE_IE1_non-experience_scenarios'!$G$24) ->  | E140: =RE_IE1_exp_scen_hist_losses!M129 -> 0 | H140: =IF(OR(C140="",C140<=0),"",IF(SUMPRODUCT(--(TRANSPOSE(J140:INDEX(J140:CK140,RE_IE1_Mseg_nr))>=RE_IE1_ModThres_amounts))>=1, 1, 0)) ->  | I140: =IF(IF(RE_IE1_OutputForm=RE_prescribed_parameters!$C$96,F140,G140)="","",IF(IF(RE_IE1_OutputForm=RE_prescribed_parameters!$C$96,F140,G140)=SUM(J140:CK140),"ok","NO")) -> 
B141: =RE_IE1_exp_scen_hist_losses!F130 -> 0 | D141: =IF(OR(C141="",C141<=0),"",C141*'RE_IE1_non-experience_scenarios'!$G$24) ->  | E141: =RE_IE1_exp_scen_hist_losses!M130 -> 0 | H141: =IF(OR(C141="",C141<=0),"",IF(SUMPRODUCT(--(TRANSPOSE(J141:INDEX(J141:CK141,RE_IE1_Mseg_nr))>=RE_IE1_ModThres_amounts))>=1, 1, 0)) ->  | I141: =IF(IF(RE_IE1_OutputForm=RE_prescribed_parameters!$C$96,F141,G141)="","",IF(IF(RE_IE1_OutputForm=RE_prescribed_parameters!$C$96,F141,G141)=SUM(J141:CK141),"ok","NO")) -> 
B142: =RE_IE1_exp_scen_hist_losses!F131 -> 0 | D142: =IF(OR(C142="",C142<=0),"",C142*'RE_IE1_non-experience_scenarios'!$G$24) ->  | E142: =RE_IE1_exp_scen_hist_losses!M131 -> 0 | H142: =IF(OR(C142="",C142<=0),"",IF(SUMPRODUCT(--(TRANSPOSE(J142:INDEX(J142:CK142,RE_IE1_Mseg_nr))>=RE_IE1_ModThres_amounts))>=1, 1, 0)) ->  | I142: =IF(IF(RE_IE1_OutputForm=RE_prescribed_parameters!$C$96,F142,G142)="","",IF(IF(RE_IE1_OutputForm=RE_prescribed_parameters!$C$96,F142,G142)=SUM(J142:CK142),"ok","NO")) -> 
B143: =RE_IE1_exp_scen_hist_losses!F132 -> 0 | D143: =IF(OR(C143="",C143<=0),"",C143*'RE_IE1_non-experience_scenarios'!$G$24) ->  | E143: =RE_IE1_exp_scen_hist_losses!M132 -> 0 | H143: =IF(OR(C143="",C143<=0),"",IF(SUMPRODUCT(--(TRANSPOSE(J143:INDEX(J143:CK143,RE_IE1_Mseg_nr))>=RE_IE1_ModThres_amounts))>=1, 1, 0)) ->  | I143: =IF(IF(RE_IE1_OutputForm=RE_prescribed_parameters!$C$96,F143,G143)="","",IF(IF(RE_IE1_OutputForm=RE_prescribed_parameters!$C$96,F143,G143)=SUM(J143:CK143),"ok","NO")) -> 
B144: =RE_IE1_exp_scen_hist_losses!F133 -> 0 | D144: =IF(OR(C144="",C144<=0),"",C144*'RE_IE1_non-experience_scenarios'!$G$24) ->  | E144: =RE_IE1_exp_scen_hist_losses!M133 -> 0 | H144: =IF(OR(C144="",C144<=0),"",IF(SUMPRODUCT(--(TRANSPOSE(J144:INDEX(J144:CK144,RE_IE1_Mseg_nr))>=RE_IE1_ModThres_amounts))>=1, 1, 0)) ->  | I144: =IF(IF(RE_IE1_OutputForm=RE_prescribed_parameters!$C$96,F144,G144)="","",IF(IF(RE_IE1_OutputForm=RE_prescribed_parameters!$C$96,F144,G144)=SUM(J144:CK144),"ok","NO")) -> 
B145: =RE_IE1_exp_scen_hist_losses!F134 -> 0 | D145: =IF(OR(C145="",C145<=0),"",C145*'RE_IE1_non-experience_scenarios'!$G$24) ->  | E145: =RE_IE1_exp_scen_hist_losses!M134 -> 0 | H145: =IF(OR(C145="",C145<=0),"",IF(SUMPRODUCT(--(TRANSPOSE(J145:INDEX(J145:CK145,RE_IE1_Mseg_nr))>=RE_IE1_ModThres_amounts))>=1, 1, 0)) ->  | I145: =IF(IF(RE_IE1_OutputForm=RE_prescribed_parameters!$C$96,F145,G145)="","",IF(IF(RE_IE1_OutputForm=RE_prescribed_parameters!$C$96,F145,G145)=SUM(J145:CK145),"ok","NO")) -> 
B146: =RE_IE1_exp_scen_hist_losses!F135 -> 0 | D146: =IF(OR(C146="",C146<=0),"",C146*'RE_IE1_non-experience_scenarios'!$G$24) ->  | E146: =RE_IE1_exp_scen_hist_losses!M135 -> 0 | H146: =IF(OR(C146="",C146<=0),"",IF(SUMPRODUCT(--(TRANSPOSE(J146:INDEX(J146:CK146,RE_IE1_Mseg_nr))>=RE_IE1_ModThres_amounts))>=1, 1, 0)) ->  | I146: =IF(IF(RE_IE1_OutputForm=RE_prescribed_parameters!$C$96,F146,G146)="","",IF(IF(RE_IE1_OutputForm=RE_prescribed_parameters!$C$96,F146,G146)=SUM(J146:CK146),"ok","NO")) -> 
B147: =RE_IE1_exp_scen_hist_losses!F136 -> 0 | D147: =IF(OR(C147="",C147<=0),"",C147*'RE_IE1_non-experience_scenarios'!$G$24) ->  | E147: =RE_IE1_exp_scen_hist_losses!M136 -> 0 | H147: =IF(OR(C147="",C147<=0),"",IF(SUMPRODUCT(--(TRANSPOSE(J147:INDEX(J147:CK147,RE_IE1_Mseg_nr))>=RE_IE1_ModThres_amounts))>=1, 1, 0)) ->  | I147: =IF(IF(RE_IE1_OutputForm=RE_prescribed_parameters!$C$96,F147,G147)="","",IF(IF(RE_IE1_OutputForm=RE_prescribed_parameters!$C$96,F147,G147)=SUM(J147:CK147),"ok","NO")) -> 
B148: =RE_IE1_exp_scen_hist_losses!F137 -> 0 | D148: =IF(OR(C148="",C148<=0),"",C148*'RE_IE1_non-experience_scenarios'!$G$24) ->  | E148: =RE_IE1_exp_scen_hist_losses!M137 -> 0 | H148: =IF(OR(C148="",C148<=0),"",IF(SUMPRODUCT(--(TRANSPOSE(J148:INDEX(J148:CK148,RE_IE1_Mseg_nr))>=RE_IE1_ModThres_amounts))>=1, 1, 0)) ->  | I148: =IF(IF(RE_IE1_OutputForm=RE_prescribed_parameters!$C$96,F148,G148)="","",IF(IF(RE_IE1_OutputForm=RE_prescribed_parameters!$C$96,F148,G148)=SUM(J148:CK148),"ok","NO")) -> 
B149: =RE_IE1_exp_scen_hist_losses!F138 -> 0 | D149: =IF(OR(C149="",C149<=0),"",C149*'RE_IE1_non-experience_scenarios'!$G$24) ->  | E149: =RE_IE1_exp_scen_hist_losses!M138 -> 0 | H149: =IF(OR(C149="",C149<=0),"",IF(SUMPRODUCT(--(TRANSPOSE(J149:INDEX(J149:CK149,RE_IE1_Mseg_nr))>=RE_IE1_ModThres_amounts))>=1, 1, 0)) ->  | I149: =IF(IF(RE_IE1_OutputForm=RE_prescribed_parameters!$C$96,F149,G149)="","",IF(IF(RE_IE1_OutputForm=RE_prescribed_parameters!$C$96,F149,G149)=SUM(J149:CK149),"ok","NO")) -> 
B150: =RE_IE1_exp_scen_hist_losses!F139 -> 0 | D150: =IF(OR(C150="",C150<=0),"",C150*'RE_IE1_non-experience_scenarios'!$G$24) ->  | E150: =RE_IE1_exp_scen_hist_losses!M139 -> 0 | H150: =IF(OR(C150="",C150<=0),"",IF(SUMPRODUCT(--(TRANSPOSE(J150:INDEX(J150:CK150,RE_IE1_Mseg_nr))>=RE_IE1_ModThres_amounts))>=1, 1, 0)) ->  | I150: =IF(IF(RE_IE1_OutputForm=RE_prescribed_parameters!$C$96,F150,G150)="","",IF(IF(RE_IE1_OutputForm=RE_prescribed_parameters!$C$96,F150,G150)=SUM(J150:CK150),"ok","NO")) -> 
B151: =RE_IE1_exp_scen_hist_losses!F140 -> 0 | D151: =IF(OR(C151="",C151<=0),"",C151*'RE_IE1_non-experience_scenarios'!$G$24) ->  | E151: =RE_IE1_exp_scen_hist_losses!M140 -> 0 | H151: =IF(OR(C151="",C151<=0),"",IF(SUMPRODUCT(--(TRANSPOSE(J151:INDEX(J151:CK151,RE_IE1_Mseg_nr))>=RE_IE1_ModThres_amounts))>=1, 1, 0)) ->  | I151: =IF(IF(RE_IE1_OutputForm=RE_prescribed_parameters!$C$96,F151,G151)="","",IF(IF(RE_IE1_OutputForm=RE_prescribed_parameters!$C$96,F151,G151)=SUM(J151:CK151),"ok","NO")) -> 
B152: =RE_IE1_exp_scen_hist_losses!F141 -> 0 | D152: =IF(OR(C152="",C152<=0),"",C152*'RE_IE1_non-experience_scenarios'!$G$24) ->  | E152: =RE_IE1_exp_scen_hist_losses!M141 -> 0 | H152: =IF(OR(C152="",C152<=0),"",IF(SUMPRODUCT(--(TRANSPOSE(J152:INDEX(J152:CK152,RE_IE1_Mseg_nr))>=RE_IE1_ModThres_amounts))>=1, 1, 0)) ->  | I152: =IF(IF(RE_IE1_OutputForm=RE_prescribed_parameters!$C$96,F152,G152)="","",IF(IF(RE_IE1_OutputForm=RE_prescribed_parameters!$C$96,F152,G152)=SUM(J152:CK152),"ok","NO")) -> 
B153: =RE_IE1_exp_scen_hist_losses!F142 -> 0 | D153: =IF(OR(C153="",C153<=0),"",C153*'RE_IE1_non-experience_scenarios'!$G$24) ->  | E153: =RE_IE1_exp_scen_hist_losses!M142 -> 0 | H153: =IF(OR(C153="",C153<=0),"",IF(SUMPRODUCT(--(TRANSPOSE(J153:INDEX(J153:CK153,RE_IE1_Mseg_nr))>=RE_IE1_ModThres_amounts))>=1, 1, 0)) ->  | I153: =IF(IF(RE_IE1_OutputForm=RE_prescribed_parameters!$C$96,F153,G153)="","",IF(IF(RE_IE1_OutputForm=RE_prescribed_parameters!$C$96,F153,G153)=SUM(J153:CK153),"ok","NO")) -> 
B154: =RE_IE1_exp_scen_hist_losses!F143 -> 0 | D154: =IF(OR(C154="",C154<=0),"",C154*'RE_IE1_non-experience_scenarios'!$G$24) ->  | E154: =RE_IE1_exp_scen_hist_losses!M143 -> 0 | H154: =IF(OR(C154="",C154<=0),"",IF(SUMPRODUCT(--(TRANSPOSE(J154:INDEX(J154:CK154,RE_IE1_Mseg_nr))>=RE_IE1_ModThres_amounts))>=1, 1, 0)) ->  | I154: =IF(IF(RE_IE1_OutputForm=RE_prescribed_parameters!$C$96,F154,G154)="","",IF(IF(RE_IE1_OutputForm=RE_prescribed_parameters!$C$96,F154,G154)=SUM(J154:CK154),"ok","NO")) -> 
B155: =RE_IE1_exp_scen_hist_losses!F144 -> 0 | D155: =IF(OR(C155="",C155<=0),"",C155*'RE_IE1_non-experience_scenarios'!$G$24) ->  | E155: =RE_IE1_exp_scen_hist_losses!M144 -> 0 | H155: =IF(OR(C155="",C155<=0),"",IF(SUMPRODUCT(--(TRANSPOSE(J155:INDEX(J155:CK155,RE_IE1_Mseg_nr))>=RE_IE1_ModThres_amounts))>=1, 1, 0)) ->  | I155: =IF(IF(RE_IE1_OutputForm=RE_prescribed_parameters!$C$96,F155,G155)="","",IF(IF(RE_IE1_OutputForm=RE_prescribed_parameters!$C$96,F155,G155)=SUM(J155:CK155),"ok","NO")) -> 
B156: =RE_IE1_exp_scen_hist_losses!F145 -> 0 | D156: =IF(OR(C156="",C156<=0),"",C156*'RE_IE1_non-experience_scenarios'!$G$24) ->  | E156: =RE_IE1_exp_scen_hist_losses!M145 -> 0 | H156: =IF(OR(C156="",C156<=0),"",IF(SUMPRODUCT(--(TRANSPOSE(J156:INDEX(J156:CK156,RE_IE1_Mseg_nr))>=RE_IE1_ModThres_amounts))>=1, 1, 0)) ->  | I156: =IF(IF(RE_IE1_OutputForm=RE_prescribed_parameters!$C$96,F156,G156)="","",IF(IF(RE_IE1_OutputForm=RE_prescribed_parameters!$C$96,F156,G156)=SUM(J156:CK156),"ok","NO")) -> 
B157: =RE_IE1_exp_scen_hist_losses!F146 -> 0 | D157: =IF(OR(C157="",C157<=0),"",C157*'RE_IE1_non-experience_scenarios'!$G$24) ->  | E157: =RE_IE1_exp_scen_hist_losses!M146 -> 0 | H157: =IF(OR(C157="",C157<=0),"",IF(SUMPRODUCT(--(TRANSPOSE(J157:INDEX(J157:CK157,RE_IE1_Mseg_nr))>=RE_IE1_ModThres_amounts))>=1, 1, 0)) ->  | I157: =IF(IF(RE_IE1_OutputForm=RE_prescribed_parameters!$C$96,F157,G157)="","",IF(IF(RE_IE1_OutputForm=RE_prescribed_parameters!$C$96,F157,G157)=SUM(J157:CK157),"ok","NO")) -> 
B158: =RE_IE1_exp_scen_hist_losses!F147 -> 0 | D158: =IF(OR(C158="",C158<=0),"",C158*'RE_IE1_non-experience_scenarios'!$G$24) ->  | E158: =RE_IE1_exp_scen_hist_losses!M147 -> 0 | H158: =IF(OR(C158="",C158<=0),"",IF(SUMPRODUCT(--(TRANSPOSE(J158:INDEX(J158:CK158,RE_IE1_Mseg_nr))>=RE_IE1_ModThres_amounts))>=1, 1, 0)) ->  | I158: =IF(IF(RE_IE1_OutputForm=RE_prescribed_parameters!$C$96,F158,G158)="","",IF(IF(RE_IE1_OutputForm=RE_prescribed_parameters!$C$96,F158,G158)=SUM(J158:CK158),"ok","NO")) -> 
B159: =RE_IE1_exp_scen_hist_losses!F148 -> 0 | D159: =IF(OR(C159="",C159<=0),"",C159*'RE_IE1_non-experience_scenarios'!$G$24) ->  | E159: =RE_IE1_exp_scen_hist_losses!M148 -> 0 | H159: =IF(OR(C159="",C159<=0),"",IF(SUMPRODUCT(--(TRANSPOSE(J159:INDEX(J159:CK159,RE_IE1_Mseg_nr))>=RE_IE1_ModThres_amounts))>=1, 1, 0)) ->  | I159: =IF(IF(RE_IE1_OutputForm=RE_prescribed_parameters!$C$96,F159,G159)="","",IF(IF(RE_IE1_OutputForm=RE_prescribed_parameters!$C$96,F159,G159)=SUM(J159:CK159),"ok","NO")) -> 
B160: =RE_IE1_exp_scen_hist_losses!F149 -> 0 | D160: =IF(OR(C160="",C160<=0),"",C160*'RE_IE1_non-experience_scenarios'!$G$24) ->  | E160: =RE_IE1_exp_scen_hist_losses!M149 -> 0 | H160: =IF(OR(C160="",C160<=0),"",IF(SUMPRODUCT(--(TRANSPOSE(J160:INDEX(J160:CK160,RE_IE1_Mseg_nr))>=RE_IE1_ModThres_amounts))>=1, 1, 0)) ->  | I160: =IF(IF(RE_IE1_OutputForm=RE_prescribed_parameters!$C$96,F160,G160)="","",IF(IF(RE_IE1_OutputForm=RE_prescribed_parameters!$C$96,F160,G160)=SUM(J160:CK160),"ok","NO")) -> 
B161: =RE_IE1_exp_scen_hist_losses!F150 -> 0 | D161: =IF(OR(C161="",C161<=0),"",C161*'RE_IE1_non-experience_scenarios'!$G$24) ->  | E161: =RE_IE1_exp_scen_hist_losses!M150 -> 0 | H161: =IF(OR(C161="",C161<=0),"",IF(SUMPRODUCT(--(TRANSPOSE(J161:INDEX(J161:CK161,RE_IE1_Mseg_nr))>=RE_IE1_ModThres_amounts))>=1, 1, 0)) ->  | I161: =IF(IF(RE_IE1_OutputForm=RE_prescribed_parameters!$C$96,F161,G161)="","",IF(IF(RE_IE1_OutputForm=RE_prescribed_parameters!$C$96,F161,G161)=SUM(J161:CK161),"ok","NO")) -> 
B162: =RE_IE1_exp_scen_hist_losses!F151 -> 0 | D162: =IF(OR(C162="",C162<=0),"",C162*'RE_IE1_non-experience_scenarios'!$G$24) ->  | E162: =RE_IE1_exp_scen_hist_losses!M151 -> 0 | H162: =IF(OR(C162="",C162<=0),"",IF(SUMPRODUCT(--(TRANSPOSE(J162:INDEX(J162:CK162,RE_IE1_Mseg_nr))>=RE_IE1_ModThres_amounts))>=1, 1, 0)) ->  | I162: =IF(IF(RE_IE1_OutputForm=RE_prescribed_parameters!$C$96,F162,G162)="","",IF(IF(RE_IE1_OutputForm=RE_prescribed_parameters!$C$96,F162,G162)=SUM(J162:CK162),"ok","NO")) -> 
B163: =RE_IE1_exp_scen_hist_losses!F152 -> 0 | D163: =IF(OR(C163="",C163<=0),"",C163*'RE_IE1_non-experience_scenarios'!$G$24) ->  | E163: =RE_IE1_exp_scen_hist_losses!M152 -> 0 | H163: =IF(OR(C163="",C163<=0),"",IF(SUMPRODUCT(--(TRANSPOSE(J163:INDEX(J163:CK163,RE_IE1_Mseg_nr))>=RE_IE1_ModThres_amounts))>=1, 1, 0)) ->  | I163: =IF(IF(RE_IE1_OutputForm=RE_prescribed_parameters!$C$96,F163,G163)="","",IF(IF(RE_IE1_OutputForm=RE_prescribed_parameters!$C$96,F163,G163)=SUM(J163:CK163),"ok","NO")) -> 
B164: =RE_IE1_exp_scen_hist_losses!F153 -> 0 | D164: =IF(OR(C164="",C164<=0),"",C164*'RE_IE1_non-experience_scenarios'!$G$24) ->  | E164: =RE_IE1_exp_scen_hist_losses!M153 -> 0 | H164: =IF(OR(C164="",C164<=0),"",IF(SUMPRODUCT(--(TRANSPOSE(J164:INDEX(J164:CK164,RE_IE1_Mseg_nr))>=RE_IE1_ModThres_amounts))>=1, 1, 0)) ->  | I164: =IF(IF(RE_IE1_OutputForm=RE_prescribed_parameters!$C$96,F164,G164)="","",IF(IF(RE_IE1_OutputForm=RE_prescribed_parameters!$C$96,F164,G164)=SUM(J164:CK164),"ok","NO")) -> 
B165: =RE_IE1_exp_scen_hist_losses!F154 -> 0 | D165: =IF(OR(C165="",C165<=0),"",C165*'RE_IE1_non-experience_scenarios'!$G$24) ->  | E165: =RE_IE1_exp_scen_hist_losses!M154 -> 0 | H165: =IF(OR(C165="",C165<=0),"",IF(SUMPRODUCT(--(TRANSPOSE(J165:INDEX(J165:CK165,RE_IE1_Mseg_nr))>=RE_IE1_ModThres_amounts))>=1, 1, 0)) ->  | I165: =IF(IF(RE_IE1_OutputForm=RE_prescribed_parameters!$C$96,F165,G165)="","",IF(IF(RE_IE1_OutputForm=RE_prescribed_parameters!$C$96,F165,G165)=SUM(J165:CK165),"ok","NO")) -> 
B166: =RE_IE1_exp_scen_hist_losses!F155 -> 0 | D166: =IF(OR(C166="",C166<=0),"",C166*'RE_IE1_non-experience_scenarios'!$G$24) ->  | E166: =RE_IE1_exp_scen_hist_losses!M155 -> 0 | H166: =IF(OR(C166="",C166<=0),"",IF(SUMPRODUCT(--(TRANSPOSE(J166:INDEX(J166:CK166,RE_IE1_Mseg_nr))>=RE_IE1_ModThres_amounts))>=1, 1, 0)) ->  | I166: =IF(IF(RE_IE1_OutputForm=RE_prescribed_parameters!$C$96,F166,G166)="","",IF(IF(RE_IE1_OutputForm=RE_prescribed_parameters!$C$96,F166,G166)=SUM(J166:CK166),"ok","NO")) -> 
B167: =RE_IE1_exp_scen_hist_losses!F156 -> 0 | D167: =IF(OR(C167="",C167<=0),"",C167*'RE_IE1_non-experience_scenarios'!$G$24) ->  | E167: =RE_IE1_exp_scen_hist_losses!M156 -> 0 | H167: =IF(OR(C167="",C167<=0),"",IF(SUMPRODUCT(--(TRANSPOSE(J167:INDEX(J167:CK167,RE_IE1_Mseg_nr))>=RE_IE1_ModThres_amounts))>=1, 1, 0)) ->  | I167: =IF(IF(RE_IE1_OutputForm=RE_prescribed_parameters!$C$96,F167,G167)="","",IF(IF(RE_IE1_OutputForm=RE_prescribed_parameters!$C$96,F167,G167)=SUM(J167:CK167),"ok","NO")) -> 
B168: =RE_IE1_exp_scen_hist_losses!F157 -> 0 | D168: =IF(OR(C168="",C168<=0),"",C168*'RE_IE1_non-experience_scenarios'!$G$24) ->  | E168: =RE_IE1_exp_scen_hist_losses!M157 -> 0 | H168: =IF(OR(C168="",C168<=0),"",IF(SUMPRODUCT(--(TRANSPOSE(J168:INDEX(J168:CK168,RE_IE1_Mseg_nr))>=RE_IE1_ModThres_amounts))>=1, 1, 0)) ->  | I168: =IF(IF(RE_IE1_OutputForm=RE_prescribed_parameters!$C$96,F168,G168)="","",IF(IF(RE_IE1_OutputForm=RE_prescribed_parameters!$C$96,F168,G168)=SUM(J168:CK168),"ok","NO")) -> 
B169: =RE_IE1_exp_scen_hist_losses!F158 -> 0 | D169: =IF(OR(C169="",C169<=0),"",C169*'RE_IE1_non-experience_scenarios'!$G$24) ->  | E169: =RE_IE1_exp_scen_hist_losses!M158 -> 0 | H169: =IF(OR(C169="",C169<=0),"",IF(SUMPRODUCT(--(TRANSPOSE(J169:INDEX(J169:CK169,RE_IE1_Mseg_nr))>=RE_IE1_ModThres_amounts))>=1, 1, 0)) ->  | I169: =IF(IF(RE_IE1_OutputForm=RE_prescribed_parameters!$C$96,F169,G169)="","",IF(IF(RE_IE1_OutputForm=RE_prescribed_parameters!$C$96,F169,G169)=SUM(J169:CK169),"ok","NO")) -> 
B170: =RE_IE1_exp_scen_hist_losses!F159 -> 0 | D170: =IF(OR(C170="",C170<=0),"",C170*'RE_IE1_non-experience_scenarios'!$G$24) ->  | E170: =RE_IE1_exp_scen_hist_losses!M159 -> 0 | H170: =IF(OR(C170="",C170<=0),"",IF(SUMPRODUCT(--(TRANSPOSE(J170:INDEX(J170:CK170,RE_IE1_Mseg_nr))>=RE_IE1_ModThres_amounts))>=1, 1, 0)) ->  | I170: =IF(IF(RE_IE1_OutputForm=RE_prescribed_parameters!$C$96,F170,G170)="","",IF(IF(RE_IE1_OutputForm=RE_prescribed_parameters!$C$96,F170,G170)=SUM(J170:CK170),"ok","NO")) -> 
B171: =RE_IE1_exp_scen_hist_losses!F160 -> 0 | D171: =IF(OR(C171="",C171<=0),"",C171*'RE_IE1_non-experience_scenarios'!$G$24) ->  | E171: =RE_IE1_exp_scen_hist_losses!M160 -> 0 | H171: =IF(OR(C171="",C171<=0),"",IF(SUMPRODUCT(--(TRANSPOSE(J171:INDEX(J171:CK171,RE_IE1_Mseg_nr))>=RE_IE1_ModThres_amounts))>=1, 1, 0)) ->  | I171: =IF(IF(RE_IE1_OutputForm=RE_prescribed_parameters!$C$96,F171,G171)="","",IF(IF(RE_IE1_OutputForm=RE_prescribed_parameters!$C$96,F171,G171)=SUM(J171:CK171),"ok","NO")) -> 
B172: =RE_IE1_exp_scen_hist_losses!F161 -> 0 | D172: =IF(OR(C172="",C172<=0),"",C172*'RE_IE1_non-experience_scenarios'!$G$24) ->  | E172: =RE_IE1_exp_scen_hist_losses!M161 -> 0 | H172: =IF(OR(C172="",C172<=0),"",IF(SUMPRODUCT(--(TRANSPOSE(J172:INDEX(J172:CK172,RE_IE1_Mseg_nr))>=RE_IE1_ModThres_amounts))>=1, 1, 0)) ->  | I172: =IF(IF(RE_IE1_OutputForm=RE_prescribed_parameters!$C$96,F172,G172)="","",IF(IF(RE_IE1_OutputForm=RE_prescribed_parameters!$C$96,F172,G172)=SUM(J172:CK172),"ok","NO")) -> 
B173: =RE_IE1_exp_scen_hist_losses!F162 -> 0 | D173: =IF(OR(C173="",C173<=0),"",C173*'RE_IE1_non-experience_scenarios'!$G$24) ->  | E173: =RE_IE1_exp_scen_hist_losses!M162 -> 0 | H173: =IF(OR(C173="",C173<=0),"",IF(SUMPRODUCT(--(TRANSPOSE(J173:INDEX(J173:CK173,RE_IE1_Mseg_nr))>=RE_IE1_ModThres_amounts))>=1, 1, 0)) ->  | I173: =IF(IF(RE_IE1_OutputForm=RE_prescribed_parameters!$C$96,F173,G173)="","",IF(IF(RE_IE1_OutputForm=RE_prescribed_parameters!$C$96,F173,G173)=SUM(J173:CK173),"ok","NO")) -> 
B174: =RE_IE1_exp_scen_hist_losses!F163 -> 0 | D174: =IF(OR(C174="",C174<=0),"",C174*'RE_IE1_non-experience_scenarios'!$G$24) ->  | E174: =RE_IE1_exp_scen_hist_losses!M163 -> 0 | H174: =IF(OR(C174="",C174<=0),"",IF(SUMPRODUCT(--(TRANSPOSE(J174:INDEX(J174:CK174,RE_IE1_Mseg_nr))>=RE_IE1_ModThres_amounts))>=1, 1, 0)) ->  | I174: =IF(IF(RE_IE1_OutputForm=RE_prescribed_parameters!$C$96,F174,G174)="","",IF(IF(RE_IE1_OutputForm=RE_prescribed_parameters!$C$96,F174,G174)=SUM(J174:CK174),"ok","NO")) -> 
B175: =RE_IE1_exp_scen_hist_losses!F164 -> 0 | D175: =IF(OR(C175="",C175<=0),"",C175*'RE_IE1_non-experience_scenarios'!$G$24) ->  | E175: =RE_IE1_exp_scen_hist_losses!M164 -> 0 | H175: =IF(OR(C175="",C175<=0),"",IF(SUMPRODUCT(--(TRANSPOSE(J175:INDEX(J175:CK175,RE_IE1_Mseg_nr))>=RE_IE1_ModThres_amounts))>=1, 1, 0)) ->  | I175: =IF(IF(RE_IE1_OutputForm=RE_prescribed_parameters!$C$96,F175,G175)="","",IF(IF(RE_IE1_OutputForm=RE_prescribed_parameters!$C$96,F175,G175)=SUM(J175:CK175),"ok","NO")) -> 
B176: =RE_IE1_exp_scen_hist_losses!F165 -> 0 | D176: =IF(OR(C176="",C176<=0),"",C176*'RE_IE1_non-experience_scenarios'!$G$24) ->  | E176: =RE_IE1_exp_scen_hist_losses!M165 -> 0 | H176: =IF(OR(C176="",C176<=0),"",IF(SUMPRODUCT(--(TRANSPOSE(J176:INDEX(J176:CK176,RE_IE1_Mseg_nr))>=RE_IE1_ModThres_amounts))>=1, 1, 0)) ->  | I176: =IF(IF(RE_IE1_OutputForm=RE_prescribed_parameters!$C$96,F176,G176)="","",IF(IF(RE_IE1_OutputForm=RE_prescribed_parameters!$C$96,F176,G176)=SUM(J176:CK176),"ok","NO")) -> 
B177: =RE_IE1_exp_scen_hist_losses!F166 -> 0 | D177: =IF(OR(C177="",C177<=0),"",C177*'RE_IE1_non-experience_scenarios'!$G$24) ->  | E177: =RE_IE1_exp_scen_hist_losses!M166 -> 0 | H177: =IF(OR(C177="",C177<=0),"",IF(SUMPRODUCT(--(TRANSPOSE(J177:INDEX(J177:CK177,RE_IE1_Mseg_nr))>=RE_IE1_ModThres_amounts))>=1, 1, 0)) ->  | I177: =IF(IF(RE_IE1_OutputForm=RE_prescribed_parameters!$C$96,F177,G177)="","",IF(IF(RE_IE1_OutputForm=RE_prescribed_parameters!$C$96,F177,G177)=SUM(J177:CK177),"ok","NO")) -> 
B178: =RE_IE1_exp_scen_hist_losses!F167 -> 0 | D178: =IF(OR(C178="",C178<=0),"",C178*'RE_IE1_non-experience_scenarios'!$G$24) ->  | E178: =RE_IE1_exp_scen_hist_losses!M167 -> 0 | H178: =IF(OR(C178="",C178<=0),"",IF(SUMPRODUCT(--(TRANSPOSE(J178:INDEX(J178:CK178,RE_IE1_Mseg_nr))>=RE_IE1_ModThres_amounts))>=1, 1, 0)) ->  | I178: =IF(IF(RE_IE1_OutputForm=RE_prescribed_parameters!$C$96,F178,G178)="","",IF(IF(RE_IE1_OutputForm=RE_prescribed_parameters!$C$96,F178,G178)=SUM(J178:CK178),"ok","NO")) -> 
B179: =RE_IE1_exp_scen_hist_losses!F168 -> 0 | D179: =IF(OR(C179="",C179<=0),"",C179*'RE_IE1_non-experience_scenarios'!$G$24) ->  | E179: =RE_IE1_exp_scen_hist_losses!M168 -> 0 | H179: =IF(OR(C179="",C179<=0),"",IF(SUMPRODUCT(--(TRANSPOSE(J179:INDEX(J179:CK179,RE_IE1_Mseg_nr))>=RE_IE1_ModThres_amounts))>=1, 1, 0)) ->  | I179: =IF(IF(RE_IE1_OutputForm=RE_prescribed_parameters!$C$96,F179,G179)="","",IF(IF(RE_IE1_OutputForm=RE_prescribed_parameters!$C$96,F179,G179)=SUM(J179:CK179),"ok","NO")) -> 
B180: =RE_IE1_exp_scen_hist_losses!F169 -> 0 | D180: =IF(OR(C180="",C180<=0),"",C180*'RE_IE1_non-experience_scenarios'!$G$24) ->  | E180: =RE_IE1_exp_scen_hist_losses!M169 -> 0 | H180: =IF(OR(C180="",C180<=0),"",IF(SUMPRODUCT(--(TRANSPOSE(J180:INDEX(J180:CK180,RE_IE1_Mseg_nr))>=RE_IE1_ModThres_amounts))>=1, 1, 0)) ->  | I180: =IF(IF(RE_IE1_OutputForm=RE_prescribed_parameters!$C$96,F180,G180)="","",IF(IF(RE_IE1_OutputForm=RE_prescribed_parameters!$C$96,F180,G180)=SUM(J180:CK180),"ok","NO")) -> 
B181: =RE_IE1_exp_scen_hist_losses!F170 -> 0 | D181: =IF(OR(C181="",C181<=0),"",C181*'RE_IE1_non-experience_scenarios'!$G$24) ->  | E181: =RE_IE1_exp_scen_hist_losses!M170 -> 0 | H181: =IF(OR(C181="",C181<=0),"",IF(SUMPRODUCT(--(TRANSPOSE(J181:INDEX(J181:CK181,RE_IE1_Mseg_nr))>=RE_IE1_ModThres_amounts))>=1, 1, 0)) ->  | I181: =IF(IF(RE_IE1_OutputForm=RE_prescribed_parameters!$C$96,F181,G181)="","",IF(IF(RE_IE1_OutputForm=RE_prescribed_parameters!$C$96,F181,G181)=SUM(J181:CK181),"ok","NO")) -> 
B182: =RE_IE1_exp_scen_hist_losses!F171 -> 0 | D182: =IF(OR(C182="",C182<=0),"",C182*'RE_IE1_non-experience_scenarios'!$G$24) ->  | E182: =RE_IE1_exp_scen_hist_losses!M171 -> 0 | H182: =IF(OR(C182="",C182<=0),"",IF(SUMPRODUCT(--(TRANSPOSE(J182:INDEX(J182:CK182,RE_IE1_Mseg_nr))>=RE_IE1_ModThres_amounts))>=1, 1, 0)) ->  | I182: =IF(IF(RE_IE1_OutputForm=RE_prescribed_parameters!$C$96,F182,G182)="","",IF(IF(RE_IE1_OutputForm=RE_prescribed_parameters!$C$96,F182,G182)=SUM(J182:CK182),"ok","NO")) -> 
B183: =RE_IE1_exp_scen_hist_losses!F172 -> 0 | D183: =IF(OR(C183="",C183<=0),"",C183*'RE_IE1_non-experience_scenarios'!$G$24) ->  | E183: =RE_IE1_exp_scen_hist_losses!M172 -> 0 | H183: =IF(OR(C183="",C183<=0),"",IF(SUMPRODUCT(--(TRANSPOSE(J183:INDEX(J183:CK183,RE_IE1_Mseg_nr))>=RE_IE1_ModThres_amounts))>=1, 1, 0)) ->  | I183: =IF(IF(RE_IE1_OutputForm=RE_prescribed_parameters!$C$96,F183,G183)="","",IF(IF(RE_IE1_OutputForm=RE_prescribed_parameters!$C$96,F183,G183)=SUM(J183:CK183),"ok","NO")) -> 
B184: =RE_IE1_exp_scen_hist_losses!F173 -> 0 | D184: =IF(OR(C184="",C184<=0),"",C184*'RE_IE1_non-experience_scenarios'!$G$24) ->  | E184: =RE_IE1_exp_scen_hist_losses!M173 -> 0 | H184: =IF(OR(C184="",C184<=0),"",IF(SUMPRODUCT(--(TRANSPOSE(J184:INDEX(J184:CK184,RE_IE1_Mseg_nr))>=RE_IE1_ModThres_amounts))>=1, 1, 0)) ->  | I184: =IF(IF(RE_IE1_OutputForm=RE_prescribed_parameters!$C$96,F184,G184)="","",IF(IF(RE_IE1_OutputForm=RE_prescribed_parameters!$C$96,F184,G184)=SUM(J184:CK184),"ok","NO")) -> 
B185: =RE_IE1_exp_scen_hist_losses!F174 -> 0 | D185: =IF(OR(C185="",C185<=0),"",C185*'RE_IE1_non-experience_scenarios'!$G$24) ->  | E185: =RE_IE1_exp_scen_hist_losses!M174 -> 0 | H185: =IF(OR(C185="",C185<=0),"",IF(SUMPRODUCT(--(TRANSPOSE(J185:INDEX(J185:CK185,RE_IE1_Mseg_nr))>=RE_IE1_ModThres_amounts))>=1, 1, 0)) ->  | I185: =IF(IF(RE_IE1_OutputForm=RE_prescribed_parameters!$C$96,F185,G185)="","",IF(IF(RE_IE1_OutputForm=RE_prescribed_parameters!$C$96,F185,G185)=SUM(J185:CK185),"ok","NO")) -> 
B186: =RE_IE1_exp_scen_hist_losses!F175 -> 0 | D186: =IF(OR(C186="",C186<=0),"",C186*'RE_IE1_non-experience_scenarios'!$G$24) ->  | E186: =RE_IE1_exp_scen_hist_losses!M175 -> 0 | H186: =IF(OR(C186="",C186<=0),"",IF(SUMPRODUCT(--(TRANSPOSE(J186:INDEX(J186:CK186,RE_IE1_Mseg_nr))>=RE_IE1_ModThres_amounts))>=1, 1, 0)) ->  | I186: =IF(IF(RE_IE1_OutputForm=RE_prescribed_parameters!$C$96,F186,G186)="","",IF(IF(RE_IE1_OutputForm=RE_prescribed_parameters!$C$96,F186,G186)=SUM(J186:CK186),"ok","NO")) -> 
B187: =RE_IE1_exp_scen_hist_losses!F176 -> 0 | D187: =IF(OR(C187="",C187<=0),"",C187*'RE_IE1_non-experience_scenarios'!$G$24) ->  | E187: =RE_IE1_exp_scen_hist_losses!M176 -> 0 | H187: =IF(OR(C187="",C187<=0),"",IF(SUMPRODUCT(--(TRANSPOSE(J187:INDEX(J187:CK187,RE_IE1_Mseg_nr))>=RE_IE1_ModThres_amounts))>=1, 1, 0)) ->  | I187: =IF(IF(RE_IE1_OutputForm=RE_prescribed_parameters!$C$96,F187,G187)="","",IF(IF(RE_IE1_OutputForm=RE_prescribed_parameters!$C$96,F187,G187)=SUM(J187:CK187),"ok","NO")) -> 
B188: =RE_IE1_exp_scen_hist_losses!F177 -> 0 | D188: =IF(OR(C188="",C188<=0),"",C188*'RE_IE1_non-experience_scenarios'!$G$24) ->  | E188: =RE_IE1_exp_scen_hist_losses!M177 -> 0 | H188: =IF(OR(C188="",C188<=0),"",IF(SUMPRODUCT(--(TRANSPOSE(J188:INDEX(J188:CK188,RE_IE1_Mseg_nr))>=RE_IE1_ModThres_amounts))>=1, 1, 0)) ->  | I188: =IF(IF(RE_IE1_OutputForm=RE_prescribed_parameters!$C$96,F188,G188)="","",IF(IF(RE_IE1_OutputForm=RE_prescribed_parameters!$C$96,F188,G188)=SUM(J188:CK188),"ok","NO")) -> 
B189: =RE_IE1_exp_scen_hist_losses!F178 -> 0 | D189: =IF(OR(C189="",C189<=0),"",C189*'RE_IE1_non-experience_scenarios'!$G$24) ->  | E189: =RE_IE1_exp_scen_hist_losses!M178 -> 0 | H189: =IF(OR(C189="",C189<=0),"",IF(SUMPRODUCT(--(TRANSPOSE(J189:INDEX(J189:CK189,RE_IE1_Mseg_nr))>=RE_IE1_ModThres_amounts))>=1, 1, 0)) ->  | I189: =IF(IF(RE_IE1_OutputForm=RE_prescribed_parameters!$C$96,F189,G189)="","",IF(IF(RE_IE1_OutputForm=RE_prescribed_parameters!$C$96,F189,G189)=SUM(J189:CK189),"ok","NO")) -> 
B190: =RE_IE1_exp_scen_hist_losses!F179 -> 0 | D190: =IF(OR(C190="",C190<=0),"",C190*'RE_IE1_non-experience_scenarios'!$G$24) ->  | E190: =RE_IE1_exp_scen_hist_losses!M179 -> 0 | H190: =IF(OR(C190="",C190<=0),"",IF(SUMPRODUCT(--(TRANSPOSE(J190:INDEX(J190:CK190,RE_IE1_Mseg_nr))>=RE_IE1_ModThres_amounts))>=1, 1, 0)) ->  | I190: =IF(IF(RE_IE1_OutputForm=RE_prescribed_parameters!$C$96,F190,G190)="","",IF(IF(RE_IE1_OutputForm=RE_prescribed_parameters!$C$96,F190,G190)=SUM(J190:CK190),"ok","NO")) -> 
B191: =RE_IE1_exp_scen_hist_losses!F180 -> 0 | D191: =IF(OR(C191="",C191<=0),"",C191*'RE_IE1_non-experience_scenarios'!$G$24) ->  | E191: =RE_IE1_exp_scen_hist_losses!M180 -> 0 | H191: =IF(OR(C191="",C191<=0),"",IF(SUMPRODUCT(--(TRANSPOSE(J191:INDEX(J191:CK191,RE_IE1_Mseg_nr))>=RE_IE1_ModThres_amounts))>=1, 1, 0)) ->  | I191: =IF(IF(RE_IE1_OutputForm=RE_prescribed_parameters!$C$96,F191,G191)="","",IF(IF(RE_IE1_OutputForm=RE_prescribed_parameters!$C$96,F191,G191)=SUM(J191:CK191),"ok","NO")) -> 
B192: =RE_IE1_exp_scen_hist_losses!F181 -> 0 | D192: =IF(OR(C192="",C192<=0),"",C192*'RE_IE1_non-experience_scenarios'!$G$24) ->  | E192: =RE_IE1_exp_scen_hist_losses!M181 -> 0 | H192: =IF(OR(C192="",C192<=0),"",IF(SUMPRODUCT(--(TRANSPOSE(J192:INDEX(J192:CK192,RE_IE1_Mseg_nr))>=RE_IE1_ModThres_amounts))>=1, 1, 0)) ->  | I192: =IF(IF(RE_IE1_OutputForm=RE_prescribed_parameters!$C$96,F192,G192)="","",IF(IF(RE_IE1_OutputForm=RE_prescribed_parameters!$C$96,F192,G192)=SUM(J192:CK192),"ok","NO")) -> 
B193: =RE_IE1_exp_scen_hist_losses!F182 -> 0 | D193: =IF(OR(C193="",C193<=0),"",C193*'RE_IE1_non-experience_scenarios'!$G$24) ->  | E193: =RE_IE1_exp_scen_hist_losses!M182 -> 0 | H193: =IF(OR(C193="",C193<=0),"",IF(SUMPRODUCT(--(TRANSPOSE(J193:INDEX(J193:CK193,RE_IE1_Mseg_nr))>=RE_IE1_ModThres_amounts))>=1, 1, 0)) ->  | I193: =IF(IF(RE_IE1_OutputForm=RE_prescribed_parameters!$C$96,F193,G193)="","",IF(IF(RE_IE1_OutputForm=RE_prescribed_parameters!$C$96,F193,G193)=SUM(J193:CK193),"ok","NO")) -> 
B194: =RE_IE1_exp_scen_hist_losses!F183 -> 0 | D194: =IF(OR(C194="",C194<=0),"",C194*'RE_IE1_non-experience_scenarios'!$G$24) ->  | E194: =RE_IE1_exp_scen_hist_losses!M183 -> 0 | H194: =IF(OR(C194="",C194<=0),"",IF(SUMPRODUCT(--(TRANSPOSE(J194:INDEX(J194:CK194,RE_IE1_Mseg_nr))>=RE_IE1_ModThres_amounts))>=1, 1, 0)) ->  | I194: =IF(IF(RE_IE1_OutputForm=RE_prescribed_parameters!$C$96,F194,G194)="","",IF(IF(RE_IE1_OutputForm=RE_prescribed_parameters!$C$96,F194,G194)=SUM(J194:CK194),"ok","NO")) -> 
B195: =RE_IE1_exp_scen_hist_losses!F184 -> 0 | D195: =IF(OR(C195="",C195<=0),"",C195*'RE_IE1_non-experience_scenarios'!$G$24) ->  | E195: =RE_IE1_exp_scen_hist_losses!M184 -> 0 | H195: =IF(OR(C195="",C195<=0),"",IF(SUMPRODUCT(--(TRANSPOSE(J195:INDEX(J195:CK195,RE_IE1_Mseg_nr))>=RE_IE1_ModThres_amounts))>=1, 1, 0)) ->  | I195: =IF(IF(RE_IE1_OutputForm=RE_prescribed_parameters!$C$96,F195,G195)="","",IF(IF(RE_IE1_OutputForm=RE_prescribed_parameters!$C$96,F195,G195)=SUM(J195:CK195),"ok","NO")) -> 
B196: =RE_IE1_exp_scen_hist_losses!F185 -> 0 | D196: =IF(OR(C196="",C196<=0),"",C196*'RE_IE1_non-experience_scenarios'!$G$24) ->  | E196: =RE_IE1_exp_scen_hist_losses!M185 -> 0 | H196: =IF(OR(C196="",C196<=0),"",IF(SUMPRODUCT(--(TRANSPOSE(J196:INDEX(J196:CK196,RE_IE1_Mseg_nr))>=RE_IE1_ModThres_amounts))>=1, 1, 0)) ->  | I196: =IF(IF(RE_IE1_OutputForm=RE_prescribed_parameters!$C$96,F196,G196)="","",IF(IF(RE_IE1_OutputForm=RE_prescribed_parameters!$C$96,F196,G196)=SUM(J196:CK196),"ok","NO")) -> 
B197: =RE_IE1_exp_scen_hist_losses!F186 -> 0 | D197: =IF(OR(C197="",C197<=0),"",C197*'RE_IE1_non-experience_scenarios'!$G$24) ->  | E197: =RE_IE1_exp_scen_hist_losses!M186 -> 0 | H197: =IF(OR(C197="",C197<=0),"",IF(SUMPRODUCT(--(TRANSPOSE(J197:INDEX(J197:CK197,RE_IE1_Mseg_nr))>=RE_IE1_ModThres_amounts))>=1, 1, 0)) ->  | I197: =IF(IF(RE_IE1_OutputForm=RE_prescribed_parameters!$C$96,F197,G197)="","",IF(IF(RE_IE1_OutputForm=RE_prescribed_parameters!$C$96,F197,G197)=SUM(J197:CK197),"ok","NO")) -> 
